{"text_format":"1","workbook":"xlsx","n_sheets":70,"sheets":["Intro","Start","Type","Premises","Meteorology","Surrounding Landuse","Topography","Environmental I & M","GWDialog","SWDialog","LeachateDialog","DustDialog","NoiseDialog","LGDialog","Surrounding Environment 1","Surrounding Environment 2","Community I, E & A","Training","Operational 1","Operational 1 (TS)","Operational 2","Operational 3","Operational 4","Operational 5","Landfill Specific","LeachateMgtDialog","Transfer Station Specific","Closed Landfill","PostCapDialog","Proceed","Previously used","Mitigation Options (Landfill)","Environmental I & M (m)","GWDialog (m)","SWDialog (m)","LeachateDialog (m)","DustDialog (m)","NoiseDialog (m)","LGDialog (m)","Monitoring 1","Monitoring 2","Monitoring 3","Community I, E & A (m)","Training (m)","Operational 1 (m)","Operational 1 (m-TS)","Operational 2 (m)","Operational 3 (m)","Operational 4 (m)","Operational 5 (m)","Landfill Specific (m)","LeachateMgtDialog (m)","Transfer Station Specific (m)","Closed landfill (m)","PostCapDialog (m)","DR","DRm","Groundwater A","Surface Water A","Air A","Noise A","Amenity A","Fire A","CandH A","Greenhouse A","Data","Mitigation Data","Summary (1)","Risk Profile","Risk Profile Report"],"not_rendered":{"charts":2,"images":2,"macros":1,"external_links":0,"defined_names":166,"comments":18,"pivot_tables":0},"unopened":[{"sheet":"GWDialog","index":8,"reason":"not_a_worksheet"},{"sheet":"SWDialog","index":9,"reason":"not_a_worksheet"},{"sheet":"LeachateDialog","index":10,"reason":"not_a_worksheet"},{"sheet":"DustDialog","index":11,"reason":"not_a_worksheet"},{"sheet":"NoiseDialog","index":12,"reason":"not_a_worksheet"},{"sheet":"LGDialog","index":13,"reason":"not_a_worksheet"},{"sheet":"LeachateMgtDialog","index":25,"reason":"not_a_worksheet"},{"sheet":"PostCapDialog","index":28,"reason":"not_a_worksheet"},{"sheet":"GWDialog (m)","index":33,"reason":"not_a_worksheet"},{"sheet":"SWDialog (m)","index":34,"reason":"not_a_worksheet"},{"sheet":"LeachateDialog (m)","index":35,"reason":"not_a_worksheet"},{"sheet":"DustDialog (m)","index":36,"reason":"not_a_worksheet"},{"sheet":"NoiseDialog (m)","index":37,"reason":"not_a_worksheet"},{"sheet":"LGDialog (m)","index":38,"reason":"not_a_worksheet"},{"sheet":"LeachateMgtDialog (m)","index":51,"reason":"not_a_worksheet"},{"sheet":"PostCapDialog (m)","index":54,"reason":"not_a_worksheet"}],"bounds":{"document_bytes":16777216,"sheet_cells":100000,"rows_first":2000,"rows_last":500,"rows_between":2000,"halvings":0,"cell_chars":16384,"cell_head_chars":4096},"cells_cut":0,"cells_raw":0,"read":"whole","date_system":"1900"}

{"sheet":"Intro","index":0,"n_rows":22,"n_cols":6,"rows_kept":22,"cut":false,"hidden":false,"merged":[[19,5,19,18],[18,5,18,18],[21,5,21,18]]}
[]
[]
[]
[]
[]
[]
[]
[]
[]
[]
[]
[]
[]
[]
[]
[]
[]
[]
[null,null,null,null,null,"Small Waste Facility"]
[null,null,null,null,null,"Environmental Risk Assessment & Mitigation Package (E-RAMP)"]
[]
[null,null,null,null,null,"V4.0 (2023)"]

{"sheet":"Start","index":1,"n_rows":4,"n_cols":1,"rows_kept":4,"cut":false,"hidden":false,"merged":[[1,0,1,20],[2,0,2,20],[3,0,3,20]]}
[]
["Small Waste Facility "]
["Environmental Risk Assessment and Mitigation Package "]
["(E-RAMP)"]

{"sheet":"Type","index":2,"n_rows":32,"n_cols":2,"rows_kept":32,"cut":false,"hidden":false,"merged":[[5,0,5,20]]}
[]
[]
[]
[]
[]
["Waste Facility Type"]
[]
[]
[]
[]
[]
[]
[]
[]
[]
[]
[]
[]
[]
[]
[]
[]
[]
[]
[]
[]
[]
[]
[]
[]
[]
[null,"Note: Select the current use of the premises. For example, if the premises is currently a transfer station on the site of a closed landfill, select \"transfer station\""]

{"sheet":"Premises","index":3,"n_rows":29,"n_cols":14,"rows_kept":29,"cut":false,"hidden":false,"merged":[[5,0,5,20],[24,13,24,17],[7,4,7,10],[9,4,9,10],[11,4,11,10],[13,4,13,10]]}
[]
[]
[]
[]
[]
["Facility Details"]
[]
[null,"Facility Operator:"]
[]
[null,"Facility Name:"]
[]
[null,"Address / Location:"]
[null,null,null,null,null,null,null,null,null,null,null,null,null," "]
[null,"GPS Coordinates"]
[]
[]
[null,null,null,null,"Amount of waste received (tonnes per year)",null,null,null,null,null,null,null,null,"Distance to Metropolitan Levy Area (km)"]
[]
[]
[]
[null,null,null,null,"Age of the facility (years)",null,null,null,null,null,null,null,null,"Distance to Regional Levy Area (km)"]
[]
[]
[]
[null,null,null,null,"Area of the facility (square metres)",null,null,null,null,null,null,null,null,"Levy areas information"]
[]
[null,null,null,null,null,null,null,null,null,null,null,null,null,"Distance to population centre > 5,000 people (km)"]
[]
[null,null,null,null,"What type of road is the facility accessed from?"]

{"sheet":"Meteorology","index":4,"n_rows":39,"n_cols":16,"rows_kept":39,"cut":false,"hidden":false,"merged":[[25,3,25,7],[30,3,30,7],[35,3,35,7],[38,12,38,15],[5,0,5,20],[10,3,10,7],[15,3,15,7],[20,3,20,7]]}
[]
[]
[]
[]
[]
["Local Meteorology"]
[]
[null,null,null,"Average annual rainfall (mm)",null,null,null,null,null,null,null,null,"Bushfire danger period prevailing winds"]
[]
[null,null,null,null,null,null,null,null,null,null,null,null,"October"]
[null,null,null,"Bureau of Meterology data",null,null,null,null,null,null,null,null,"Direction"," Mean speed (km/h)",null,"% calm"]
[]
[null,null,null,"Prevailing wind direction (annual) - from 3pm"]
[]
[null,null,null,"Link to BOM information",null,null,null,null,null,null,null,null,"November"]
[null,null,null,"Bureau of Meterology data",null,null,null,null,null,null,null,null,"Direction"," Mean speed (km/h)",null,"% calm"]
[]
[null,null,null,"% calm observations (annual) - from 3pm"]
[]
[null,null,null,"Link to BOM information",null,null,null,null,null,null,null,null,"December"]
[null,null,null,"Bureau of Meterology data",null,null,null,null,null,null,null,null,"Direction"," Mean speed (km/h)",null,"% calm"]
[]
[null,null,null,"Mean wind speed -km/h (annual) - from 3pm"]
[]
[null,null,null,null,null,null,null,null,null,null,null,null,"January"]
[null,null,null,"Bureau of Meterology data",null,null,null,null,null,null,null,null,"Direction"," Mean speed (km/h)",null,"% calm"]
[]
[null,null,null,"No. rain days > 10mm (per year)"]
[]
[null,null,null,null,null,null,null,null,null,null,null,null,"February"]
[null,null,null,"Bureau of Meterology data",null,null,null,null,null,null,null,null,"Direction"," Mean speed (km/h)",null,"% calm"]
[]
[null,null,null,"Average annual evaporation (mm)"]
[]
[null,null,null,null,null,null,null,null,null,null,null,null,"March"]
[null,null,null,"Bureau of Meterology data",null,null,null,null,null,null,null,null,"Direction"," Mean speed (km/h)",null,"% calm"]
[]
[]
[null,null,null,null,null,null,null,null,null,null,null,null,"Bureau of Meterology data"]

{"sheet":"Surrounding Landuse","index":5,"n_rows":40,"n_cols":18,"rows_kept":40,"cut":false,"hidden":false,"merged":[[5,0,5,20],[38,5,38,15],[39,5,39,15]]}
[]
[]
[]
[]
[]
["Surrounding Land Use & Vegetation"]
[]
[]
[null,null,null,null,null,"Main land use",null,null,null,null,null,null,"Main land use"]
[]
[]
[null,null,null,null,null,"Distance to nearest single residence (km)",null,null,null,null,null,null,"Distance to nearest single residence (km)"]
[]
[]
[null,null,null,null,null,"Distance to nearest residential area (km)",null,null,null,null,null,null,"Distance to nearest residential area (km)"]
[]
[]
[null,null,null,null,null,"Dominant vegetation type adjoining site",null,null,null,null,null,null,"Dominant vegetation type adjoining site"]
[]
[]
[]
[]
[]
[]
[null,null,null,null,null,"Main land use",null,null,null,null,null,null,"Main land use"]
[]
[]
[null,null,null,null,null,"Distance to nearest single residence (km)",null,null,null,null,null,null,"Distance to nearest single residence (km)"]
[]
[]
[null,null,null,null,null,"Distance to nearest residential area (km)",null,null,null,null,null,null,"Distance to nearest residential area (km)"]
[]
[]
[null,null,null,null,null,"Dominant vegetation type adjoining site",null,null,null,null,null,null,"Dominant vegetation type adjoining site"]
[]
[]
[]
[null,null,null,null,null,null,null,null,null,null,null,null,null,null,null,null,null," "]
[null,null,null,null,null,"Spatial Information Exchange"]
[null,null,null,null,null,"SEED map of NSW vegetation types"]

{"sheet":"Topography","index":6,"n_rows":33,"n_cols":5,"rows_kept":33,"cut":false,"hidden":false,"merged":[[5,0,5,20],[32,3,32,16]]}
[]
[]
[]
[]
[]
["Topography of the site"]
[]
[]
[]
[]
[]
[]
[]
[]
[]
[]
[]
[]
[]
[]
[]
[]
[]
[]
[]
[]
[]
[null,null,null,null,"On what topographical unit is the facility located?"]
[]
[]
[]
[]
[null,null,null,"Spatial Information Exchange"]

{"sheet":"Environmental I & M","index":7,"n_rows":31,"n_cols":13,"rows_kept":31,"cut":false,"hidden":false,"merged":[[5,0,5,20]]}
[]
[]
[]
[]
[]
["Existing Environmental Information and Monitoring"]
[]
[null,null,null,"Was the site of the facility selected following a detailed",null,null,null,null,null,null,null,null,"Is any of the following environmental monitoring "]
[null,null,null,"site selection process?",null,null,null,null,null,null,null,null,"undertaken at the facility?"]
[]
[]
[]
[null,null,null,"Was an Environmental Impact Statement (EIS) / "]
[null,null,null,"Statement of Environmental Effects (SEE) / Review of "]
[null,null,null,"Environmental Factors (REF) or planning requirements "]
[null,null,null,"prepared for the facility?"]
[]
[]
[]
[null,null,null,"Has there ever been an environmental audit (or similar) "]
[null,null,null,"of the facility?"]
[]
[]
[]
[null,null,null,"Has an environmental investigation (or similar) been "]
[null,null,null,"undertaken at the facility?"]
[]
[]
[]
[null,null,null,"Has an Environmental Management Plan (EMP) been "]
[null,null,null,"prepared and implemented for the facility?"]

{"sheet":"Surrounding Environment 1","index":14,"n_rows":39,"n_cols":23,"rows_kept":39,"cut":false,"hidden":false,"merged":[[11,3,11,7],[12,3,12,7],[5,0,5,20],[24,12,24,16],[14,12,14,16],[22,23,22,27],[17,3,17,7],[28,3,28,7],[33,3,33,7],[38,3,38,7]]}
[]
[]
[]
[]
[]
["Surrounding Environment"]
[]
[null,null,null,"Soils at the facility (USCS description)",null,null,null,null,null,null,null,null,"Distance to nearest watercourse (m)"]
[null,null,null,"Surface (<0.1m BGL)",null,null,"Subsurface (>0.1m BGL)"]
[]
[]
[null,null,null,"Soil classification methodology",null,null,null,null,null,null,null,null,"Slope of ground at the site (%)"]
[null,null,null,"Assessing Texture of your Soil"]
[]
[null,null,null,"Modelled soil erosion, bare (t/ha/yr)",null,null,null,null,null,null,null,null,"Spatial Information Exchange"]
[]
[null,null,null,null,null,null,null,null,null,null,null,null,"Is the site within an identified drinking water catchment?"]
[null,null,null,"eSPADE - online soil mapping"]
[]
[null,null,null,"Are any of the erosion types present at / near the site?",null,null,null,null,null,null,null,null,"SEED map of identified drinking water catchments"]
[]
[null,null,null,null,null,null,null,null,null,null,null,null,"Is the facility on bush fire prone land?"]
[]
[]
[null,null,null,null,null,null,null,null,null,null,null,null,"SEED map of bushfire prone land"]
[]
[null,null,null,null,null,null,null,null,null,null,null,null,"Is the facility visible from any of the following?",null,null,null,null,null,null,null,null,null," "]
[]
[null,null,null,"Types of erosion"]
[]
[null,null,null,"Modelled soil electrical conductivity 0-30cm (dS/m)"]
[]
[]
[null,null,null,"eSPADE - online soil mapping"]
[]
[null,null,null,"Acid sulfate soil probability"]
[]
[]
[null,null,null,"eSPADE - online soil mapping"]

{"sheet":"Surrounding Environment 2","index":15,"n_rows":30,"n_cols":13,"rows_kept":30,"cut":false,"hidden":false,"merged":[[5,0,5,20],[21,12,22,16],[10,3,10,7],[29,3,29,7],[28,12,28,16],[20,23,20,27],[19,3,19,7],[16,12,17,16]]}
[]
[]
[]
[]
[]
["Surrounding Environment"]
[]
[null,null,null,"Is the site in an identified area of groundwater vulnerability?",null,null,null,null,null,null,null,null,"Are there any items of Aboriginal Cultural Heritage"]
[null,null,null,null,null,null,null,null,null,null,null,null,"within 1km of the facility?"]
[]
[null,null,null,"SEED map of groundwater vulnerability"]
[null,null,null,null,null,null,null,null,null,null,null,null,"Aboriginal Heritage Information Management System"]
[null,null,null,"Depth to bedrock at the facility (mBGL)"]
[null,null,null,null,null,null,null,null,null,null,null,null,"What is the distance to the nearest location zoned"]
[null,null,null,null,null,null,null,null,null,null,null,null,"for environment protection / conservation?"]
[]
[null,null,null,"Depth to groundwater at the facility (mBGL)",null,null,null,null,null,null,null,null,"SEED map of land zonings"]
[]
[]
[null,null,null,null,null,null,null,null,null,null,null,null,"What is the distance to a park / reserve (km)?"]
[null,null,null,"Use of registered bores within 1km of the facility"]
[null,null,null,"(Tick all that apply)",null,null,null,null,null,null,null,null,"SEED map of NSW NPWS Estates"]
[]
[]
[null,null,null,null,null,null,null,null,null,null,null,null,"Is there a record of any vulnerable or endangered"]
[null,null,null,null,null,null,null,null,null,null,null,null,"species of flora or fauna withn 1km of the facility?"]
[]
[]
[null,null,null,null,null,null,null,null,null,null,null,null,"SEED map of species sightings"]
[null,null,null,"NSW Water Groundwater Information"]

{"sheet":"Community I, E & A","index":16,"n_rows":23,"n_cols":13,"rows_kept":23,"cut":false,"hidden":false,"merged":[[5,0,5,20]]}
[]
[]
[]
[]
[]
["Existing Community Information, Education and Awareness"]
[]
[null,null,null,"Are there signs showing the direction to the facility?",null,null,null,null,null,null,null,null,"How are users of the facility communicated with, other "]
[null,null,null,null,null,null,null,null,null,null,null,null,"than signage? (Tick all that apply)"]
[]
[]
[]
[null,null,null,"What do the signs at the facility communicate?"]
[null,null,null,"(Tick all that apply)"]
[]
[]
[]
[]
[]
[]
[]
[null,null,null,null,null,null,null,null,null,null,null,null,"What educational themes are communicated?"]
[null,null,null,null,null,null,null,null,null,null,null,null,"(Tick all that apply)"]

{"sheet":"Training","index":17,"n_rows":25,"n_cols":13,"rows_kept":25,"cut":false,"hidden":false,"merged":[[5,0,5,20]]}
[]
[]
[]
[]
[]
["Existing Staff Training and Regulation"]
[]
[null,null,null,"What training have the on-site operators of the facility ",null,null,null,null,null,null,null,null,"Are there any \"Authorised Officers\" under the "]
[null,null,null,"received relevant to the facility's operation?",null,null,null,null,null,null,null,null,"Protection of the Environment Operations Act 1997 that…"]
[null,null,null,"(Tick all that apply)"]
[null,null,null,null,null,null,null,null,null,null,null,null,"Work at the facility?"]
[]
[]
[]
[]
[]
[null,null,null,null,null,null,null,null,null,null,null,null,"Are otherwise employed by the operator of the facility?"]
[]
[]
[]
[]
[]
[null,null,null,null,null,null,null,null,null,null,null,null,"What waste management regulatory enforcement "]
[null,null,null,null,null,null,null,null,null,null,null,null,"activities have been undertaken in the past 12 months?"]
[null,null,null,null,null,null,null,null,null,null,null,null,"(Tick all that apply)"]

{"sheet":"Operational 1","index":18,"n_rows":31,"n_cols":26,"rows_kept":31,"cut":false,"hidden":false,"merged":[[9,12,9,14],[9,15,9,17],[5,0,5,20],[23,15,23,17]]}
[]
[]
[]
[]
[]
["Existing Operations and Management"]
[]
[null,null,null,"What wastes are received at the facility? (Tick all that apply)",null,null,null,null,null,null,null,null,null,null,null,null,null,null,null,null,null,null,null,null,null,1]
[]
[null,null,null,"Solid Wastes",null,null,null,"For disposal",null,"For storage",null,null,"Max. quantity stored (t)",null,null,"Max. time stored"]
[null,null,null,"Municipal waste",null,null,null," "]
[null,null,null,"Recyclables"]
[null,null,null,"Commercial & industrial waste"]
[null,null,null,"Construction & demolition waste"]
[null,null,null,"Garden & vegetation waste"]
[null,null,null,"Virgin excavated natural material"]
[null,null,null,"Scrap metal"]
[null,null,null,"Tyres"]
[null,null,null,"Chemical containers with residue",null,null,null,"N/A"]
[null,null,null,"Batteries",null,null,null,"N/A"]
[null,null,null,"Hazardous waste",null,null,null,"N/A"]
[null,null,null,"Others",null,null,null,null,null,null,null,null,null,null,null,null,null,null,null,null,null,null," "]
[]
[null,null,null,"Liquid",null,null,null,"For disposal",null,"For storage",null,null,"Max. quantity stored (l)",null,null,"Max. time stored"]
[null,null,null,"Waste mineral oil"]
[null,null,null,"Waste cooking oil"]
[null,null,null,"Paint"]
[null,null,null,"Grease trap waste"]
[null,null,null,"Oily water waste"]
[null,null,null,"Septic waste"]
[null,null,null,"Others"]

{"sheet":"Operational 1 (TS)","index":19,"n_rows":31,"n_cols":34,"rows_kept":31,"cut":false,"hidden":false,"merged":[[5,0,5,20],[23,15,23,17],[9,15,9,17]]}
[]
[]
[]
[]
[]
["Existing Operations and Management"]
[]
[null,null,null,"What wastes are received at the facility? (Tick all that apply)",null,null,null,null,null,null,null,null,null,null,null,null,null,null,null,null,null,null,null,null,null,null,null,null,null,null,null,null,null,1]
[]
[null,null,null,"Solid Wastes",null,null,null,null,null,"For storage",null,null,"Max. quantity stored (t)",null,null,"Max. time stored"]
[null,null,null,"Municipal waste"]
[null,null,null,"Recyclables"]
[null,null,null,"Commercial & industrial waste"]
[null,null,null,"Construction & demolition waste"]
[null,null,null,"Garden & vegetation waste"]
[null,null,null,"Virgin excavated natural material"]
[null,null,null,"Scrap metal"]
[null,null,null,"Tyres"]
[null,null,null,"Chemical containers with residue"]
[null,null,null,"Batteries"]
[null,null,null,"Hazardous waste"]
[null,null,null,"Others"]
[]
[null,null,null,"Liquid",null,null,null,null,null,"For storage",null,null,"Max. quantity stored (l)",null,null,"Max. time stored"]
[null,null,null,"Waste mineral oil"]
[null,null,null,"Waste cooking oil"]
[null,null,null,"Paint"]
[null,null,null,"Grease trap waste"]
[null,null,null,"Oily water waste"]
[null,null,null,"Septic waste"]
[null,null,null,"Others"]

{"sheet":"Operational 2","index":20,"n_rows":30,"n_cols":13,"rows_kept":30,"cut":false,"hidden":false,"merged":[[5,0,5,20]]}
[]
[]
[]
[]
[]
["Existing Operations and Management"]
[]
[null,null,null,"When is the facility open to the public?",null,null,null,null,null,null,null,null,"When is the facility supervised?"]
[]
[]
[]
[null,null,null,"What type of perimeter fence does the facility have?",null,null,null,null,null,null,null,null,"Operators are at the facility ..."]
[]
[]
[]
[null,null,null,"How is public access to the facility secured?",null,null,null,null,null,null,null,null,"How often are complaints received about the facility?"]
[]
[]
[]
[null,null,null,"Are any of the following additional security ",null,null,null,null,null,null,null,null,"How often do uncontrolled fires occur at the facility?"]
[null,null,null,"arrangements in place?"]
[]
[]
[null,null,null,null,null,null,null,null,null,null,null,null,"How often are wastes unlawfully disposed within the "]
[null,null,null,null,null,null,null,null,null,null,null,null,"facility?"]
[]
[]
[]
[null,null,null,"How is public access to the facility controlled?",null,null,null,null,null,null,null,null,"How often are wastes unlawfully disposed on land "]
[null,null,null,null,null,null,null,null,null,null,null,null,"surrounding the facility?"]

{"sheet":"Operational 3","index":21,"n_rows":31,"n_cols":13,"rows_kept":31,"cut":false,"hidden":false,"merged":[[9,12,9,16],[13,12,13,16],[5,0,5,20]]}
[]
[]
[]
[]
[]
["Existing Operations and Management"]
[]
[null,null,null,"Is stormwater diverted around…",null,null,null,null,null,null,null,null,"How are liquid / hazardous wastes stored?"]
[]
[null,null,null,null,null,null,null,null,null,null,null,null,"No liquid or hazardous wastes stored"]
[]
[null,null,null,null,null,null,null,null,null,null,null,null,"Are all the liquid / hazardous waste areas covered?"]
[]
[null,null,null,null,null,null,null,null,null,null,null,null,"Not Applicable"]
[]
[null,null,null,null,null,null,null,null,null,null,null,null,"What dust control measures are in use at the facility?"]
[null,null,null,"How is stormwater runoff managed from undisturbed areas?"]
[]
[]
[]
[null,null,null,"How is stormwater runoff managed from disturbed areas?"]
[]
[]
[]
[null,null,null,"How is stormwater runoff managed from waste storage / "]
[null,null,null,"disposal areas?"]
[null,null,null,null,null,null,null,null,null,null,null,null,"What litter controls are in place at the facility?"]
[]
[]
[null,null,null,"How much of the trafficable area at the facility is "]
[null,null,null,"sealed?"]

{"sheet":"Operational 4","index":22,"n_rows":25,"n_cols":13,"rows_kept":25,"cut":false,"hidden":false,"merged":[[5,0,5,20],[21,12,21,16]]}
[]
[]
[]
[]
[]
["Existing Operations and Management"]
[]
[null,null,null,"On what days are operational activities conducted at ",null,null,null,null,null,null,null,null,"Are the following waste collection services available to"]
[null,null,null,"the facility?",null,null,null,null,null,null,null,null,"residents in the vicinity of the facility?"]
[null,null,null,null,null,null,null,null,null,null,null,null,"(Tick all that apply)"]
[]
[]
[null,null,null,"During what hours on these days are operational "]
[null,null,null,"activities conducted at the facility?"]
[]
[]
[null,null,null,null,null,null,null,null,null,null,null,null,"Is a Community Recycling Centre (CRC) available"]
[null,null,null,"What plant and equipment is used at the facility?",null,null,null,null,null,null,null,null,"to residents within 50km of the facility?"]
[null,null,null,"(Tick all that apply)"]
[]
[]
[null,null,null,null,null,null,null,null,null,null,null,null,"Find CRC locations"]
[]
[null,null,null,null,null,null,null,null,null,null,null,null,"What pest management programs are in place at the "]
[null,null,null,null,null,null,null,null,null,null,null,null,"facility? (Tick all that apply)"]

{"sheet":"Operational 5","index":23,"n_rows":29,"n_cols":13,"rows_kept":29,"cut":false,"hidden":false,"merged":[[5,0,5,20]]}
[]
[]
[]
[]
[]
["Existing Operations and Management"]
[]
[null,null,null,"What is the frequency of planned and controlled burning ",null,null,null,null,null,null,null,null,"Have any of the following procedures been documented"]
[null,null,null,"at the facility?",null,null,null,null,null,null,null,null,"and implemented? "]
[]
[]
[]
[null,null,null,"What best describes the fire fighting capacity available"]
[null,null,null,"at the facility?"]
[]
[]
[]
[null,null,null,"What fire management controls are used at the facility?"]
[null,null,null,"(Tick all that apply)"]
[]
[]
[]
[]
[]
[]
[]
[]
[null,null,null,null,null,null,null,null,null,null,null,null,"Have emergency services been required to attend the "]
[null,null,null,null,null,null,null,null,null,null,null,null,"facility in the last 12 months?"]

{"sheet":"Landfill Specific","index":24,"n_rows":40,"n_cols":15,"rows_kept":40,"cut":false,"hidden":false,"merged":[[5,0,5,20]]}
[]
[]
[]
[]
[]
["Existing Operations and Management"]
[]
[null,null,null,"In addition to the previous, what wastes are disposed of at the facility? (Tick all that apply)"]
[]
[null,null,null,null,null,null,null,null,null,null,null,null,null,null,"Estimated quantity per annum (t)"]
[null,null,null,"Asbestos"]
[null,null,null,"Clinical / pharmaceutical waste"]
[null,null,null,"Animal carcasses / parts"]
[null,null,null,"Biosolids"]
[null,null,null,"Contaminated soil"]
[]
[null,null,null,"How are wastes landfilled at the facility?",null,null,null,null,null,null,null,null,"Is there a landfilling plan for the facility?"]
[]
[]
[]
[null,null,null,"How many active landfill areas are at the facility?"]
[null,null,null,null,null,null,null,null,null,null,null,null,"How are the bases of landfill areas prepared?"]
[]
[]
[null,null,null,"What is the estimated size of the active landfill areas (m2)"]
[null,null,null,null,null,null,null,null,null,null,null,null,"How are completed landfill areas closed?"]
[]
[]
[null,null,null,"How is the waste compacted?"]
[null,null,null,null,null,null,null,null,null,null,null,null,"Is landfill leachate captured for treatment / discharge "]
[null,null,null,null,null,null,null,null,null,null,null,null,"at the facility?"]
[]
[null,null,null,"How often is waste covered?"]
[]
[]
[null,null,null,null,null,null,null,null,null,null,null,null,"How is collected leachate managed?"]
[null,null,null,"How is the waste covered?",null,null,null,null,null,null,null,null,{"$f":"IF(Data!AL59=2,\"Not applicable\",LOOKUP(Data!AL61,Data!AJ62:AJ66,Data!AK62:AK66))","v":"Not applicable"}]
[]
[null,null,null,null,null,null,null,null,null,null,null,null,"What best describes the method used to manage "]
[null,null,null,null,null,null,null,null,null,null,null,null,"landfill gas?"]

{"sheet":"Transfer Station Specific","index":26,"n_rows":26,"n_cols":13,"rows_kept":26,"cut":false,"hidden":false,"merged":[[5,0,5,20]]}
[]
[]
[]
[]
[]
["Existing Operations and Management"]
[]
[null,null,null,"Is the transfer station permanently established?",null,null,null,null,null,null,null,null,"Are wastes processed / sorted at the facility?"]
[]
[]
[]
[]
[null,null,null,"What waste transfer station method is used?",null,null,null,null,null,null,null,null,"Where are wastes received at the transfer station taken"]
[null,null,null,null,null,null,null,null,null,null,null,null,"for disposal?"]
[]
[]
[null,null,null,"How is the transfer station constructed?"]
[null,null,null,null,null,null,null,null,null,null,null,null,"Is the transfer station located on a closed landfill?"]
[]
[]
[null,null,null,"Is the transfer station area under cover?"]
[]
[]
[]
[]
[null,null,null,"Do the bins / bunkers used have lids?"]

{"sheet":"Closed Landfill","index":27,"n_rows":42,"n_cols":13,"rows_kept":42,"cut":false,"hidden":false,"merged":[[5,0,5,20]]}
[]
[]
[]
[]
[]
["Existing Closed Landfill"]
[]
[null,null,null,"How many years was the landfill in operation?",null,null,null,null,null,null,null,null,"What is the post landfill landuse of the facility?"]
[]
[]
[]
[null,null,null,"How many years ago was the landfill closed?",null,null,null,null,null,null,null,null,"Have any structures been built over the landfilled areas?"]
[]
[]
[]
[null,null,null,"How much waste was received in the last year of "]
[null,null,null,"operation (tonnes)?",null,null,null,null,null,null,null,null,"What best describes the method used to manage "]
[null,null,null,null,null,null,null,null,null,null,null,null,"landfill gas?"]
[]
[]
[null,null,null,"How were wastes disposed?"]
[null,null,null,null,null,null,null,null,null,null,null,null,"Has an organic layer been placed over the final surface?"]
[]
[]
[null,null,null,"How was the landfill capped?"]
[]
[null,null,null,null,null,null,null,null,null,null,null,null,"How has the final surface been revegetated?"]
[]
[null,null,null,"What is the slope of the final surface?"]
[]
[null,null,null,null,null,null,null,null,null,null,null,null,"Does any post closure monitoring of the integrity "]
[null,null,null,null,null,null,null,null,null,null,null,null,"of the landfill cap / surface occur?"]
[null,null,null,"How is runoff from the facility treated?"]
[]
[]
[]
[null,null,null,"How is leachate managed?",null,null,null,null,null,null,null,null,"What is the frequency of landfill cap monitoring?"]
[null,null,null,null,null,null,null,null,null,null,null,null,{"$f":"IF(Data!AS65=2,\"Not applicable\",LOOKUP(Data!AU66,Data!AS67:AS71,Data!AT67:AT71))","v":"Not applicable"}]
[]
[null,null,null,null,null,null,null,null,null,null,null,null,"Are there procedures in place to repair any instability "]
[null,null,null,"Has a Landfill Closure Management Plan been prepared and",null,null,null,null,null,null,null,null,"and/or failures identified in the landfill cap?"]
[null,null,null,"implemented for the facility, relevant to its size and condition?",null,null,null,null,null,null,null,null,{"$f":"IF(Data!AS65=2,\"Not applicable\",IF(Data!AU72=1,\"Yes\",\"No\"))","v":"Not applicable"}]

{"sheet":"Proceed","index":29,"n_rows":18,"n_cols":10,"rows_kept":18,"cut":false,"hidden":false,"merged":[[2,0,2,20],[4,0,4,20],[5,1,5,20],[17,9,17,12],[8,9,8,12]]}
[]
[]
["Proceed to Potential Mitigation Options Section"]
[]
["IMPORTANT:"]
[null," Information you have supplied regarding the existing facility will be locked and cannot be changed after \"Proceed\" is selected - even after the file is saved, closed and re-opened."]
[]
[]
[null,null,null,null,null,null,null,null,null,"Do you wish to proceed?"]
[]
[]
[]
[]
[]
[]
[]
[]
[null,null,null,null,null,null,null,null,null,"Or review the information provided?"]

{"sheet":"Previously used","index":30,"n_rows":14,"n_cols":2,"rows_kept":14,"cut":false,"hidden":false,"merged":[[2,1,2,20],[4,1,4,20],[13,1,13,20]]}
[]
[]
[null,"Previously Used File"]
[]
[null,"This file has been used previously to conduct an E-RAMP assessment."]
[]
[null,"A new E-RAMP assessment should be undertaken after:"]
[]
[null,"- an incident occurs that can directly affect the level of environmental risk assessed as part of this assessment"]
[null,"- new or updated information becomes available directly relevant to this risk assessment "]
[null,"- risk mitigation measures are employed at the small waste facility or"]
[null,"- a period of 12 months from the previous assessment."]
[]
[null,"Re-assessment should start with the master copy of E-RAMP, as older assessment files (such as this one) will not re-assess information regarding the surrounding environment that may change over time (eg. residential encroachment, newly installed groundwater bores, complaints data, new national parks, etc)."]

{"sheet":"Mitigation Options (Landfill)","index":31,"n_rows":6,"n_cols":1,"rows_kept":6,"cut":false,"hidden":false,"merged":[[5,0,5,20]]}
[]
[]
[]
[]
[]
["Active Landfill Mitigation Options"]

{"sheet":"Environmental I & M (m)","index":32,"n_rows":36,"n_cols":13,"rows_kept":36,"cut":false,"hidden":false,"merged":[[5,0,5,20]]}
[]
[]
[]
[]
[]
["Proposed Environmental Information and Monitoring"]
[]
[null,null,null,"Do you plan to undertake an environmental audit (or ",null,null,null,null,null,null,null,null,"Do you plan to implement / expand any of the following"]
[null,null,null,"similar) of the facility?",null,null,null,null,null,null,null,null,"environmental monitoring at the facility?"]
[]
[]
[]
[null,null,null,"Do you plan to undertake an environmental investigation"]
[null,null,null,"(or similar) at the facility?"]
[]
[]
[]
[null,null,null,"Do you plan to prepare & implement an Environmental "]
[null,null,null,"Management Plan (EMP) for the facility?"]
[]
[]
[]
[null,null,null,"Do you plan to undertake an archaeological investigation"]
[null,null,null,"for items of Aboriginal Cultural Heritage at / around the"]
[null,null,null,"facility?"]
[]
[]
[]
[null,null,null,"Do you plan to undertake a flora / fauna investigation for "]
[null,null,null,"Threatened Species of flora and fauna (including EECs)"]
[null,null,null,"at / around the facility?"]
[]
[]
[]
[null,null,null,"Do you plan to undertake a Landfill Closure Management"]
[null,null,null,"plan for the facility, relevant to the size and condition?"]

{"sheet":"Monitoring 1","index":39,"n_rows":33,"n_cols":10,"rows_kept":33,"cut":false,"hidden":false,"merged":[[1,0,1,13],[3,2,3,12],[24,2,24,12],[25,5,25,8],[25,9,25,12],[4,5,4,8],[4,9,4,12]]}
[]
["Environmental Monitoring"]
[]
[null,null,"Groundwater"]
[null,null,null,null,null,"Existing",null,null,null,"Proposed"]
[null,null,"No. Locations",null,null,{"$f":"IF(Data!S12=2,\"No monitoring undertaken\",LOOKUP(Data!S13,Data!Q101:Q105,Data!R101:R105))","v":"No monitoring undertaken"},null,null,null,{"$f":"IF('Mitigation Data'!S12=2,\"No change proposed\",LOOKUP('Mitigation Data'!S13,'Mitigation Data'!Q14:Q18,'Mitigation Data'!R14:R18))","v":"No change proposed"}]
[null,null,"Locations",null,null,{"$f":"IF(Data!S12=2,\"\",LOOKUP(Data!S14,Data!Q115:Q117,Data!R115:R117))","v":""},null,null,null,{"$f":"IF('Mitigation Data'!S12=2,\"\",LOOKUP('Mitigation Data'!S19,'Mitigation Data'!Q20:Q22,'Mitigation Data'!R20:R22))","v":""}]
[null,null,"Frequency",null,null,{"$f":"IF(Data!S12=2,\"\",LOOKUP(Data!S15,Data!Q108:Q112,Data!R108:R112))","v":""},null,null,null,{"$f":"IF('Mitigation Data'!S12=2,\"\",LOOKUP('Mitigation Data'!S23,'Mitigation Data'!Q24:Q28,'Mitigation Data'!R24:R28))","v":""}]
[]
[null,null,"Parameters"]
[null,null,"Level (mBGL)",null,null,{"$f":"IF(Data!S12=2,\"\",IF(Data!S17=TRUE,\"Yes\",\"No\"))","v":""},null,null,null,{"$f":"IF('Mitigation Data'!S12=2,\"\",IF('Mitigation Data'!S30=TRUE,\"Yes\",\"No\"))","v":""}]
[null,null,"pH",null,null,{"$f":"IF(Data!S12=2,\"\",IF(Data!S18=TRUE,\"Yes\",\"No\"))","v":""},null,null,null,{"$f":"IF('Mitigation Data'!S12=2,\"\",IF('Mitigation Data'!S31=TRUE,\"Yes\",\"No\"))","v":""}]
[null,null,"Electrical Conductivity",null,null,{"$f":"IF(Data!S12=2,\"\",IF(Data!S19=TRUE,\"Yes\",\"No\"))","v":""},null,null,null,{"$f":"IF('Mitigation Data'!S12=2,\"\",IF('Mitigation Data'!S32=TRUE,\"Yes\",\"No\"))","v":""}]
[null,null,"Ammonia",null,null,{"$f":"IF(Data!S12=2,\"\",IF(Data!S20=TRUE,\"Yes\",\"No\"))","v":""},null,null,null,{"$f":"IF('Mitigation Data'!S12=2,\"\",IF('Mitigation Data'!S33=TRUE,\"Yes\",\"No\"))","v":""}]
[null,null,"Nitrate",null,null,{"$f":"IF(Data!S12=2,\"\",IF(Data!S21=TRUE,\"Yes\",\"No\"))","v":""},null,null,null,{"$f":"IF('Mitigation Data'!S12=2,\"\",IF('Mitigation Data'!S34=TRUE,\"Yes\",\"No\"))","v":""}]
[null,null,"Total Organic Carbon",null,null,{"$f":"IF(Data!S12=2,\"\",IF(Data!S22=TRUE,\"Yes\",\"No\"))","v":""},null,null,null,{"$f":"IF('Mitigation Data'!S12=2,\"\",IF('Mitigation Data'!S35=TRUE,\"Yes\",\"No\"))","v":""}]
[null,null,"Alkalinity",null,null,{"$f":"IF(Data!S12=2,\"\",IF(Data!S23=TRUE,\"Yes\",\"No\"))","v":""},null,null,null,{"$f":"IF('Mitigation Data'!S12=2,\"\",IF('Mitigation Data'!S36=TRUE,\"Yes\",\"No\"))","v":""}]
[null,null,"Iron",null,null,{"$f":"IF(Data!S12=2,\"\",IF(Data!S24=TRUE,\"Yes\",\"No\"))","v":""},null,null,null,{"$f":"IF('Mitigation Data'!S12=2,\"\",IF('Mitigation Data'!S37=TRUE,\"Yes\",\"No\"))","v":""}]
[null,null,"Pesticides",null,null,{"$f":"IF(Data!S12=2,\"\",IF(Data!S25=TRUE,\"Yes\",\"No\"))","v":""},null,null,null,{"$f":"IF('Mitigation Data'!S12=2,\"\",IF('Mitigation Data'!S38=TRUE,\"Yes\",\"No\"))","v":""}]
[null,null,"Others",null,null,{"$f":"IF(Data!S12=2,\"\",IF(Data!S26=TRUE,\"Yes\",\"No\"))","v":""},null,null,null,{"$f":"IF('Mitigation Data'!S12=2,\"\",IF('Mitigation Data'!S39=TRUE,\"Yes\",\"No\"))","v":""}]
[]
[null,null,"Elevation of results from ",null,null,{"$f":"IF(Data!S12=2,\"\",LOOKUP(Data!S27,Data!Q125:Q127,Data!R125:R127))","v":""}]
[null,null,"background levels"]
[]
[null,null,"Noise"]
[null,null,null,null,null,"Existing",null,null,null,"Proposed"]
[null,null,"No. Locations",null,null,{"$f":"IF(Data!S70=2,\"No monitoring undertaken\",LOOKUP(Data!S71,Data!Q101:Q105,'Mitigation Data'!R161:R165))","v":"No monitoring undertaken"},null,null,null,{"$f":"IF('Mitigation Data'!S114=2,\"No change proposed\",LOOKUP('Mitigation Data'!S115,'Mitigation Data'!Q116:Q120,'Mitigation Data'!R116:R120))","v":"No change proposed"}]
[null,null,"Locations",null,null,{"$f":"IF(Data!S70=2,\"\",LOOKUP(Data!S72,Data!Q73:Q75,Data!R73:R75))","v":""},null,null,null,{"$f":"IF('Mitigation Data'!S114=2,\"\",LOOKUP('Mitigation Data'!S121,'Mitigation Data'!Q122:Q124,'Mitigation Data'!R122:R124))","v":""}]
[null,null,"Frequency",null,null,{"$f":"IF(Data!S70=2,\"\",LOOKUP(Data!S76,Data!Q108:Q112,Data!R108:R112))","v":""},null,null,null,{"$f":"IF('Mitigation Data'!S114=2,\"\",LOOKUP('Mitigation Data'!S125,'Mitigation Data'!Q126:Q130,'Mitigation Data'!R126:R130))","v":""}]
[null,null,"Method",null,null,{"$f":"IF(Data!S70=2,\"\",LOOKUP(Data!S77,Data!Q78:Q81,Data!R78:R81))","v":""},null,null,null,{"$f":"IF('Mitigation Data'!S114=2,\"\",LOOKUP('Mitigation Data'!S131,'Mitigation Data'!Q132:Q135,'Mitigation Data'!R132:R135))","v":""}]
[]
[null,null,"Results compared to ",null,null,{"$f":"IF(Data!S70=2,\"\",LOOKUP(Data!S82,Data!Q83:Q87,Data!R83:R87))","v":""}]
[null,null,"background"]

{"sheet":"Monitoring 2","index":40,"n_rows":30,"n_cols":10,"rows_kept":30,"cut":false,"hidden":false,"merged":[[1,0,1,13],[21,2,21,12],[22,5,22,8],[22,9,22,12],[3,2,3,12],[4,5,4,8],[4,9,4,12]]}
[]
["Environmental Monitoring"]
[]
[null,null,"Leachate"]
[null,null,null,null,null,"Existing",null,null,null,"Proposed"]
[null,null,"Frequency",null,null,{"$f":"IF(Data!S45=2,\"No monitoring undertaken\",LOOKUP(Data!S46,Data!Q108:Q112,Data!R108:R112))","v":"No monitoring undertaken"},null,null,null,{"$f":"IF('Mitigation Data'!S71=2,\"No change proposed\",LOOKUP('Mitigation Data'!S72,'Mitigation Data'!Q73:Q77,'Mitigation Data'!R73:R77))","v":"No change proposed"}]
[]
[null,null,"Parameters"]
[null,null,"pH",null,null,{"$f":"IF(Data!$S$45=2,\"\",IF(Data!S48=TRUE,\"Yes\",\"No\"))","v":""},null,null,null,{"$f":"IF('Mitigation Data'!$S$71=2,\"\",IF('Mitigation Data'!S79=TRUE,\"Yes\",\"No\"))","v":""}]
[null,null,"Electrical Conductivity",null,null,{"$f":"IF(Data!$S$45=2,\"\",IF(Data!S49=TRUE,\"Yes\",\"No\"))","v":""},null,null,null,{"$f":"IF('Mitigation Data'!$S$71=2,\"\",IF('Mitigation Data'!S80=TRUE,\"Yes\",\"No\"))","v":""}]
[null,null,"Ammonia",null,null,{"$f":"IF(Data!$S$45=2,\"\",IF(Data!S50=TRUE,\"Yes\",\"No\"))","v":""},null,null,null,{"$f":"IF('Mitigation Data'!$S$71=2,\"\",IF('Mitigation Data'!S81=TRUE,\"Yes\",\"No\"))","v":""}]
[null,null,"Nitrate",null,null,{"$f":"IF(Data!$S$45=2,\"\",IF(Data!S51=TRUE,\"Yes\",\"No\"))","v":""},null,null,null,{"$f":"IF('Mitigation Data'!$S$71=2,\"\",IF('Mitigation Data'!S82=TRUE,\"Yes\",\"No\"))","v":""}]
[null,null,"Total Organic Carbon",null,null,{"$f":"IF(Data!$S$45=2,\"\",IF(Data!S52=TRUE,\"Yes\",\"No\"))","v":""},null,null,null,{"$f":"IF('Mitigation Data'!$S$71=2,\"\",IF('Mitigation Data'!S83=TRUE,\"Yes\",\"No\"))","v":""}]
[null,null,"Alkalinity",null,null,{"$f":"IF(Data!$S$45=2,\"\",IF(Data!S53=TRUE,\"Yes\",\"No\"))","v":""},null,null,null,{"$f":"IF('Mitigation Data'!$S$71=2,\"\",IF('Mitigation Data'!S84=TRUE,\"Yes\",\"No\"))","v":""}]
[null,null,"Iron",null,null,{"$f":"IF(Data!$S$45=2,\"\",IF(Data!S54=TRUE,\"Yes\",\"No\"))","v":""},null,null,null,{"$f":"IF('Mitigation Data'!$S$71=2,\"\",IF('Mitigation Data'!S85=TRUE,\"Yes\",\"No\"))","v":""}]
[null,null,"Pesticides",null,null,{"$f":"IF(Data!$S$45=2,\"\",IF(Data!S55=TRUE,\"Yes\",\"No\"))","v":""},null,null,null,{"$f":"IF('Mitigation Data'!$S$71=2,\"\",IF('Mitigation Data'!S86=TRUE,\"Yes\",\"No\"))","v":""}]
[null,null,"Others",null,null,{"$f":"IF(Data!$S$45=2,\"\",IF(Data!S56=TRUE,\"Yes\",\"No\"))","v":""},null,null,null,{"$f":"IF('Mitigation Data'!$S$71=2,\"\",IF('Mitigation Data'!S87=TRUE,\"Yes\",\"No\"))","v":""}]
[]
[null,null,"Deviation of results from ",null,null,{"$f":"IF(Data!S45=2,\"\",LOOKUP(Data!S57,Data!Q125:Q127,'Mitigation Data'!R185:R187))","v":""}]
[null,null,"historic levels"]
[]
[null,null,"Dust"]
[null,null,null,null,null,"Existing",null,null,null,"Proposed"]
[null,null,"No. Locations",null,null,{"$f":"IF(Data!S59=2,\"No monitoring undertaken\",LOOKUP(Data!S60,Data!Q101:Q105,Data!R101:R105))","v":"No monitoring undertaken"},null,null,null,{"$f":"IF('Mitigation Data'!S90=2,\"No change proposed\",LOOKUP('Mitigation Data'!S91,'Mitigation Data'!Q92:Q96,'Mitigation Data'!R92:R96))","v":"No change proposed"}]
[null,null,"Locations",null,null,{"$f":"IF(Data!S59=2,\"\",LOOKUP(Data!S61,Data!Q120:Q122,Data!R120:R122))","v":""},null,null,null,{"$f":"IF('Mitigation Data'!S90=2,\"\",LOOKUP('Mitigation Data'!S97,'Mitigation Data'!Q98:Q100,'Mitigation Data'!R98:R100))","v":""}]
[null,null,"Frequency",null,null,{"$f":"IF(Data!S59=2,\"\",LOOKUP(Data!S62,Data!Q108:Q112,Data!R108:R112))","v":""},null,null,null,{"$f":"IF('Mitigation Data'!S90=2,\"\",LOOKUP('Mitigation Data'!S101,'Mitigation Data'!Q102:Q106,'Mitigation Data'!R102:R106))","v":""}]
[null,null,"Method",null,null,{"$f":"IF(Data!S59=2,\"\",LOOKUP(Data!S63,Data!Q64:Q67,Data!R64:R67))","v":""},null,null,null,{"$f":"IF('Mitigation Data'!S90=2,\"\",LOOKUP('Mitigation Data'!S107,'Mitigation Data'!Q108:Q111,'Mitigation Data'!R108:R111))","v":""}]
[]
[null,null,"Results compared to ",null,null,{"$f":"IF(Data!S59=2,\"\",LOOKUP(Data!S68,Data!Q125:Q127,Data!R125:R127))","v":""}]
[null,null,"background"]

{"sheet":"Monitoring 3","index":41,"n_rows":31,"n_cols":12,"rows_kept":31,"cut":false,"hidden":false,"merged":[[24,3,24,11],[25,9,25,11],[25,6,25,8],[1,0,1,13],[3,2,3,12],[4,5,4,8],[4,9,4,12]]}
[]
["Environmental Monitoring"]
[]
[null,null,"Surface water"]
[null,null,null,null,null,"Existing",null,null,null,"Proposed"]
[null,null,"No. Locations",null,null,{"$f":"IF(Data!S29=2,\"No monitoring undertaken\",LOOKUP(Data!S30,Data!Q101:Q105,Data!R101:R105))","v":"No monitoring undertaken"},null,null,null,{"$f":"IF('Mitigation Data'!S42=2,\"No change proposed\",LOOKUP('Mitigation Data'!S43,'Mitigation Data'!Q44:Q48,'Mitigation Data'!R44:R48))","v":"No change proposed"}]
[null,null,"Locations",null,null,{"$f":"IF(Data!S29=2,\"\",LOOKUP(Data!S31,Data!Q115:Q117,Data!R115:R117))","v":""},null,null,null,{"$f":"IF('Mitigation Data'!S42=2,\"\",LOOKUP('Mitigation Data'!S49,'Mitigation Data'!Q50:Q52,'Mitigation Data'!R50:R52))","v":""}]
[null,null,"Frequency",null,null,{"$f":"IF(Data!S29=2,\"\",LOOKUP(Data!S32,Data!Q108:Q112,Data!R108:R112))","v":""},null,null,null,{"$f":"IF('Mitigation Data'!S42=2,\"\",LOOKUP('Mitigation Data'!S53,'Mitigation Data'!Q54:Q58,'Mitigation Data'!R54:R58))","v":""}]
[]
[null,null,"Parameters"]
[null,null,"pH",null,null,{"$f":"IF(Data!$S$29=2,\"\",IF(Data!S34=TRUE,\"Yes\",\"No\"))","v":""},null,null,null,{"$f":"IF('Mitigation Data'!$S$42=2,\"\",IF('Mitigation Data'!S60=TRUE,\"Yes\",\"No\"))","v":""}]
[null,null,"Electrical Conductivity",null,null,{"$f":"IF(Data!$S$29=2,\"\",IF(Data!S35=TRUE,\"Yes\",\"No\"))","v":""},null,null,null,{"$f":"IF('Mitigation Data'!$S$42=2,\"\",IF('Mitigation Data'!S61=TRUE,\"Yes\",\"No\"))","v":""}]
[null,null,"Ammonia",null,null,{"$f":"IF(Data!$S$29=2,\"\",IF(Data!S36=TRUE,\"Yes\",\"No\"))","v":""},null,null,null,{"$f":"IF('Mitigation Data'!$S$42=2,\"\",IF('Mitigation Data'!S62=TRUE,\"Yes\",\"No\"))","v":""}]
[null,null,"Nitrate",null,null,{"$f":"IF(Data!$S$29=2,\"\",IF(Data!S37=TRUE,\"Yes\",\"No\"))","v":""},null,null,null,{"$f":"IF('Mitigation Data'!$S$42=2,\"\",IF('Mitigation Data'!S63=TRUE,\"Yes\",\"No\"))","v":""}]
[null,null,"Total Organic Carbon",null,null,{"$f":"IF(Data!$S$29=2,\"\",IF(Data!S38=TRUE,\"Yes\",\"No\"))","v":""},null,null,null,{"$f":"IF('Mitigation Data'!$S$42=2,\"\",IF('Mitigation Data'!S64=TRUE,\"Yes\",\"No\"))","v":""}]
[null,null,"Alkalinity",null,null,{"$f":"IF(Data!$S$29=2,\"\",IF(Data!S39=TRUE,\"Yes\",\"No\"))","v":""},null,null,null,{"$f":"IF('Mitigation Data'!$S$42=2,\"\",IF('Mitigation Data'!S65=TRUE,\"Yes\",\"No\"))","v":""}]
[null,null,"Iron",null,null,{"$f":"IF(Data!$S$29=2,\"\",IF(Data!S40=TRUE,\"Yes\",\"No\"))","v":""},null,null,null,{"$f":"IF('Mitigation Data'!$S$42=2,\"\",IF('Mitigation Data'!S66=TRUE,\"Yes\",\"No\"))","v":""}]
[null,null,"Pesticides",null,null,{"$f":"IF(Data!$S$29=2,\"\",IF(Data!S41=TRUE,\"Yes\",\"No\"))","v":""},null,null,null,{"$f":"IF('Mitigation Data'!$S$42=2,\"\",IF('Mitigation Data'!S67=TRUE,\"Yes\",\"No\"))","v":""}]
[null,null,"Others",null,null,{"$f":"IF(Data!$S$29=2,\"\",IF(Data!S42=TRUE,\"Yes\",\"No\"))","v":""},null,null,null,{"$f":"IF('Mitigation Data'!$S$42=2,\"\",IF('Mitigation Data'!S68=TRUE,\"Yes\",\"No\"))","v":""}]
[]
[null,null,"Elevation of results from ",null,null,{"$f":"IF(Data!S29=2,\"\",LOOKUP(Data!S43,Data!Q125:Q127,Data!R125:R127))","v":""}]
[null,null,"background levels"]
[]
[]
[null,null,null,"Landfill Gas"]
[null,null,null,null,null,null,"Existing",null,null,"Proposed"]
[null,null,null,"Monitoring Types",null,null,"Buildings","Subsurface","Surface","Buildings","Subsurface","Surface"]
[null,null,null,null,null,null,{"$f":"IF(Data!S89=2,\"\",IF(Data!S93=TRUE,\"Yes\",\"No\"))","v":""},{"$f":"IF(Data!S89=2,\"\",IF(Data!S92=TRUE,\"Yes\",\"No\"))","v":""},{"$f":"IF(Data!S89=2,\"\",IF(Data!S91=TRUE,\"Yes\",\"No\"))","v":""},{"$f":"IF('Mitigation Data'!S143=2,\"\",IF('Mitigation Data'!S147=TRUE,\"Yes\",\"No\"))","v":""},{"$f":"IF('Mitigation Data'!S143=2,\"\",IF('Mitigation Data'!S146=TRUE,\"Yes\",\"No\"))","v":""},{"$f":"IF('Mitigation Data'!S143=2,\"\",IF('Mitigation Data'!S145=TRUE,\"Yes\",\"No\"))","v":""}]
[null,null,null,"Frequency",null,null,{"$f":"IF(Data!S89=2,\"No monitoring undertaken\",LOOKUP(Data!S94,Data!Q108:Q112,Data!R108:R112))","v":"No monitoring undertaken"},null,null,{"$f":"IF('Mitigation Data'!S143=2,\"No change proposed\",LOOKUP('Mitigation Data'!S148,'Mitigation Data'!Q149:Q153,'Mitigation Data'!R149:R153))","v":"No change proposed"}]
[]
[null,null,null,"Typical levels measured",null,null,{"$f":"IF(Data!S89=2,\"\",LOOKUP(Data!S95,Data!Q96:Q98,Data!R96:R98))","v":""}]

{"sheet":"Community I, E & A (m)","index":42,"n_rows":23,"n_cols":13,"rows_kept":23,"cut":false,"hidden":false,"merged":[[5,0,5,20]]}
[]
[]
[]
[]
[]
["Proposed Community Information, Education and Awareness"]
[]
[null,null,null,"Do you plan to add any additional signage?",null,null,null,null,null,null,null,null,"Do you plan to use other forms of communication with"]
[null,null,null,"(Tick all that apply)",null,null,null,null,null,null,null,null,"the users of the facility? (Tick all that apply)"]
[]
[]
[]
[]
[]
[]
[]
[]
[]
[]
[]
[]
[null,null,null,null,null,null,null,null,null,null,null,null,"Do you plan to communicate any of the following "]
[null,null,null,null,null,null,null,null,null,null,null,null,"educational themes? (Tick all that apply)"]

{"sheet":"Training (m)","index":43,"n_rows":25,"n_cols":13,"rows_kept":25,"cut":false,"hidden":false,"merged":[[5,0,5,20]]}
[]
[]
[]
[]
[]
["Proposed Staff Training and Regulation"]
[]
[null,null,null,"What training will the on-site operators of the facility ",null,null,null,null,null,null,null,null,"Will there be any \"Authorised Officers\" under the "]
[null,null,null,"receive relevant to the facility's operation?",null,null,null,null,null,null,null,null,"Protection of the Environment Operations Act 1997 that…"]
[null,null,null,"(Tick all that apply)"]
[null,null,null,null,null,null,null,null,null,null,null,null,"Work at the facility?"]
[]
[]
[]
[]
[]
[null,null,null,null,null,null,null,null,null,null,null,null,"Are otherwise employed by the operator of the facility?"]
[]
[]
[]
[]
[]
[null,null,null,null,null,null,null,null,null,null,null,null,"What regulatory enforcement activities will be"]
[null,null,null,null,null,null,null,null,null,null,null,null,"undertaken in relation to waste in the next 12 months?"]
[null,null,null,null,null,null,null,null,null,null,null,null,"(Tick all that apply)"]

{"sheet":"Operational 1 (m)","index":44,"n_rows":33,"n_cols":35,"rows_kept":33,"cut":false,"hidden":false,"merged":[[9,12,9,14],[9,15,9,17],[5,0,5,20],[23,15,23,17]]}
[]
[]
[]
[null,null,null,null,null,null,null,null,null,null,null,null,null,null,null,null,null," "]
[]
["Proposed Operations and Management"]
[]
[null,null,null,"Do you plan to change the types and/or quantities of wastes received at the facility? (Tick all that apply)",null,null,null,null,null,null,null,null,null,null,null,null,null,null,null,null,null,null,null,null,null,null,null,null,null,null,null,null,null,null,1]
[]
[null,null,null,"Solid Wastes",null,null,null,"For disposal",null,"For storage",null,null,"Max. quantity stored (t)",null,null,"Max. time stored"]
[null,null,null,"Municipal waste"]
[null,null,null,"Recyclables"]
[null,null,null,"Commercial & industrial waste"]
[null,null,null,"Construction & demolition waste"]
[null,null,null,"Garden & vegetation waste"]
[null,null,null,"Virgin excavated natural material",null,null,null,null," "]
[null,null,null,"Scrap metal"]
[null,null,null,"Tyres"]
[null,null,null,"Chemical containers with residue",null,null,null,"N/A"]
[null,null,null,"Batteries",null,null,null,"N/A"]
[null,null,null,"Hazardous waste",null,null,null,"N/A"]
[null,null,null,"Others"]
[]
[null,null,null,"Liquid",null,null,null,"For disposal",null,"For storage",null,null,"Max. quantity stored (l)",null,null,"Max. time stored"]
[null,null,null,"Waste mineral oil",null,null,null,"N/A"]
[null,null,null,"Waste cooking oil",null,null,null,"N/A"]
[null,null,null,"Paint",null,null,null,"N/A"]
[null,null,null,"Grease trap waste"]
[null,null,null,"Oily water waste",null,null,null,"N/A"]
[null,null,null,"Septic waste",null,null,null,"N/A"]
[null,null,null,"Others",null,null,null,"N/A"]
[]
[null,null,null,"NOTE: Waste that can not be lawfully received for disposal at at unlicensed landfill facilities is noted as \"NA\"."]

{"sheet":"Operational 1 (m-TS)","index":45,"n_rows":31,"n_cols":35,"rows_kept":31,"cut":false,"hidden":false,"merged":[[9,12,9,14],[9,15,9,17],[5,0,5,20],[23,15,23,17]]}
[]
[]
[]
[]
[]
["Proposed Operations and Management"]
[]
[null,null,null,"Do you plan to change the types and/or quantities of wastes received at the facility? (Tick all that apply)",null,null,null,null,null,null,null,null,null,null,null,null,null,null,null," ",null,null,null,null,null,null,null,null,null,null,null,null,null,null,1]
[]
[null,null,null,"Solid Wastes",null,null,null,null,null,"For storage",null,null,"Max. quantity stored (t)",null,null,"Max. time stored"]
[null,null,null,"Municipal waste"]
[null,null,null,"Recyclables"]
[null,null,null,"Commercial & industrial waste"]
[null,null,null,"Construction & demolition waste"]
[null,null,null,"Garden & vegetation waste"]
[null,null,null,"Virgin excavated natural material"]
[null,null,null,"Scrap metal"]
[null,null,null,"Tyres"]
[null,null,null,"Chemical containers with residue"]
[null,null,null,"Batteries"]
[null,null,null,"Hazardous waste"]
[null,null,null,"Others"]
[]
[null,null,null,"Liquid",null,null,null,null,null,"For storage",null,null,"Max. quantity stored (l)",null,null,"Max. time stored"]
[null,null,null,"Waste mineral oil"]
[null,null,null,"Waste cooking oil"]
[null,null,null,"Paint"]
[null,null,null,"Grease trap waste"]
[null,null,null,"Oily water waste"]
[null,null,null,"Septic waste"]
[null,null,null,"Others"]

{"sheet":"Operational 2 (m)","index":46,"n_rows":21,"n_cols":13,"rows_kept":21,"cut":false,"hidden":false,"merged":[[5,0,5,20]]}
[]
[]
[]
[]
[]
["Proposed Operations and Management"]
[]
[null,null,null,"When will the facility be open to the public?",null,null,null,null,null,null,null,null,"How will public access to the facility be controlled?"]
[]
[]
[]
[null,null,null,"What type of perimeter fence will the facility have?",null,null,null,null,null,null,null,null,"When will the facility be supervised?"]
[]
[]
[]
[null,null,null,"How will public access to the facility be secured?",null,null,null,null,null,null,null,null,"Operators will be on the premises ..."]
[]
[]
[]
[null,null,null,"Will any of the following additional security "]
[null,null,null,"arrangements be in place?"]

{"sheet":"Operational 3 (m)","index":47,"n_rows":33,"n_cols":13,"rows_kept":33,"cut":false,"hidden":false,"merged":[[9,12,9,16],[13,12,13,16],[5,0,5,20]]}
[]
[]
[]
[]
[]
["Proposed Operations and Management"]
[]
[null,null,null,"Will stormwater be diverted around…",null,null,null,null,null,null,null,null,"How will liquid / hazardous wastes be stored?"]
[]
[null,null,null,null,null,null,null,null,null,null,null,null,"No liquid or hazardous wastes stored"]
[]
[null,null,null,null,null,null,null,null,null,null,null,null,"Will all the liquid / hazardous waste areas be covered?"]
[]
[null,null,null,null,null,null,null,null,null,null,null,null,"Not Applicable"]
[]
[null,null,null,null,null,null,null,null,null,null,null,null,"What dust control measures will be used at the "]
[null,null,null,"How will stormwater runoff be managed from undisturbed ",null,null,null,null,null,null,null,null,"facility?"]
[null,null,null,"areas?"]
[]
[]
[]
[null,null,null,"How will stormwater runoff be managed from disturbed "]
[null,null,null,"areas?"]
[]
[]
[]
[null,null,null,"How will stormwater runoff be managed from waste "]
[null,null,null,"storage / disposal areas?",null,null,null,null,null,null,null,null,"What litter controls will be in place at the facility?"]
[]
[]
[]
[null,null,null,"How much of the trafficable area at the facility will "]
[null,null,null,"be sealed?"]

{"sheet":"Operational 4 (m)","index":48,"n_rows":25,"n_cols":13,"rows_kept":25,"cut":false,"hidden":false,"merged":[[5,0,5,20]]}
[]
[]
[]
[]
[]
["Proposed Operations and Management"]
[]
[null,null,null,"On what days will operational activities be conducted at ",null,null,null,null,null,null,null,null,"Will the following waste collection services be available"]
[null,null,null,"the facility?",null,null,null,null,null,null,null,null,"to residents in the vicinity of the facility?"]
[null,null,null,null,null,null,null,null,null,null,null,null,"(Tick all that apply)"]
[]
[]
[null,null,null,"During what hours on these days will operational "]
[null,null,null,"activities be conducted at the facility?"]
[]
[]
[null,null,null,null,null,null,null,null,null,null,null,null,"Will a Community Recycling Centre (CRC) be available"]
[null,null,null,"What plant and equipment will be used at the facility?",null,null,null,null,null,null,null,null,"to residents in the vicinity of the facility?"]
[null,null,null,"(Tick all that apply)"]
[]
[]
[]
[null,null,null,null,null,null,null,null,null,null,null,null,"What pest management programs will be in place at  "]
[null,null,null,null,null,null,null,null,null,null,null,null,"the facility?"]
[null,null,null,null,null,null,null,null,null,null,null,null,"(Tick all that apply)"]

{"sheet":"Operational 5 (m)","index":49,"n_rows":20,"n_cols":13,"rows_kept":20,"cut":false,"hidden":false,"merged":[[5,0,5,20]]}
[]
[]
[]
[]
[]
["Proposed Operations and Management"]
[]
[null,null,null,"What will be the frequency that planned and controlled ",null,null,null,null,null,null,null,null,"Will any of the following procedures be documented"]
[null,null,null,"burning will be undertaken at the facility?",null,null,null,null,null,null,null,null,"and implemented? "]
[]
[]
[]
[null,null,null,"What best describes the fire fighting capacity that will "]
[null,null,null,"be available at the facility?"]
[]
[]
[]
[null,null,null,"What fire management controls will be used at the "]
[null,null,null,"facility?"]
[null,null,null,"(Tick all that apply)"]

{"sheet":"Landfill Specific (m)","index":50,"n_rows":40,"n_cols":15,"rows_kept":40,"cut":false,"hidden":false,"merged":[[5,0,5,20]]}
[]
[]
[]
[]
[]
["Proposed Operations and Management"]
[]
[null,null,null,"In addition to the previous, do you plan to change the types and/or quantities of wastes received at the facility? (Tick all that apply)"]
[]
[null,null,null,null,null,null,null,null,null,null,null,null,null,null,"Estimated quantity per annum (t)"]
[null,null,null,"Asbestos"]
[null,null,null,"Clinical / pharmaceutical waste"]
[null,null,null,"Animal carcasses / parts"]
[null,null,null,"Biosolids"]
[null,null,null,"Contaminated soil"]
[]
[null,null,null,"How will wastes be landfilled at the facility?",null,null,null,null,null,null,null,null,"Will there be a landfilling plan prepared for the facility?"]
[]
[]
[]
[null,null,null,"How many active landfill areas will there be at the "]
[null,null,null,"facility?",null,null,null,null,null,null,null,null,"How will the bases of landfill areas be prepared?"]
[]
[]
[]
[null,null,null,"How will the waste be compacted?",null,null,null,null,null,null,null,null,"How will the completed landfill areas be closed?"]
[]
[]
[]
[null,null,null,"How often will wastes be covered?",null,null,null,null,null,null,null,null,"Will landfill leachate be captured for treatment / discharge "]
[null,null,null,null,null,null,null,null,null,null,null,null,"at the facility?"]
[]
[]
[null,null,null,"How will the waste be covered?"]
[]
[null,null,null,null,null,null,null,null,null,null,null,null,"How will leachate be managed?"]
[null,null,null,null,null,null,null,null,null,null,null,null,{"$f":"IF('Mitigation Data'!AL59=2,\"Not applicable\",LOOKUP('Mitigation Data'!AL61,'Mitigation Data'!AJ62:AJ66,'Mitigation Data'!AK62:AK66))","v":"Not applicable"}]
[null,null,null,"What is the estimated size of the active landfill areas (m2)"]
[null,null,null,null,null,null,null,null,null,null,null,null,"What best describes the method used to manage "]
[null,null,null,null,null,null,null,null,null,null,null,null,"landfill gas?"]

{"sheet":"Transfer Station Specific (m)","index":52,"n_rows":21,"n_cols":13,"rows_kept":21,"cut":false,"hidden":false,"merged":[[5,0,5,20]]}
[]
[]
[]
[]
[]
["Proposed Operations and Management"]
[]
[null,null,null,"Will the transfer station be permanently established?",null,null,null,null,null,null,null,null,"Will the bins / bunkers used have lids?"]
[]
[]
[]
[]
[null,null,null,"What waste transfer station method will be used?",null,null,null,null,null,null,null,null,"Will wastes be processed / sorted at the facility?"]
[]
[]
[]
[null,null,null,"How will the transfer station be constructed?"]
[null,null,null,null,null,null,null,null,null,null,null,null,"Where will wastes received at the transfer station be "]
[null,null,null,null,null,null,null,null,null,null,null,null,"taken for disposal?"]
[]
[null,null,null,"Will the transfer station area be under cover?"]

{"sheet":"Closed landfill (m)","index":53,"n_rows":32,"n_cols":13,"rows_kept":32,"cut":false,"hidden":false,"merged":[[5,0,5,20]]}
[]
[]
[]
[]
[]
["Proposed Closed Landfill"]
[]
[]
[null,null,null,"How will the be landfill capped?",null,null,null,null,null,null,null,null,"Will an organic layer be placed over the final surface?"]
[]
[]
[]
[null,null,null,"What will the slope of the final surface be?"]
[null,null,null,null,null,null,null,null,null,null,null,null,"How will the final surface be revegetated?"]
[]
[]
[null,null,null,"What will be the post landfill land use of the facility?"]
[null,null,null,null,null,null,null,null,null,null,null,null,"Will any post closure monitoring of the integrity "]
[null,null,null,null,null,null,null,null,null,null,null,null,"of the landfill cap / surface occur?"]
[]
[null,null,null,"Will any structures be built over the landfilled areas?"]
[]
[]
[null,null,null,null,null,null,null,null,null,null,null,null,"What will the frequency of landfill cap monitoring be?"]
[null,null,null,null,null,null,null,null,null,null,null,null,{"$f":"IF('Mitigation Data'!AS65=2,\"Not applicable\",LOOKUP('Mitigation Data'!AU66,'Mitigation Data'!AS67:AS71,'Mitigation Data'!AT67:AT71))","v":"Not applicable"}]
[null,null,null,"How will runoff from the facility be treated?"]
[null,null,null,null,null,null,null,null,null,null,null,null,"Will there be procedures in place to repair any instability "]
[null,null,null,null,null,null,null,null,null,null,null,null,"and/or failures identified in the landfill cap?"]
[null,null,null,null,null,null,null,null,null,null,null,null,{"$f":"IF('Mitigation Data'!AS65=2,\"Not applicable\",IF('Mitigation Data'!AU72=1,\"Yes\",\"No\"))","v":"Not applicable"}]
[null,null,null,"How will leachate be managed?"]
[null,null,null,null,null,null,null,null,null,null,null,null,"What best describes the method used to manage "]
[null,null,null,null,null,null,null,null,null,null,null,null,"landfill gas?"]

{"sheet":"DR","index":55,"n_rows":101,"n_cols":9,"rows_kept":101,"cut":false,"hidden":true,"merged":[]}
[{"$f":"Data!A12","v":1},{"$f":"IF((A1<>2),5,1)","v":5},"Landfill scales","Closed Landfill","Transfer Station Scales"]
[{"$f":"ADDRESS(2,A1+2)&\":\"&ADDRESS(100,A1+2)","v":"$C$2:$C$100"},null,"0 - 100","0","0 - 600"]
[null,null,"100 - 500",null,"600 - 3,000"]
[null,null,"500 - 1,000",null,"3,000 - 6,000"]
[null,null,"1,000 - 2,500",null,"6,000 - 15,000"]
[null,null,"2,500 - 5,000",null,"15,000 - 30,000"]
[]
[null,null,{"$f":"OFFSET(B2,0,$A$1,1)","v":"0 - 100"},{"$f":"IF((C8=\"'\"),C8,\"\")","v":""}]
[null,null,{"$f":"OFFSET(B3,0,$A$1,1)","v":"100 - 500"},{"$f":"IF((C9=\"'\"),C9,\"\")","v":""}]
[null,null,{"$f":"OFFSET(B4,0,$A$1,1)","v":"500 - 1,000"},{"$f":"IF((C10=\"'\"),C10,\"\")","v":""}]
[null,null,{"$f":"OFFSET(B5,0,$A$1,1)","v":"1,000 - 2,500"},{"$f":"IF((C11=\"'\"),C11,\"\")","v":""}]
[null,null,{"$f":"OFFSET(B6,0,$A$1,1)","v":"2,500 - 5,000"},{"$f":"IF((C12=\"'\"),C12,\"\")","v":""}]
[]
[null,null,"Wastes"]
[null,null,"Storage","No Storage",null,"Storage","No storage"]
[null,1,"0 - 600","Not Applicable",1,"Less than 1 day","Not Applicable"]
[null,2,"600 - 3,000",null,2,"1 day to 1 week"]
[null,3,"3,000 - 6,000",null,3,"1 week to 1 month"]
[null,4,"6,000 - 15,000",null,4,"1 month to 3 months"]
[null,5,"15,000 - 30,000",null,5,"More than 3 months"]
[]
[]
[null,null,"Municipal waste","Recyclables","C&I","C&D","Green","VENM","Scrap metal"]
[null,"T/F",{"$f":"IF((Data!$AF4=TRUE),\"1\",\"2\")","v":"2"},{"$f":"IF((Data!$AF5=TRUE),\"1\",\"2\")","v":"2"},{"$f":"IF((Data!$AF6=TRUE),\"1\",\"2\")","v":"2"},{"$f":"IF((Data!$AF7=TRUE),\"1\",\"2\")","v":"2"},{"$f":"IF((Data!$AF8=TRUE),\"1\",\"2\")","v":"2"},{"$f":"IF((Data!$AF9=TRUE),\"1\",\"2\")","v":"2"},{"$f":"IF((Data!$AF10=TRUE),\"1\",\"2\")","v":"2"}]
[null,"Range a",{"$f":"ADDRESS(28,C24+1)&\":\"&ADDRESS(32,C24+1)","v":"$C$28:$C$32"},{"$f":"ADDRESS(28,D24+2)&\":\"&ADDRESS(32,D24+2)","v":"$D$28:$D$32"},{"$f":"ADDRESS(28,E24+3)&\":\"&ADDRESS(32,E24+3)","v":"$E$28:$E$32"},{"$f":"ADDRESS(28,F24+4)&\":\"&ADDRESS(32,F24+4)","v":"$F$28:$F$32"},{"$f":"ADDRESS(28,G24+5)&\":\"&ADDRESS(32,G24+5)","v":"$G$28:$G$32"},{"$f":"ADDRESS(28,H24+6)&\":\"&ADDRESS(32,H24+6)","v":"$H$28:$H$32"},{"$f":"ADDRESS(28,I24+7)&\":\"&ADDRESS(32,I24+7)","v":"$I$28:$I$32"}]
[null,"Range b",{"$f":"ADDRESS(33,C24+1)&\":\"&ADDRESS(37,C24+1)","v":"$C$33:$C$37"},{"$f":"ADDRESS(33,D24+2)&\":\"&ADDRESS(37,D24+2)","v":"$D$33:$D$37"},{"$f":"ADDRESS(33,E24+3)&\":\"&ADDRESS(37,E24+3)","v":"$E$33:$E$37"},{"$f":"ADDRESS(33,F24+4)&\":\"&ADDRESS(37,F24+4)","v":"$F$33:$F$37"},{"$f":"ADDRESS(33,G24+5)&\":\"&ADDRESS(37,G24+5)","v":"$G$33:$G$37"},{"$f":"ADDRESS(33,H24+6)&\":\"&ADDRESS(37,H24+6)","v":"$H$33:$H$37"},{"$f":"ADDRESS(33,I24+7)&\":\"&ADDRESS(37,I24+7)","v":"$I$33:$I$37"}]
[null,"No.",{"$f":"IF((C24=\"2\"),1,5)","v":1},{"$f":"IF((D24=\"2\"),1,5)","v":1},1,1,1,1,1]
[null,"Scale",{"$f":"OFFSET($B16,0,C$24,1)","v":"Not Applicable"},{"$f":"OFFSET($B16,0,D$24,1)","v":"Not Applicable"},"Not Applicable","Not Applicable","Not Applicable","Not Applicable","Not Applicable"]
[null,null,{"$f":"OFFSET($B17,0,C$24,1)","v":0},{"$f":"OFFSET($B17,0,D$24,1)","v":0},0,0,0,0,0]
[null,null,{"$f":"OFFSET($B18,0,C$24,1)","v":0},0,0,0,0,0,0]
[null,null,{"$f":"OFFSET($B19,0,C$24,1)","v":0},0,0,0,0,0,0]
[null,null,{"$f":"OFFSET($B20,0,C$24,1)","v":0},0,0,0,0,0,0]
[null,"Time",{"$f":"OFFSET($E16,0,C$24,1)","v":"Not Applicable"},{"$f":"OFFSET($E16,0,D$24,1)","v":"Not Applicable"},"Not Applicable","Not Applicable","Not Applicable","Not Applicable","Not Applicable"]
[null,null,{"$f":"OFFSET($E17,0,C$24,1)","v":0},0,0,0,0,0,0]
[null,null,0,0,0,0,0,0,0]
[null,null,0,0,0,0,0,0,0]
[null,null,0,0,0,0,0,0,0]
[]
[null,null,"Storage","No Storage",null,"Storage","No storage"]
[null,1,"< 0.5","Not Applicable",1,"Less than 1 day","Not Applicable"]
[null,2,"0.5 - 2",null,2,"1 day to 1 week"]
[null,3,"2 - 10",null,3,"1 week to 1 month"]
[null,4,"10 - 50",null,4,"1 month to 3 months"]
[null,5,"> 50",null,5,"More than 3 months"]
[]
[null,null,"Tyres","Chemical containers","Batteries","Hazardous ","Others"]
[null,"T/F",{"$f":"IF((Data!$AF13=TRUE),\"1\",\"2\")","v":"2"},{"$f":"IF((Data!$AF15=TRUE),\"1\",\"2\")","v":"2"},{"$f":"IF((Data!$AF16=TRUE),\"1\",\"2\")","v":"2"},{"$f":"IF((Data!$AF17=TRUE),\"1\",\"2\")","v":"2"},{"$f":"IF((Data!$AF11=TRUE),\"1\",\"2\")","v":"2"}]
[null,"Range a",{"$f":"ADDRESS(49,C47+1)&\":\"&ADDRESS(53,C47+1)","v":"$C$49:$C$53"},{"$f":"ADDRESS(49,D47+1)&\":\"&ADDRESS(53,D47+1)","v":"$C$49:$C$53"},{"$f":"ADDRESS(49,E47+1)&\":\"&ADDRESS(53,E47+1)","v":"$C$49:$C$53"},{"$f":"ADDRESS(49,F47+1)&\":\"&ADDRESS(53,F47+1)","v":"$C$49:$C$53"},{"$f":"ADDRESS(49,G47+1)&\":\"&ADDRESS(53,G47+1)","v":"$C$49:$C$53"}]
[null,"Range b",{"$f":"ADDRESS(56,C47+1)&\":\"&ADDRESS(60,C47+1)","v":"$C$56:$C$60"},{"$f":"ADDRESS(56,D47+2)&\":\"&ADDRESS(60,D47+2)","v":"$D$56:$D$60"},{"$f":"ADDRESS(56,E47+2)&\":\"&ADDRESS(60,E47+2)","v":"$D$56:$D$60"},{"$f":"ADDRESS(56,F47+2)&\":\"&ADDRESS(60,F47+2)","v":"$D$56:$D$60"},{"$f":"ADDRESS(56,G47+2)&\":\"&ADDRESS(60,G47+2)","v":"$D$56:$D$60"}]
[null,"No",{"$f":"IF((C47=\"2\"),1,5)","v":1},{"$f":"IF((D47=\"2\"),1,5)","v":1},{"$f":"IF((E47=\"2\"),1,5)","v":1},{"$f":"IF((F47=\"2\"),1,5)","v":1},{"$f":"IF((G47=\"2\"),1,5)","v":1}]
[null,"Scale",{"$f":"OFFSET($B40,0,C$47,1)","v":"Not Applicable"},{"$f":"OFFSET($B40,0,D$47,1)","v":"Not Applicable"},{"$f":"OFFSET($B40,0,E$47,1)","v":"Not Applicable"},{"$f":"OFFSET($B40,0,F$47,1)","v":"Not Applicable"},{"$f":"OFFSET($B40,0,G$47,1)","v":"Not Applicable"}]
[null,null,{"$f":"OFFSET($B41,0,C$47,1)","v":0},0,0,0,0]
[null,null,0,0,0,0,0]
[null,null,0,0,0,0,0]
[null,null,0,0,0,0,0]
[null,"Time",{"$f":"OFFSET($E40,0,C$47,1)","v":"Not Applicable"},{"$f":"OFFSET($E40,0,D$47,1)","v":"Not Applicable"},{"$f":"OFFSET($E40,0,E$47,1)","v":"Not Applicable"},{"$f":"OFFSET($E40,0,F$47,1)","v":"Not Applicable"},{"$f":"OFFSET($E40,0,G$47,1)","v":"Not Applicable"}]
[null,null,{"$f":"OFFSET($E41,0,C$47,1)","v":0},0,0,0,0]
[null,null,0,0,0,0,0]
[null,null,0,0,0,0,0]
[null,null,0,0,0,0,0]
[]
[]
[null,null,"Storage","No Storage",null,"Storage","No storage"]
[null,1,"< 500","Not Applicable",1,"Less than 1 day","Not Applicable"]
[null,2,"500 - 2,000",null,2,"1 day to 1 week"]
[null,3,"2,000 - 10,000",null,3,"1 week to 1 month"]
[null,4,"10,000 - 50,000",null,4,"1 month to 3 months"]
[null,5,"> 50,000",null,5,"More than 3 months"]
[]
[]
[null,null,"Waste mineral oil","Waste cooking oil","Paint","GTW","Oily water waste","Septic waste","Others"]
[null,"T/F",{"$f":"IF((Data!$AF20=TRUE),\"1\",\"2\")","v":"2"},{"$f":"IF((Data!$AF21=TRUE),\"1\",\"2\")","v":"2"},{"$f":"IF((Data!$AF22=TRUE),\"1\",\"2\")","v":"2"},{"$f":"IF((Data!$AF23=TRUE),\"1\",\"2\")","v":"2"},{"$f":"IF((Data!$AF24=TRUE),\"1\",\"2\")","v":"2"},{"$f":"IF((Data!$AF25=TRUE),\"1\",\"2\")","v":"2"},{"$f":"IF((Data!$AF26=TRUE),\"1\",\"2\")","v":"2"}]
[null,"Range a",{"$f":"ADDRESS(76,C72+1)&\":\"&ADDRESS(80,C72+1)","v":"$C$76:$C$80"},{"$f":"ADDRESS(76,D72+2)&\":\"&ADDRESS(80,D72+2)","v":"$D$76:$D$80"},{"$f":"ADDRESS(76,E72+3)&\":\"&ADDRESS(80,E72+3)","v":"$E$76:$E$80"},{"$f":"ADDRESS(76,F72+4)&\":\"&ADDRESS(80,F72+4)","v":"$F$76:$F$80"},{"$f":"ADDRESS(76,G72+5)&\":\"&ADDRESS(80,G72+5)","v":"$G$76:$G$80"},{"$f":"ADDRESS(76,H72+6)&\":\"&ADDRESS(80,H72+6)","v":"$H$76:$H$80"},{"$f":"ADDRESS(76,I72+7)&\":\"&ADDRESS(80,I72+7)","v":"$I$76:$I$80"}]
[null,"Range b",{"$f":"ADDRESS(81,C72+1)&\":\"&ADDRESS(85,C72+1)","v":"$C$81:$C$85"},{"$f":"ADDRESS(81,D72+2)&\":\"&ADDRESS(85,D72+2)","v":"$D$81:$D$85"},{"$f":"ADDRESS(81,E72+3)&\":\"&ADDRESS(85,E72+3)","v":"$E$81:$E$85"},{"$f":"ADDRESS(81,F72+4)&\":\"&ADDRESS(85,F72+4)","v":"$F$81:$F$85"},{"$f":"ADDRESS(81,G72+5)&\":\"&ADDRESS(85,G72+5)","v":"$G$81:$G$85"},{"$f":"ADDRESS(81,H72+6)&\":\"&ADDRESS(85,H72+6)","v":"$H$81:$H$85"},{"$f":"ADDRESS(81,I72+7)&\":\"&ADDRESS(85,I72+7)","v":"$I$81:$I$85"}]
[null,"No",{"$f":"IF((C72=\"2\"),1,5)","v":1},{"$f":"IF((D72=\"2\"),1,5)","v":1},1,1,1,{"$f":"IF((H72=\"2\"),1,5)","v":1},1]
[null,"Scale",{"$f":"OFFSET($B64,0,C$72,1)","v":"Not Applicable"},{"$f":"OFFSET($B64,0,D$72,1)","v":"Not Applicable"},"Not Applicable","Not Applicable","Not Applicable","Not Applicable","Not Applicable"]
[null,null,{"$f":"OFFSET($B65,0,C$72,1)","v":0},0,0,0,0,0,0]
[null,null,0,0,0,0,0,0,0]
[null,null,0,0,0,0,0,0,0]
[null,null,0,0,0,0,0,0,0]
[null,"Time",{"$f":"OFFSET($E64,0,C$72,1)","v":"Not Applicable"},{"$f":"OFFSET($E64,0,D$72,1)","v":"Not Applicable"},"Not Applicable","Not Applicable","Not Applicable","Not Applicable","Not Applicable"]
[null,null,{"$f":"OFFSET($E65,0,C$72,1)","v":0},0,0,0,0,0,0]
[null,null,0,0,0,0,0,0,0]
[null,null,0,0,0,0,0,0,0]
[null,null,0,0,0,0,0,0,0]
[]
[null,null,"Landfill Specific"]
[null,1,"< 0.5","Not Applicable"]
[null,2,"0.5 - 2"]
[null,3,"2 - 10"]
[null,4,"10 - 50"]
[null,5,"> 50"]
[]
[null,null,"Asbestos","Clinical","Animal","Biosolids","Contam soil"]
[null,"T/F",{"$f":"IF((Data!$AL4=TRUE),\"1\",\"2\")","v":"2"},{"$f":"IF((Data!$AL5=TRUE),\"1\",\"2\")","v":"2"},{"$f":"IF((Data!$AL6=TRUE),\"1\",\"2\")","v":"2"},{"$f":"IF((Data!$AL7=TRUE),\"1\",\"2\")","v":"2"},{"$f":"IF((Data!$AL8=TRUE),\"1\",\"2\")","v":"2"}]
[null,"No.",{"$f":"IF((C95=\"2\"),1,5)","v":1},{"$f":"IF((D95<>\"2\"),5,1)","v":1},{"$f":"IF((E95<>\"2\"),5,1)","v":1},{"$f":"IF((F95<>\"2\"),5,1)","v":1},{"$f":"IF((G95<>\"2\"),5,1)","v":1}]
[null,null,{"$f":"OFFSET($B88,0,C$95,1)","v":"Not Applicable"},{"$f":"OFFSET($B88,0,D$95,1)","v":"Not Applicable"},{"$f":"OFFSET($B88,0,E$95,1)","v":"Not Applicable"},{"$f":"OFFSET($B88,0,F$95,1)","v":"Not Applicable"},{"$f":"OFFSET($B88,0,G$95,1)","v":"Not Applicable"}]
[null,null,{"$f":"OFFSET($B89,0,C$95,1)","v":0},0,0,0,0]
[null,null,0,0,0,0,0]
[null,null,0,0,0,0,0]
[null,null,0,0,0,0,0]

{"sheet":"DRm","index":56,"n_rows":101,"n_cols":9,"rows_kept":101,"cut":false,"hidden":true,"merged":[]}
[{"$f":"Data!A12","v":1},{"$f":"IF((A1<>2),5,1)","v":5},"Landfill scales","Closed Landfill","Transfer Station Scales"]
[{"$f":"ADDRESS(2,A1+2)&\":\"&ADDRESS(100,A1+2)","v":"$C$2:$C$100"},null,"0 - 100","0","0 - 600"]
[null,null,"100 - 500",null,"600 - 3,000"]
[null,null,"500 - 1,000",null,"3,000 - 6,000"]
[null,null,"1,000 - 2,500",null,"6,000 - 15,000"]
[null,null,"2,500 - 5,000",null,"15,000 - 30,000"]
[]
[null,null,{"$f":"OFFSET(B2,0,$A$1,1)","v":"0 - 100"},{"$f":"IF((C8=\"'\"),C8,\"\")","v":""}]
[null,null,{"$f":"OFFSET(B3,0,$A$1,1)","v":"100 - 500"},{"$f":"IF((C9=\"'\"),C9,\"\")","v":""}]
[null,null,{"$f":"OFFSET(B4,0,$A$1,1)","v":"500 - 1,000"},{"$f":"IF((C10=\"'\"),C10,\"\")","v":""}]
[null,null,{"$f":"OFFSET(B5,0,$A$1,1)","v":"1,000 - 2,500"},{"$f":"IF((C11=\"'\"),C11,\"\")","v":""}]
[null,null,{"$f":"OFFSET(B6,0,$A$1,1)","v":"2,500 - 5,000"},{"$f":"IF((C12=\"'\"),C12,\"\")","v":""}]
[]
[null,null,"Wastes"]
[null,null,"Storage","No Storage",null,"Storage","No storage"]
[null,1,"0 - 600","Not Applicable",1,"Less than 1 day","Not Applicable"]
[null,2,"600 - 3,000",null,2,"1 day to 1 week"]
[null,3,"3,000 - 6,000",null,3,"1 week to 1 month"]
[null,4,"6,000 - 15,000",null,4,"1 month to 3 months"]
[null,5,"15,000 - 30,000",null,5,"More than 3 months"]
[]
[]
[null,null,"Municipal waste","Recyclables","C&I","C&D","Green","VENM","Scrap metal"]
[null,"T/F",{"$f":"IF(('Mitigation Data'!$AF4=TRUE),\"1\",\"2\")","v":"2"},{"$f":"IF(('Mitigation Data'!$AF5=TRUE),\"1\",\"2\")","v":"2"},{"$f":"IF(('Mitigation Data'!$AF6=TRUE),\"1\",\"2\")","v":"2"},{"$f":"IF(('Mitigation Data'!$AF7=TRUE),\"1\",\"2\")","v":"2"},{"$f":"IF(('Mitigation Data'!$AF8=TRUE),\"1\",\"2\")","v":"2"},{"$f":"IF(('Mitigation Data'!$AF9=TRUE),\"1\",\"2\")","v":"2"},{"$f":"IF(('Mitigation Data'!$AF10=TRUE),\"1\",\"2\")","v":"2"}]
[null,"Range a",{"$f":"ADDRESS(28,C24+1)&\":\"&ADDRESS(32,C24+1)","v":"$C$28:$C$32"},{"$f":"ADDRESS(28,D24+2)&\":\"&ADDRESS(32,D24+2)","v":"$D$28:$D$32"},{"$f":"ADDRESS(28,E24+3)&\":\"&ADDRESS(32,E24+3)","v":"$E$28:$E$32"},{"$f":"ADDRESS(28,F24+4)&\":\"&ADDRESS(32,F24+4)","v":"$F$28:$F$32"},{"$f":"ADDRESS(28,G24+5)&\":\"&ADDRESS(32,G24+5)","v":"$G$28:$G$32"},{"$f":"ADDRESS(28,H24+6)&\":\"&ADDRESS(32,H24+6)","v":"$H$28:$H$32"},{"$f":"ADDRESS(28,I24+7)&\":\"&ADDRESS(32,I24+7)","v":"$I$28:$I$32"}]
[null,"Range b",{"$f":"ADDRESS(33,C24+1)&\":\"&ADDRESS(37,C24+1)","v":"$C$33:$C$37"},{"$f":"ADDRESS(33,D24+2)&\":\"&ADDRESS(37,D24+2)","v":"$D$33:$D$37"},{"$f":"ADDRESS(33,E24+3)&\":\"&ADDRESS(37,E24+3)","v":"$E$33:$E$37"},{"$f":"ADDRESS(33,F24+4)&\":\"&ADDRESS(37,F24+4)","v":"$F$33:$F$37"},{"$f":"ADDRESS(33,G24+5)&\":\"&ADDRESS(37,G24+5)","v":"$G$33:$G$37"},{"$f":"ADDRESS(33,H24+6)&\":\"&ADDRESS(37,H24+6)","v":"$H$33:$H$37"},{"$f":"ADDRESS(33,I24+7)&\":\"&ADDRESS(37,I24+7)","v":"$I$33:$I$37"}]
[null,"No.",{"$f":"IF((C24=\"2\"),1,5)","v":1},1,1,1,1,1,1]
[null,"Scale",{"$f":"OFFSET($B16,0,C$24,1)","v":"Not Applicable"},"Not Applicable","Not Applicable","Not Applicable","Not Applicable","Not Applicable","Not Applicable"]
[null,null,0,0,0,0,0,0,0]
[null,null,0,0,0,0,0,0,0]
[null,null,0,0,0,0,0,0,0]
[null,null,0,0,0,0,0,0,0]
[null,"Time",{"$f":"OFFSET($E16,0,C$24,1)","v":"Not Applicable"},"Not Applicable","Not Applicable","Not Applicable","Not Applicable","Not Applicable","Not Applicable"]
[null,null,0,0,0,0,0,0,0]
[null,null,0,0,0,0,0,0,0]
[null,null,0,0,0,0,0,0,0]
[null,null,0,0,0,0,0,0,0]
[]
[null,null,"Storage","No Storage",null,"Storage","No storage"]
[null,1,"< 0.5","Not Applicable",1,"Less than 1 day","Not Applicable"]
[null,2,"0.5 - 2",null,2,"1 day to 1 week"]
[null,3,"2 - 10",null,3,"1 week to 1 month"]
[null,4,"10 - 50",null,4,"1 month to 3 months"]
[null,5,"> 50",null,5,"More than 3 months"]
[]
[null,null,"Tyres","Chemical containers","Batteries","Hazardous ","Others"]
[null,"T/F",{"$f":"IF(('Mitigation Data'!$AF13=TRUE),\"1\",\"2\")","v":"2"},{"$f":"IF(('Mitigation Data'!AF15=TRUE),\"1\",\"2\")","v":"2"},{"$f":"IF(('Mitigation Data'!AF16=TRUE),\"1\",\"2\")","v":"2"},{"$f":"IF(('Mitigation Data'!AF17=TRUE),\"1\",\"2\")","v":"2"},{"$f":"IF(('Mitigation Data'!AF11=TRUE),\"1\",\"2\")","v":"2"}]
[null,"Range a",{"$f":"ADDRESS(49,C47+1)&\":\"&ADDRESS(53,C47+1)","v":"$C$49:$C$53"},{"$f":"ADDRESS(49,D47+1)&\":\"&ADDRESS(53,D47+1)","v":"$C$49:$C$53"},{"$f":"ADDRESS(49,E47+1)&\":\"&ADDRESS(53,E47+1)","v":"$C$49:$C$53"},{"$f":"ADDRESS(49,F47+1)&\":\"&ADDRESS(53,F47+1)","v":"$C$49:$C$53"},{"$f":"ADDRESS(49,G47+1)&\":\"&ADDRESS(53,G47+1)","v":"$C$49:$C$53"}]
[null,"Range b",{"$f":"ADDRESS(56,C47+1)&\":\"&ADDRESS(60,C47+1)","v":"$C$56:$C$60"},{"$f":"ADDRESS(56,D47+2)&\":\"&ADDRESS(60,D47+2)","v":"$D$56:$D$60"},{"$f":"ADDRESS(56,E47+2)&\":\"&ADDRESS(60,E47+2)","v":"$D$56:$D$60"},{"$f":"ADDRESS(56,F47+2)&\":\"&ADDRESS(60,F47+2)","v":"$D$56:$D$60"},{"$f":"ADDRESS(56,G47+2)&\":\"&ADDRESS(60,G47+2)","v":"$D$56:$D$60"}]
[null,"No",{"$f":"IF((C47=\"2\"),1,5)","v":1},{"$f":"IF((D47=\"2\"),1,5)","v":1},{"$f":"IF((E47=\"2\"),1,5)","v":1},{"$f":"IF((F47=\"2\"),1,5)","v":1},{"$f":"IF((G47=\"2\"),1,5)","v":1}]
[null,"Scale",{"$f":"OFFSET($B40,0,C$47,1)","v":"Not Applicable"},"Not Applicable","Not Applicable","Not Applicable","Not Applicable"]
[null,null,0,0,0,0,0]
[null,null,0,0,0,0,0]
[null,null,0,0,0,0,0]
[null,null,0,0,0,0,0]
[null,"Time",{"$f":"OFFSET($E40,0,C$47,1)","v":"Not Applicable"},"Not Applicable","Not Applicable","Not Applicable","Not Applicable"]
[null,null,0,0,0,0,0]
[null,null,0,0,0,0,0]
[null,null,0,0,0,0,0]
[null,null,0,0,0,0,0]
[]
[]
[null,null,"Storage","No Storage",null,"Storage","No storage"]
[null,1,"< 500","Not Applicable",1,"Less than 1 day","Not Applicable"]
[null,2,"500 - 2,000",null,2,"1 day to 1 week"]
[null,3,"2,000 - 10,000",null,3,"1 week to 1 month"]
[null,4,"10,000 - 50,000",null,4,"1 month to 3 months"]
[null,5,"> 50,000",null,5,"More than 3 months"]
[]
[]
[null,null,"Waste mineral oil","Waste cooking oil","Paint","GTW","Oily water waste","Septic waste","Others"]
[null,"T/F",{"$f":"IF(('Mitigation Data'!$AF20=TRUE),\"1\",\"2\")","v":"2"},{"$f":"IF(('Mitigation Data'!$AF21=TRUE),\"1\",\"2\")","v":"2"},{"$f":"IF(('Mitigation Data'!$AF22=TRUE),\"1\",\"2\")","v":"2"},{"$f":"IF(('Mitigation Data'!$AF23=TRUE),\"1\",\"2\")","v":"2"},{"$f":"IF(('Mitigation Data'!$AF24=TRUE),\"1\",\"2\")","v":"2"},{"$f":"IF(('Mitigation Data'!$AF25=TRUE),\"1\",\"2\")","v":"2"},{"$f":"IF(('Mitigation Data'!$AF26=TRUE),\"1\",\"2\")","v":"2"}]
[null,"Range a",{"$f":"ADDRESS(76,C72+1)&\":\"&ADDRESS(80,C72+1)","v":"$C$76:$C$80"},{"$f":"ADDRESS(76,D72+2)&\":\"&ADDRESS(80,D72+2)","v":"$D$76:$D$80"},{"$f":"ADDRESS(76,E72+3)&\":\"&ADDRESS(80,E72+3)","v":"$E$76:$E$80"},{"$f":"ADDRESS(76,F72+4)&\":\"&ADDRESS(80,F72+4)","v":"$F$76:$F$80"},{"$f":"ADDRESS(76,G72+5)&\":\"&ADDRESS(80,G72+5)","v":"$G$76:$G$80"},{"$f":"ADDRESS(76,H72+6)&\":\"&ADDRESS(80,H72+6)","v":"$H$76:$H$80"},{"$f":"ADDRESS(76,I72+7)&\":\"&ADDRESS(80,I72+7)","v":"$I$76:$I$80"}]
[null,"Range b",{"$f":"ADDRESS(81,C72+1)&\":\"&ADDRESS(85,C72+1)","v":"$C$81:$C$85"},{"$f":"ADDRESS(81,D72+2)&\":\"&ADDRESS(85,D72+2)","v":"$D$81:$D$85"},{"$f":"ADDRESS(81,E72+3)&\":\"&ADDRESS(85,E72+3)","v":"$E$81:$E$85"},{"$f":"ADDRESS(81,F72+4)&\":\"&ADDRESS(85,F72+4)","v":"$F$81:$F$85"},{"$f":"ADDRESS(81,G72+5)&\":\"&ADDRESS(85,G72+5)","v":"$G$81:$G$85"},{"$f":"ADDRESS(81,H72+6)&\":\"&ADDRESS(85,H72+6)","v":"$H$81:$H$85"},{"$f":"ADDRESS(81,I72+7)&\":\"&ADDRESS(85,I72+7)","v":"$I$81:$I$85"}]
[null,"No",{"$f":"IF((C72=\"2\"),1,5)","v":1},1,1,1,1,1,1]
[null,"Scale",{"$f":"OFFSET($B64,0,C$72,1)","v":"Not Applicable"},"Not Applicable","Not Applicable","Not Applicable","Not Applicable","Not Applicable","Not Applicable"]
[null,null,0,0,0,0,0,0,0]
[null,null,0,0,0,0,0,0,0]
[null,null,0,0,0,0,0,0,0]
[null,null,0,0,0,0,0,0,0]
[null,"Time",{"$f":"OFFSET($E64,0,C$72,1)","v":"Not Applicable"},"Not Applicable","Not Applicable","Not Applicable","Not Applicable","Not Applicable","Not Applicable"]
[null,null,0,0,0,0,0,0,0]
[null,null,0,0,0,0,0,0,0]
[null,null,0,0,0,0,0,0,0]
[null,null,0,0,0,0,0,0,0]
[]
[null,null,"Landfill Specific"]
[null,1,"< 0.5","Not Applicable"]
[null,2,"0.5 - 2"]
[null,3,"2 - 10"]
[null,4,"10 - 50"]
[null,5,"> 50"]
[]
[null,null,"Asbestos","Clinical","Animal","Biosolids","Contam soil"]
[null,"T/F",{"$f":"IF(('Mitigation Data'!$AL4=TRUE),\"1\",\"2\")","v":"2"},{"$f":"IF(('Mitigation Data'!$AL5=TRUE),\"1\",\"2\")","v":"2"},{"$f":"IF(('Mitigation Data'!$AL6=TRUE),\"1\",\"2\")","v":"2"},{"$f":"IF(('Mitigation Data'!$AL7=TRUE),\"1\",\"2\")","v":"2"},{"$f":"IF(('Mitigation Data'!$AL8=TRUE),\"1\",\"2\")","v":"2"}]
[null,"No.",{"$f":"IF((C95=\"2\"),1,5)","v":1},{"$f":"IF((D95<>\"2\"),5,1)","v":1},{"$f":"IF((E95<>\"2\"),5,1)","v":1},{"$f":"IF((F95<>\"2\"),5,1)","v":1},{"$f":"IF((G95<>\"2\"),5,1)","v":1}]
[null,null,{"$f":"OFFSET($B88,0,C$95,1)","v":"Not Applicable"},"Not Applicable","Not Applicable","Not Applicable","Not Applicable"]
[null,null,0,0,0,0,0]
[null,null,0,0,0,0,0]
[null,null,0,0,0,0,0]
[null,null,0,0,0,0,0]

{"sheet":"Groundwater A","index":57,"n_rows":154,"n_cols":12,"rows_kept":154,"cut":false,"hidden":true,"merged":[]}
[]
[null,"GROUNDWATER",null,"Existing","Mitigation sheet","Mitigation"]
[]
[null,null,"Max.",{"$f":"Data!B13","v":"Active landfill"},null,{"$f":"'Mitigation Data'!B13","v":"Mitigation of existing landfill"}]
[null,"Common Environmental & Operational"]
[null,"Area",5,{"$f":"Data!C22","v":5},{"$f":"D6","v":5},{"$f":"IF(E6>D6,D6,E6)","v":5}]
[null,"Rainfall",5,{"$f":"Data!G3","v":1},{"$f":"D7","v":1},{"$f":"IF(E7>D7,D7,E7)","v":1}]
[null,"No. rain days > 10mm",5,{"$f":"Data!G10","v":1},{"$f":"D8","v":1},1]
[null,"Evaporation",5,{"$f":"Data!G17","v":1},{"$f":"D9","v":1},1]
[null,"Landform",5,{"$f":"Data!O3","v":5},{"$f":"D10","v":5},5]
[null,"Soils - sub-surface",5,{"$f":"Data!W4","v":1},{"$f":"D11","v":1},1]
[null,"Slope",5,{"$f":"Data!W30","v":1},1,1]
[null,"Distance to watercourse",5,{"$f":"Data!W58","v":2},2,2]
[null,"Groundwater vulnerability",6,{"$f":"Data!W65","v":2},2,2]
[null,"Depth to rock",6,{"$f":"Data!W73","v":3},3,3]
[null,"Depth to GW",6,{"$f":"Data!W81","v":3},3,3]
[null,"Local GW use",5,{"$f":"Data!W89","v":1},1,1]
[null,"Drinking water catchment",3,{"$f":"Data!W18","v":1},{"$f":"D18","v":1},1]
[]
[null,"Site Selection",3,{"$f":"Data!S3","v":2},{"$f":"D20","v":2},2]
[null,"EIS / SEE / REF",3,{"$f":"Data!S4","v":2},{"$f":"D21","v":2},2]
[null,"Environmental Audit",3,{"$f":"Data!S5","v":2},{"$f":"'Mitigation Data'!S5","v":2},2]
[null,"Environmental Investigation",3,{"$f":"Data!S6","v":2},{"$f":"'Mitigation Data'!S6","v":2},2]
[null,"EMP",3,{"$f":"Data!S7","v":2},{"$f":"'Mitigation Data'!S7","v":2},2]
[null,"Groundwater monitoring",5,{"$f":"Data!Q12","v":5},{"$f":"'Mitigation Data'!Q12","v":5},5]
[]
[]
[]
[null,"Product",{"$f":"PRODUCT(C6:C28:C28)","v":1537734375000},{"$f":"PRODUCT(D6:D28:D28)","v":144000},null,{"$f":"PRODUCT(F6:F28:F28)","v":144000}]
[null,"Ln",{"$f":"LN(C29)","v":28.061331264033829},{"$f":"LN(D29)","v":11.877568578558138},null,{"$f":"LN(F29)","v":11.877568578558138}]
[null,"Normalised",{"$f":"C30/C30*100","v":100},{"$f":"D30/C30*100","v":42.327174241307652},null,{"$f":"F30/C30*100","v":42.327174241307652}]
[]
[null,"Active landfill"]
[null,"Amount received",5,{"$f":"Data!C15","v":1},{"$f":"D34","v":1},{"$f":"IF(E34>D34,D34,E34)","v":1}]
[null,"Age",5,{"$f":"Data!C29","v":5},{"$f":"D35","v":5},{"$f":"IF(E35>D35,D35,E35)","v":5}]
[null,"Site signage",5,{"$f":"Data!AA5","v":5},{"$f":"'Mitigation Data'!AA5","v":5},5]
[null,"Communication",5,{"$f":"Data!AA17","v":5},{"$f":"'Mitigation Data'!AA17","v":5},5]
[null,"Themes",5,{"$f":"Data!AA24","v":5},{"$f":"'Mitigation Data'!AA24","v":5},5]
[null,"Open to public",6,{"$f":"Data!AE28","v":6},{"$f":"'Mitigation Data'!AE28","v":6},6]
[null,"Perimeter",5,{"$f":"Data!AE36","v":5},{"$f":"'Mitigation Data'!AE36","v":5},5]
[null,"Access security",5,{"$f":"Data!AE43","v":5},{"$f":"'Mitigation Data'!AE43","v":5},5]
[null,"Additional security",5,{"$f":"Data!AE50","v":5},{"$f":"'Mitigation Data'!AE50","v":5},5]
[null,"Access control",5,{"$f":"Data!AE56","v":5},{"$f":"'Mitigation Data'!AE56","v":5},5]
[null,"Site supervision",5,{"$f":"Data!AE63","v":5},{"$f":"'Mitigation Data'!AE63","v":5},5]
[null,"Operators at premises",5,{"$f":"Data!AE70","v":5},{"$f":"'Mitigation Data'!AE70","v":5},{"$f":"IF(E45>D45,D45,E45)","v":5}]
[null,"Unlawful waste disposal (on premises)",5,{"$f":"Data!AE76","v":1},{"$f":"D46","v":1},1]
[null,"Stormwater diversion",5,{"$f":"Data!AE80","v":5},{"$f":"'Mitigation Data'!AE85","v":5},5]
[null,"Stormwater - waste",5,{"$f":"Data!AE89","v":5},{"$f":"'Mitigation Data'!AE104","v":5},5]
[null,"Trafficable surface",5,{"$f":"Data!AE98","v":5},{"$f":"'Mitigation Data'!AE118","v":5},5]
[null,"Liquid / hazardous storage",5,{"$f":"Data!AE105","v":1},{"$f":"'Mitigation Data'!AE125","v":1},1]
[null,"Under cover",2,{"$f":"Data!AE112","v":1},{"$f":"'Mitigation Data'!AE132","v":1},1]
[null,"Household Hazardous",2,{"$f":"Data!AE154","v":2},{"$f":"'Mitigation Data'!AE174","v":2},2]
[null,"Procedures",5,{"$f":"Data!AE180","v":5},{"$f":"'Mitigation Data'!AE205","v":5},5]
[null,"Operator training",5,{"$f":"Data!AX3","v":5},{"$f":"'Mitigation Data'!AX3","v":5},5]
[null,"Authorised officers",3,{"$f":"Data!AX15","v":3},{"$f":"'Mitigation Data'!AX15","v":3},3]
[null,"Regulatory enforcement activities",5,{"$f":"Data!AX19","v":5},{"$f":"'Mitigation Data'!AX19","v":5},5]
[null,"Waste disposal - solid",5,{"$f":"Data!AE12","v":5},{"$f":"'Mitigation Data'!AE12","v":5},5]
[null,"Waste disposal - liquid",5,{"$f":"Data!AE27","v":1},{"$f":"'Mitigation Data'!AE27","v":1},1]
[null,"Waste disposal - tyres",5,{"$f":"Data!AE14","v":1},{"$f":"'Mitigation Data'!AE14","v":1},1]
[]
[]
[null,"Waste storage - hazardous",5,{"$f":"Data!AI14","v":1},{"$f":"'Mitigation Data'!AI14","v":1},{"$f":"IF(E62>D62,D62,E62)","v":1}]
[null,"Waste storage - liquid",5,{"$f":"Data!AI19","v":1},{"$f":"'Mitigation Data'!AI19","v":1},1]
[null,"Landfilled wastes",5,{"$f":"Data!AM9","v":1},{"$f":"'Mitigation Data'!AM9","v":1},1]
[null,"Landfilling method",5,{"$f":"Data!AL10","v":5},{"$f":"'Mitigation Data'!AL10","v":5},5]
[null,"Active fill areas",5,{"$f":"Data!AL17","v":5},{"$f":"'Mitigation Data'!AL17","v":5},5]
[null,"Compaction",3,{"$f":"Data!AL24","v":3},{"$f":"'Mitigation Data'!AL24","v":3},3]
[null,"Covering method",5,{"$f":"Data!AL29","v":5},{"$f":"'Mitigation Data'!AL29","v":5},5]
[null,"Frequency of covering",5,{"$f":"Data!AL36","v":5},{"$f":"'Mitigation Data'!AL36","v":5},5]
[null,"Filling Plan",2,{"$f":"Data!AL43","v":2},{"$f":"'Mitigation Data'!AL43","v":2},2]
[null,"Preparation",5,{"$f":"Data!AL45","v":5},{"$f":"'Mitigation Data'!AL45","v":5},5]
[null,"Closure method",5,{"$f":"Data!AL52","v":5},{"$f":"'Mitigation Data'!AL52","v":5},5]
[null,"Leachate management (active)",5,{"$f":"Data!AJ61","v":5},{"$f":"'Mitigation Data'!AJ61","v":5},5]
[null,"Leachate monitoring",5,{"$f":"Data!Q45","v":5},{"$f":"'Mitigation Data'!Q71","v":5},5]
[null,"Product",{"$f":"PRODUCT(C34:C74)","v":5.0291419029235823E+25},{"$f":"PRODUCT(D34:D74)","v":6.4373016357421875E+19},null,{"$f":"PRODUCT(F34:F74)","v":6.4373016357421875E+19}]
[null,"Ln",{"$f":"LN(C75)","v":59.179876698569423},{"$f":"LN(D75)","v":45.611226218536672},null,{"$f":"LN(F75)","v":45.611226218536672}]
[null,"Normalised",{"$f":"C76/C76*100","v":100},{"$f":"D76/C76*100","v":77.072188661115021},null,{"$f":"F76/C76*100","v":77.072188661115021}]
[]
[null,"Transfer station"]
[null,"Amount received",5,{"$f":"D34","v":1},{"$f":"D80","v":1},{"$f":"IF(E80>D80,D80,E80)","v":1}]
[null,"Site signage",5,{"$f":"D36","v":5},{"$f":"E36","v":5},{"$f":"IF(E81>D81,D81,E81)","v":5}]
[null,"Communication",5,5,5,5]
[null,"Themes",5,5,5,5]
[null,"Open to public",6,6,6,6]
[null,"Perimeter",5,5,5,5]
[null,"Access security",5,5,5,5]
[null,"Additional security",5,5,5,5]
[null,"Access control",5,5,5,5]
[null,"Site supervision",5,5,5,{"$f":"IF(E89>D89,D89,E89)","v":5}]
[null,"Operators at premises",5,5,5,{"$f":"IF(E90>D90,D90,E90)","v":5}]
[null,"Unlawful waste disposal (on premises)",5,1,{"$f":"E46","v":1},{"$f":"IF(E91>D91,D91,E91)","v":1}]
[null,"Stormwater diversion",5,5,5,5]
[null,"Stormwater - waste",5,5,5,5]
[null,"Trafficable surface",5,5,5,5]
[null,"Liquid / hazardous storage",5,1,1,1]
[null,"Under cover",2,1,1,1]
[null,"Household Hazardous",2,2,{"$f":"E52","v":2},2]
[null,"Procedures",5,5,{"$f":"E53","v":5},5]
[null,"Operator training",5,5,{"$f":"E54","v":5},5]
[null,"Authorised officers",3,3,{"$f":"E55","v":3},3]
[null,"Regulatory enforcement activities",5,5,{"$f":"E56","v":5},5]
[]
[]
[null,"Waste storage - hazardous",5,{"$f":"D62","v":1},{"$f":"E62","v":1},1]
[null,"Waste storage - liquid",5,{"$f":"D63","v":1},{"$f":"E63","v":1},1]
[null,"Permanent",2,{"$f":"Data!AQ3","v":2},{"$f":"'Mitigation Data'!AQ3","v":2},2]
[null,"Method",4,{"$f":"Data!AQ5","v":4},{"$f":"'Mitigation Data'!AQ5","v":4},4]
[null,"Construction",3,{"$f":"Data!AQ10","v":3},{"$f":"'Mitigation Data'!AQ10","v":3},3]
[null,"Covered",2,{"$f":"Data!AQ15","v":2},{"$f":"'Mitigation Data'!AQ15","v":2},2]
[null,"Lids",2,{"$f":"Data!AQ17","v":2},{"$f":"'Mitigation Data'!AQ17","v":2},2]
[null,"Processing / sorting",2,{"$f":"Data!AQ19","v":2},{"$f":"'Mitigation Data'!AQ19","v":2},2]
[null,"Disposal",2,{"$f":"Data!AQ21","v":2},{"$f":"'Mitigation Data'!AQ21","v":2},2]
[null,null,{"$f":"PRODUCT(C80:C112)","v":2.63671875E+18},{"$f":"PRODUCT(D80:D112)","v":421875000000000},null,{"$f":"PRODUCT(F80:F112)","v":421875000000000}]
[null,"Ln",{"$f":"LN(C113)","v":42.416066920285793},{"$f":"LN(D113)","v":33.675730177555344},null,{"$f":"LN(F113)","v":33.675730177555344}]
[null,"Normalised",{"$f":"C114/C114*100","v":100},{"$f":"D114/C114*100","v":79.393806693212483},null,{"$f":"F114/C114*100","v":79.393806693212483}]
[]
[null,"Closed landfill",null,null,null,{"$f":"IF(E117>D117,D117,E117)","v":0}]
[null,"Years in Operation",5,{"$f":"Data!AU3","v":5},{"$f":"D118","v":5},5]
[null,"When Closed",5,{"$f":"LOOKUP(Data!AU10,A150:A154,B150:B154)","v":1},{"$f":"D119","v":1},1]
[null,"Amount received",5,{"$f":"Data!AU17","v":5},{"$f":"D120","v":5},5]
[null,"Disposal method",5,{"$f":"Data!AU24","v":5},{"$f":"D121","v":5},5]
[null,"How Capped",5,{"$f":"Data!AU31","v":5},{"$f":"'Mitigation Data'!AU31","v":5},5]
[null,"Slope",5,{"$f":"Data!AU38","v":5},{"$f":"'Mitigation Data'!AU38","v":5},5]
[null,"Landuse",7,{"$f":"Data!AU45","v":7},{"$f":"'Mitigation Data'!AU45","v":7},7]
[null,"Structures",2,{"$f":"Data!AU54","v":2},{"$f":"'Mitigation Data'!AU54","v":2},2]
[null,"Organic Layer",2,{"$f":"Data!AU56","v":2},{"$f":"'Mitigation Data'!AU56","v":2},2]
[null,"Revegetation",5,{"$f":"Data!AU58","v":5},{"$f":"'Mitigation Data'!AU58","v":5},5]
[null,"Monitoring",5,{"$f":"Data!AU65","v":5},{"$f":"'Mitigation Data'!AU65","v":5},5]
[null,"Runoff",5,{"$f":"Data!AU74","v":5},{"$f":"'Mitigation Data'!AU74","v":5},5]
[null,"Leachate management (closed)",5,{"$f":"Data!AU81","v":5},{"$f":"'Mitigation Data'!AU81","v":5},5]
[null,"Leachate monitoring",5,{"$f":"D74","v":5},{"$f":"E74","v":5},{"$f":"IF(E131>D131,D131,E131)","v":5}]
[null,"Closure plan",3,{"$f":"Data!$AU$95","v":2},{"$f":"'Mitigation Data'!$AU$145","v":2},{"$f":"IF(E132>D132,D132,E132)","v":2}]
[null,null,{"$f":"PRODUCT(C118:C132)","v":4101562500},{"$f":"PRODUCT(D118:D131)","v":273437500},null,{"$f":"PRODUCT(F118:F131)","v":273437500}]
[null,"Ln",{"$f":"LN(C133)","v":22.134633835618416},{"$f":"LN(D133)","v":19.426583634516209},null,{"$f":"LN(F133)","v":19.426583634516209}]
[null,"Normalised",{"$f":"C134/C134*100","v":100},{"$f":"D134/C134*100","v":87.765552295947671},null,{"$f":"F134/C134*100","v":87.765552295947671}]
[]
["Normaliser",null,null,"Pre",null,"Post",null,null,null,null,null,"Ln"]
[{"$f":"(C77+C31)*L142/2","v":160.94379124341003},null,"Active",{"$f":"E138/$A$138*100","v":40.751372367436936},{"$f":"(D31+D77)*$C$146/2*L144","v":65.586803671872389},{"$f":"G138/$A$138*100","v":40.751372367436936},{"$f":"(F31+F77)*$C$146/2*L144","v":65.586803671872389},null,"Indicator",1,1.5,{"$f":"LN(K138)","v":0.40546510810816438}]
[null,null,"TS",16.617499116962794,{"$f":"(D31+D115)*$C$147/2*L144","v":26.744833088680107},16.617499116962794,{"$f":"(F31+F115)*$C$147/2*L144","v":26.744833088680107},null,{"$f":"IF(MAX(D14,D16)>5,5,MAX(D14,D16))","v":3},2,2,0.69314718055994529]
[null,null,"TS on closed",38.132481398536413,{"$f":"(D31+D115+D135)*$C$148/3*L144","v":61.371861257992606},15.975815909252688,{"$f":"(F32+F116+F135)*$C$148/3*L144","v":25.712083806419137},null,null,3,3,1.0986122886681098]
[null,null,"Closed",35.520840396760725,{"$f":"(D31+D135)*$C$148/2*L144","v":57.168587216067444},35.520840396760725,{"$f":"(F31+F135)*$C$148/2*L144","v":57.168587216067444},null,null,4,4,1.3862943611198906]
[null,null,"Active to TS",40.751372367436936,{"$f":"E138","v":65.586803671872389},15.975815909252688,{"$f":"G140","v":25.712083806419137},null,null,5,5,1.6094379124341003]
[null,null,"Active to closed",40.751372367436936,{"$f":"E138","v":65.586803671872389},35.520840396760725,{"$f":"G141","v":57.168587216067444}]
[null,null,null,null,null,null,null,null,null,null,null,{"$f":"LOOKUP(I139,J138:J143,L138:L144)","v":1.0986122886681098}]
[null,"GW Factors"]
[null,"Active landfill",1]
[null,"Transfer Station",0.4]
[null,"Closed landfill",0.8]
[]
[1,5]
[2,4]
[3,3]
[4,2]
[5,1]

{"sheet":"Surface Water A","index":58,"n_rows":152,"n_cols":12,"rows_kept":152,"cut":false,"hidden":true,"merged":[]}
[]
[null,"SURFACE WATER",null,"Existing","Mitigation sheet","Mitigation"]
[]
[null,null,"Max.",{"$f":"Data!B13","v":"Active landfill"},null,{"$f":"'Mitigation Data'!B13","v":"Mitigation of existing landfill"}]
[null,"Common Environmental & Operational"]
[null,"Area",5,{"$f":"Data!C22","v":5},{"$f":"D6","v":5},{"$f":"IF(E6>D6,D6,E6)","v":5}]
[null,"Rainfall",5,{"$f":"Data!G3","v":1},1,{"$f":"IF(E7>D7,D7,E7)","v":1}]
[null,"No. rain days > 10mm",5,{"$f":"Data!G10","v":1},1,1]
[null,"Evaporation",5,{"$f":"Data!G17","v":1},1,1]
[null,"Landform",5,{"$f":"Data!O3","v":5},5,5]
[null,"Soils - surface",5,{"$f":"Data!W3","v":2},2,2]
[null,"Erosion hazard",5,{"$f":"Data!W11","v":1},{"$f":"D12","v":1},1]
[]
[]
[null,"Slope",5,{"$f":"Data!W30","v":1},1,1]
[null,"Erosion",5,{"$f":"Data!W37","v":1},1,1]
[null,"Salinity Hazard",4,{"$f":"Data!W45","v":1},1,1]
[null,"Acid Sulfate Soils",5,{"$f":"Data!W51","v":1},1,1]
[null,"Distance to watercourse",5,{"$f":"Data!W58","v":2},2,2]
[null,"Drinking water catchment",3,{"$f":"Data!W18","v":1},{"$f":"D20","v":1},1]
[null,"Site Selection",3,{"$f":"Data!S3","v":2},{"$f":"D21","v":2},2]
[null,"EIS / SEE / REF",3,{"$f":"Data!S4","v":2},{"$f":"D22","v":2},2]
[null,"Environmental Audit",3,{"$f":"Data!S5","v":2},{"$f":"'Mitigation Data'!S5","v":2},2]
[null,"Environmental Investigation",3,{"$f":"Data!S6","v":2},{"$f":"'Mitigation Data'!S6","v":2},2]
[null,"EMP",3,{"$f":"Data!S7","v":2},{"$f":"'Mitigation Data'!S7","v":2},2]
[null,"Surface water monitoring",5,{"$f":"Data!Q29","v":5},{"$f":"'Mitigation Data'!Q42","v":5},5]
[null,"Product",{"$f":"PRODUCT(C6:C26)","v":711914062500},{"$f":"PRODUCT(D6:D26)","v":16000},null,{"$f":"PRODUCT(F6:F26)","v":16000}]
[null,"Ln",{"$f":"LN(C27)","v":27.291223042337752},{"$f":"LN(D27)","v":9.6803440012219184},null,{"$f":"LN(F27)","v":9.6803440012219184}]
[null,"Normalised",{"$f":"C28/C28*100","v":100},{"$f":"D28/C28*100","v":35.470539323959535},null,{"$f":"F28/C28*100","v":35.470539323959535}]
[]
[null,"Active landfill"]
[null,"Amount received",5,{"$f":"Data!C15","v":1},{"$f":"D32","v":1},{"$f":"IF(E32>D32,D32,E32)","v":1}]
[null,"Site signage",5,{"$f":"Data!AA5","v":5},{"$f":"'Mitigation Data'!AA5","v":5},5]
[null,"Communication",5,{"$f":"Data!AA17","v":5},{"$f":"'Mitigation Data'!AA17","v":5},5]
[null,"Themes",5,{"$f":"Data!AA24","v":5},{"$f":"'Mitigation Data'!AA24","v":5},5]
[null,"Open to public",6,{"$f":"Data!AE28","v":6},{"$f":"'Mitigation Data'!AE28","v":6},6]
[null,"Perimeter",5,{"$f":"Data!AE36","v":5},{"$f":"'Mitigation Data'!AE36","v":5},5]
[null,"Access security",5,{"$f":"Data!AE43","v":5},{"$f":"'Mitigation Data'!AE43","v":5},5]
[null,"Additional security",5,{"$f":"Data!AE50","v":5},{"$f":"'Mitigation Data'!AE50","v":5},5]
[null,"Access control",5,{"$f":"Data!AE56","v":5},{"$f":"'Mitigation Data'!AE56","v":5},5]
[null,"Site supervision",5,{"$f":"Data!AE63","v":5},{"$f":"'Mitigation Data'!AE63","v":5},5]
[null,"Operators at premises",5,{"$f":"Data!AE70","v":5},{"$f":"'Mitigation Data'!AE70","v":5},{"$f":"IF(E42>D42,D42,E42)","v":5}]
[null,"Unlawful waste disposal (on premises)",5,{"$f":"Data!AE76","v":1},{"$f":"D43","v":1},1]
[null,"Stormwater diversion",5,{"$f":"Data!AE80","v":5},{"$f":"'Mitigation Data'!AE85","v":5},5]
[null,"Stormwater - undisturbed",5,{"$f":"Data!AE85","v":5},{"$f":"'Mitigation Data'!AE90","v":5},5]
[null,"Stormwater - disturbed",5,{"$f":"Data!AE87","v":5},{"$f":"'Mitigation Data'!AE97","v":5},5]
[null,"Stormwater - waste",5,{"$f":"Data!AE89","v":5},{"$f":"'Mitigation Data'!AE104","v":5},5]
[null,"Trafficable surface",5,{"$f":"Data!AE98","v":5},{"$f":"'Mitigation Data'!AE118","v":5},5]
[null,"Liquid / hazardous storage",5,{"$f":"Data!AE105","v":1},{"$f":"'Mitigation Data'!AE125","v":1},1]
[null,"Under cover",2,{"$f":"Data!AE112","v":1},{"$f":"'Mitigation Data'!AE132","v":1},1]
[null,"Litter control",5,{"$f":"Data!AE120","v":5},{"$f":"'Mitigation Data'!AE140","v":5},5]
[null,"Household Hazardous",2,{"$f":"Data!AE154","v":2},{"$f":"'Mitigation Data'!AE174","v":2},2]
[null,"Procedures",5,{"$f":"Data!AE180","v":5},{"$f":"'Mitigation Data'!AE205","v":5},5]
[null,"Operator training",5,{"$f":"Data!AX3","v":5},{"$f":"'Mitigation Data'!AX3","v":5},5]
[null,"Authorised officers",3,{"$f":"Data!AX15","v":3},{"$f":"'Mitigation Data'!AX15","v":3},3]
[null,"Regulatory enforcement activities",5,{"$f":"Data!AX19","v":5},{"$f":"'Mitigation Data'!AX19","v":5},5]
[null,"Waste disposal - solid",5,{"$f":"Data!AE12","v":5},{"$f":"'Mitigation Data'!AE12","v":5},5]
[null,"Waste disposal - liquid",5,{"$f":"Data!AE27","v":1},{"$f":"'Mitigation Data'!AE27","v":1},1]
[]
[null,"Wastes storage - solid",5,{"$f":"Data!AI3","v":1},{"$f":"'Mitigation Data'!AI3","v":1},{"$f":"IF(E60>D60,D60,E60)","v":1}]
[null,"Wastes storage - tyres",5,{"$f":"Data!AI13","v":1},{"$f":"'Mitigation Data'!AI13","v":1},1]
[null,"Waste storage - hazardous",5,{"$f":"Data!AI14","v":1},{"$f":"'Mitigation Data'!AI14","v":1},1]
[null,"Waste storage - liquid",5,{"$f":"Data!AI19","v":1},{"$f":"'Mitigation Data'!AI19","v":1},1]
[null,"Landfilled wastes",5,{"$f":"Data!AM9","v":1},{"$f":"'Mitigation Data'!AM9","v":1},1]
[null,"Landfilling method",5,{"$f":"Data!AL10","v":5},{"$f":"'Mitigation Data'!AL10","v":5},5]
[null,"Active fill areas",5,{"$f":"Data!AL17","v":5},{"$f":"'Mitigation Data'!AL17","v":5},5]
[null,"Compaction",3,{"$f":"Data!AL24","v":3},{"$f":"'Mitigation Data'!AL24","v":3},3]
[null,"Covering method",5,{"$f":"Data!AL29","v":5},{"$f":"'Mitigation Data'!AL29","v":5},5]
[null,"Frequency of covering",5,{"$f":"Data!AL36","v":5},{"$f":"'Mitigation Data'!AL36","v":5},5]
[null,"Filling Plan",2,{"$f":"Data!AL43","v":2},{"$f":"'Mitigation Data'!AL43","v":2},2]
[null,"Closure method",5,{"$f":"Data!AL52","v":5},{"$f":"'Mitigation Data'!AL52","v":5},5]
[null,"Leachate management (active)",5,{"$f":"Data!AJ61","v":5},{"$f":"'Mitigation Data'!AJ61","v":5},5]
[null,"Leachate monitoring",5,{"$f":"Data!Q45","v":5},{"$f":"'Mitigation Data'!Q71","v":5},5]
[null,"Product",{"$f":"PRODUCT(C32:C73)","v":1.2572854757308955E+27},{"$f":"PRODUCT(D32:D73)","v":3.2186508178710934E+20},null,{"$f":"PRODUCT(F32:F73)","v":3.2186508178710934E+20}]
[null,"Ln",{"$f":"LN(C74)","v":62.398752523437622},{"$f":"LN(D74)","v":47.220664130970775},null,{"$f":"LN(F74)","v":47.220664130970775}]
[null,"Normalised",{"$f":"C75/C75*100","v":100},{"$f":"D75/C75*100","v":75.675654113812925},null,{"$f":"F75/C75*100","v":75.675654113812925}]
[]
[null,"Transfer station"]
[null,"Amount received",5,{"$f":"D32","v":1},{"$f":"D79","v":1},{"$f":"IF(E79>D79,D79,E79)","v":1}]
[null,"Site signage",5,5,{"$f":"E33","v":5},{"$f":"IF(E80>D80,D80,E80)","v":5}]
[null,"Communication",5,5,5,5]
[null,"Themes",5,5,5,5]
[null,"Open to public",6,6,6,6]
[null,"Perimeter",5,5,5,5]
[null,"Access security",5,5,5,5]
[null,"Additional security",5,5,5,5]
[null,"Access control",5,5,5,5]
[null,"Site supervision",5,5,5,{"$f":"IF(E88>D88,D88,E88)","v":5}]
[null,"Operators at premises",5,5,5,{"$f":"IF(E89>D89,D89,E89)","v":5}]
[null,"Unlawful waste disposal (on premises)",5,1,1,{"$f":"IF(E90>D90,D90,E90)","v":1}]
[null,"Stormwater diversion",5,5,5,5]
[null,"Stormwater - undisturbed",5,5,5,5]
[null,"Stormwater - disturbed",5,5,5,5]
[null,"Stormwater - waste",5,5,5,5]
[null,"Trafficable surface",5,5,5,5]
[null,"Liquid / hazardous storage",5,1,1,1]
[null,"Under cover",2,1,1,1]
[null,"Litter control",5,5,{"$f":"E51","v":5},5]
[null,"Household Hazardous",2,2,2,2]
[null,"Procedures",5,5,5,5]
[null,"Operator training",5,5,5,5]
[null,"Authorised officers",3,3,3,3]
[null,"Regulatory enforcement activities",5,5,5,5]
[null,"Wastes storage - solid",5,{"$f":"D60","v":1},1,1]
[null,"Wastes storage - tyres",5,1,1,1]
[null,"Waste storage - hazardous",5,1,1,1]
[null,"Waste storage - liquid",5,1,1,1]
[null,"Permanent",2,{"$f":"Data!AQ3","v":2},{"$f":"'Mitigation Data'!AQ3","v":2},2]
[null,"Method",4,{"$f":"Data!AQ5","v":4},{"$f":"'Mitigation Data'!AQ5","v":4},4]
[null,"Construction",3,{"$f":"Data!AQ10","v":3},{"$f":"'Mitigation Data'!AQ10","v":3},3]
[null,"Covered",2,{"$f":"Data!AQ15","v":2},{"$f":"'Mitigation Data'!AQ15","v":2},2]
[null,"Lids",2,{"$f":"Data!AQ17","v":2},{"$f":"'Mitigation Data'!AQ17","v":2},2]
[null,"Processing / sorting",2,{"$f":"Data!AQ19","v":2},{"$f":"'Mitigation Data'!AQ19","v":2},2]
[null,"Disposal",2,{"$f":"Data!AQ21","v":2},{"$f":"'Mitigation Data'!AQ21","v":2},2]
[null,null,{"$f":"PRODUCT(C79:C114)","v":8.239746093749999E+21},{"$f":"PRODUCT(D79:D114)","v":5.2734375E+16},null,{"$f":"PRODUCT(F79:F114)","v":5.2734375E+16}]
[null,"Ln",{"$f":"LN(C115)","v":50.463256482456295},{"$f":"LN(D115)","v":38.504043914857647},null,{"$f":"LN(F115)","v":38.504043914857647}]
[null,"Normalised",{"$f":"C116/C116*100","v":100},{"$f":"D116/C116*100","v":76.301147802943902},null,{"$f":"F116/C116*100","v":76.301147802943902}]
[]
[null,"Closed landfill"]
[null,"When Closed",5,{"$f":"LOOKUP(Data!AU10,A148:A152,B148:B152)","v":1},{"$f":"D120","v":1},{"$f":"IF(E120>D120,D120,E120)","v":1}]
[null,"How Capped",5,{"$f":"Data!AU31","v":5},{"$f":"'Mitigation Data'!AU31","v":5},5]
[null,"Slope",5,{"$f":"Data!AU38","v":5},{"$f":"'Mitigation Data'!AU38","v":5},5]
[null,"Landuse",7,{"$f":"Data!AU45","v":7},{"$f":"'Mitigation Data'!AU45","v":7},7]
[null,"Organic Layer",2,{"$f":"Data!AU56","v":2},{"$f":"'Mitigation Data'!AU56","v":2},2]
[null,"Revegetation",5,{"$f":"Data!AU58","v":5},{"$f":"'Mitigation Data'!AU58","v":5},5]
[null,"Monitoring",5,{"$f":"Data!AU65","v":5},{"$f":"'Mitigation Data'!AU65","v":5},5]
[null,"Runoff",5,{"$f":"Data!AU74","v":5},{"$f":"'Mitigation Data'!AU74","v":5},5]
[null,"Leachate management (closed)",5,{"$f":"Data!AU81","v":5},{"$f":"'Mitigation Data'!AU81","v":5},5]
[null,"Leachate monitoring",5,{"$f":"D73","v":5},{"$f":"E73","v":5},{"$f":"IF(E129>D129,D129,E129)","v":5}]
[null,"Closure plan",3,{"$f":"Data!$AU$95","v":2},{"$f":"'Mitigation Data'!$AU$145","v":2},{"$f":"IF(E130>D130,D130,E130)","v":2}]
[null,null,{"$f":"PRODUCT(C120:C129)","v":5468750},{"$f":"PRODUCT(D120:D129)","v":1093750},null,{"$f":"PRODUCT(F120:F129)","v":1093750}]
[null,"Ln",{"$f":"LN(C131)","v":15.514560629088061},{"$f":"LN(D131)","v":13.905122716653961},null,{"$f":"LN(F131)","v":13.905122716653961}]
[null,"Normalised",{"$f":"C132/C132*100","v":100},{"$f":"D132/C132*100","v":89.626274627355002},null,{"$f":"F132/C132*100","v":89.626274627355002}]
[]
["Normaliser",null,null,"Pre",null,"Post"]
[{"$f":"'Groundwater A'!A138","v":160.94379124341003},null,"Active",{"$f":"E136/$A$136*100","v":23.934030016369697},{"$f":"(D29+D76)*$C$144/2*L141","v":38.520335305681137},{"$f":"G136/$A$136*100","v":23.934030016369697},{"$f":"(F29+F76)*$C$144/2*L141","v":38.520335305681137},null,"Indicator",1,1.5,{"$f":"LN(K136)","v":0.40546510810816438}]
[null,null,"TS",16.848105925654828,{"$f":"(D29+D117)*$C$145/2*L141","v":27.115980429454503},16.848105925654828,{"$f":"(F29+F117)*$C$145/2*L141","v":27.115980429454503},null,{"$f":"IF(MAX(D19:D20)>5,5,MAX(D19:D20))","v":2},2,2,{"$f":"LN(K137)","v":0.69314718055994529}]
[null,null,"TS on closed",23.129968259018899,{"$f":"(D29+D117+D133)*$C$146/3*L141","v":37.22624782946238},23.129968259018899,{"$f":"(F29+F117+F133)*$C$146/3*L141","v":37.22624782946238},null,null,3,3,{"$f":"LN(K138)","v":1.0986122886681098}]
[null,null,"Closed",21.550506103399908,{"$f":"(D29+D133)*$C$146/2*L141","v":34.684201554954285},21.550506103399908,{"$f":"(F29+F133)*$C$146/2*L141","v":34.684201554954285},null,null,4,4,{"$f":"LN(K139)","v":1.3862943611198906}]
[null,null,"Active to TS",23.934030016369697,{"$f":"E136","v":38.520335305681137},23.129968259018899,{"$f":"G138","v":37.22624782946238},null,null,5,5,{"$f":"LN(K140)","v":1.6094379124341003}]
[null,null,"Active to closed",23.934030016369697,{"$f":"E136","v":38.520335305681137},21.550506103399908,{"$f":"G139","v":34.684201554954285},null,null,null,null,{"$f":"LOOKUP(I137,J136:J140,L136:L140)","v":0.69314718055994529}]
[]
[null,"SW Factors"]
[null,"Active landfill",1]
[null,"Transfer Station",0.7]
[null,"Closed landfill",0.8]
[]
[1,5]
[2,4]
[3,3]
[4,2]
[5,1]

{"sheet":"Air A","index":59,"n_rows":141,"n_cols":12,"rows_kept":141,"cut":false,"hidden":true,"merged":[]}
[]
[null,"AIR",null,"Existing","Mitigation sheet","Mitigation"]
[]
[null,null,"Max.",{"$f":"Data!B13","v":"Active landfill"},null,{"$f":"'Mitigation Data'!B13","v":"Mitigation of existing landfill"}]
[null,"Common Environmental & Operational"]
[null,"Area",5,{"$f":"Data!C22","v":5},{"$f":"D6","v":5},{"$f":"IF(E6>D6,D6,E6)","v":5}]
[null,"Rainfall",5,{"$f":"LOOKUP(Data!G3,$A$137:$A$141,$B$137:$B$141)","v":5},{"$f":"D7","v":5},{"$f":"IF(E7>D7,D7,E7)","v":5}]
[null,"No. rain days > 10mm",5,{"$f":"LOOKUP(Data!G10,$A$137:$A$141,$B$137:$B$141)","v":5},5,5]
[null,"Evaporation",5,{"$f":"LOOKUP(Data!G17,$A$137:$A$141,$B$137:$B$141)","v":5},5,5]
[null,"Wind speed & direction",5,{"$f":"Data!G56","v":1},1,1]
[null,"Landuse (with wind direction)",5,{"$f":"Data!K39","v":1},1,1]
[null,"Fire risk (wind & veg)",8,{"$f":"Data!L138","v":1},1,1]
[null,"Landform",5,{"$f":"Data!O3","v":5},5,5]
[null,"Soils - surface",5,{"$f":"LOOKUP(Data!W3,$A$137:$A$141,$B$137:$B$141)","v":4},{"$f":"D14","v":4},4]
[null,"Erosion hazard",5,{"$f":"Data!W11","v":1},1,1]
[]
[]
[null,"Erosion",5,{"$f":"Data!W37","v":1},1,1]
[null,"Bush Fire Prone",5,{"$f":"Data!W127","v":1},1,1]
[null,"Visibility",5,{"$f":"Data!W119","v":1},1,1]
[null,"Site Selection",3,{"$f":"Data!S3","v":2},2,2]
[null,"EIS / SEE / REF",3,{"$f":"Data!S4","v":2},2,2]
[null,"Environmental Audit",3,{"$f":"Data!S5","v":2},{"$f":"'Mitigation Data'!S5","v":2},2]
[null,"Environmental Investigation",3,{"$f":"Data!S6","v":2},{"$f":"'Mitigation Data'!S6","v":2},2]
[null,"EMP",3,{"$f":"Data!S7","v":2},{"$f":"'Mitigation Data'!S7","v":2},2]
[null,"Dust monitoring",5,{"$f":"Data!Q59","v":5},{"$f":"'Mitigation Data'!Q90","v":5},5]
[null,"Product",{"$f":"PRODUCT(C6:C26)","v":2373046875000},{"$f":"PRODUCT(D6:D26)","v":2000000},null,{"$f":"PRODUCT(F6:F26)","v":2000000}]
[null,"Ln",{"$f":"LN(C27)","v":28.495195846663691},{"$f":"LN(D27)","v":14.508657738524219},null,{"$f":"LN(F27)","v":14.508657738524219}]
[null,"Normalised",{"$f":"C28/C28*100","v":100},{"$f":"D28/C28*100","v":50.916153784649069},null,{"$f":"F28/C28*100","v":50.916153784649069}]
[]
[null,"Active landfill"]
[null,"Amount received",5,{"$f":"Data!C15","v":1},{"$f":"D32","v":1},{"$f":"IF(E32>D32,D32,E32)","v":1}]
[null,"Site signage",5,{"$f":"Data!AA5","v":5},{"$f":"'Mitigation Data'!AA5","v":5},5]
[null,"Communication",5,{"$f":"Data!AA17","v":5},{"$f":"'Mitigation Data'!AA17","v":5},5]
[null,"Themes",5,{"$f":"Data!AA24","v":5},{"$f":"'Mitigation Data'!AA24","v":5},5]
[null,"Open to public",6,{"$f":"Data!AE28","v":6},{"$f":"'Mitigation Data'!AE28","v":6},6]
[null,"Perimeter",5,{"$f":"Data!AE36","v":5},{"$f":"'Mitigation Data'!AE36","v":5},5]
[null,"Access security",5,{"$f":"Data!AE43","v":5},{"$f":"'Mitigation Data'!AE43","v":5},5]
[null,"Additional security",5,{"$f":"Data!AE50","v":5},{"$f":"'Mitigation Data'!AE50","v":5},5]
[null,"Access control",5,{"$f":"Data!AE56","v":5},{"$f":"'Mitigation Data'!AE56","v":5},5]
[null,"Site supervision",5,{"$f":"Data!AE63","v":5},{"$f":"'Mitigation Data'!AE63","v":5},5]
[null,"Operators at premises",5,{"$f":"Data!AE70","v":5},{"$f":"'Mitigation Data'!AE70","v":5},{"$f":"IF(E42>D42,D42,E42)","v":5}]
[null,"Complaints",5,{"$f":"Data!AE72","v":1},{"$f":"D43","v":1},1]
[null,"Uncontrolled fires",5,{"$f":"Data!AE74","v":1},{"$f":"D44","v":1},1]
[null,"Trafficable surface",5,{"$f":"Data!AE98","v":5},{"$f":"'Mitigation Data'!AE118","v":5},5]
[null,"Dust control",5,{"$f":"Data!AE114","v":5},{"$f":"'Mitigation Data'!AE134","v":5},5]
[null,"Operational days",3,{"$f":"Data!AE126","v":3},{"$f":"'Mitigation Data'!AE146","v":3},3]
[null,"Operating hours",3,{"$f":"Data!AE131","v":3},{"$f":"'Mitigation Data'!AE151","v":3},3]
[null,"Plant and Equipment",5,{"$f":"Data!AE136","v":1},{"$f":"'Mitigation Data'!AE156","v":5},1]
[null,"Controlled burning",5,{"$f":"Data!AE164","v":5},{"$f":"'Mitigation Data'!AE184","v":5},5]
[null,"Procedures",5,{"$f":"Data!AE180","v":5},{"$f":"'Mitigation Data'!AE205","v":5},5]
[null,"Operator training",5,{"$f":"Data!AX3","v":5},{"$f":"'Mitigation Data'!AX3","v":5},5]
[null,"Authorised officers",3,{"$f":"Data!AX15","v":3},{"$f":"'Mitigation Data'!AX15","v":3},3]
[null,"Regulatory enforcement activities",5,{"$f":"Data!AX19","v":5},{"$f":"'Mitigation Data'!AX19","v":5},5]
[null,"Waste disposal - solid",5,{"$f":"Data!AE12","v":5},{"$f":"'Mitigation Data'!AE12","v":5},5]
[null,"Waste disposal - liquid",5,{"$f":"Data!AE27","v":1},{"$f":"'Mitigation Data'!AE27","v":1},1]
[null,"Waste disposal - tyres",5,{"$f":"Data!AE14","v":1},{"$f":"'Mitigation Data'!AE14","v":1},1]
[null,"Wastes storage - solid",5,{"$f":"Data!AI3","v":1},{"$f":"'Mitigation Data'!AI3","v":1},{"$f":"IF(E58>D58,D58,E58)","v":1}]
[null,"Wastes storage - tyres",5,{"$f":"Data!AI13","v":1},{"$f":"'Mitigation Data'!AI13","v":1},1]
[null,"Waste storage - hazardous",5,{"$f":"Data!AI14","v":1},{"$f":"'Mitigation Data'!AI14","v":1},1]
[null,"Waste storage - liquid",5,{"$f":"Data!AI19","v":1},{"$f":"'Mitigation Data'!AI19","v":1},1]
[null,"Landfilled wastes",5,{"$f":"Data!AM9","v":1},{"$f":"'Mitigation Data'!AM9","v":1},1]
[null,"Landfilling method",5,{"$f":"LOOKUP(Data!AL10,$A$137:$A$141,$B$137:$B$141)","v":1},{"$f":"LOOKUP('Mitigation Data'!AL10,A137:A141,B137:B141)","v":1},1]
[null,"Active fill areas",5,{"$f":"Data!AL17","v":5},{"$f":"'Mitigation Data'!AL17","v":5},5]
[null,"Compaction",3,{"$f":"Data!AL24","v":3},{"$f":"'Mitigation Data'!AL24","v":3},3]
[null,"Covering method",5,{"$f":"Data!AL29","v":5},{"$f":"'Mitigation Data'!AL29","v":5},5]
[null,"Frequency of covering",5,{"$f":"Data!AL36","v":5},{"$f":"'Mitigation Data'!AL36","v":5},5]
[null,"Filling Plan",2,{"$f":"Data!AL43","v":2},{"$f":"'Mitigation Data'!AL43","v":2},2]
[null,"Landfill Gas monitoring",5,{"$f":"Data!Q89","v":5},{"$f":"'Mitigation Data'!Q143","v":5},5]
[null,"Product",{"$f":"PRODUCT(C32:C69)","v":2.2631138563156126E+25},{"$f":"PRODUCT(D32:D69)","v":9.2697143554687504E+16},null,{"$f":"PRODUCT(F32:F69)","v":9.2697143554687504E+16}]
[null,"Ln",{"$f":"LN(C70)","v":58.381369002351654},{"$f":"LN(D70)","v":39.068114053142445},null,{"$f":"LN(F70)","v":39.068114053142445}]
[null,"Normalised",{"$f":"C71/C71*100","v":100},{"$f":"D71/C71*100","v":66.91880427053492},null,{"$f":"F71/C71*100","v":66.91880427053492}]
[]
[null,"Transfer station"]
[null,"Amount received",5,{"$f":"D32","v":1},{"$f":"D75","v":1},{"$f":"IF(E75>D75,D75,E75)","v":1}]
[null,"Site signage",5,5,{"$f":"E33","v":5},{"$f":"IF(E76>D76,D76,E76)","v":5}]
[null,"Communication",5,5,5,5]
[null,"Themes",5,5,5,5]
[null,"Open to public",6,6,6,6]
[null,"Perimeter",5,5,5,5]
[null,"Access security",5,5,5,5]
[null,"Additional security",5,5,5,5]
[null,"Access control",5,5,5,5]
[null,"Site supervision",5,5,5,{"$f":"IF(E84>D84,D84,E84)","v":5}]
[null,"Operators at premises",5,5,5,{"$f":"IF(E85>D85,D85,E85)","v":5}]
[null,"Complaints",5,1,1,{"$f":"IF(E86>D86,D86,E86)","v":1}]
[null,"Uncontrolled fires",5,1,1,{"$f":"IF(E87>D87,D87,E87)","v":1}]
[null,"Trafficable surface",5,5,5,5]
[null,"Dust control",5,5,5,5]
[null,"Operational days",3,3,3,3]
[null,"Operating hours",3,3,3,3]
[null,"Plant and Equipment",5,1,5,1]
[null,"Controlled burning",5,5,5,5]
[null,"Procedures",5,5,5,5]
[null,"Operator training",5,5,5,5]
[null,"Authorised officers",3,3,3,3]
[null,"Regulatory enforcement activities",5,5,5,5]
[null,"Wastes storage - solid",5,{"$f":"D58","v":1},1,1]
[null,"Wastes storage - tyres",5,1,1,1]
[null,"Waste storage - hazardous",5,1,1,1]
[null,"Waste storage - liquid",5,1,1,1]
[null,"Permanent",2,{"$f":"Data!AQ3","v":2},{"$f":"'Mitigation Data'!AQ3","v":2},2]
[null,"Method",4,{"$f":"Data!AQ5","v":4},{"$f":"'Mitigation Data'!AQ5","v":4},4]
[null,"Construction",3,{"$f":"Data!AQ10","v":3},{"$f":"'Mitigation Data'!AQ10","v":3},3]
[null,null,{"$f":"PRODUCT(C75:C104)","v":4.634857177734375E+19},{"$f":"PRODUCT(D75:D104)","v":118652343750000},null,{"$f":"PRODUCT(F75:F104)","v":118652343750000}]
[null,"Ln",{"$f":"LN(C105)","v":45.282722151564641},{"$f":"LN(D105)","v":32.407218852091837},null,{"$f":"LN(F105)","v":32.407218852091837}]
[null,"Normalised",{"$f":"C106/C106*100","v":100},{"$f":"D106/C106*100","v":71.566410569626242},null,{"$f":"F106/C106*100","v":71.566410569626242}]
[]
[null,"Closed landfill"]
[null,"Amount received",5,{"$f":"Data!AU17","v":5},{"$f":"D110","v":5},{"$f":"IF(E110>D110,D110,E110)","v":5}]
[null,"When Closed",5,{"$f":"LOOKUP(Data!AU10,$A$137:$A$141,$B$137:$B$141)","v":1},{"$f":"D111","v":1},1]
[null,"Disposal method",5,{"$f":"LOOKUP(Data!AU24,$A$137:$A$141,$B$137:$B$141)","v":1},{"$f":"D112","v":1},1]
[null,"How Capped",5,{"$f":"Data!AU31","v":5},{"$f":"'Mitigation Data'!AU31","v":5},5]
[null,"Landuse",7,{"$f":"Data!AU45","v":7},{"$f":"'Mitigation Data'!AU45","v":7},7]
[null,"Organic Layer",2,{"$f":"Data!AU56","v":2},{"$f":"'Mitigation Data'!AU56","v":2},2]
[null,"Revegetation",5,{"$f":"Data!AU58","v":5},{"$f":"'Mitigation Data'!AU58","v":5},5]
[null,"Monitoring",5,{"$f":"Data!AU65","v":5},{"$f":"'Mitigation Data'!AU65","v":5},5]
[null,"Landfill Gas monitoring",5,{"$f":"D69","v":5},{"$f":"E69","v":5},{"$f":"IF(E118>D118,D118,E118)","v":5}]
[null,"Closure plan",3,{"$f":"Data!$AU$95","v":2},{"$f":"'Mitigation Data'!$AU$145","v":2},{"$f":"IF(E119>D119,D119,E119)","v":2}]
[null,null,{"$f":"PRODUCT(C111:C118)","v":218750},{"$f":"PRODUCT(D111:D118)","v":8750},null,{"$f":"PRODUCT(F111:F118)","v":8750}]
[null,"Ln",{"$f":"LN(C120)","v":12.29568480421986},{"$f":"LN(D120)","v":9.0768089793516609},null,{"$f":"LN(F120)","v":9.0768089793516609}]
[null,"Normalised",{"$f":"C121/C121*100","v":100},{"$f":"D121/C121*100","v":73.821093528979489},null,{"$f":"F121/C121*100","v":73.821093528979489}]
[]
["Normaliser",null,null,"Pre",null,"Post"]
[{"$f":"'Surface Water A'!A136","v":160.94379124341003},null,"Active",{"$f":"E125/$A$125*100","v":14.843059069767781},{"$f":"(D29+D72)*$C$133/2*L130","v":23.888982003383095},{"$f":"G125/$A$125*100","v":14.843059069767781},{"$f":"(F29+F72)*$C$133/2*L130","v":23.888982003383095},null,"Indicator",1,1.5,{"$f":"LN(K125)","v":0.40546510810816438}]
[null,null,"TS",9.2570963713963526,{"$f":"(D29+D107)*$C$134/2*L130","v":14.898721859181432},9.2570963713963526,{"$f":"(F29+F107)*$C$134/2*L130","v":14.898721859181432},null,{"$f":"IF(MAX(Data!L39,D43,D86)>5,5,MAX(Data!L39,D43,D86))","v":1},2,2,{"$f":"LN(K126)","v":0.69314718055994529}]
[null,null,"TS on closed",11.539432136631063,{"$f":"(D29+D107+D122)*$C$135/3*L130","v":18.571999568654469},11.539432136631063,{"$f":"(F29+F107+F122)*$C$135/3*L130","v":18.571999568654469},null,null,3,3,{"$f":"LN(K127)","v":1.0986122886681098}]
[null,null,"Closed",10.998753276990513,{"$f":"(D29+D122)*$C$135/2*L130","v":17.701810513497332},10.998753276990513,{"$f":"(F29+F122)*$C$135/2*L130","v":17.701810513497332},null,null,4,4,{"$f":"LN(K128)","v":1.3862943611198906}]
[null,null,"Active to TS",14.843059069767781,{"$f":"E125","v":23.888982003383095},11.539432136631063,{"$f":"G127","v":18.571999568654469},null,null,5,5,{"$f":"LN(K129)","v":1.6094379124341003}]
[null,null,"Active to closed",14.843059069767781,{"$f":"E125","v":23.888982003383095},10.998753276990513,{"$f":"G128","v":17.701810513497332},null,null,null,null,{"$f":"LOOKUP(I126,J125:J129,L125:L129)","v":0.40546510810816438}]
[]
[null,"Air Factors"]
[null,"Active landfill",1]
[null,"Transfer Station",0.6]
[null,"Closed landfill",0.7]
[]
[1,5]
[{"$f":"(C77+C31)*L142/2","v":0},4]
[3,3]
[4,2]
[5,1]

{"sheet":"Noise A","index":60,"n_rows":137,"n_cols":12,"rows_kept":137,"cut":false,"hidden":true,"merged":[[96,7,96,11]]}
[]
[null,"NOISE",null,"Existing","Mitigation sheet","Mitigation"]
[]
[null,null,"Max.",{"$f":"Data!B13","v":"Active landfill"},null,{"$f":"'Mitigation Data'!B13","v":"Mitigation of existing landfill"}]
[null,"Common Environmental & Operational"]
[null,"Wind speed & direction",5,{"$f":"Data!G56","v":1},{"$f":"D6","v":1},{"$f":"IF(E6>D6,D6,E6)","v":1}]
[null,"Landuse (with wind direction)",5,{"$f":"Data!K39","v":1},{"$f":"D7","v":1},1]
[null,"Landform",5,{"$f":"Data!O3","v":5},{"$f":"D8","v":5},5]
[null,"Site Selection",3,{"$f":"Data!S3","v":2},{"$f":"D9","v":2},2]
[null,"EIS / SEE / REF",3,{"$f":"Data!S4","v":2},{"$f":"D10","v":2},2]
[null,"Environmental Audit",3,{"$f":"Data!S5","v":2},{"$f":"'Mitigation Data'!S5","v":2},2]
[null,"Environmental Investigation",3,{"$f":"Data!S6","v":2},{"$f":"'Mitigation Data'!S6","v":2},2]
[null,"EMP",3,{"$f":"Data!S7","v":2},{"$f":"'Mitigation Data'!S7","v":2},2]
[null,"Noise monitoring",5,{"$f":"Data!Q70","v":5},{"$f":"'Mitigation Data'!Q114","v":5},5]
[null,"Product",{"$f":"PRODUCT(C6:C14)","v":151875},{"$f":"PRODUCT(D6:D14)","v":800},null,{"$f":"PRODUCT(F6:F14)","v":800}]
[null,"Ln",{"$f":"LN(C15)","v":11.930813093076949},{"$f":"LN(D15)","v":6.6846117276679271},null,{"$f":"LN(F15)","v":6.6846117276679271}]
[null,"Normalised",{"$f":"C16/C16*100","v":100},{"$f":"D16/C16*100","v":56.028132160973868},null,{"$f":"F16/C16*100","v":56.028132160973868}]
[]
[null,"Active landfill"]
[null,"Amount received",5,{"$f":"Data!C15","v":1},{"$f":"D20","v":1},{"$f":"IF(E20>D20,D20,E20)","v":1}]
[null,"Open to public",6,{"$f":"Data!AE28","v":6},{"$f":"'Mitigation Data'!AE28","v":6},6]
[null,"Perimeter",5,{"$f":"Data!AE36","v":5},{"$f":"'Mitigation Data'!AE36","v":5},5]
[null,"Access security",5,{"$f":"Data!AE43","v":5},{"$f":"'Mitigation Data'!AE43","v":5},5]
[null,"Additional security",5,{"$f":"Data!AE50","v":5},{"$f":"'Mitigation Data'!AE50","v":5},5]
[null,"Access control",5,{"$f":"Data!AE56","v":5},{"$f":"'Mitigation Data'!AE56","v":5},5]
[null,"Site supervision",5,{"$f":"Data!AE63","v":5},{"$f":"'Mitigation Data'!AE63","v":5},5]
[null,"Operators at premises",5,{"$f":"Data!AE70","v":5},{"$f":"'Mitigation Data'!AE70","v":5},{"$f":"IF(E27>D27,D27,E27)","v":5}]
[null,"Trafficable surface",5,{"$f":"Data!AE98","v":5},{"$f":"'Mitigation Data'!AE118","v":5},5]
[null,"Operational days",3,{"$f":"Data!AE126","v":3},{"$f":"'Mitigation Data'!AE146","v":3},3]
[null,"Operating hours",3,{"$f":"Data!AE131","v":3},{"$f":"'Mitigation Data'!AE151","v":3},3]
[null,"Plant and Equipment",5,{"$f":"Data!AE136","v":1},{"$f":"'Mitigation Data'!AE156","v":5},1]
[null,"Collection services",5,{"$f":"LOOKUP(Data!AE148,$A$122:$A$126,$B$122:$B$126)","v":1},{"$f":"LOOKUP('Mitigation Data'!AE168,A122:A126,B122:B126)","v":1},1]
[null,"Procedures",5,{"$f":"Data!AE180","v":5},{"$f":"'Mitigation Data'!AE205","v":5},5]
[null,"Operator training",5,{"$f":"Data!AX3","v":5},{"$f":"'Mitigation Data'!AX3","v":5},5]
[null,"Authorised officers",3,{"$f":"Data!AX15","v":3},{"$f":"'Mitigation Data'!AX15","v":3},3]
[null,"Regulatory enforcement activities",5,{"$f":"Data!AX19","v":5},{"$f":"'Mitigation Data'!AX19","v":5},5]
[null,"Waste disposal - solid",5,{"$f":"Data!AE12","v":5},{"$f":"'Mitigation Data'!AE12","v":5},5]
[null,"Waste disposal - liquid",5,{"$f":"Data!AE27","v":1},{"$f":"'Mitigation Data'!AE27","v":1},1]
[null,"Waste disposal - tyres",5,{"$f":"Data!AE14","v":1},{"$f":"'Mitigation Data'!AE14","v":1},1]
[null,"Wastes storage - solid",5,{"$f":"IF(Data!AF12=FALSE,1,LOOKUP(Data!AI3,A122:A126,B122:B126))","v":1},{"$f":"IF('Mitigation Data'!AF12=FALSE,1,LOOKUP('Mitigation Data'!AI3,A122:A126,B122:B126))","v":1},{"$f":"IF(E40>D40,D40,E40)","v":1}]
[null,"Wastes storage - tyres",5,{"$f":"IF('Mitigation Data'!AF13=FALSE,1,LOOKUP(Data!AI13,A122:A126,B122:B126))","v":1},{"$f":"IF('Mitigation Data'!AF13=FALSE,1,LOOKUP('Mitigation Data'!AI13,A122:A126,B122:B126))","v":1},1]
[null,"Waste storage - hazardous",5,{"$f":"IF(Data!AF18=FALSE,1,LOOKUP(Data!AI14,A122:A126,B122:B126))","v":1},{"$f":"IF('Mitigation Data'!AF18=FALSE,1,LOOKUP('Mitigation Data'!AI14,A122:A126,B122:B126))","v":1},1]
[null,"Waste storage - liquid",5,{"$f":"IF(Data!AF27>0,LOOKUP(Data!AI19,A122:A126,B122:B126),1)","v":1},{"$f":"IF('Mitigation Data'!AF27>0,LOOKUP('Mitigation Data'!AI19,A122:A126,B122:B126),1)","v":1},1]
[null,"Frequency of covering",5,{"$f":"Data!AL36","v":5},{"$f":"'Mitigation Data'!AL36","v":5},5]
[null,"Filling Plan",2,{"$f":"Data!AL43","v":2},{"$f":"'Mitigation Data'!AL43","v":2},2]
[null,"Product",{"$f":"PRODUCT(C20:C45)","v":1.5449523925781251E+17},{"$f":"PRODUCT(D20:D45)","v":79101562500},null,{"$f":"PRODUCT(F20:F45)","v":79101562500}]
[null,"Ln",{"$f":"LN(C46)","v":39.578939676908441},{"$f":"LN(D46)","v":25.093998465001533},null,{"$f":"LN(F46)","v":25.093998465001533}]
[null,"Normalised",{"$f":"C47/C47*100","v":100},{"$f":"D47/C47*100","v":63.402402059906969},null,{"$f":"F47/C47*100","v":63.402402059906969}]
[]
[null,"Transfer station"]
[null,"Amount received",5,{"$f":"D20","v":1},{"$f":"D51","v":1},{"$f":"IF(E51>D51,D51,E51)","v":1}]
[null,"Open to public",6,6,{"$f":"E21","v":6},6]
[null,"Perimeter",5,5,5,5]
[null,"Access security",5,5,5,5]
[null,"Additional security",5,5,5,5]
[null,"Access control",5,5,5,5]
[null,"Site supervision",5,5,5,5]
[null,"Operators at premises",5,5,5,5]
[null,"Trafficable surface",5,5,5,{"$f":"IF(E59>D59,D59,E59)","v":5}]
[null,"Operational days",3,3,3,3]
[null,"Operating hours",3,3,3,3]
[null,"Plant and Equipment",5,1,5,1]
[null,"Collection services",5,1,{"$f":"E32","v":1},1]
[null,"Procedures",5,5,5,5]
[null,"Operator training",5,5,5,5]
[null,"Authorised officers",3,3,3,3]
[null,"Regulatory enforcement activities",5,5,5,5]
[null,"Wastes storage - solid",5,{"$f":"D40","v":1},1,1]
[null,"Wastes storage - tyres",5,1,1,1]
[null,"Waste storage - hazardous",5,1,1,1]
[null,"Waste storage - liquid",5,1,1,1]
[null,"Permanent",2,{"$f":"Data!AQ3","v":2},{"$f":"'Mitigation Data'!AQ3","v":2},2]
[null,"Method",4,{"$f":"Data!AQ5","v":4},{"$f":"'Mitigation Data'!AQ5","v":4},4]
[null,"Construction",3,{"$f":"Data!AQ10","v":3},{"$f":"'Mitigation Data'!AQ10","v":3},3]
[null,"Processing / sorting",2,{"$f":"LOOKUP(Data!AQ19,A128:A129,B128:B129)","v":1},{"$f":"LOOKUP('Mitigation Data'!AQ19,A128:A129,B128:B129)","v":1},1]
[null,null,{"$f":"PRODUCT(C51:C75)","v":5932617187500000},{"$f":"PRODUCT(D51:D75)","v":37968750000},null,{"$f":"PRODUCT(F51:F75)","v":37968750000}]
[null,"Ln",{"$f":"LN(C76)","v":36.319241857519984},{"$f":"LN(D76)","v":24.360029289921332},null,{"$f":"LN(F76)","v":24.360029289921332}]
[null,"Normalised",{"$f":"C77/C77*100","v":100},{"$f":"D77/C77*100","v":67.071965283541658},null,{"$f":"F77/C77*100","v":67.071965283541658}]
[]
[null,"Closed landfill",null,null,null,{"$f":"IF(E80>D80,D80,E80)","v":0}]
[null,"Nil"]
[]
[null,"Normalised",0,0,null,0]
[]
["Normaliser",null,null,"Pre",null,"Post"]
[{"$f":"'Groundwater A'!A138","v":160.94379124341003},null,"Active",{"$f":"E86/$A$86*100","v":7.5220227657070415},{"$f":"((D17+D48)*$C$94/2)*I86","v":12.106228617321319},{"$f":"G86/$A$86*100","v":7.5220227657070415},{"$f":"((F17+F48)*$C$94/2)*I86","v":12.106228617321319},"Distance",{"$f":"LOOKUP(Data!L39,'Noise A'!H98:H102,'Noise A'!L98:L102)","v":0.40546510810816438}]
[null,null,"TS",6.7698204891363387,{"$f":"((D17+D48)*$C$95/2)*I86","v":10.895605755589187},6.7698204891363387,{"$f":"((F17+F48)*$C$95/2)*I86","v":10.895605755589187}]
[null,null,"TS on closed",4.6518844187327213,{"$f":"(D17+D78+D83)*$C$95/3*I86","v":7.4869191477699086},4.6518844187327213,{"$f":"(F17+F78+F83)*$C$95/3*I86","v":7.4869191477699086}]
[null,null,"Closed",0.70575734820954072,{"$f":"((D17+D83)*$C$96/2)*I86","v":1.1358726331873896},0.70575734820954072,{"$f":"((F17+F83)*$C$96/2)*I86","v":1.1358726331873896}]
[null,null,"Active to TS",4.6518844187327213,{"$f":"E88","v":7.4869191477699086},4.6518844187327213,{"$f":"G88","v":7.4869191477699086}]
[null,null,"Active to closed",0.70575734820954072,{"$f":"E89","v":1.1358726331873896},0.70575734820954072,{"$f":"G89","v":1.1358726331873896}]
[]
[null,"Noise Factors"]
[null,"Active landfill",{"$f":"D94*1","v":0.5},{"$f":"LOOKUP($C$118,$H$106:$H$121,$K$106:$K$121)","v":0.5}]
[null,"Transfer Station",{"$f":"D95*0.9","v":0.45},{"$f":"LOOKUP($C$118,$H$106:$H$121,$K$106:$K$121)","v":0.5}]
[null,"Closed landfill",{"$f":"D96*0.2","v":0.1},{"$f":"LOOKUP($C$118,$H$106:$H$121,$K$106:$K$121)","v":0.5}]
[null,null,null,null,null,null,null,"Inverse square calcs"]
[null,{"$f":"Data!J19","v":"NE"},null,null,null,1,"Industrial",1,"> 5",0.5,1.5,{"$f":"LN(K98)","v":0.40546510810816438}]
[null,{"$f":"Data!J20","v":"Landuse"},{"$f":"Data!K20","v":1},null,null,2,"Special purpose",2,"1 - 5",0.6,2,{"$f":"LN(K99)","v":0.69314718055994529}]
[null,{"$f":"Data!J21","v":"Residence"},{"$f":"Data!K21","v":1},null,null,3,"Business",3,"0.5 - 1",0.8,3,{"$f":"LN(K100)","v":1.0986122886681098}]
[null,{"$f":"Data!J22","v":"Residential Area"},{"$f":"Data!K22","v":1},null,null,4,"Rural",4,"0.25 - 0.5",0.9,4,{"$f":"LN(K101)","v":1.3862943611198906}]
[null,null,{"$f":"AVERAGE(C100:C101)","v":1},null,null,5,"Recreation",5,"< 0.25",1,5,{"$f":"LN(K102)","v":1.6094379124341003}]
[null,{"$f":"Data!J24","v":"SE"},null,null,null,6,"Residential"]
[null,{"$f":"Data!J25","v":"Landuse"},{"$f":"Data!K25","v":1},null,null,7,"Environment protection"]
[null,{"$f":"Data!J26","v":"Residence"},{"$f":"Data!K26","v":1}]
[null,{"$f":"Data!J27","v":"Residential Area"},{"$f":"Data!K27","v":1},null,null,null,"N",1,{"$f":"(C112+C107)/2","v":1},{"$f":"I106/5","v":0.2},{"$f":"LOOKUP(I106,$C$120:$C$125,$D$120:$D$125)","v":0.5}]
[null,null,{"$f":"AVERAGE(C105:C106)","v":1},null,null,null,"NNE",2,{"$f":"(I106+I108)/2","v":1},{"$f":"I107/5","v":0.2},{"$f":"LOOKUP(I107,$C$120:$C$125,$D$120:$D$125)","v":0.5}]
[null,{"$f":"Data!J29","v":"SW"},null,null,null,null,"NE",3,{"$f":"C112","v":1},0.2,0.5]
[null,{"$f":"Data!J30","v":"Landuse"},{"$f":"Data!K30","v":1},null,null,null,"ENE",4,{"$f":"(I108+I110)/2","v":1},0.2,0.5]
[null,{"$f":"Data!J31","v":"Residence"},{"$f":"Data!K31","v":1},null,null,null,"E",5,{"$f":"(C112+C117)/2","v":1},0.2,0.5]
[null,{"$f":"Data!J32","v":"Residential Area"},{"$f":"Data!K32","v":1},null,null,null,"ESE",6,{"$f":"(I110+I112)/2","v":1},0.2,0.5]
[null,null,{"$f":"AVERAGE(C110:C111)","v":1},null,null,null,"SE",7,{"$f":"C117","v":1},0.2,0.5]
[null,{"$f":"Data!J34","v":"NW"},null,null,null,null,"SSE",8,{"$f":"(I112+I114)/2","v":1},0.2,0.5]
[null,{"$f":"Data!J35","v":"Landuse"},{"$f":"Data!K35","v":1},null,null,null,"S",9,{"$f":"(C117+C102)/2","v":1},0.2,0.5]
[null,{"$f":"Data!J36","v":"Residence"},{"$f":"Data!K36","v":1},null,null,null,"SSW",10,{"$f":"(I114+I116)/2","v":1},0.2,0.5]
[null,{"$f":"Data!J37","v":"Residential Area"},{"$f":"Data!K37","v":1},null,null,null,"SW",11,{"$f":"C102","v":1},0.2,0.5]
[null,null,{"$f":"AVERAGE(C115:C116)","v":1},null,null,null,"WSW",12,{"$f":"(I116+I118)/2","v":1},0.2,0.5]
[null,{"$f":"Data!F24","v":"Prevailing Wind Direction"},{"$f":"Data!G24","v":1},null,null,null,"W",13,{"$f":"(C102+C107)/2","v":1},0.2,0.5]
[null,null,null,null,null,null,"WNW",14,{"$f":"(I118+I120)/2","v":1},0.2,0.5]
[null,"Factor",0,0.2,null,null,"NW",15,{"$f":"C107","v":1},0.2,0.5]
[null,null,1,0.5,null,null,"NNW",16,{"$f":"(I120+I106)/2","v":1},0.2,0.5]
[1,5,2,0.6]
[2,4,3,0.8]
[3,3,4,0.9]
[4,2,5,1]
[5,1]
[]
[1,2]
[2,1]
[]
[]
[]
[]
[]
[]
[]
[{"$f":"(C77+C31)*L141/2","v":0}]

{"sheet":"Amenity A","index":61,"n_rows":162,"n_cols":12,"rows_kept":162,"cut":false,"hidden":true,"merged":[]}
[]
[null,"AMENITY",null,"Existing","Mitigation sheet","Mitigation"]
[]
[null,null,"Max.",{"$f":"Data!B13","v":"Active landfill"},null,{"$f":"'Mitigation Data'!B13","v":"Mitigation of existing landfill"}]
[null,"Common Environmental & Operational"]
[null,"Area",5,{"$f":"Data!C22","v":5},{"$f":"D6","v":5},{"$f":"IF(E6>D6,D6,E6)","v":5}]
[null,"MLA",5,{"$f":"Data!C47","v":1},{"$f":"D7","v":1},{"$f":"IF(E7>D7,D7,E7)","v":1}]
[]
[null,">5,000",5,{"$f":"Data!C49","v":4},4,4]
[null,"RRA",5,{"$f":"Data!C50","v":1},1,1]
[null,"Access to premises",5,{"$f":"Data!C51","v":1},1,1]
[null,"Wind speed & direction",5,{"$f":"Data!G56","v":1},1,1]
[null,"Landuse (with wind direction)",5,{"$f":"Data!K39","v":1},1,1]
[null,"Soils - surface",5,{"$f":"Data!W3","v":2},{"$f":"D14","v":2},2]
[null,"Erosion hazard",5,{"$f":"Data!W11","v":1},1,1]
[]
[]
[null,"Erosion",5,{"$f":"Data!W37","v":1},1,1]
[null,"Visibility",5,{"$f":"Data!W119","v":1},1,1]
[null,"Site Selection",3,{"$f":"Data!S3","v":2},2,2]
[null,"EIS / SEE / REF",3,{"$f":"Data!S4","v":2},2,2]
[null,"Environmental Audit",3,{"$f":"Data!S5","v":2},{"$f":"'Mitigation Data'!S5","v":2},2]
[null,"Environmental Investigation",3,{"$f":"Data!S6","v":2},{"$f":"'Mitigation Data'!S6","v":2},2]
[null,"EMP",3,{"$f":"Data!S7","v":2},{"$f":"'Mitigation Data'!S7","v":2},2]
[null,"Dust monitoring",5,{"$f":"Data!Q59","v":5},{"$f":"'Mitigation Data'!Q90","v":5},5]
[null,"Product",{"$f":"PRODUCT(C6:C25)","v":59326171875},{"$f":"PRODUCT(D6:D25)","v":6400},null,{"$f":"PRODUCT(F6:F25)","v":6400}]
[null,"Ln",{"$f":"LN(C26)","v":24.806316392549753},{"$f":"LN(D26)","v":8.7640532693477624},null,{"$f":"LN(F26)","v":8.7640532693477624}]
[null,"Normalised",{"$f":"C27/C27*100","v":100},{"$f":"D27/C27*100","v":35.329926179527114},null,{"$f":"F27/C27*100","v":35.329926179527114}]
[]
[null,"Active landfill"]
[null,"Amount received",5,{"$f":"Data!C15","v":1},{"$f":"D31","v":1},{"$f":"IF(E31>D31,D31,E31)","v":1}]
[null,"Age",5,{"$f":"Data!C29","v":5},{"$f":"D32","v":5},{"$f":"IF(E32>D32,D32,E32)","v":5}]
[null,"Direction to facility",2,{"$f":"Data!AA3","v":1},{"$f":"D33","v":1},1]
[null,"Site signage",5,{"$f":"Data!AA5","v":5},{"$f":"'Mitigation Data'!AA5","v":5},5]
[null,"Communication",5,{"$f":"Data!AA17","v":5},{"$f":"'Mitigation Data'!AA17","v":5},5]
[null,"Themes",5,{"$f":"Data!AA24","v":5},{"$f":"'Mitigation Data'!AA24","v":5},5]
[null,"Open to public",6,{"$f":"Data!AE28","v":6},{"$f":"'Mitigation Data'!AE28","v":6},6]
[null,"Perimeter",5,{"$f":"Data!AE36","v":5},{"$f":"'Mitigation Data'!AE36","v":5},5]
[null,"Access security",5,{"$f":"Data!AE43","v":5},{"$f":"'Mitigation Data'!AE43","v":5},5]
[null,"Additional security",5,{"$f":"Data!AE50","v":5},{"$f":"'Mitigation Data'!AE50","v":5},5]
[null,"Access control",5,{"$f":"Data!AE56","v":5},{"$f":"'Mitigation Data'!AE56","v":5},5]
[null,"Site supervision",5,{"$f":"Data!AE63","v":5},{"$f":"'Mitigation Data'!AE63","v":5},5]
[null,"Operators at premises",5,{"$f":"Data!AE70","v":5},{"$f":"'Mitigation Data'!AE70","v":5},{"$f":"IF(E43>D43,D43,E43)","v":5}]
[null,"Complaints",5,{"$f":"Data!AE72","v":1},{"$f":"D44","v":1},1]
[null,"Uncontrolled fires",5,{"$f":"Data!AE74","v":1},{"$f":"D45","v":1},1]
[null,"Unlawful waste disposal (on premises)",5,{"$f":"Data!AE76","v":1},{"$f":"D46","v":1},1]
[null,"Unlawful waste disposal (off premises)",5,{"$f":"Data!AE78","v":1},{"$f":"D47","v":1},1]
[null,"Trafficable surface",5,{"$f":"Data!AE98","v":5},{"$f":"'Mitigation Data'!AE118","v":5},5]
[null,"Dust control",5,{"$f":"Data!AE114","v":5},{"$f":"'Mitigation Data'!AE134","v":5},5]
[null,"Litter control",5,{"$f":"Data!AE120","v":5},{"$f":"'Mitigation Data'!AE140","v":5},5]
[null,"Plant and Equipment",5,{"$f":"Data!AE136","v":1},{"$f":"'Mitigation Data'!AE156","v":5},1]
[null,"Collection services",5,{"$f":"Data!AE148","v":5},{"$f":"'Mitigation Data'!AE168","v":5},5]
[null,"Pest Management",5,{"$f":"Data!AE156","v":5},{"$f":"'Mitigation Data'!AE176","v":5},5]
[null,"Controlled burning",5,{"$f":"Data!AE164","v":5},{"$f":"'Mitigation Data'!AE184","v":5},5]
[null,"Procedures",5,{"$f":"Data!AE180","v":5},{"$f":"'Mitigation Data'!AE205","v":5},5]
[null,"Emergency services attendance",2,{"$f":"Data!AE190","v":1},{"$f":"D56","v":1},1]
[null,"Operator training",5,{"$f":"Data!AX3","v":5},{"$f":"'Mitigation Data'!AX3","v":5},5]
[null,"Authorised officers",3,{"$f":"Data!AX15","v":3},{"$f":"'Mitigation Data'!AX15","v":3},3]
[null,"Regulatory enforcement activities",5,{"$f":"Data!AX19","v":5},{"$f":"'Mitigation Data'!AX19","v":5},5]
[null,"Waste disposal - solid",5,{"$f":"Data!AE12","v":5},{"$f":"'Mitigation Data'!AE12","v":5},5]
[null,"Waste disposal - liquid",5,{"$f":"Data!AE27","v":1},{"$f":"'Mitigation Data'!AE27","v":1},1]
[null,"Waste disposal - tyres",5,{"$f":"Data!AE14","v":1},{"$f":"'Mitigation Data'!AE14","v":1},1]
[null,"Wastes storage - solid",5,{"$f":"Data!AI3","v":1},{"$f":"'Mitigation Data'!AI3","v":1},{"$f":"IF(E63>D63,D63,E63)","v":1}]
[null,"Wastes storage - tyres",5,{"$f":"Data!AI13","v":1},{"$f":"'Mitigation Data'!AI13","v":1},1]
[null,"Waste storage - hazardous",5,{"$f":"Data!AI14","v":1},{"$f":"'Mitigation Data'!AI14","v":1},1]
[null,"Waste storage - liquid",5,{"$f":"Data!AI19","v":1},{"$f":"'Mitigation Data'!AI19","v":1},1]
[null,"Landfilled wastes",5,{"$f":"Data!AM9","v":1},{"$f":"'Mitigation Data'!AM9","v":1},1]
[null,"Landfilling method",5,{"$f":"Data!AL10","v":5},{"$f":"'Mitigation Data'!AL10","v":5},5]
[null,"Active fill areas",5,{"$f":"Data!AL17","v":5},{"$f":"'Mitigation Data'!AL17","v":5},5]
[null,"Compaction",3,{"$f":"Data!AL24","v":3},{"$f":"'Mitigation Data'!AL24","v":3},3]
[null,"Covering method",5,{"$f":"Data!AL29","v":5},{"$f":"'Mitigation Data'!AL29","v":5},5]
[null,"Frequency of covering",5,{"$f":"Data!AL36","v":5},{"$f":"'Mitigation Data'!AL36","v":5},5]
[null,"Filling Plan",2,{"$f":"Data!AL43","v":2},{"$f":"'Mitigation Data'!AL43","v":2},2]
[null,"Closure method",5,{"$f":"Data!AL52","v":5},{"$f":"'Mitigation Data'!AL52","v":5},5]
[null,"Landfill Gas monitoring",5,{"$f":"Data!Q89","v":5},{"$f":"'Mitigation Data'!Q143","v":5},5]
[null,"Product",{"$f":"PRODUCT(C31:C75)","v":7.8580342233180988E+29},{"$f":"PRODUCT(D31:D75)","v":1.6093254089355467E+20},null,{"$f":"PRODUCT(F31:F75)","v":1.6093254089355467E+20}]
[null,"Ln",{"$f":"LN(C76)","v":68.836504173174021},{"$f":"LN(D76)","v":46.527516950410828},null,{"$f":"LN(F76)","v":46.527516950410828}]
[null,"Normalised",{"$f":"C77/C77*100","v":100},{"$f":"D77/C77*100","v":67.591341991104287},null,{"$f":"F77/C77*100","v":67.591341991104287}]
[]
[null,"Transfer station"]
[null,"Amount received",5,{"$f":"D31","v":1},{"$f":"D81","v":1},{"$f":"IF(E81>D81,D81,E81)","v":1}]
[null,"Direction to facility",2,{"$f":"D33","v":1},{"$f":"D82","v":1},{"$f":"IF(E82>D82,D82,E82)","v":1}]
[null,"Site signage",5,5,{"$f":"E34","v":5},5]
[null,"Communication",5,5,5,5]
[null,"Themes",5,5,5,5]
[null,"Open to public",6,6,6,6]
[null,"Perimeter",5,5,5,5]
[null,"Access security",5,5,5,5]
[null,"Additional security",5,5,5,5]
[null,"Access control",5,5,5,5]
[null,"Site supervision",5,5,5,{"$f":"IF(E91>D91,D91,E91)","v":5}]
[null,"Operators at premises",5,5,5,{"$f":"IF(E92>D92,D92,E92)","v":5}]
[null,"Complaints",5,1,1,{"$f":"IF(E93>D93,D93,E93)","v":1}]
[null,"Uncontrolled fires",5,1,1,{"$f":"IF(E94>D94,D94,E94)","v":1}]
[null,"Unlawful waste disposal (on premises)",5,1,1,1]
[null,"Unlawful waste disposal (off premises)",5,1,1,1]
[null,"Trafficable surface",5,5,5,5]
[null,"Dust control",5,5,5,5]
[null,"Litter control",5,5,5,5]
[null,"Plant and Equipment",5,1,5,1]
[null,"Pest Management",5,{"$f":"D53","v":5},{"$f":"E53","v":5},5]
[null,"Controlled burning",5,5,5,5]
[null,"Procedures",5,5,5,5]
[null,"Emergency services attendance",2,1,1,1]
[null,"Operator training",5,5,5,5]
[null,"Authorised officers",3,3,3,3]
[null,"Regulatory enforcement activities",5,5,5,5]
[null,"Wastes storage - solid",5,{"$f":"D63","v":1},1,1]
[null,"Wastes storage - tyres",5,1,1,1]
[null,"Waste storage - hazardous",5,1,1,1]
[null,"Waste storage - liquid",5,1,1,1]
[null,"Permanent",2,{"$f":"Data!AQ3","v":2},{"$f":"'Mitigation Data'!AQ3","v":2},2]
[null,"Method",4,{"$f":"Data!AQ5","v":4},{"$f":"'Mitigation Data'!AQ5","v":4},4]
[null,"Construction",3,{"$f":"Data!AQ10","v":3},{"$f":"'Mitigation Data'!AQ10","v":3},3]
[null,"Lids",2,{"$f":"Data!AQ17","v":2},{"$f":"'Mitigation Data'!AQ17","v":2},2]
[null,"Processing / sorting",2,{"$f":"Data!AQ19","v":2},{"$f":"'Mitigation Data'!AQ19","v":2},2]
[null,"Disposal",2,{"$f":"Data!AQ21","v":2},{"$f":"'Mitigation Data'!AQ21","v":2},2]
[null,null,{"$f":"PRODUCT(C81:C117)","v":1.0299682617187497E+23},{"$f":"PRODUCT(D81:D117)","v":2636718750000000},null,{"$f":"PRODUCT(F81:F117)","v":2636718750000000}]
[null,"Ln",{"$f":"LN(C118)","v":52.988985126764547},{"$f":"LN(D118)","v":35.508311641303649},null,{"$f":"LN(F118)","v":35.508311641303649}]
[null,"Normalised",{"$f":"C119/C119*100","v":100},{"$f":"D119/C119*100","v":67.010741112247743},null,{"$f":"F119/C119*100","v":67.010741112247743}]
[]
[null,"Closed landfill",null,null,null,{"$f":"IF(E122>D122,D122,E122)","v":0}]
[null,"When Closed",5,{"$f":"LOOKUP(Data!AU10,B150:B154,C150:C154)","v":1},{"$f":"D123","v":1},1]
[null,"Amount received",5,{"$f":"Data!AU17","v":5},{"$f":"D124","v":5},5]
[null,"Disposal method",5,{"$f":"Data!AU24","v":5},{"$f":"D125","v":5},5]
[null,"How Capped",5,{"$f":"Data!AU31","v":5},{"$f":"'Mitigation Data'!AU31","v":5},5]
[null,"Landuse",7,{"$f":"LOOKUP(Data!AU45,B156:B162,C156:C162)","v":1},{"$f":"LOOKUP('Mitigation Data'!AU45,B156:B162,C156:C162)","v":1},1]
[null,"Organic Layer",2,{"$f":"Data!AU56","v":2},{"$f":"'Mitigation Data'!AU56","v":2},2]
[null,"Revegetation",5,{"$f":"Data!AU58","v":5},{"$f":"'Mitigation Data'!AU58","v":5},5]
[null,"Monitoring",5,{"$f":"Data!AU65","v":5},{"$f":"'Mitigation Data'!AU65","v":5},5]
[null,"Landfill Gas monitoring",5,{"$f":"D75","v":5},{"$f":"E75","v":5},{"$f":"IF(E131>D131,D131,E131)","v":5}]
[null,"Closure plan",3,{"$f":"Data!$AU$95","v":2},{"$f":"'Mitigation Data'!$AU$145","v":2},{"$f":"IF(E132>D132,D132,E132)","v":2}]
[null,null,{"$f":"PRODUCT(C123:C131)","v":1093750},{"$f":"PRODUCT(D123:D131)","v":31250},null,{"$f":"PRODUCT(F123:F131)","v":31250}]
[null,"Ln",{"$f":"LN(C133)","v":13.905122716653961},{"$f":"LN(D133)","v":10.349774655164548},null,{"$f":"LN(F133)","v":10.349774655164548}]
[null,"Normalised",{"$f":"C134/C134*100","v":100},{"$f":"D134/C134*100","v":74.431379471169819},null,{"$f":"F134/C134*100","v":74.431379471169819}]
[]
["Normaliser",null,null,"Pre",null,"Post"]
[{"$f":"'Groundwater A'!A138","v":160.94379124341003},null,"Active",{"$f":"E138/$A$138*100","v":12.964458834675039},{"$f":"(D28+D78)*C146/2*L143","v":20.865491562717221},{"$f":"G138/$A$138*100","v":12.964458834675039},{"$f":"(F28+F78)*$C$146/2*L143","v":20.865491562717221},null,"Indicator",1,1.5,{"$f":"LN(K138)","v":0.40546510810816438}]
[null,null,"TS",9.0239264853636172,{"$f":"(D28+D120)*$C$147/2*L143","v":14.52344940456241},9.0239264853636172,{"$f":"(F28+F120)*$C$147/2*L143","v":14.52344940456241},null,{"$f":"IF(MAX(Data!L39,D19,D44,D93)>5,5,MAX(Data!L39,D19,D44,D93))","v":1},2,2,{"$f":"LN(K139)","v":0.69314718055994529}]
[null,null,"TS on closed",10.391294076076294,{"$f":"(D28+D120+D135)*C147/3*L143","v":16.724142645289064},10.391294076076294,{"$f":"(F28+F120+F135)*C147/3*L143","v":16.724142645289064},null,null,3,3,{"$f":"LN(K140)","v":1.0986122886681098}]
[null,null,"Closed",5.5304251649502971,{"$f":"(D28+D135)*$C$148/2*L143","v":8.9008759323506208},5.5304251649502971,{"$f":"(F28+F135)*$C$148/2*L143","v":8.9008759323506208},null,null,4,4,{"$f":"LN(K141)","v":1.3862943611198906}]
[null,null,"Active to TS",12.964458834675039,{"$f":"E138","v":20.865491562717221},10.391294076076294,{"$f":"G140","v":16.724142645289064},null,null,5,5,{"$f":"LN(K142)","v":1.6094379124341003}]
[null,null,"Active to closed",12.964458834675039,{"$f":"E138","v":20.865491562717221},5.5304251649502971,{"$f":"G141","v":8.9008759323506208},null,null,null,null,{"$f":"LOOKUP(I139,J138:J142,L138:L142)","v":0.40546510810816438}]
[]
[null,"Amenity Factors"]
[null,"Active landfill",1]
[null,"Transfer Station",0.7]
[null,"Closed landfill",0.4]
[]
[null,1,5]
[null,2,4]
[null,3,3]
[null,4,2]
[null,5,1]
[]
[null,1,7]
[null,2,6]
[null,3,5]
[null,4,3]
[null,5,2]
[null,6,4]
[null,7,1]

{"sheet":"Fire A","index":62,"n_rows":138,"n_cols":12,"rows_kept":138,"cut":false,"hidden":true,"merged":[]}
[]
[null,"FIRE",null,"Existing","Mitigation sheet","Mitigation"]
[]
[null,null,"Max.",{"$f":"Data!B13","v":"Active landfill"},null,{"$f":"'Mitigation Data'!B13","v":"Mitigation of existing landfill"}]
[null,"Common Environmental & Operational"]
[null,"Rainfall",5,{"$f":"LOOKUP(Data!G3,A124:A128,B124:B128)","v":5},{"$f":"D6","v":5},{"$f":"IF(E6>D6,D6,E6)","v":5}]
[null,"No. rain days > 10mm",5,{"$f":"LOOKUP(Data!G10,A124:A128,B124:B128)","v":5},5,5]
[null,"Evaporation",5,{"$f":"LOOKUP(Data!G17,A124:A128,B124:B128)","v":5},5,5]
[null,"Wind speed & direction",5,{"$f":"Data!G56","v":1},1,1]
[null,"Landuse (with wind direction)",5,{"$f":"Data!K39","v":1},1,1]
[null,"Fire risk (wind & veg)",8,{"$f":"Data!L138","v":1},1,1,{"$f":"IF(D11>5,5,D11)","v":1}]
[null,"Bush Fire Prone",5,{"$f":"Data!W127","v":1},{"$f":"D12","v":1},1]
[null,"Site Selection",3,{"$f":"Data!S3","v":2},{"$f":"D13","v":2},2]
[null,"EIS / SEE / REF",3,{"$f":"Data!S4","v":2},{"$f":"D14","v":2},2]
[null,"Environmental Audit",3,{"$f":"Data!S5","v":2},{"$f":"'Mitigation Data'!S5","v":2},2]
[null,"Environmental Investigation",3,{"$f":"Data!S6","v":2},{"$f":"'Mitigation Data'!S6","v":2},2]
[null,"EMP",3,{"$f":"Data!S7","v":2},{"$f":"'Mitigation Data'!S7","v":2},2]
[]
[null,"Product",{"$f":"PRODUCT(C6:C18)","v":30375000},{"$f":"PRODUCT(D6:D18)","v":4000},null,{"$f":"PRODUCT(F6:F18)","v":4000}]
[null,"Ln",{"$f":"LN(C19)","v":17.229130459624987},{"$f":"LN(D19)","v":8.2940496401020276},null,{"$f":"LN(F19)","v":8.2940496401020276}]
[null,"Normalised",{"$f":"C20/C20*100","v":100},{"$f":"D20/C20*100","v":48.139687951974317},null,{"$f":"F20/C20*100","v":48.139687951974317}]
[]
[null,"Active landfill"]
[null,"Amount received",5,{"$f":"Data!C15","v":1},{"$f":"D24","v":1},{"$f":"IF(E24>D24,D24,E24)","v":1}]
[null,"Site signage",5,{"$f":"Data!AA5","v":5},{"$f":"'Mitigation Data'!AA5","v":5},5]
[null,"Communication",5,{"$f":"Data!AA17","v":5},{"$f":"'Mitigation Data'!AA17","v":5},5]
[null,"Themes",5,{"$f":"Data!AA24","v":5},{"$f":"'Mitigation Data'!AA24","v":5},5]
[null,"Open to public",6,{"$f":"Data!AE28","v":6},{"$f":"'Mitigation Data'!AE28","v":6},6]
[null,"Perimeter",5,{"$f":"Data!AE36","v":5},{"$f":"'Mitigation Data'!AE36","v":5},5]
[null,"Access security",5,{"$f":"Data!AE43","v":5},{"$f":"'Mitigation Data'!AE43","v":5},5]
[null,"Additional security",5,{"$f":"Data!AE50","v":5},{"$f":"'Mitigation Data'!AE50","v":5},5]
[null,"Access control",5,{"$f":"Data!AE56","v":5},{"$f":"'Mitigation Data'!AE56","v":5},5]
[null,"Site supervision",5,{"$f":"Data!AE63","v":5},{"$f":"'Mitigation Data'!AE63","v":5},5]
[null,"Operators at premises",5,{"$f":"Data!AE70","v":5},{"$f":"'Mitigation Data'!AE70","v":5},{"$f":"IF(E34>D34,D34,E34)","v":5}]
[null,"Complaints",5,{"$f":"Data!AE72","v":1},{"$f":"D35","v":1},1]
[null,"Uncontrolled fires",5,{"$f":"Data!AE74","v":1},{"$f":"D36","v":1},1]
[null,"Controlled burning",5,{"$f":"Data!AE164","v":5},{"$f":"'Mitigation Data'!AE184","v":5},5]
[null,"Main Fire Capacity",5,{"$f":"Data!AE166","v":5},{"$f":"'Mitigation Data'!AE191","v":5},5]
[null,"Other fire management",5,{"$f":"Data!AE173","v":5},{"$f":"'Mitigation Data'!AE198","v":5},5]
[null,"Procedures",5,{"$f":"Data!AE180","v":5},{"$f":"'Mitigation Data'!AE205","v":5},5]
[null,"Emergency services attendance",2,{"$f":"Data!AE190","v":1},{"$f":"D41","v":1},1]
[null,"Operator training",5,{"$f":"Data!AX3","v":5},{"$f":"'Mitigation Data'!AX3","v":5},5]
[null,"Authorised officers",3,{"$f":"Data!AX15","v":3},{"$f":"'Mitigation Data'!AX15","v":3},3]
[null,"Regulatory enforcement activities",5,{"$f":"Data!AX19","v":5},{"$f":"'Mitigation Data'!AX19","v":5},5]
[null,"Waste disposal - solid",5,{"$f":"Data!AE12","v":5},{"$f":"'Mitigation Data'!AE12","v":5},5]
[]
[null,"Waste disposal - tyres",5,{"$f":"Data!AE14","v":1},{"$f":"'Mitigation Data'!AE14","v":1},1]
[null,"Wastes storage - solid",5,{"$f":"Data!AI3","v":1},{"$f":"'Mitigation Data'!AI3","v":1},{"$f":"IF(E48>D48,D48,E48)","v":1}]
[null,"Wastes storage - tyres",5,{"$f":"Data!AI13","v":1},{"$f":"'Mitigation Data'!AI13","v":1},1]
[null,"Waste storage - hazardous",5,{"$f":"Data!AI14","v":1},{"$f":"'Mitigation Data'!AI14","v":1},1]
[null,"Waste storage - liquid",5,{"$f":"Data!AI19","v":1},{"$f":"'Mitigation Data'!AI19","v":1},1]
[null,"Landfilled wastes",5,{"$f":"Data!AM9","v":1},{"$f":"'Mitigation Data'!AM9","v":1},1]
[null,"Landfilling method",5,{"$f":"Data!AL10","v":5},{"$f":"'Mitigation Data'!AL10","v":5},5]
[null,"Active fill areas",5,{"$f":"Data!AL17","v":5},{"$f":"'Mitigation Data'!AL17","v":5},5]
[null,"Compaction",3,{"$f":"Data!AL24","v":3},{"$f":"'Mitigation Data'!AL24","v":3},3]
[null,"Covering method",5,{"$f":"Data!AL29","v":5},{"$f":"'Mitigation Data'!AL29","v":5},5]
[null,"Frequency of covering",5,{"$f":"Data!AL36","v":5},{"$f":"'Mitigation Data'!AL36","v":5},5]
[null,"Landfill Gas monitoring",5,{"$f":"Data!Q89","v":5},{"$f":"'Mitigation Data'!Q143","v":5},5]
[null,"Product",{"$f":"PRODUCT(C24:C58)","v":1.0058283805847166E+23},{"$f":"PRODUCT(D24:D58)","v":2.5749206542968752E+16},null,{"$f":"PRODUCT(F24:F58)","v":2.5749206542968752E+16}]
[null,"Ln",{"$f":"LN(C59)","v":52.965268600147233},{"$f":"LN(D59)","v":37.787180207680379},null,{"$f":"LN(F59)","v":37.787180207680379}]
[null,"Normalised",{"$f":"C60/C60*100","v":100},{"$f":"D60/C60*100","v":71.343318378971347},null,{"$f":"F60/C60*100","v":71.343318378971347}]
[]
[null,"Transfer station"]
[null,"Amount received",5,{"$f":"D24","v":1},{"$f":"D64","v":1},{"$f":"IF(E64>D64,D64,E64)","v":1}]
[null,"Site signage",5,5,{"$f":"E25","v":5},{"$f":"IF(E65>D65,D65,E65)","v":5}]
[null,"Communication",5,5,5,5]
[null,"Themes",5,5,5,5]
[null,"Open to public",6,6,6,6]
[null,"Perimeter",5,5,5,5]
[null,"Access security",5,5,5,5]
[null,"Additional security",5,5,5,5]
[null,"Access control",5,5,5,5]
[null,"Site supervision",5,5,5,{"$f":"IF(E73>D73,D73,E73)","v":5}]
[null,"Operators at premises",5,5,5,{"$f":"IF(E74>D74,D74,E74)","v":5}]
[null,"Complaints",5,1,{"$f":"E35","v":1},{"$f":"IF(E75>D75,D75,E75)","v":1}]
[null,"Uncontrolled fires",5,1,{"$f":"E36","v":1},{"$f":"IF(E76>D76,D76,E76)","v":1}]
[null,"Controlled burning",5,{"$f":"D37","v":5},5,5]
[null,"Main Fire Capacity",5,5,5,5]
[null,"Other fire management",5,5,5,5]
[null,"Procedures",5,5,5,5]
[null,"Emergency services attendance",2,1,1,1]
[null,"Operator training",5,5,5,5]
[null,"Authorised officers",3,3,3,3]
[null,"Regulatory enforcement activities",5,5,5,5]
[null,"Wastes storage - solid",5,{"$f":"D48","v":1},1,1]
[null,"Wastes storage - tyres",5,1,1,1]
[null,"Waste storage - hazardous",5,1,1,1]
[null,"Waste storage - liquid",5,1,1,1]
[null,"Method",4,{"$f":"Data!AQ5","v":4},{"$f":"'Mitigation Data'!AQ5","v":4},4]
[null,null,{"$f":"PRODUCT(C64:C89)","v":3.4332275390624998E+17},{"$f":"PRODUCT(D64:D89)","v":2197265625000},null,{"$f":"PRODUCT(F64:F89)","v":2197265625000}]
[null,"Ln",{"$f":"LN(C90)","v":40.377447373126209},{"$f":"LN(D90)","v":28.418234805527561},null,{"$f":"LN(F90)","v":28.418234805527561}]
[null,"Normalised",{"$f":"C91/C91*100","v":100},{"$f":"D91/C91*100","v":70.381454634603088},null,{"$f":"F91/C91*100","v":70.381454634603088}]
[]
[null,"Closed landfill",null,null,null,{"$f":"IF(E94>D94,D94,E94)","v":0}]
[null,"Years in Operation",5,{"$f":"Data!AU3","v":5},{"$f":"D95","v":5},5]
[null,"When Closed",5,{"$f":"LOOKUP(Data!AU10,A124:A128,B124:B128)","v":1},{"$f":"D96","v":1},1]
[null,"Amount received",5,{"$f":"Data!AU17","v":5},{"$f":"D97","v":5},5]
[null,"Disposal method",5,{"$f":"Data!AU24","v":5},{"$f":"D98","v":5},5]
[null,"How Capped",5,{"$f":"Data!AU31","v":5},{"$f":"'Mitigation Data'!AU31","v":5},5]
[null,"Landuse",7,{"$f":"Data!AU45","v":7},{"$f":"'Mitigation Data'!AU45","v":7},7]
[null,"Structures",2,{"$f":"Data!AU54","v":2},{"$f":"'Mitigation Data'!AU54","v":2},2]
[null,"Organic Layer",2,{"$f":"Data!AU56","v":2},{"$f":"'Mitigation Data'!AU56","v":2},2]
[null,"Revegetation",5,{"$f":"Data!AU58","v":5},{"$f":"'Mitigation Data'!AU58","v":5},5]
[null,"Monitoring",5,{"$f":"Data!AU65","v":5},{"$f":"'Mitigation Data'!AU65","v":5},5]
[null,"Landfill Gas monitoring",5,{"$f":"D58","v":5},{"$f":"E58","v":5},{"$f":"IF(E105>D105,D105,E105)","v":5}]
[null,"Closure plan",3,{"$f":"Data!$AU$95","v":2},{"$f":"'Mitigation Data'!$AU$145","v":2},{"$f":"IF(E106>D106,D106,E106)","v":2}]
[null,null,{"$f":"PRODUCT(C95:C105)","v":10937500},{"$f":"PRODUCT(D95:D105)","v":2187500},null,{"$f":"PRODUCT(F95:F105)","v":2187500}]
[null,"Ln",{"$f":"LN(C107)","v":16.207707809648007},{"$f":"LN(D107)","v":14.598269897213907},null,{"$f":"LN(F107)","v":14.598269897213907}]
[null,"Normalised",{"$f":"C108/C108*100","v":100},{"$f":"D108/C108*100","v":90.0699227100081},null,{"$f":"F108/C108*100","v":90.0699227100081}]
[]
["Normaliser",null,null,"Pre",null,"Post"]
[{"$f":"'Groundwater A'!A138","v":160.94379124341003},null,"Active",{"$f":"E112/$A$112*100","v":15.050655171219299},{"$f":"(D21+D61)*$C$120/2*L117","v":24.223095039532687},{"$f":"G112/$A$112*100","v":15.050655171219299},{"$f":"(F21+F61)*$C$120/2*L117","v":24.223095039532687},null,"Indicator",1,1.5,{"$f":"LN(K112)","v":0.40546510810816438}]
[null,null,"TS",8.9576965077124342,{"$f":"(D21+D92)*$C$121/2*L117","v":14.416856367590931},8.9576965077124342,{"$f":"(F21+F92)*$C$121/2*L117","v":14.416856367590931},null,{"$f":"IF(MAX(Data!L39,D12,D35,D75,G11)>5,5,MAX(Data!L39,D12,D35,D75,G11))","v":1},2,2,{"$f":"LN(K113)","v":0.69314718055994529}]
[null,null,"TS on closed",10.510054247816816,{"$f":"(D21+D92+D109)*$C$121/3*L117","v":16.915279768175445},10.510054247816816,{"$f":"(F21+F92+F109)*$C$121/3*L117","v":16.915279768175445},null,null,3,3,{"$f":"LN(K114)","v":1.0986122886681098}]
[null,null,"Closed",5.222864544419874,{"$f":"(D21+D109)*$C$122/2*L117","v":8.405876209297201},5.222864544419874,{"$f":"(F21+F109)*$C$122/2*L117","v":8.405876209297201},null,null,4,4,{"$f":"LN(K115)","v":1.3862943611198906}]
[null,null,"Active to TS",15.050655171219299,{"$f":"E112","v":24.223095039532687},10.510054247816816,{"$f":"G114","v":16.915279768175445},null,null,5,5,{"$f":"LN(K116)","v":1.6094379124341003}]
[null,null,"Active to closed",15.050655171219299,{"$f":"E112","v":24.223095039532687},5.222864544419874,{"$f":"G115","v":8.405876209297201},null,null,null,null,{"$f":"LOOKUP(I113,J112:J116,L112:L116)","v":0.40546510810816438}]
[]
[null,"Fire Factors"]
[null,"Active landfill",1]
[null,"Transfer Station",0.6]
[null,"Closed landfill",0.3]
[]
[1,5]
[2,4]
[3,3]
[4,2]
[5,1]
[]
[]
[]
[]
[]
[]
[]
[]
[]
[{"$f":"(C77+C31)*L142/2","v":0}]

{"sheet":"CandH A","index":63,"n_rows":160,"n_cols":12,"rows_kept":160,"cut":false,"hidden":true,"merged":[]}
[]
[null,"CONSERVATION AND HERITAGE",null,"Existing","Mitigation sheet","Mitigation"]
[]
[null,null,"Max.",{"$f":"Data!B13","v":"Active landfill"},null,{"$f":"'Mitigation Data'!B13","v":"Mitigation of existing landfill"}]
[null,"Common Environmental & Operational"]
[null,"Area",5,{"$f":"Data!C22","v":5},{"$f":"D6","v":5},{"$f":"IF(E6>D6,D6,E6)","v":5}]
[null,"MLA",5,{"$f":"Data!C47","v":1},{"$f":"D7","v":1},{"$f":"IF(E7>D7,D7,E7)","v":1}]
[]
[null,">5,000",5,{"$f":"Data!C49","v":4},4,4]
[null,"RRA",5,{"$f":"Data!C50","v":1},{"$f":"D10","v":1},{"$f":"IF(E10>D10,D10,E10)","v":1}]
[null,"Access to premises",5,{"$f":"Data!C51","v":1},1,1]
[null,"Wind speed & direction",5,{"$f":"Data!G56","v":1},1,1,"Max",{"$f":"MAX(D17:D20)","v":2}]
[null,"Landuse (with wind direction)",5,{"$f":"Data!K39","v":1},1,1]
[null,"Fire risk (wind & veg)",8,{"$f":"Data!L138","v":1},1,1,1,1]
[null,"Distance to watercourse",5,{"$f":"Data!W58","v":2},{"$f":"D15","v":2},2,2,3]
[null,"Groundwater vulnerability",6,{"$f":"Data!W65","v":2},{"$f":"D16","v":2},2,3,4]
[null,"ACH",3,{"$f":"Data!W97","v":2},{"$f":"IF('Mitigation Data'!X97=\"\",'CandH A'!D17,'Mitigation Data'!Y97)","v":2},2,null,{"$f":"LOOKUP(H12,G14:G16,H14:H16)","v":3}]
[null,"Threatened species - Fauna",3,{"$f":"Data!W98","v":2},{"$f":"IF('Mitigation Data'!X101=\"\",'CandH A'!D18,'Mitigation Data'!Y101)","v":2},2]
[]
[]
[null,"National Park / Reserve",5,{"$f":"Data!W105","v":1},{"$f":"D21","v":1},1]
[null,"Conservation / protection zoned",5,{"$f":"Data!W106","v":1},1,1]
[]
[]
[null,"Bush Fire Prone",5,{"$f":"Data!W127","v":1},1,1]
[]
[]
[]
[null,"Site Selection",3,{"$f":"Data!S3","v":2},2,2]
[null,"EIS / SEE / REF",3,{"$f":"Data!S4","v":2},2,2]
[null,"Environmental Audit",3,{"$f":"Data!S5","v":2},{"$f":"'Mitigation Data'!S5","v":2},2]
[null,"Environmental Investigation",3,{"$f":"Data!S6","v":2},{"$f":"'Mitigation Data'!S6","v":2},2]
[null,"EMP",3,{"$f":"Data!S7","v":2},{"$f":"'Mitigation Data'!S7","v":2},2]
[]
[null,"Product",{"$f":"PRODUCT(C6:C34)","v":5125781250000},{"$f":"PRODUCT(D6:D34)","v":10240},null,{"$f":"PRODUCT(F6:F34)","v":10240}]
[null,"Ln",{"$f":"LN(C35)","v":29.265304068359764},{"$f":"LN(D35)","v":9.234056898593499},null,{"$f":"LN(F35)","v":9.234056898593499}]
[null,"Normalised",{"$f":"C36/C36*100","v":100},{"$f":"D36/C36*100","v":31.552916303292118},null,{"$f":"F36/C36*100","v":31.552916303292118}]
[]
[null,"Active landfill"]
[null,"Amount received",5,{"$f":"Data!C15","v":1},{"$f":"D40","v":1},{"$f":"IF(E40>D40,D40,E40)","v":1},{"$f":"D40-E40","v":0}]
[null,"Direction to facility",2,{"$f":"Data!AA3","v":1},{"$f":"D41","v":1},1,{"$f":"D41-E41","v":0}]
[null,"Site signage",5,{"$f":"Data!AA5","v":5},{"$f":"'Mitigation Data'!AA5","v":5},5,0]
[null,"Communication",5,{"$f":"Data!AA17","v":5},{"$f":"'Mitigation Data'!AA17","v":5},5,0]
[null,"Themes",5,{"$f":"Data!AA24","v":5},{"$f":"'Mitigation Data'!AA24","v":5},5,0]
[null,"Open to public",6,{"$f":"Data!AE28","v":6},{"$f":"'Mitigation Data'!AE28","v":6},6,0]
[null,"Perimeter",5,{"$f":"Data!AE36","v":5},{"$f":"'Mitigation Data'!AE36","v":5},5,0]
[null,"Access security",5,{"$f":"Data!AE43","v":5},{"$f":"'Mitigation Data'!AE43","v":5},5,0]
[null,"Additional security",5,{"$f":"Data!AE50","v":5},{"$f":"'Mitigation Data'!AE50","v":5},5,0]
[null,"Access control",5,{"$f":"Data!AE56","v":5},{"$f":"'Mitigation Data'!AE56","v":5},5,0]
[null,"Site supervision",5,{"$f":"Data!AE63","v":5},{"$f":"'Mitigation Data'!AE63","v":5},5,0]
[null,"Operators at premises",5,{"$f":"Data!AE70","v":5},{"$f":"'Mitigation Data'!AE70","v":5},{"$f":"IF(E51>D51,D51,E51)","v":5},0]
[null,"Uncontrolled fires",5,{"$f":"Data!AE74","v":1},{"$f":"D52","v":1},1,0]
[null,"Unlawful waste disposal (on premises)",5,{"$f":"Data!AE76","v":1},{"$f":"D53","v":1},1,0]
[null,"Unlawful waste disposal (off premises)",5,{"$f":"Data!AE78","v":1},{"$f":"D54","v":1},1,0]
[null,"Stormwater diversion",5,{"$f":"Data!AE80","v":5},{"$f":"'Mitigation Data'!AE85","v":5},5,0]
[null,"Stormwater - undisturbed",5,{"$f":"Data!AE85","v":5},{"$f":"'Mitigation Data'!AE90","v":5},5,0]
[null,"Stormwater - disturbed",5,{"$f":"Data!AE87","v":5},{"$f":"'Mitigation Data'!AE97","v":5},5,0]
[null,"Stormwater - waste",5,{"$f":"Data!AE89","v":5},{"$f":"'Mitigation Data'!AE104","v":5},5,0]
[null,"Pest Management",5,{"$f":"Data!AE156","v":5},{"$f":"'Mitigation Data'!AE176","v":5},5,0]
[null,"Controlled burning",5,{"$f":"Data!AE164","v":5},{"$f":"'Mitigation Data'!AE184","v":5},5,0]
[null,"Procedures",5,{"$f":"Data!AE180","v":5},{"$f":"'Mitigation Data'!AE205","v":5},5,0]
[null,"Operator training",5,{"$f":"Data!AX3","v":5},{"$f":"'Mitigation Data'!AX3","v":5},5,0]
[null,"Authorised officers",3,{"$f":"Data!AX15","v":3},{"$f":"'Mitigation Data'!AX15","v":3},3,0]
[null,"Regulatory enforcement activities",5,{"$f":"Data!AX19","v":5},{"$f":"'Mitigation Data'!AX19","v":5},5,0]
[null,"Waste disposal - solid",5,{"$f":"Data!AE12","v":5},{"$f":"'Mitigation Data'!AE12","v":5},5,0]
[null,"Waste disposal - liquid",5,{"$f":"Data!AE27","v":1},{"$f":"'Mitigation Data'!AE27","v":1},1,0]
[null,"Waste disposal - tyres",5,{"$f":"Data!AE14","v":1},{"$f":"'Mitigation Data'!AE14","v":1},1,0]
[null,"Wastes storage - solid",5,{"$f":"Data!AI3","v":1},{"$f":"'Mitigation Data'!AI3","v":1},{"$f":"IF(E68>D68,D68,E68)","v":1},0]
[null,"Wastes storage - tyres",5,{"$f":"Data!AI13","v":1},{"$f":"'Mitigation Data'!AI13","v":1},1,0]
[null,"Waste storage - hazardous",5,{"$f":"Data!AI14","v":1},{"$f":"'Mitigation Data'!AI14","v":1},1,0]
[null,"Waste storage - liquid",5,{"$f":"Data!AI19","v":1},{"$f":"'Mitigation Data'!AI19","v":1},1,0]
[null,"Landfilled wastes",5,{"$f":"Data!AM9","v":1},{"$f":"'Mitigation Data'!AM9","v":1},1,0]
[null,"Active fill areas",5,{"$f":"Data!AL17","v":5},{"$f":"'Mitigation Data'!AL17","v":5},5,0]
[null,"Compaction",3,{"$f":"Data!AL24","v":3},{"$f":"'Mitigation Data'!AL24","v":3},3,0]
[null,"Covering method",5,{"$f":"Data!AL29","v":5},{"$f":"'Mitigation Data'!AL29","v":5},5,0]
[null,"Frequency of covering",5,{"$f":"Data!AL36","v":5},{"$f":"'Mitigation Data'!AL36","v":5},5,0]
[null,"Closure method",5,{"$f":"Data!AL52","v":5},{"$f":"'Mitigation Data'!AL52","v":5},5,0]
[null,"Leachate management (active)",5,{"$f":"Data!AJ61","v":5},{"$f":"'Mitigation Data'!AJ61","v":5},5,0]
[null,"Product",{"$f":"PRODUCT(C40:C78)","v":3.1432136893272387E+26},{"$f":"PRODUCT(D40:D78)","v":3.2186508178710938E+18},null,{"$f":"PRODUCT(F40:F78)","v":3.2186508178710938E+18}]
[null,"Ln",{"$f":"LN(C79)","v":61.012458162317735},{"$f":"LN(D79)","v":42.615493944982681},null,{"$f":"LN(F79)","v":42.615493944982681}]
[null,"Normalised",{"$f":"C80/C80*100","v":100},{"$f":"D80/C80*100","v":69.847200438324066},null,{"$f":"F80/C80*100","v":69.847200438324066}]
[]
[null,"Transfer station"]
[null,"Amount received",5,{"$f":"D40","v":1},{"$f":"D84","v":1},{"$f":"IF(E84>D84,D84,E84)","v":1}]
[null,"Direction to facility",2,1,{"$f":"D85","v":1},{"$f":"IF(E85>D85,D85,E85)","v":1}]
[null,"Site signage",5,5,{"$f":"E42","v":5},5]
[null,"Communication",5,5,5,5]
[null,"Themes",5,5,5,5]
[null,"Open to public",6,6,6,6]
[null,"Perimeter",5,5,5,5]
[null,"Access security",5,5,5,5]
[null,"Additional security",5,5,5,5]
[null,"Access control",5,5,5,5]
[null,"Site supervision",5,5,5,{"$f":"IF(E94>D94,D94,E94)","v":5}]
[null,"Operators at premises",5,5,5,{"$f":"IF(E95>D95,D95,E95)","v":5}]
[null,"Uncontrolled fires",5,1,1,{"$f":"IF(E96>D96,D96,E96)","v":1}]
[null,"Unlawful waste disposal (on premises)",5,1,1,1]
[null,"Unlawful waste disposal (off premises)",5,1,1,1]
[null,"Stormwater diversion",5,5,5,5]
[null,"Stormwater - undisturbed",5,5,5,5]
[null,"Stormwater - disturbed",5,5,5,5]
[null,"Stormwater - waste",5,5,5,5]
[null,"Pest Management",5,5,5,5]
[null,"Controlled burning",5,5,5,5]
[null,"Procedures",5,5,5,5]
[null,"Operator training",5,5,5,5]
[null,"Authorised officers",3,3,3,3]
[null,"Regulatory enforcement activities",5,5,5,5]
[null,"Wastes storage - solid",5,{"$f":"D68","v":1},1,1]
[null,"Wastes storage - tyres",5,1,1,1]
[null,"Waste storage - hazardous",5,1,1,1]
[null,"Waste storage - liquid",5,1,1,1]
[null,"Permanent",2,{"$f":"Data!AQ3","v":2},{"$f":"'Mitigation Data'!AQ3","v":2},2]
[null,"Method",4,{"$f":"Data!AQ5","v":4},{"$f":"'Mitigation Data'!AQ5","v":4},4]
[null,"Lids",2,{"$f":"Data!AQ17","v":2},{"$f":"'Mitigation Data'!AQ17","v":2},2]
[null,null,{"$f":"PRODUCT(C84:C115)","v":8.5830688476562483E+20},{"$f":"PRODUCT(D84:D115)","v":1098632812500000},null,{"$f":"PRODUCT(F84:F115)","v":1098632812500000}]
[null,"Ln",{"$f":"LN(C116)","v":48.201493383982502},{"$f":"LN(D116)","v":34.632842903949751},null,{"$f":"LN(F116)","v":34.632842903949751}]
[null,"Normalised",{"$f":"C117/C117*100","v":100},{"$f":"D117/C117*100","v":71.850145031934517},null,{"$f":"F117/C117*100","v":71.850145031934517}]
[]
[null,"Closed landfill",null,null,null,{"$f":"IF(E120>D120,D120,E120)","v":0}]
[null,"Years in Operation",5,{"$f":"Data!AU3","v":5},{"$f":"D121","v":5},5]
[null,"When Closed",5,{"$f":"LOOKUP(Data!AU10,A148:A152,B148:B152)","v":1},{"$f":"D122","v":1},1]
[null,"Amount received",5,{"$f":"Data!AU17","v":5},{"$f":"D123","v":5},5]
[null,"How Capped",5,{"$f":"Data!AU31","v":5},{"$f":"'Mitigation Data'!AU31","v":5},5]
[null,"Landuse",7,{"$f":"LOOKUP(Data!AU45,A154:A160,B154:B160)","v":1},{"$f":"LOOKUP('Mitigation Data'!AU45,A154:A160,B154:B160)","v":1},1]
[null,"Revegetation",5,{"$f":"Data!AU58","v":5},{"$f":"'Mitigation Data'!AU58","v":5},5]
[null,"Monitoring",5,{"$f":"Data!AU65","v":5},{"$f":"'Mitigation Data'!AU65","v":5},5]
[null,"Runoff",5,{"$f":"Data!AU74","v":5},{"$f":"'Mitigation Data'!AU74","v":5},5]
[null,"Leachate management (closed)",5,{"$f":"Data!AU81","v":5},{"$f":"'Mitigation Data'!AU81","v":5},5]
[null,"Closure plan",3,{"$f":"Data!$AU$95","v":2},{"$f":"'Mitigation Data'!$AU$145","v":2},{"$f":"IF(E130>D130,D130,E130)","v":2}]
[null,null,{"$f":"PRODUCT(C121:C129)","v":2734375},{"$f":"PRODUCT(D121:D129)","v":78125},null,{"$f":"PRODUCT(F121:F129)","v":78125}]
[null,"Ln",{"$f":"LN(C131)","v":14.821413448528116},{"$f":"LN(D131)","v":11.266065387038703},null,{"$f":"LN(F131)","v":11.266065387038703}]
[null,"Normalised",{"$f":"C132/C132*100","v":100},{"$f":"D132/C132*100","v":76.012084988814024},null,{"$f":"F132/C132*100","v":76.012084988814024}]
[]
["Normaliser",null,null,"Pre",null,"Post"]
[{"$f":"'Groundwater A'!A138","v":160.94379124341003},null,"Active",{"$f":"E136/$A$136*100","v":34.608173904714647},{"$f":"(D37+D81)*$C$144/2*L141","v":55.699707162360241},{"$f":"G136/$A$136*100","v":34.608173904714647},{"$f":"(F37+F81)*$C$144/2*L141","v":55.699707162360241},null,"Indicator",1,1.5,{"$f":"LN(K136)","v":0.40546510810816438}]
[null,null,"TS",24.704249568683998,{"$f":"(D37+D118)*$C$145/2*L141","v":39.759955854073795},24.704249568683998,{"$f":"(F37+F118)*$C$145/2*L141","v":39.759955854073795},null,{"$f":"IF(MAX(D21:D22,D24,D26:D28,H17)>5,5,MAX(D21:D22,D24,D26:D28,H17))","v":3},2,2,{"$f":"LN(K137)","v":0.69314718055994529}]
[null,null,"TS on closed",28.576307728593246,{"$f":"(D37+D118+D133)*$C$145/3*L141","v":45.991793055781564},28.576307728593246,{"$f":"(F37+F118+F133)*$C$145/3*L141","v":45.991793055781564},null,null,3,3,{"$f":"LN(K138)","v":1.0986122886681098}]
[null,null,"Closed",18.356134047971167,{"$f":"(D37+D133)*$C$146/2*L141","v":29.54305806252723},18.356134047971167,{"$f":"(F37+F133)*$C$146/2*L141","v":29.54305806252723},null,null,4,4,{"$f":"LN(K139)","v":1.3862943611198906}]
[null,null,"Active to TS",34.608173904714647,{"$f":"E136","v":55.699707162360241},28.576307728593246,{"$f":"G138","v":45.991793055781564},null,null,5,5,{"$f":"LN(K140)","v":1.6094379124341003}]
[null,null,"Active to closed",34.608173904714647,{"$f":"E136","v":55.699707162360241},18.356134047971167,{"$f":"G139","v":29.54305806252723},null,null,null,null,{"$f":"LOOKUP(I137,J136:J140,L136:L140)","v":1.0986122886681098}]
[]
[null,"Conservation and Heritage Factors"]
[null,"Active landfill",1]
[null,"Transfer Station",0.7]
[null,"Closed landfill",0.5]
[]
[1,5]
[2,4]
[3,3]
[4,2]
[5,1]
[]
[1,7]
[2,6]
[3,5]
[4,3]
[5,2]
[6,4]
[7,1]

{"sheet":"Greenhouse A","index":64,"n_rows":139,"n_cols":12,"rows_kept":139,"cut":false,"hidden":true,"merged":[]}
[]
[null,"GREENHOUSE GAS",null,"Existing","Mitigation sheet","Mitigation"]
[]
[null,null,"Max.",{"$f":"Data!B13","v":"Active landfill"},null,{"$f":"'Mitigation Data'!B13","v":"Mitigation of existing landfill"}]
[null,"Common Environmental & Operational"]
[null,"Rainfall",5,{"$f":"Data!G3","v":1},{"$f":"D6","v":1},{"$f":"IF(E6>D6,D6,E6)","v":1}]
[null,"No. rain days",5,{"$f":"Data!G10","v":1},1,{"$f":"IF(E7>D7,D7,E7)","v":1}]
[null,"Evaporation",5,{"$f":"Data!G17","v":1},1,{"$f":"IF(E8>D8,D8,E8)","v":1}]
[null,"Landfill gas monitoring extent",3,{"$f":"Data!S90","v":3},3,{"$f":"IF(E9>D9,D9,E9)","v":3}]
[null,"Landfill gas monitoring frequency",5,{"$f":"Data!S94","v":1},1,1]
[null,"Landfill gas measued concentrations",3,{"$f":"Data!S95","v":1},1,1]
[null,"Soil type subsurface",5,{"$f":"Data!W4","v":1},1,1]
[null,"Product",{"$f":"PRODUCT(C6:C12)","v":28125},{"$f":"PRODUCT(D6:D12)","v":3},null,{"$f":"PRODUCT(F6:F12)","v":3}]
[null,"Ln",{"$f":"LN(C13)","v":10.244414139506722},{"$f":"LN(D13)","v":1.0986122886681098},null,{"$f":"LN(F13)","v":1.0986122886681098}]
[null,"Normalised",{"$f":"C14/C14*100","v":100},{"$f":"D14/C14*100","v":10.724012849416189},null,{"$f":"F14/C14*100","v":10.724012849416189}]
[]
[null,"Active landfill"]
[null,"Age of facility",5,{"$f":"Data!C29","v":5},{"$f":"D18","v":5},{"$f":"IF(E18>D18,D18,E18)","v":5}]
[null,"Amount received",5,{"$f":"Data!C15","v":1},{"$f":"D19","v":1},{"$f":"IF(E19>D19,D19,E19)","v":1}]
[null,"Site signage",5,{"$f":"Data!AA5","v":5},{"$f":"'Mitigation Data'!AA5","v":5},5]
[null,"Themes",5,{"$f":"Data!AA17","v":5},{"$f":"'Mitigation Data'!AA17","v":5},5]
[null,"Waste disposal",5,{"$f":"Data!AB12","v":1},{"$f":"'Mitigation Data'!AA24","v":5},1]
[null,"Waste storage",2,{"$f":"Data!AC12","v":1},{"$f":"'Mitigation Data'!AE28","v":6},1]
[null,"Stormwater diversion",5,{"$f":"Data!AE80","v":5},{"$f":"D24","v":5},5]
[null,"FOGO service",5,{"$f":"Data!AF150","v":5},{"$f":"'Mitigation Data'!AF170","v":5},5]
[null,"Animal Carcasses",5,{"$f":"Data!AN6","v":1},{"$f":"'Mitigation Data'!AN6","v":1},1]
[null,"Biosolids",5,{"$f":"Data!AN7","v":1},{"$f":"'Mitigation Data'!AN7","v":1},1]
[null,"Number of active areas",5,{"$f":"Data!AL17","v":5},{"$f":"'Mitigation Data'!AL17","v":5},5]
[null,"Size of active area",6,{"$f":"Data!AL68","v":2},{"$f":"'Mitigation Data'!AL68","v":2},2]
[null,"Type of cover",5,{"$f":"Data!AL29","v":5},{"$f":"'Mitigation Data'!AL29","v":5},5]
[null,"Frequency of covering",5,{"$f":"Data!AL36","v":5},{"$f":"'Mitigation Data'!AL36","v":5},5]
[null,"Leachate capture",2,{"$f":"Data!AL59","v":2},{"$f":"'Mitigation Data'!AL59","v":2},2]
[null,"Landfill gas management",5,{"$f":"Data!AL76","v":2},{"$f":"'Mitigation Data'!AL76","v":2},2]
[null,"Product",{"$f":"PRODUCT(C19:C33)","v":5859375000},{"$f":"PRODUCT(D19:D33)","v":625000},null,{"$f":"PRODUCT(F19:F33)","v":625000}]
[null,"Ln",{"$f":"LN(C34)","v":22.491308779557151},{"$f":"LN(D34)","v":13.345506928718539},null,{"$f":"LN(F34)","v":13.345506928718539}]
[null,"Normalised",{"$f":"C35/C35*100","v":100},{"$f":"D35/C35*100","v":59.336284337746349},null,{"$f":"F35/C35*100","v":59.336284337746349}]
[]
[null,"Transfer station"]
[null,"Amount received",5,{"$f":"Data!C15","v":1},{"$f":"D39","v":1},{"$f":"IF(E39>D39,D39,E39)","v":1}]
[null,"Site signage",5,{"$f":"Data!AA5","v":5},{"$f":"'Mitigation Data'!AA5","v":5},{"$f":"IF(E40>D40,D40,E40)","v":5}]
[null,"Themes",5,{"$f":"Data!AA24","v":5},{"$f":"'Mitigation Data'!AA17","v":5},5]
[null,"Waste storage",2,{"$f":"Data!AC12","v":1},{"$f":"'Mitigation Data'!AC12","v":1},1]
[null,"Stormwater diversion",5,{"$f":"Data!AE80","v":5},{"$f":"'Mitigation Data'!AE85","v":5},5]
[null,"FOGO service",5,{"$f":"Data!AF150","v":5},{"$f":"'Mitigation Data'!AF170","v":5},5]
[null,"Under cover",2,{"$f":"Data!AQ15","v":2},{"$f":"'Mitigation Data'!AQ15","v":2},{"$f":"IF(E45>D45,D45,E45)","v":2}]
[null,null,{"$f":"PRODUCT(C39:C45)","v":12500},{"$f":"PRODUCT(D39:D45)","v":1250},null,{"$f":"PRODUCT(F39:F45)","v":1250}]
[null,"Ln",{"$f":"LN(C46)","v":9.4334839232903924},{"$f":"LN(D46)","v":7.1308988302963465},null,{"$f":"LN(F46)","v":7.1308988302963465}]
[null,"Normalised",{"$f":"C47/C47*100","v":100},{"$f":"D47/C47*100","v":75.591360395397743},null,{"$f":"F47/C47*100","v":75.591360395397743}]
[]
[null,"Closed landfill",null,null,null,{"$f":"IF(E50>D50,D50,E50)","v":0}]
[null,"Years in Operation",5,{"$f":"Data!AU3","v":5},{"$f":"'Mitigation Data'!AU3","v":5},5]
[null,"When Closed",5,{"$f":"LOOKUP(Data!AU10,A78:A82,B78:B82)","v":1},{"$f":"LOOKUP(Data!AU10,A78:A82,B78:B82)","v":1},1]
[null,"Amount received in last year",5,{"$f":"Data!AU17","v":5},{"$f":"'Mitigation Data'!AU17","v":5},5]
[null,"How capped",5,{"$f":"Data!AU31","v":5},{"$f":"'Mitigation Data'!AU31","v":5},5]
[null,"Monitoring repair of cap",5,{"$f":"Data!AU73","v":5},{"$f":"'Mitigation Data'!AU73","v":5},5]
[null,"Leachate management",5,{"$f":"Data!AU81","v":5},{"$f":"'Mitigation Data'!AU81","v":5},5]
[null,"Organic layer",2,{"$f":"Data!AU56","v":2},{"$f":"'Mitigation Data'!AU56","v":2},2]
[null,"Revegetation",5,{"$f":"Data!AU58","v":5},{"$f":"'Mitigation Data'!AU58","v":5},5]
[null,"Management of landfill gas",5,{"$f":"Data!AU88","v":5},{"$f":"'Mitigation Data'!AU138","v":5},5]
[null,"Closure plan",3,{"$f":"Data!$AU$95","v":2},{"$f":"'Mitigation Data'!$AU$145","v":2},{"$f":"IF(E60>D60,D60,E60)","v":2}]
[null,null,{"$f":"PRODUCT(C51:C59)","v":781250},{"$f":"PRODUCT(D51:D59)","v":156250},null,{"$f":"PRODUCT(F51:F59)","v":156250}]
[null,"Ln",{"$f":"LN(C61)","v":13.568650480032748},{"$f":"LN(D61)","v":11.959212567598648},null,{"$f":"LN(F61)","v":11.959212567598648}]
[null,"Normalised",{"$f":"C62/C62*100","v":100},{"$f":"D62/C62*100","v":88.138555748027386},null,{"$f":"F62/C62*100","v":88.138555748027386}]
[]
["Normaliser",null,null,"Pre",null,"Post"]
[{"$f":"'Groundwater A'!A138","v":160.94379124341003},null,"Active",{"$f":"E66/$A$66*100","v":8.8251325986600087},{"$f":"(D15+D36)*$C$74/2*L71","v":14.203502986541491},{"$f":"G66/$A$66*100","v":8.8251325986600087},{"$f":"(F15+F36)*$C$74/2*L71","v":14.203502986541491},null,"Indicator",1,1.5,{"$f":"LN(K66)","v":0.40546510810816438}]
[null,null,"TS",1.0872700299191584,{"$f":"(D15+D48)*$C$75/2*L71","v":1.749893607205252},1.0872700299191584,{"$f":"(F15+F48)*$C$75/2*L71","v":1.749893607205252},null,{"$f":"1","v":1},2,2,{"$f":"LN(K67)","v":0.69314718055994529}]
[null,null,"TS on closed",8.7172438365491214,{"$f":"MAX(E67,E69)","v":14.029862722474645},8.7172438365491214,{"$f":"MAX(G67,G69)","v":14.029862722474645},null,null,3,3,{"$f":"LN(K68)","v":1.0986122886681098}]
[null,null,"Closed",8.7172438365491214,{"$f":"(D15+D63)*$C$76/2*L71","v":14.029862722474645},8.7172438365491214,{"$f":"(F15+F63)*$C$76/2*L71","v":14.029862722474645},null,null,4,4,{"$f":"LN(K69)","v":1.3862943611198906}]
[null,null,"Active to TS",8.8251325986600087,{"$f":"E66","v":14.203502986541491},8.7172438365491214,{"$f":"G68","v":14.029862722474645},null,null,5,5,{"$f":"LN(K70)","v":1.6094379124341003}]
[null,null,"Active to closed",8.8251325986600087,{"$f":"E66","v":14.203502986541491},8.7172438365491214,{"$f":"G69","v":14.029862722474645},null,null,null,null,{"$f":"LOOKUP(I67,J66:J70,L66:L70)","v":0.40546510810816438}]
[]
[null,"Greenhouse gas factors"]
[null,"Active landfill",1]
[null,"Transfer Station",0.1]
[null,"Closed landfill",0.7]
[]
[1,5]
[2,4]
[3,3]
[4,2]
[5,1]
[]
[1,7]
[2,6]
[3,5]
[4,3]
[5,2]
[6,4]
[7,1]
[]
[]
[]
[]
[]
[]
[]
[]
[]
[]
[]
[]
[]
[]
[]
[]
[]
[]
[]
[]
[]
[]
[]
[]
[]
[]
[]
[]
[]
[]
[]
[]
[]
[]
[]
[]
[]
[]
[]
[]
[]
[]
[]
[]
[]
[]
[]
[]
[{"$f":"(C79+C32)*L143/2","v":0}]

{"sheet":"Data","index":65,"n_rows":204,"n_cols":50,"rows_kept":204,"cut":false,"hidden":true,"merged":[[0,35,0,36],[0,44,0,45],[0,47,0,48],[0,40,0,41],[0,20,0,21],[0,28,0,29],[0,16,0,17],[0,0,0,1],[0,8,0,9],[0,12,0,13],[0,4,0,5]]}
["Premises Details",null,null,null,"Meteorology",null,null,null,"Surrounding Landuse",null,null,null,"Topography",null,null,null,"Environmental I & M",null,null,null,"Surrounding Environment",null,null,null,null,"Community I, E & A",null,null,"Common Operational",null,null,null,null,null,null,"Landfill Specific",null,null,null,null,"Transfer Station Specific",null,null,null,"Closed Landfill",null,null,"Staff Training & Regulation"]
[]
[null,"Operator",null,null,null,"Rainfall",1,null,null,"Landuse",null,null,null,"Landform",5,null,null,"Site Selection",2,null,null,"Soils - surface",2,null,null,"Direction to facility",1,null,null,"Wastes - solid","D","S","Qty","Time",{"$f":"ROUND(MAX(AI4:AI11),0)","v":1},null,"Landfilled wastes","D","Qty",null,null,"Permanent",2,null,null,"Years in Operation",5,null,"Operator training",{"$f":"IF(AX14=0,5,6-AX14)","v":5}]
[null,{"$f":"Premises!E8","v":0},null,null,1,"< 400",null,null,1,"Industrial",null,null,1,"Mid Slope",null,null,null,"EIS / SEE / REF",2,null,null,"Soils - sub-surface",1,null,null,null,null,{"$f":"IF(AE4=TRUE,1,0)","v":0},{"$f":"IF(AF4=TRUE,1,0)","v":0},"Municipal waste",false,false,1,1,{"$f":"IF(AF4=FALSE,1,IF(AG4*AH4/5<1,1,AG4*AH4/5))","v":1},null,"Asbestos",false,1,null,null,null,null,null,1,"< 5",null,null,"On-the-job",false]
[null,null,null,null,2,"400 - 600",null,null,2,"Special purpose",null,null,2,"Lower Slope",null,null,null,"Environmental Audit",2,null,1,"Clay (CL, OL, CH, OH)",null,null,null,"Site signage",{"$f":"IF(AA16=0,5,6-AA16)","v":5},null,null,"Recyclables",false,false,1,1,{"$f":"IF(AF5=FALSE,1,IF(AG5*AH5/5<1,1,AG5*AH5/5))","v":1},null,"Clinical / pharmaceutical waste",false,1,null,null,"Method",4,null,2,"5 - 10",null,null,"Site-specific operating procedures",false]
[null,"Premises",null,null,3,"600 - 800",null,null,3,"Business",null,null,3,"Upper Slope",null,null,null,"Environmental Investigation",2,null,2,"Silt (ML, OL, MH, OH)",null,null,null,"Operating hours",false,{"$f":"IF(AE6=TRUE,1,0)","v":0},{"$f":"IF(AF6=TRUE,1,0)","v":0},"Commercial & industrial waste",false,false,1,1,1,null,"Animal carcasses / parts",false,1,{"$f":"IF(AL6=TRUE,AM6,1)","v":1},1,"Mobile Garbage Bin Bank",null,null,3,"10 - 20",null,null,"Earthmoving",false]
[null,{"$f":"Premises!E10","v":0},null,null,4,"800 - 1,000",null,null,4,"Rural",null,null,4,"Crest",null,null,null,"EMP",2,null,3,"Sand (SP, SW, SM, SC)",null,null,null,"Permitted wastes",false,null,null,"Construction & demolition waste",false,false,1,1,1,null,"Biosolids",false,3,{"$f":"IF(AL7=TRUE,AM7,1)","v":1},2,"Small bulk bins (< 5 cubic metres)",null,null,4,"20 - 40",null,null,"Waste facility operations",false]
[null,null,null,null,5,"> 1,000",null,null,5,"Recreation",null,null,5,"Flat / Floodplain",null,null,1,"Yes",null,null,4,"Gravel (GP, GW, GM ,GC)",null,null,null,"Fees/charges",false,{"$f":"IF(AE8=TRUE,1,0)","v":0},{"$f":"IF(AF8=TRUE,1,0)","v":0},"Garden & vegetation waste",false,false,1,1,1,null,"Contaminated soil",false,1,null,3,"Large bulk bins (> 5 cubic metres)",null,null,5,"> 40",null,null,"Pesticides",false]
[null,"Location",null,null,null,null,null,null,6,"Residential",null,null,null,null,null,null,2,"Unknown",null,null,5,"Unknown",null,null,null,"Fires prohibited",false,null,null,"Virgin excavated natural material",false,false,1,1,1,null,null,{"$f":"COUNTIF(AL4:AL8,\"=true\")","v":0},{"$f":"IF(AL9<>0,AN9,1)","v":1},{"$f":"ROUND(SUM(AM4:AM8)/5,0)","v":1},4,"Bunker / other method",null,null,null,null,null,null,"Fire fighting",false]
[null,{"$f":"Premises!E12","v":0},null,null,null,"No. rain days > 10mm",1,null,7,"Environment protection",null,null,null,null,null,null,3,"No",null,null,null,null,null,null,null,"Trespassing prohibited",false,null,null,"Scrap metal",false,false,1,1,1,null,"Landfilling",5,null,null,null,"Construction",3,null,null,"When Closed",5,null,"Haz substances",false]
[null,null,null,null,1,"< 10",null,null,null,null,null,null,null,null,null,null,null,null,null,null,null,"Erosion",1,null,null,"Contact",false,null,null,"Others",false,false,1,1,1,1,"Engineered cell",null,null,null,1,"Raised drop-off area",null,null,1,"<5",null,null,"Environmental monitoring",false]
[1,"Type",null,null,2,"10 - 20",null,null,null,"Buffer distances",null,null,null,null,null,null,{"$f":"IF(S12=2,5,IF(ROUND(S12+Q28,0)>5,5,ROUND(S12+Q28,0)))","v":5},"Groundwater monitoring",2,null,1,"Negligible to Slight (<50)",null,null,null,"Drop-off Locations",false,{"$f":"IF(SUM(AB4+AB6+AB8+AB26>0),5,1)","v":1},{"$f":"IF(SUM(AC4+AC6+AC8+AC26>0),2,1)","v":1},null,{"$f":"IF(AB12>0,5,1)","v":5},{"$f":"IF(COUNTIF(AF4:AF11,TRUE)>0,TRUE,FALSE)","v":false},null,null,null,2,"Deep trench (>2m deep)",null,null,null,2,"Concrete hardstand",null,null,2,"5 - 10",null,null,"Environmental management",false]
[".",{"$f":"IF(A12>2,\"Transfer station\",IF(A12=2,\"Closed landfill\",\"Active landfill\"))","v":"Active landfill"},null,null,3,"20 - 30",null,null,1,"> 5",null,null,null,null,null,null,{"$f":"S13/5","v":0},"No. Locations",null,null,2,"Moderate (50 - 200)",null,null,null,"Offences and penalties",false,null,null,"Tyres",false,false,1,1,{"$f":"IF(AF13=FALSE,1,IF(AG13*AH13/5<1,1,ROUND(AG13*AH13/5,0)))","v":1},3,"Shallow trench (<2m deep)",null,null,null,3,"No specific construction",null,null,3,"10 - 25",null,null,"Other",false]
[null,null,null,null,4,"30 - 40",null,null,2,"1 - 5",null,null,null,null,null,null,{"$f":"S14/3","v":0},"Distribution",null,null,3,"High (200 - 1,000)",null,null,null,"Conditions of receipt",false,null,null,null,{"$f":"IF(AE13=TRUE,5,1)","v":1},null,null,null,{"$f":"ROUND(MAX(AI15:AI17),0)","v":1},4,"Excavated pit / valley",null,null,null,null,null,null,null,4,"25 - 50",null,null,null,{"$f":"ROUND(COUNTIF(AX4:AX13, \"=true\")/2,0)","v":0}]
[null,"Amount received",1,null,5,">40",null,null,3,"0.5 - 1",null,null,null,null,null,null,{"$f":"S15/5","v":0},"Frequency",null,null,4,"Very High to Extreme (1,000 - >3,000)",null,null,null,"General",false,null,null,"Chemical containers",null,false,1,1,1,5,"Above ground fill / disposal",null,null,null,null,"Covered",2,null,5,"> 50",null,null,"Authorised officers",{"$f":"IF(AX18=0,3,IF(AX18=1,2,1))","v":3}]
[1,{"$f":"DR!C8","v":"0 - 100"},null,null,null,null,null,null,4,"0.25 - 0.5",null,null,null,null,null,null,{"$f":"S16/10","v":1},"Parameters",{"$f":"COUNTIF(S17:S26,\"=false\")","v":10},null,5,"Unknown",null,null,null,null,{"$f":"ROUND(COUNTIF(AA6:AA15, \"=true\")/2,0)","v":0},null,null,"Batteries",null,false,1,1,1,null,null,null,null,null,null,null,null,null,null,null,null,null,"On-site",2]
[2,{"$f":"DR!C9","v":"100 - 500"},null,null,null,"Evaporation",1,null,5,"< 0.25",null,null,null,null,null,null,null,"Level",false,null,null,null,null,null,null,"Communication",{"$f":"IF(AA23=0,5,6-AA23)","v":5},null,null,"Hazardous waste",null,false,1,1,1,null,"Active fill areas",5,null,null,null,"Lids",2,null,null,"Amount received",5,null,"For operator",2]
[3,{"$f":"DR!C10","v":"500 - 1,000"},null,null,1,">2,000",null,null,null,null,null,null,null,null,null,null,null,"pH",false,null,null,"Drinking water catchment",1,null,null,"Direct",false,null,null,null,null,{"$f":"IF(COUNTIF(AF15:AF17,TRUE)>0,TRUE,FALSE)","v":false},null,null,null,1,1,null,null,null,null,null,null,null,1,"0 - 100",null,null,null,{"$f":"COUNTIF(AX16:AX17,\"=1\")","v":0}]
[4,{"$f":"DR!C11","v":"1,000 - 2,500"},null,null,2,"1,800 - 2,000",null,null,null,"NE",{"$f":"IF(K23>5,5,ROUND(K23,0))","v":1},null,null,null,null,null,null,"EC",false,null,1,"No",null,null,null,"Operator print info",false,null,null,"Wastes - liquid",null,null,null,null,{"$f":"ROUND(MAX(AI20:AI26),0)","v":1},2,2,null,null,null,null,"Processing / sorting",2,null,2,"100 - 500",null,null,"Regulator enforcement activities",{"$f":"IF(AX25=0,5,6-AX25)","v":5}]
[5,{"$f":"DR!C12","v":"2,500 - 5,000"},null,null,3,"1,600 - 1,800",null,null,null,"Landuse",1,null,null,null,null,null,null,"Ammonia",false,null,2,"Unknown",null,null,null,"Internet",false,null,null,"Waste mineral oil",false,false,1,1,1,3,3,null,null,null,null,null,null,null,3,"500 - 1,000",null,null,"Verbal warning",false]
[null,null,null,null,4,"1,400 - 1,600",null,null,null,"Residence",1,{"$f":"K21","v":1},null,null,null,null,null,"Nitrate",false,null,3,"Yes",null,null,null,"Media",false,null,null,"Waste cooking oil",false,false,1,1,1,4,4,null,null,null,null,"Disposal",2,null,4,"1,000 - 2,500",null,null,"Warning letters",false]
[null,"Area",5,null,5,"< 1,400",null,null,null,"Residential Area",1,{"$f":"K22","v":1},null,null,null,null,null,"TOC",false,null,null,null,null,null,null,"Other",false,null,null,"Paint",false,false,1,1,1,5,"More than 4",null,null,null,1,"Licensed waste facility",null,null,5,"2,500 - 5,000",null,null,"Notices / orders",false]
[1,"<1,000",null,null,null,null,null,null,null,null,{"$f":"(SUM(K20:K22)/17*5)*K41","v":0.88235294117647067},null,null,null,null,null,null,"Alkalinity",false,null,null,null,null,null,null,null,{"$f":"ROUND(COUNTIF(AA18:AA22, \"=true\"),0)","v":0},null,null,"Grease trap waste",false,false,1,1,1,null,null,null,null,null,2,"Unlicensed waste facility",null,null,null,null,null,null,"Penalty infringement notice",false]
[2,"1,000 - 2,500",null,null,null,"Prevailing Wind Direction",1,{"$f":"LOOKUP(G24,G25:G40,H25:H40)","v":0.5},null,"SE",{"$f":"IF(K28>5,5,ROUND(K28,0))","v":1},null,null,null,null,null,null,"Iron",false,null,null,null,null,null,null,"Themes",{"$f":"IF(AA31=0,5,6-AA31)","v":5},null,null,"Oily water waste",false,false,1,1,1,null,"Compaction",3,null,null,null,null,null,null,null,"Disposal method",5,null,"Prosecution",false]
[3,"2,500 - 5,000",null,null,null,"N",1,0.5,null,"Landuse",1,null,null,null,null,null,null,"Pesticides",false,null,null,null,null,null,null,"General",false,null,null,"Septic waste",false,false,1,1,1,1,"Landfill compactor",null,null,null,null,"Closed landfill",2,null,1,"Engineered cell",null,null,null,{"$f":"ROUND(COUNTIF(AX20:AX24, \"=true\"),0)","v":0}]
[4,"5,000 - 10,000",null,null,null,"NNE",2,1,null,"Residence",1,{"$f":"K26","v":1},null,null,null,null,null,"Others",false,null,null,null,null,null,null,"Reduce, reuse, recycle",false,{"$f":"IF(COUNTIF(AE20:AE26,\"=true\">0),1,0)","v":0},{"$f":"IF(COUNTIF(AF20:AF26,\"=true\">0),1,0)","v":0},"Others",false,false,1,1,1,2,"Tracked plant (e.g. bulldozer)",null,null,null,null,null,null,null,2,"Deep trench (>2m deep)"]
[5,"> 10,000",null,null,null,"NE",3,1,null,"Residential Area",1,{"$f":"K27","v":1},null,null,null,null,{"$f":"S27/3","v":0},"Concerns",null,null,null,null,null,null,null,"Asbestos",false,null,null,null,{"$f":"IF(COUNTIF(AE23:AE26,\"=true\")>0,5,1)","v":1},{"$f":"COUNTIF(AF20:AF26,\"=true\")","v":0},{"$f":"COUNTIF(AF15:AF26,\"=true\")","v":0},null,null,3,"None",null,null,null,null,null,null,null,3,"Shallow trench (<2m deep)"]
[null,null,null,null,null,"ENE",4,1,null,null,{"$f":"(SUM(K25:K27)/17*5)*K51","v":1.1029411764705883},null,null,null,null,null,{"$f":"SUM(Q13:Q27)-1","v":0},null,null,null,null,null,null,null,null,"Hazardous / chem wastes",false,null,null,"Open to public",6,null,null,null,null,null,null,null,null,null,null,null,null,null,4,"Excavated pit"]
[null,"Age",5,null,null,"E",5,1.5,null,"SW",{"$f":"IF(K33>5,5,ROUND(K33,0))","v":1},null,null,null,null,null,{"$f":"IF(S29=2,5,IF(ROUND(S29+Q44,0)>5,5,ROUND(S29+Q44,0)))","v":5},"Surface water monitoring",2,null,null,null,null,null,null,"Illegal dumping",false,null,1,"Not open to the public",null,null,null,null,null,null,"Covering method",5,null,null,null,null,null,null,5,"Above ground fill / disposal"]
[1,"< 5",null,null,null,"ESE",6,2,null,"Landuse",1,null,null,null,null,null,{"$f":"S30/5","v":0},"No. Locations",null,null,null,"Slope",1,null,null,"Other",false,null,2,"Restricted hours, restricted days",null,null,null,null,null,1,"Geosynthetic material"]
[2,"5 - 10",null,null,null,"SE",7,2,null,"Residence",1,{"$f":"K31","v":1},null,null,null,null,{"$f":"S31/3","v":0},"Distribution",null,null,1,"0 - 2",null,null,null,null,{"$f":"ROUND(COUNTIF(AA25:AA30, \"=true\")/6*5,0)","v":0},null,3,"Restricted hours, 7 days per week",null,null,null,null,null,2,"Alternative material",null,null,null,null,null,null,null,null,"How Capped",5]
[3,"10 - 20",null,null,null,"SSE",8,2,null,"Residential Area",1,{"$f":"K32","v":1},null,null,null,null,{"$f":"S32/5","v":0},"Frequency",null,null,2,"2 - 5",null,null,null,null,null,null,4,"Daylight hours only, restricted days",null,null,null,null,null,3,"Imported clay material",null,null,null,null,null,null,null,1,"Membrane / geosynthetic material"]
[4,"20 - 40",null,null,null,"S",9,2.5,null,null,{"$f":"(SUM(K30:K32)/17*5)*K61","v":1.1029411764705883},null,null,null,null,null,{"$f":"S33/9","v":1},"Parameters",{"$f":"COUNTIF(S34:S42,\"=false\")","v":9},null,3,"5 - 10",null,null,null,null,null,null,5,"Daylight hours only, 7 days per week",null,null,null,null,null,4,"Imported material",null,null,null,null,null,null,null,2,"Imported clay material"]
[5,"> 40",null,null,null,"SSW",10,3,null,"NW",{"$f":"IF(K38>5,5,ROUND(K38,0))","v":1},null,null,null,null,null,null,"pH",false,null,4,"10 - 25",null,null,null,null,null,null,6,"24 hours, 7 days per week",null,null,null,null,null,5,"On-site material",null,null,null,null,null,null,null,3,"Imported material"]
[null,null,null,null,null,"SW",11,3,null,"Landuse",1,null,null,null,null,null,null,"EC",false,null,5,"> 25",null,null,null,null,null,null,null,null,null,null,null,null,null,null,null,null,null,null,null,null,null,null,4,"On-site material"]
[null,null,null,null,null,"WSW",12,3,null,"Residence",1,{"$f":"K36","v":1},null,null,null,null,null,"Ammonia",false,null,null,null,null,null,null,null,null,null,null,"Perimeter",5,null,null,null,null,null,"Frequency of covering",5,null,null,null,null,null,null,5,"No capping"]
[null,null,null,null,null,"W",13,3.5,null,"Residential Area",1,{"$f":"K37","v":1},null,null,null,null,null,"Nitrate",false,null,null,"Erosion",{"$f":"IF(W44=0,1,(ROUND(W44*5,0)))","v":1},null,null,null,null,null,1,"8ft security fence",null,null,null,null,null,1,"Very frequently (eg. daily)"]
[null,null,null,null,null,"WNW",14,4,null,null,{"$f":"(SUM(K35:K37)/17*5)*K71","v":0.88235294117647067},null,null,null,null,null,null,"TOC",false,null,null,"Wind",false,null,null,null,null,null,2,"6ft chainlink / colourbond fence",null,null,null,null,null,2,"Frequently (eg. weekly)",null,null,null,null,null,null,null,null,"Slope",5]
[null,null,null,null,null,"NW",15,4,null,"Max of above",{"$f":"MAX(K19,K24,K29,K34)","v":1},{"$f":"MAX(L19:L38)","v":1},null,null,null,null,null,"Alkalinity",false,null,null,"Sheet",false,null,null,null,null,null,3,"Stock fence",null,null,null,null,null,3,"Often (eg. monthly)",null,null,null,null,null,null,null,1,"0% - 2%"]
[null,"Proximity",null,null,null,"NNW",16,4,null,null,null,null,null,null,null,null,null,"Iron",false,null,null,"Rill",false,null,null,null,null,null,4,"Partial perimeter fence",null,null,null,null,null,4,"Infrequently (eg. quarterly)",null,null,null,null,null,null,null,2,"2% - 5%"]
[1,">100",null,null,null,null,null,null,null,"NE",{"$f":"LOOKUP($H$24,J42:J49,K42:K49)","v":1},null,null,null,null,null,null,"Pesticides",false,null,null,"Gully",false,null,null,null,null,null,5,"No perimeter fence",null,null,null,null,null,5,"Very infrequently to never (eg. annually or more)",null,null,null,null,null,null,null,3,"5% - 10%"]
[2,"50 - 100",null,null,null,"Calm",1,null,null,0.5,1,1,null,null,null,null,null,"Others",false,null,null,"Tunnel",false,null,null,null,null,null,null,null,null,null,null,null,null,null,null,null,null,null,null,null,null,null,4,"10% - 25%"]
[3,"25 - 50",null,null,1,"> 20",null,null,null,1,1,1,null,null,null,null,{"$f":"S43/3","v":0},"Concerns",null,null,null,"Mass movement",false,null,null,null,null,null,null,"Access security",5,null,null,null,null,null,"Filling Plan",2,null,null,null,null,null,null,5,"> 25%"]
[4,"<25",null,null,2,"15  - 20",null,null,null,1.5,1,1,null,null,null,null,{"$f":"SUM(Q30:Q43)-1","v":0},null,null,null,null,null,{"$f":"COUNTIF(W38:W43,\"=true\")/6","v":0},null,null,null,null,null,1,"8ft security gate"]
[5,"Within area",null,null,3,"10 - 15",null,null,null,2,1.1499999999999999,1.25,null,null,null,null,{"$f":"IF(S45=2,5,IF(ROUND(S45+Q58,0)>5,5,ROUND(S45+Q58,0)))","v":5},"Leachate",2,null,null,"Soil electrical conductivity",1,null,null,null,null,null,2,"6ft chainlink / colourbond gate",null,null,null,null,null,null,"Preparation",5,null,null,null,null,null,null,null,"Landuse",7]
[null,null,null,null,4,"5 - 10",null,null,null,2.5,1.25,1.5,null,null,null,null,{"$f":"S46/5","v":0},"Frequency",null,null,1,"<4",null,null,null,null,null,null,3,"Stock gate",null,null,null,null,null,1,"Geosynthetically lined",null,null,null,null,null,null,null,1,"Industrial"]
[null,"MLA",1,null,5,"< 5",null,null,null,3,1.5,2,null,null,null,null,{"$f":"S47/9","v":1},"Parameters",{"$f":"COUNTIF(S48:S56,\"=false\")","v":9},null,2,"4 - 8",null,null,null,null,null,null,4,"Retractable bollards",null,null,null,null,null,2,"Clay lined",null,null,null,null,null,null,null,2,"Special purpose"]
[null,null,null,null,null,null,null,null,null,3.5,1.25,1.5,null,null,null,null,null,"pH",false,null,3,"8 - 16",null,null,null,null,null,null,5,"Access not secured",null,null,null,null,null,3,"Ripped and compacted",null,null,null,null,null,null,null,3,"Business"]
[null,">5,000",4,null,null,"Mean wind speed",1,null,null,4,1.1499999999999999,1.25,null,null,null,null,null,"EC",false,null,4,">16",null,null,null,null,null,null,null,null,null,null,null,null,null,4,"Compacted",null,null,null,null,null,null,null,4,"Rural"]
[null,"RLA",1,null,1,"< 6",null,null,null,null,null,null,null,null,null,null,null,"Ammonia",false,null,null,null,null,null,null,null,null,null,null,"Additional security",{"$f":"IF(AE55=0,5,6-AE55)","v":5},null,null,null,null,5,"No preparation",null,null,null,null,null,null,null,5,"Recreation"]
[null,"Access to premises",1,null,2,"6 - 12",null,null,null,"SE",{"$f":"LOOKUP($H$24,J52:J59,K52:K59)","v":1.25},null,null,null,null,null,null,"Nitrate",false,null,null,"Acid Sulfate Soils",1,null,null,null,null,null,null,"Security patrols",false,null,null,null,null,null,null,null,null,null,null,null,null,null,6,"Residential"]
[1,"Other minor road",null,null,3,"12 - 20",null,null,null,0.5,1.25,1.5,null,null,null,null,null,"TOC",false,null,1,"No known occurence",null,null,null,null,null,null,null,"Video Surveillance",false,null,null,null,null,null,"Closed",5,null,null,null,null,null,null,7,"Environment protection"]
[2,"Local road",null,null,4,"20 - 29",null,null,null,1,1.1499999999999999,1.25,null,null,null,null,null,"Alkalinity",false,null,2,"Low probability > 1m from surface",null,null,null,null,null,null,null,"Covert Surveillance",false,null,null,null,null,1,"Geosynthetic material"]
[3,"Regional road",null,null,5,"> 29",null,null,null,1.5,1,1,null,null,null,null,null,"Iron",false,null,3,"Low probability < 1m from surface",null,null,null,null,null,null,null,"\"Dummy\" Surveillance",false,null,null,null,null,2,"Alternative material",null,null,null,null,null,null,null,null,"Structures",2]
[4,"State road",null,null,null,null,null,null,null,2,1,1,null,null,null,null,null,"Pesticides",false,null,4,"High probability > 1m from surface",null,null,null,null,null,null,null,null,{"$f":"ROUND(COUNTIF(AE51:AE54, \"=true\")/4*5,0)","v":0},null,null,null,null,3,"Imported clay material"]
[5,"Freeway / motorway",null,null,null,"Wind",{"$f":"ROUND((G49+G42)/2,0)","v":1},null,null,2.5,1,1,null,null,null,null,null,"Others",false,null,5,"High probability < 1m from surface",null,null,null,null,null,null,null,"Access control",5,null,null,null,null,4,"Imported material",null,null,null,null,null,null,null,null,"Organic Layer",2]
[null,null,null,null,null,null,null,null,null,3,1.1499999999999999,1.25,null,null,null,null,{"$f":"S57/3","v":0},"Concerns",null,null,null,null,null,null,null,null,null,null,1,"Access only permitted under operator supervision",null,null,null,null,null,5,"On-site material"]
[null,null,null,null,null,"October",{"$f":"IF(G64*G65/2<1,1,G64*G65/2)","v":1},null,null,3.5,1.25,1.5,null,null,null,null,{"$f":"(SUM(Q46:Q57)/3*5)-1","v":0.66666666666666652},null,null,null,null,"Distance to watercourse",2,null,null,null,null,null,2,"Swipe / data card access",null,null,null,null,null,null,null,null,null,null,null,null,null,null,null,"Revegetation",5]
[null,"Previous full use of E-RAMP",null,null,null,"Direction",1,{"$f":"LOOKUP(G59,$G$25:$G$40,$H$25:$H$40)","v":0.5},null,4,1.5,2,null,null,null,null,{"$f":"IF(S59=2,5,IF(ROUND(S59+Q69,0)>5,5,ROUND(S59+Q69,0)))","v":5},"Dust",2,null,1,"> 1,000",null,null,null,null,null,null,3,"Community accessed key system (sign-in / sign-out)",null,null,null,null,null,null,"Leachate capture",2,null,null,null,null,null,null,1,"Sown pasture grasses, shrubs and trees"]
[null,false,null,null,null,"NE",{"$f":"LOOKUP(H59,$J$42:$J$49,$L$42:$L$49)","v":1},null,null,null,null,null,null,null,null,null,{"$f":"S60/5","v":0},"No. Locations",null,null,2,"500 - 1,000",null,null,null,null,null,null,4,"Resident issued key system",null,null,null,null,null,null,null,null,null,null,null,null,null,null,2,"Sown pasture grasses and shrubs"]
[null,null,null,null,null,"SE",{"$f":"LOOKUP(H59,$J$52:$J$59,$L$52:$L$59)","v":1.5},null,null,"SW",{"$f":"LOOKUP($H$24,J62:J69,K62:K69)","v":1.25},null,null,null,null,null,{"$f":"S61/3","v":0},"Distribution",null,null,3,"250 - 500",null,null,null,null,null,null,5,"No control on access in place",null,null,null,null,null,{"$f":"IF(AL59=2,5,AL61)","v":5},"Leachate Management",3,null,null,null,null,null,null,3,"Sown pasture grasses"]
[null,"In progress - existing",null,null,null,"SW",{"$f":"LOOKUP(H59,$J$62:$J$69,$L$62:$L$69)","v":1.5},null,null,0.5,1.25,1.5,null,null,null,null,{"$f":"S62/5","v":0},"Frequency",null,null,4,"100 - 250",null,null,null,null,null,null,null,null,null,null,null,null,null,1,"Discharge to sewer",null,null,null,null,null,null,null,4,"Natural revegetation"]
[null,true,null,null,null,"NW",{"$f":"LOOKUP(H59,$J$72:$J$79,$L$72:$L$79)","v":1},null,null,1,1.5,2,null,null,null,null,{"$f":"S63/4","v":0},"Method",null,null,5,"< 100",null,null,null,null,null,null,null,"Site supervision",5,null,null,null,null,2,"Full containment and reuse/evaporation",null,null,null,null,null,null,null,5,"No revegetation"]
[null,null,null,null,null,"Speed",1,null,null,1.5,1.25,1.5,null,null,null,null,1,"High volume air sampling",null,null,null,null,null,null,null,null,null,null,1,"During all hours open to the public, with fees charged",null,null,null,null,null,3,"First flush containment"]
[null,"In progress - mitigation",null,null,null,"Calm",1,null,null,2,1.1499999999999999,1.25,null,null,null,null,2,"Low volume air sampling",null,null,null,"Groundwater vulnerability",2,null,null,null,null,null,2,"During all hours open to the public",null,null,null,null,null,4,"Discharge after sedimentation",null,null,null,null,null,null,null,2,"Monitoring",{"$f":"IF(AS65=2,5,AU73)","v":5}]
[null,true,null,null,null,null,null,null,null,2.5,1,1,null,null,null,null,3,"Gravimetric",null,null,1,"No",null,null,null,null,null,null,3,"During specific times, not all hours open to the public",null,null,null,null,null,5,"Nil / direct discharge",null,null,null,null,null,null,null,null,"Frequency",5]
[null,null,null,null,null,"November",{"$f":"IF(G73*G74/2<1,1,G73*G74/2)","v":1},null,null,3,1,1,null,null,null,null,4,"Visual observations",null,null,2,"Unknown",null,null,null,null,null,null,4,"Infrequently and/or irregularly",null,null,null,null,null,null,null,null,null,null,null,null,null,null,1,"Very frequently (eg. daily)"]
[null,"New",null,null,null,"Direction",1,{"$f":"LOOKUP(G68,$G$25:$G$40,$H$25:$H$40)","v":0.5},null,3.5,1,1,null,null,null,null,{"$f":"S68/3","v":0},"Concerns",null,null,3,"Yes",null,null,null,null,null,null,5,"No supervision undertaken",null,null,null,null,null,null,"Size of active areas",2,null,null,null,null,null,null,2,"Frequently (eg. weekly)"]
[null,true,null,null,null,"NE",{"$f":"LOOKUP(H68,$J$42:$J$49,$L$42:$L$49)","v":1},null,null,4,1.1499999999999999,1.25,null,null,null,null,{"$f":"SUM(Q60:Q63,Q68)-1","v":-1},null,null,null,null,null,null,null,null,null,null,null,null,null,null,null,null,null,null,1,"<100",null,null,null,null,null,null,null,3,"Often (eg. monthly)"]
[null,null,null,null,null,"SE",{"$f":"LOOKUP(H68,$J$52:$J$59,$L$52:$L$59)","v":1.5},null,null,null,null,null,null,null,null,null,{"$f":"IF(S70=2,5,IF(ROUND(S70+Q88,0)>5,5,ROUND(S70+Q88,0)))","v":5},"Noise",2,null,null,null,null,null,null,null,null,null,null,"Operators at premises",5,null,null,null,null,2,"100 - 250",null,null,null,null,null,null,null,4,"Infrequently (eg. quarterly)"]
[null,"Saved",null,null,null,"SW",{"$f":"LOOKUP(H68,$J$62:$J$69,$L$62:$L$69)","v":1.5},null,null,"NW",{"$f":"LOOKUP($H$24,J72:J79,K72:K79)","v":1},null,null,null,null,null,{"$f":"S71/5","v":0},"No. Locations",null,null,null,null,null,null,null,null,null,null,null,null,null,null,null,null,null,3,"250 - 500",null,null,null,null,null,null,null,5,"Very infrequently to never (eg. annually or more)"]
[null,false,null,null,null,"NW",{"$f":"LOOKUP(H68,$J$72:$J$79,$L$72:$L$79)","v":1},null,null,0.5,1,1,null,null,null,null,{"$f":"S72/3","v":0},"Location type",null,null,null,null,null,null,null,null,null,null,null,"Complaints",1,null,null,null,null,4,"500 - 1,000",null,null,null,null,null,null,null,null,"Procedures",2]
[null,null,null,null,null,"Speed",1,null,null,1,1.1499999999999999,1.25,null,null,null,null,1,"Nearest / most affected residence",null,null,null,"Depth to rock",3,null,null,null,null,null,null,null,null,null,null,null,null,5,"1,000 - 2,500",null,null,null,null,null,null,null,null,null,{"$f":"ROUND(SUM(AU66:AU72)/7*5,0)","v":5}]
[null,null,null,null,null,"Calm",1,null,null,1.5,1.25,1.5,null,null,null,null,2,"Boundary of premises",null,null,1,"> 50",null,null,null,null,null,null,null,"Uncontrolled fires",1,null,null,null,null,6,">2,500",null,null,null,null,null,null,null,null,"Treat runoff",5]
[null,"",null,null,null,null,null,null,null,2,1.5,2,null,null,null,null,3,"Arbitrary location",null,null,2,"25 - 50",null,null,null,null,null,null,null,null,null,null,null,null,null,null,null,null,null,null,null,null,null,null,1,"Discharge to sewer"]
[null,"",null,null,null,"December",{"$f":"IF(G82*G83/2<1,1,G82*G83/2)","v":1},null,null,2.5,1.25,1.5,null,null,null,null,{"$f":"S76/5","v":0},"Frequency",null,null,3,"Unknown",null,null,null,null,null,null,null,"Unlawful waste disposal (on premises)",1,null,null,null,null,null,"Landfill gas management",2,null,null,null,null,null,null,2,"Full containment and reuse/evaporation"]
[null,"",null,null,null,"Direction",1,{"$f":"LOOKUP(G77,$G$25:$G$40,$H$25:$H$40)","v":0.5},null,3,1.1499999999999999,1.25,null,null,null,null,{"$f":"S77/4","v":0},"Type of monitoring",null,null,4,"10 - 25",null,null,null,null,null,null,null,null,null,null,null,null,null,1,"No management",null,null,null,null,null,null,null,3,"First flush containment"]
[null,"",null,null,null,"NE",{"$f":"LOOKUP(H77,$J$42:$J$49,$L$42:$L$49)","v":1},null,null,3.5,1,1,null,null,null,null,1,"Sound level meter - Attended and unattended",null,null,5,"5 - 10",null,null,null,null,null,null,null,"Unlawful waste disposal (off premises)",1,null,null,null,null,2,"Passive venting",null,null,null,null,null,null,null,4,"Discharge after sedimentation"]
[null,"",null,null,null,"SE",{"$f":"LOOKUP(H77,$J$52:$J$59,$L$52:$L$59)","v":1.5},null,null,4,1,1,null,null,null,null,2,"Sound level meter - Attended only",null,null,6,"< 5",null,null,null,null,null,null,null,null,null,null,null,null,null,3,"Extraction and venting",null,null,null,null,null,null,null,5,"Nil / direct discharge"]
[null,"",null,null,null,"SW",{"$f":"LOOKUP(H77,$J$62:$J$69,$L$62:$L$69)","v":1.5},null,null,null,null,null,null,null,null,null,3,"Sound level meter - Unattended only",null,null,null,null,null,null,null,null,null,null,null,"Stormwater diversion",{"$f":"IF(AE84=0,5,6-AE84)","v":5},null,null,null,null,4,"Bio oxidation"]
[null,null,null,null,null,"NW",{"$f":"LOOKUP(H77,$J$72:$J$79,$L$72:$L$79)","v":1},null,null,"Vegetation",null,null,null,null,null,null,4,"Complaints information",null,null,null,"Depth to GW",3,null,null,null,null,null,null,"Perimeter",false,null,null,null,null,5,"Extraction and combustion",null,null,null,null,null,null,null,null,"Leachate Management",5]
[null,null,null,null,null,"Speed",1,null,1,"Saline wetland",null,null,null,null,null,null,{"$f":"S82/5","v":0},"Level",null,null,1,"> 50",null,null,null,null,null,null,null,"Disturbed",false,null,null,null,null,null,null,null,null,null,null,null,null,null,1,"Collection and discharge to sewer"]
[null,null,null,null,null,"Calm",1,null,2,"Freshwater wetland",null,null,null,null,null,null,1,"Less than background level",null,null,2,"25 - 50",null,null,null,null,null,null,null,"Waste",false,null,null,null,null,null,null,null,null,null,null,null,null,null,2,"Collection and reuse/evaporation"]
[null,null,null,null,null,null,null,null,3,"Forested wetland",null,null,null,null,null,null,2,"At / equivalent to background level",null,null,3,"Unknown",null,null,null,null,null,null,null,null,{"$f":"ROUND(COUNTIF(AE81:AE83, \"=true\")/3*5,0)","v":0},null,null,null,null,null,null,null,null,null,null,null,null,null,3,"Collection and storage"]
[null,null,null,null,null,"January",{"$f":"IF(G91*G92/2<1,1,G91*G92/2)","v":1},null,4,"Rainforest",null,null,null,null,null,null,3,"1 - 5 dB(A) above background level",null,null,4,"10 - 25",null,null,null,null,null,null,null,"Stormwater - undisturbed",5,null,null,null,null,null,null,null,null,null,null,null,null,null,4,"Collection and discharge after retention"]
[null,null,null,null,null,"Direction",1,{"$f":"LOOKUP(G86,$G$25:$G$40,$H$25:$H$40)","v":0.5},5,"Wet sclerophyll forest",null,null,null,null,null,null,4,">5 dB(A) above background level",null,null,5,"5 - 10",null,null,null,null,null,null,null,null,null,null,null,null,null,null,null,null,null,null,null,null,null,null,5,"No collection of leachate"]
[null,null,null,null,null,"NE",{"$f":"LOOKUP(H86,$J$42:$J$49,$L$42:$L$49)","v":1},null,6,"Alpine complex",null,null,null,null,null,null,5,"Unknown",null,null,6,"< 5",null,null,null,null,null,null,null,"Stormwater - disturbed",5]
[null,null,null,null,null,"SE",{"$f":"LOOKUP(H86,$J$52:$J$59,$L$52:$L$59)","v":1.5},null,7,"Modified (ie. developed, cropping, grazing)",null,null,null,null,null,null,{"$f":"SUM(Q71:Q72,Q76:Q77,Q82)-1","v":-1},null,null,null,null,null,null,null,null,null,null,null,null,null,null,null,null,null,null,null,null,null,null,null,null,null,null,null,null,"Landfill gas management",5]
[null,null,null,null,null,"SW",{"$f":"LOOKUP(H86,$J$62:$J$69,$L$62:$L$69)","v":1.5},null,8,"Heathland",null,null,null,null,null,null,{"$f":"IF(S89=2,5,IF(ROUND(S89+Q99,0)>5,5,ROUND(S89+Q99,0)))","v":5},"Landfill Gas",2,null,null,"Local GW use",{"$f":"IF(W96=0,1,(ROUND(W96*5,0)))","v":1},null,null,null,null,null,null,"Stormwater - waste",5,null,null,null,null,null,null,null,null,null,null,null,null,null,1,"Extraction and combustion"]
[null,null,null,null,null,"NW",{"$f":"LOOKUP(H86,$J$72:$J$79,$L$72:$L$79)","v":1},null,9,"Grassy woodland",null,null,null,null,null,null,{"$f":"S90/3","v":1},"Type of monitoring",{"$f":"COUNTIF(S91:S93,\"=false\")","v":3},null,null,"Domestic",false,null,null,null,null,null,null,null,null,null,null,null,null,null,null,null,null,null,null,null,null,null,2,"Bio oxidation"]
[null,null,null,null,null,"Speed",1,null,10,"Grassland",null,null,null,null,null,null,null,"Surface",false,null,null,"Stock / irrigation",false,null,null,null,null,null,null,"Methods",null,null,null,null,null,null,null,null,null,null,null,null,null,null,3,"Extraction and venting"]
[null,null,null,null,null,"Calm",1,null,11,"Arid shrubland",null,null,null,null,null,null,null,"Subsurface",false,null,null,"Industrial",false,null,null,null,null,null,1,"Discharge to sewer",null,null,null,null,null,null,null,null,null,null,null,null,null,null,4,"Passive venting"]
[null,null,null,null,null,null,null,null,12,"Semi-arid woodland",null,null,null,null,null,null,null,"Buildings",false,null,null,"Monitoring",false,null,null,null,null,null,2,"Full containment and reuse/evaporation",null,null,null,null,null,null,null,null,null,null,null,null,null,null,5,"No management"]
[null,null,null,null,null,"February",{"$f":"IF(G100*G101/2<1,1,G100*G101/2)","v":1},null,13,"Dry sclerophyll forest",null,null,null,null,null,null,{"$f":"S94/5","v":0.2},"Frequency",1,null,null,"Other",false,null,null,null,null,null,3,"First flush containment"]
[null,null,null,null,null,"Direction",1,{"$f":"LOOKUP(G95,$G$25:$G$40,$H$25:$H$40)","v":0.5},null,null,null,null,null,null,null,null,{"$f":"S95/3","v":0.33333333333333331},"Levels",1,null,null,"Not specified",false,null,null,null,null,null,4,"Discharge after sedimentation",null,null,null,null,null,null,null,null,null,null,null,null,null,null,null,"LCMP",2]
[null,null,null,null,null,"NE",{"$f":"LOOKUP(H95,$J$42:$J$49,$L$42:$L$49)","v":1},null,null,"Vegetation",null,null,null,null,null,null,1,"0%",null,null,null,null,{"$f":"COUNTIF(W90:W95,\"=true\")/6","v":0},null,null,null,null,null,5,"Nil / direct discharge",null,null,null,null,null,null,null,null,null,null,null,null,null,null,1,"Yes"]
[null,null,null,null,null,"SE",{"$f":"LOOKUP(H95,$J$52:$J$59,$L$52:$L$59)","v":1.5},null,null,"NE",1,null,null,null,null,null,2,"0% - 1.25%",null,null,null,"ACH",2,null,null,null,null,null,null,null,null,null,null,null,null,null,null,null,null,null,null,null,null,null,2,"Unknown"]
[null,null,null,null,null,"SW",{"$f":"LOOKUP(H95,$J$62:$J$69,$L$62:$L$69)","v":1.5},null,null,"SE",1,null,null,null,null,null,3,"> 1.25%",null,null,null,"Vulnerable or endangered species",2,null,null,null,null,null,null,"Trafficable surface",5,null,null,null,null,null,null,null,null,null,null,null,null,null,3,"No"]
[null,null,null,null,null,"NW",{"$f":"LOOKUP(H95,$J$72:$J$79,$L$72:$L$79)","v":1},null,null,"SW",1,null,null,null,null,null,{"$f":"(SUM(Q90,Q94,Q95)/3*5)-1","v":1.5555555555555554},null,null,null,null,null,null,null,null,null,null,null,1,"All surfaces (100%)"]
[null,null,null,null,null,"Speed",1,null,null,"NW",1,null,null,null,null,null,null,"No. Locations",null,null,null,null,null,null,null,null,null,null,2,"Most surfaces (up to 75%)"]
[null,null,null,null,null,"Calm",1,null,null,null,null,null,null,null,null,null,1,"More than 4",null,null,1,"No",null,null,null,null,null,null,3,"Some surfaces (up to 50%)"]
[null,null,null,null,null,null,null,null,null,"October",{"$f":"ROUND((G64+G65)/2,0)","v":1},null,null,null,null,null,2,"4",null,null,2,"Unknown",null,null,null,null,null,null,4,"Few surfaces (up to 25%)"]
[null,null,null,null,null,"March",{"$f":"IF(G109*G110/2<1,1,G109*G110/2)","v":1},null,null,"NE",{"$f":"$K$97*LOOKUP($H$59,$J$42:$J$49,$L$42:$L$49)+K102","v":2},{"$f":"ROUND(K103/31*8,0)","v":1},null,null,null,null,3,"3",null,null,3,"Yes",null,null,null,null,null,null,5,"No surfaces (0%)"]
[null,null,null,null,null,"Direction",1,{"$f":"LOOKUP(G104,$G$25:$G$40,$H$25:$H$40)","v":0.5},null,"SE",{"$f":"$K$98*LOOKUP($H$59,$J$52:$J$59,$L$52:$L$59)+K102","v":2.5},{"$f":"ROUND(K104/31*8,0)","v":1},null,null,null,null,4,"2"]
[null,null,null,null,null,"NE",{"$f":"LOOKUP(H104,$J$42:$J$49,$L$42:$L$49)","v":1},null,null,"SW",{"$f":"$K$99*LOOKUP($H$59,$J$62:$J$69,$L$62:$L$69)+K102","v":2.5},{"$f":"ROUND(K105/31*8,0)","v":1},null,null,null,null,5,"1",null,null,null,"National Park / Reserve",1,null,null,null,null,null,null,"Liquid / hazardous storage",1]
[null,null,null,null,null,"SE",{"$f":"LOOKUP(H104,$J$52:$J$59,$L$52:$L$59)","v":1.5},null,null,"NW",{"$f":"$K$100*LOOKUP($H$59,$J$72:$J$79,$L$72:$L$79)+K102","v":2},{"$f":"ROUND(K106/31*8,0)","v":1},null,null,null,null,null,null,null,null,null,"Protection / conservation zoned",1,null,null,null,null,null,1,"In concrete bunded area(s)"]
[null,null,null,null,null,"SW",{"$f":"LOOKUP(H104,$J$62:$J$69,$L$62:$L$69)","v":1.5},null,null,null,null,null,null,null,null,null,null,"Frequency",null,null,null,null,null,null,null,null,null,null,2,"On spill proof pallet(s)"]
[null,null,null,null,null,"NW",{"$f":"LOOKUP(H104,$J$72:$J$79,$L$72:$L$79)","v":1},null,null,"November",{"$f":"ROUND((G73+G74)/2,0)","v":1},null,null,null,null,null,1,"Monthly",null,null,null,null,null,null,null,null,null,null,3,"In earth bund(s)"]
[null,null,null,null,null,"Speed",1,null,null,"NE",{"$f":"$K$97*LOOKUP(H68,$J$42:$J$49,$L$42:$L$49)+K108","v":2},{"$f":"ROUND(K109/31*8,0)","v":1},null,null,null,null,2,"Quarterly",null,null,null,null,null,null,null,null,null,null,4,"On hardstand(s)"]
[null,null,null,null,null,"Calm",1,null,null,"SE",{"$f":"$K$98*LOOKUP(H68,$J$52:$J$59,$L$52:$L$59)+K108","v":2.5},{"$f":"ROUND(K110/31*8,0)","v":1},null,null,null,null,3,"Six-monthly",null,null,null,null,null,null,null,null,null,null,5,"On the ground"]
[null,null,null,null,null,null,null,null,null,"SW",{"$f":"$K$99*LOOKUP(H68,$J$62:$J$69,$L$62:$L$69)+K108","v":2.5},{"$f":"ROUND(K111/31*8,0)","v":1},null,null,null,null,4,"Annually"]
[null,null,null,null,null,null,null,null,null,"NW",{"$f":"$K$100*LOOKUP(H68,$J$72:$J$79,$L$72:$L$79)+K108","v":2},{"$f":"ROUND(K112/31*8,0)","v":1},null,null,null,null,5,"Greater than annually / infrequently",null,null,1,"> 5",null,null,null,null,null,null,null,"Under cover",1]
[null,null,null,null,null,null,null,null,null,null,null,null,null,null,null,null,null,null,null,null,2,"1 - 5"]
[null,null,null,null,null,null,null,null,null,"December",{"$f":"ROUND((G82+G83)/2,0)","v":1},null,null,null,null,null,null,"Location of water monitoring",null,null,3,"0.5 - 1",null,null,null,null,null,null,null,"Dust control",{"$f":"IF(AE119=0,5,6-AE119)","v":5}]
[null,null,null,null,null,null,null,null,null,"NE",{"$f":"$K$97*LOOKUP(H77,$J$42:$J$49,$L$42:$L$49)+K114","v":2},{"$f":"ROUND(K115/31*8,0)","v":1},null,null,null,null,1,"Up gradient and down gradient of premises",null,null,4,"0.25 - 0.5",null,null,null,null,null,null,null,"Minimise disturbance",false]
[null,null,null,null,null,null,null,null,null,"SE",{"$f":"$K$98*LOOKUP(H77,$J$52:$J$59,$L$52:$L$59)+K114","v":2.5},{"$f":"ROUND(K116/31*8,0)","v":1},null,null,null,null,2,"Down gradient of premises only",null,null,5,"< 0.25",null,null,null,null,null,null,null,"Windbreaks",false]
[null,null,null,null,null,null,null,null,null,"SW",{"$f":"$K$99*LOOKUP(H77,$J$62:$J$69,$L$62:$L$69)+K114","v":2.5},{"$f":"ROUND(K117/31*8,0)","v":1},null,null,null,null,3,"Up gradient of premises only",null,null,6,"Unknown",null,null,null,null,null,null,null,"Suppression sprays",false]
[null,null,null,null,null,null,null,null,null,"NW",{"$f":"$K$100*LOOKUP(H77,$J$72:$J$79,$L$72:$L$79)+K114","v":2},{"$f":"ROUND(K118/31*8,0)","v":1},null,null,null,null,null,null,null,null,null,null,null,null,null,null,null,null,null,"Other",false]
[null,null,null,null,null,null,null,null,null,null,null,null,null,null,null,null,null,"Location of dust monitoring",null,null,null,"Visibility",{"$f":"IF(W125=0,1,W125)","v":1},null,null,null,null,null,null,null,{"$f":"ROUND(COUNTIF(AE115:AE118, \"=true\")/4*5,0)","v":0}]
[null,null,null,null,null,null,null,null,null,"January",{"$f":"ROUND((G91+G92)/2,0)","v":1},null,null,null,null,null,1,"Up wind and down wind of premises",null,null,null,"Residences",false,null,null,null,null,null,null,"Litter control",{"$f":"IF(AE125=0,5,6-AE125)","v":5}]
[null,null,null,null,null,null,null,null,null,"NE",{"$f":"$K$97*LOOKUP(H86,$J$42:$J$49,$L$42:$L$49)+K120","v":2},{"$f":"ROUND(K121/31*8,0)","v":1},null,null,null,null,2,"Down wind of premises only",null,null,null,"Urban area",false,null,null,null,null,null,null,"Purpose built litter fences",false]
[null,null,null,null,null,null,null,null,null,"SE",{"$f":"$K$98*LOOKUP(H86,$J$52:$J$59,$L$52:$L$59)+K120","v":2.5},{"$f":"ROUND(K122/31*8,0)","v":1},null,null,null,null,3,"Up wind of premises only",null,null,null,"Highway",false,null,null,null,null,null,null,"Litter cages",false]
[null,null,null,null,null,null,null,null,null,"SW",{"$f":"$K$99*LOOKUP(H86,$J$62:$J$69,$L$62:$L$69)+K120","v":2.5},{"$f":"ROUND(K123/31*8,0)","v":1},null,null,null,null,null,null,null,null,null,"Main road",false,null,null,null,null,null,null,"Regular clean-up",false]
[null,null,null,null,null,null,null,null,null,"NW",{"$f":"$K$100*LOOKUP(H86,$J$72:$J$79,$L$72:$L$79)+K120","v":2},{"$f":"ROUND(K124/31*8,0)","v":1},null,null,null,null,null,"Concerns",null,null,null,"Lookout",false,null,null,null,null,null,null,"Other",false]
[null,null,null,null,null,null,null,null,null,null,null,null,null,null,null,null,1,"No",null,null,null,null,{"$f":"COUNTIF(W120:W124,\"=true\")","v":0},null,null,null,null,null,null,null,{"$f":"ROUND(COUNTIF(AE121:AE124, \"=true\")/4*5,0)","v":0}]
[null,null,null,null,null,null,null,null,null,"February",{"$f":"ROUND((G100+G101)/2,0)","v":1},null,null,null,null,null,2,"Unknown",null,null,null,null,null,null,null,null,null,null,null,"Operational days",3]
[null,null,null,null,null,null,null,null,null,"NE",{"$f":"$K$97*LOOKUP(H95,$J$42:$J$49,$L$42:$L$49)+K126","v":2},{"$f":"ROUND(K127/31*8,0)","v":1},null,null,null,null,3,"Yes",null,null,null,"Bush fire prone area",1,null,null,null,null,null,1,"Weekdays only"]
[null,null,null,null,null,null,null,null,null,"SE",{"$f":"$K$98*LOOKUP(H95,$J$52:$J$59,$L$52:$L$59)+K126","v":2.5},{"$f":"ROUND(K128/31*8,0)","v":1},null,null,null,null,null,null,null,null,1,"Not bush fire prone land",null,null,null,null,null,null,2,"Weekdays and weekends"]
[null,null,null,null,null,null,null,null,null,"SW",{"$f":"$K$99*LOOKUP(H95,$J$62:$J$69,$L$62:$L$69)+K126","v":2.5},{"$f":"ROUND(K129/31*8,0)","v":1},null,null,null,null,null,null,null,null,2,"Bush fire prone vegetation buffer",null,null,null,null,null,null,3,"Weekends only"]
[null,null,null,null,null,null,null,null,null,"NW",{"$f":"$K$100*LOOKUP(H95,$J$72:$J$79,$L$72:$L$79)+K126","v":2},{"$f":"ROUND(K130/31*8,0)","v":1},null,null,null,null,null,null,null,null,3,"Bush fire prone vegetation Category 2 or 3"]
[null,null,null,null,null,null,null,null,null,null,null,null,null,null,null,null,null,null,null,null,4,"Bush fire prone vegetation Category 1",null,null,null,null,null,null,null,"Operating hours",3]
[null,null,null,null,null,null,null,null,null,"March",{"$f":"ROUND((G109+G110)/2,0)","v":1},null,null,null,null,null,null,null,null,null,5,"Unknown",null,null,null,null,null,null,1,"Day only (7am to 6pm)"]
[null,null,null,null,null,null,null,null,null,"NE",{"$f":"$K$97*LOOKUP(H104,$J$42:$J$49,$L$42:$L$49)+K132","v":2},{"$f":"ROUND(K133/31*8,0)","v":1},null,null,null,null,null,null,null,null,null,null,null,null,null,null,null,null,2,"Day and evening (7am to 10pm)"]
[null,null,null,null,null,null,null,null,null,"SE",{"$f":"$K$98*LOOKUP(H104,$J$52:$J$59,$L$52:$L$59)+K132","v":2.5},{"$f":"ROUND(K134/31*8,0)","v":1},null,null,null,null,null,null,null,null,null,null,null,null,null,null,null,null,3,"24 hours"]
[null,null,null,null,null,null,null,null,null,"SW",{"$f":"$K$99*LOOKUP(H104,$J$62:$J$69,$L$62:$L$69)+K132","v":2.5},{"$f":"ROUND(K135/31*8,0)","v":1}]
[null,null,null,null,null,null,null,null,null,"NW",{"$f":"$K$100*LOOKUP(H104,$J$72:$J$79,$L$72:$L$79)+K132","v":2},{"$f":"ROUND(K136/31*8,0)","v":1},null,null,null,null,null,null,null,null,null,null,null,null,null,null,null,null,null,"Plant and Equipment",{"$f":"IF(AE147=0,1,6-AE147)","v":1}]
[null,null,null,null,null,null,null,null,null,null,null,null,null,null,null,null,null,null,null,null,null,null,null,null,null,null,null,null,null,"Bulldozer",false]
[null,null,null,null,null,null,null,null,null,null,"Max",{"$f":"MAX(L103:L136)","v":1},null,null,null,null,null,null,null,null,null,null,null,null,null,null,null,null,null,"Excavator",false]
[null,null,null,null,null,null,null,null,null,null,null,null,null,null,null,null,null,null,null,null,null,null,null,null,null,null,null,null,null,"Front end loader",false]
[null,null,null,null,null,null,null,null,null,null,null,null,null,null,null,null,null,null,null,null,null,null,null,null,null,null,null,null,null,"Landfill compactor",false]
[null,null,null,null,null,null,null,null,null,null,null,null,null,null,null,null,null,null,null,null,null,null,null,null,null,null,null,null,null,"Small plant",false]
[null,null,null,null,null,null,null,null,null,null,null,null,null,null,null,null,null,null,null,null,null,null,null,null,null,null,null,null,null,"Tipper truck",false]
[null,null,null,null,null,null,null,null,null,null,null,null,null,null,null,null,null,null,null,null,null,null,null,null,null,null,null,null,null,"Backhoe",false]
[null,null,null,null,null,null,null,null,null,null,null,null,null,null,null,null,null,null,null,null,null,null,null,null,null,null,null,null,null,"Garbage truck",false]
[null,null,null,null,null,null,null,null,null,null,null,null,null,null,null,null,null,null,null,null,null,null,null,null,null,null,null,null,null,"MRF",false]
[null,null,null,null,null,null,null,null,null,null,null,null,null,null,null,null,null,null,null,null,null,null,null,null,null,null,null,null,null,"Vehicle wash",false]
[null,null,null,null,null,null,null,null,null,null,null,null,null,null,null,null,null,null,null,null,null,null,null,null,null,null,null,null,null,null,{"$f":"ROUND(COUNTIF(AE137:AE146, \"=true\")/10*5,0)","v":0}]
[null,null,null,null,null,null,null,null,null,null,null,null,null,null,null,null,null,null,null,null,null,null,null,null,null,null,null,null,null,"Collection services",{"$f":"IF(AE153=0,5,6-AE153)","v":5}]
[null,null,null,null,null,null,null,null,null,null,null,null,null,null,null,null,null,null,null,null,null,null,null,null,null,null,null,null,null,"Mixed waste",false]
[null,null,null,null,null,null,null,null,null,null,null,null,null,null,null,null,null,null,null,null,null,null,null,null,null,null,null,null,null,"FOGO",false,{"$f":"IF(AE150=FALSE,5,1)","v":5}]
[null,null,null,null,null,null,null,null,null,null,null,null,null,null,null,null,null,null,null,null,null,null,null,null,null,null,null,null,null,"Recyclables",false]
[null,null,null,null,null,null,null,null,null,null,null,null,null,null,null,null,null,null,null,null,null,null,null,null,null,null,null,null,null,"Bulky",false]
[null,null,null,null,null,null,null,null,null,null,null,null,null,null,null,null,null,null,null,null,null,null,null,null,null,null,null,null,null,null,{"$f":"ROUND(COUNTIF(AE149:AE152, \"=true\")/4*5,0)","v":0}]
[null,null,null,null,null,null,null,null,null,null,null,null,null,null,null,null,null,null,null,null,null,null,null,null,null,null,null,null,null,"CRC",2]
[]
[null,null,null,null,null,null,null,null,null,null,null,null,null,null,null,null,null,null,null,null,null,null,null,null,null,null,null,null,null,"Pest Management",{"$f":"IF(AE163=0,5,6-AE163)","v":5}]
[null,null,null,null,null,null,null,null,null,null,null,null,null,null,null,null,null,null,null,null,null,null,null,null,null,null,null,null,null,"Mice/rats",false]
[null,null,null,null,null,null,null,null,null,null,null,null,null,null,null,null,null,null,null,null,null,null,null,null,null,null,null,null,null,"Cats/dogs",false]
[null,null,null,null,null,null,null,null,null,null,null,null,null,null,null,null,null,null,null,null,null,null,null,null,null,null,null,null,null,"Noxious weeds",false]
[null,null,null,null,null,null,null,null,null,null,null,null,null,null,null,null,null,null,null,null,null,null,null,null,null,null,null,null,null,"Pigs/goats",false]
[null,null,null,null,null,null,null,null,null,null,null,null,null,null,null,null,null,null,null,null,null,null,null,null,null,null,null,null,null,"Birds",false]
[null,null,null,null,null,null,null,null,null,null,null,null,null,null,null,null,null,null,null,null,null,null,null,null,null,null,null,null,null,"Flies/insects",false]
[null,null,null,null,null,null,null,null,null,null,null,null,null,null,null,null,null,null,null,null,null,null,null,null,null,null,null,null,null,null,{"$f":"ROUND(COUNTIF(AE157:AE162, \"=true\")/6*5,0)","v":0}]
[null,null,null,null,null,null,null,null,null,null,null,null,null,null,null,null,null,null,null,null,null,null,null,null,null,null,null,null,null,"Controlled burning",5]
[]
[null,null,null,null,null,null,null,null,null,null,null,null,null,null,null,null,null,null,null,null,null,null,null,null,null,null,null,null,null,"Main Fire Capacity",5]
[null,null,null,null,null,null,null,null,null,null,null,null,null,null,null,null,null,null,null,null,null,null,null,null,null,null,null,null,1,"Fire main / dedicated fire water storage"]
[null,null,null,null,null,null,null,null,null,null,null,null,null,null,null,null,null,null,null,null,null,null,null,null,null,null,null,null,2,"On-site dam(s)"]
[null,null,null,null,null,null,null,null,null,null,null,null,null,null,null,null,null,null,null,null,null,null,null,null,null,null,null,null,3,"Earthmoving equipment"]
[null,null,null,null,null,null,null,null,null,null,null,null,null,null,null,null,null,null,null,null,null,null,null,null,null,null,null,null,4,"Fire extinguishers"]
[null,null,null,null,null,null,null,null,null,null,null,null,null,null,null,null,null,null,null,null,null,null,null,null,null,null,null,null,5,"None"]
[]
[null,null,null,null,null,null,null,null,null,null,null,null,null,null,null,null,null,null,null,null,null,null,null,null,null,null,null,null,null,"Other fire management",{"$f":"IF(AE179=0,5,6-AE179)","v":5}]
[null,null,null,null,null,null,null,null,null,null,null,null,null,null,null,null,null,null,null,null,null,null,null,null,null,null,null,null,null,"RFS / NSWFB response plan",false]
[null,null,null,null,null,null,null,null,null,null,null,null,null,null,null,null,null,null,null,null,null,null,null,null,null,null,null,null,null,"Fire breaks",false]
[null,null,null,null,null,null,null,null,null,null,null,null,null,null,null,null,null,null,null,null,null,null,null,null,null,null,null,null,null,"Soil stockpiles",false]
[null,null,null,null,null,null,null,null,null,null,null,null,null,null,null,null,null,null,null,null,null,null,null,null,null,null,null,null,null,"Maintenance schedule",false]
[null,null,null,null,null,null,null,null,null,null,null,null,null,null,null,null,null,null,null,null,null,null,null,null,null,null,null,null,null,"Other",false]
[null,null,null,null,null,null,null,null,null,null,null,null,null,null,null,null,null,null,null,null,null,null,null,null,null,null,null,null,null,null,{"$f":"ROUND(COUNTIF(AE174:AE178, \"=true\"),0)","v":0}]
[null,null,null,null,null,null,null,null,null,null,null,null,null,null,null,null,null,null,null,null,null,null,null,null,null,null,null,null,null,"Procedures",{"$f":"IF(AE189=0,5,6-AE189)","v":5}]
[null,null,null,null,null,null,null,null,null,null,null,null,null,null,null,null,null,null,null,null,null,null,null,null,null,null,null,null,null,"General operation & management",false]
[null,null,null,null,null,null,null,null,null,null,null,null,null,null,null,null,null,null,null,null,null,null,null,null,null,null,null,null,null,"Waste screening",false]
[null,null,null,null,null,null,null,null,null,null,null,null,null,null,null,null,null,null,null,null,null,null,null,null,null,null,null,null,null,"Management of unlawfully disposed waste",false]
[null,null,null,null,null,null,null,null,null,null,null,null,null,null,null,null,null,null,null,null,null,null,null,null,null,null,null,null,null,"Fire response",false]
[null,null,null,null,null,null,null,null,null,null,null,null,null,null,null,null,null,null,null,null,null,null,null,null,null,null,null,null,null,"Environmental monitoring",false]
[null,null,null,null,null,null,null,null,null,null,null,null,null,null,null,null,null,null,null,null,null,null,null,null,null,null,null,null,null,"Pollution incident response",false]
[null,null,null,null,null,null,null,null,null,null,null,null,null,null,null,null,null,null,null,null,null,null,null,null,null,null,null,null,null,"Complaint response",false]
[null,null,null,null,null,null,null,null,null,null,null,null,null,null,null,null,null,null,null,null,null,null,null,null,null,null,null,null,null,"Other ",false]
[null,null,null,null,null,null,null,null,null,null,null,null,null,null,null,null,null,null,null,null,null,null,null,null,null,null,null,null,null,null,{"$f":"ROUND(COUNTIF(AE181:AE188, \"=true\")/8*5,0)","v":0}]
[null,null,null,null,null,null,null,null,null,null,null,null,null,null,null,null,null,null,null,null,null,null,null,null,null,null,null,null,null,"Emergency services attendance",1]
[]
[null,null,null,null,null,null,null,null,null,null,null,null,null,null,null,null,null,null,null,null,null,null,null,null,null,null,null,null,null,"Frequency"]
[null,null,null,null,null,null,null,null,null,null,null,null,null,null,null,null,null,null,null,null,null,null,null,null,null,null,null,null,1,"Very infrequently to never (eg. annually or more)"]
[null,null,null,null,null,null,null,null,null,null,null,null,null,null,null,null,null,null,null,null,null,null,null,null,null,null,null,null,2,"Infrequently (eg. quarterly)"]
[null,null,null,null,null,null,null,null,null,null,null,null,null,null,null,null,null,null,null,null,null,null,null,null,null,null,null,null,3,"Often (eg. monthly)"]
[null,null,null,null,null,null,null,null,null,null,null,null,null,null,null,null,null,null,null,null,null,null,null,null,null,null,null,null,4,"Frequently (eg. weekly)"]
[null,null,null,null,null,null,null,null,null,null,null,null,null,null,null,null,null,null,null,null,null,null,null,null,null,null,null,null,5,"Very frequently (eg. daily)"]
[]
[null,null,null,null,null,null,null,null,null,null,null,null,null,null,null,null,null,null,null,null,null,null,null,null,null,null,null,null,null,"Operator at premises"]
[null,null,null,null,null,null,null,null,null,null,null,null,null,null,null,null,null,null,null,null,null,null,null,null,null,null,null,null,1,"Very frequently (eg. daily)"]
[null,null,null,null,null,null,null,null,null,null,null,null,null,null,null,null,null,null,null,null,null,null,null,null,null,null,null,null,2,"Frequently (eg. weekly)"]
[null,null,null,null,null,null,null,null,null,null,null,null,null,null,null,null,null,null,null,null,null,null,null,null,null,null,null,null,3,"Often (eg. monthly)"]
[null,null,null,null,null,null,null,null,null,null,null,null,null,null,null,null,null,null,null,null,null,null,null,null,null,null,null,null,4,"Infrequently (eg. quarterly)"]
[null,null,null,null,null,null,null,null,null,null,null,null,null,null,null,null,null,null,null,null,null,null,null,null,null,null,null,null,5,"Very infrequently to never (eg. annually or more)"]

{"sheet":"Mitigation Data","index":66,"n_rows":723,"n_cols":50,"rows_kept":723,"cut":false,"hidden":true,"merged":[[0,16,0,17],[0,0,0,1],[0,8,0,9],[0,12,0,13],[0,4,0,5],[0,20,0,21],[0,28,0,29],[0,35,0,36],[0,44,0,45],[0,47,0,48],[0,40,0,41]]}
["Premises Details",null,null,null,"Meteorology",null,null,null,"Surrounding Landuse",null,null,null,"Topography",null,null,null,"Environmental I & M",null,null,null,"Surrounding Environment",null,null,null,null,"Community I, E & A",null,null,"Common Operational",null,null,null,null,null,null,"Landfill Specific",null,null,null,null,"Transfer Station Specific",null,null,null,"Closed Landfill",null,null,"Staff Training & Regulation"]
[]
[9,"Counter",null,null,null,{"$f":"Data!F3","v":"Rainfall"},{"$f":"Data!G3","v":1},null,null,{"$f":"Data!J3","v":"Landuse"},null,null,null,{"$f":"Data!N3","v":"Landform"},{"$f":"Data!O3","v":5},null,null,{"$f":"Data!R3","v":"Site Selection"},{"$f":"Data!S3","v":2},null,null,{"$f":"Data!V3","v":"Soils - surface"},{"$f":"Data!W3","v":2},null,null,{"$f":"Data!Z3","v":"Direction to facility"},{"$f":"Data!AA3","v":1},null,null,{"$f":"Data!AD3","v":"Wastes - solid"},{"$f":"Data!AE3","v":"D"},{"$f":"Data!AF3","v":"S"},{"$f":"Data!AG3","v":"Qty"},{"$f":"Data!AH3","v":"Time"},{"$f":"ROUND(MAX(AI4:AI11),0)","v":1},null,{"$f":"Data!AK3","v":"Landfilled wastes"},{"$f":"Data!AL3","v":"D"},{"$f":"Data!AM3","v":"Qty"},null,null,{"$f":"Data!AP3","v":"Permanent"},2,null,null,{"$f":"Data!AT3","v":"Years in Operation"},5,null,{"$f":"Data!AW3","v":"Operator training"},{"$f":"IF(AX14=0,5,6-AX14)","v":5}]
[null,null,{"$f":"OR(C5=TRUE,C7=TRUE)","v":false},null,{"$f":"Data!E4","v":1},{"$f":"Data!F4","v":"< 400"},null,null,{"$f":"Data!I4","v":1},{"$f":"Data!J4","v":"Industrial"},null,null,{"$f":"Data!M4","v":1},{"$f":"Data!N4","v":"Mid Slope"},null,null,null,{"$f":"Data!R4","v":"EIS / SEE / REF"},{"$f":"Data!S4","v":2},null,null,{"$f":"Data!V4","v":"Soils - sub-surface"},{"$f":"Data!W4","v":1},null,null,null,null,{"$f":"IF(AE4=TRUE,1,0)","v":0},{"$f":"IF(AF4=TRUE,1,0)","v":0},{"$f":"Data!AD4","v":"Municipal waste"},false,false,1,1,{"$f":"IF(AF4=FALSE,1,IF(AG4*AH4/5<1,1,AG4*AH4/5))","v":1},null,{"$f":"Data!AK4","v":"Asbestos"},false,1,null,null,null,null,null,{"$f":"Data!AS4","v":1},{"$f":"Data!AT4","v":"< 5"},null,null,{"$f":"Data!AW4","v":"On-the-job"},false]
[null,"Active to closed",{"$f":"AND($A$10=1,$A$12=2)","v":false},null,{"$f":"Data!E5","v":2},{"$f":"Data!F5","v":"400 - 600"},null,null,{"$f":"Data!I5","v":2},{"$f":"Data!J5","v":"Special purpose"},null,null,{"$f":"Data!M5","v":2},{"$f":"Data!N5","v":"Lower Slope"},null,null,null,{"$f":"Data!R5","v":"Environmental Audit"},2,null,{"$f":"Data!U5","v":1},{"$f":"Data!V5","v":"Clay (CL, OL, CH, OH)"},null,null,null,{"$f":"Data!Z5","v":"Site signage"},{"$f":"IF(AA16=0,5,6-AA16)","v":5},null,null,{"$f":"Data!AD5","v":"Recyclables"},false,false,1,1,{"$f":"IF(AF5=FALSE,1,IF(AG5*AH5/5<1,1,AG5*AH5/5))","v":1},null,{"$f":"Data!AK5","v":"Clinical / pharmaceutical waste"},false,1,null,null,{"$f":"Data!AP5","v":"Method"},4,null,{"$f":"Data!AS5","v":2},{"$f":"Data!AT5","v":"5 - 10"},null,null,{"$f":"Data!AW5","v":"Site-specific operating procedures"},false]
[null,"Active to TS",{"$f":"AND($A$10=1,$A$12=3)","v":false},null,{"$f":"Data!E6","v":3},{"$f":"Data!F6","v":"600 - 800"},null,null,{"$f":"Data!I6","v":3},{"$f":"Data!J6","v":"Business"},null,null,{"$f":"Data!M6","v":3},{"$f":"Data!N6","v":"Upper Slope"},null,null,null,{"$f":"Data!R6","v":"Environmental Investigation"},2,null,{"$f":"Data!U6","v":2},{"$f":"Data!V6","v":"Silt (ML, OL, MH, OH)"},null,null,null,{"$f":"Data!Z6","v":"Operating hours"},false,{"$f":"IF(AE6=TRUE,1,0)","v":0},{"$f":"IF(AF6=TRUE,1,0)","v":0},{"$f":"Data!AD6","v":"Commercial & industrial waste"},false,false,1,1,1,null,{"$f":"Data!AK6","v":"Animal carcasses / parts"},false,1,{"$f":"IF(AL6=TRUE,AM6,1)","v":1},{"$f":"Data!AO6","v":1},{"$f":"IF($AQ$6<=AO6,\"No change proposed\",Data!AP6)","v":"Mobile Garbage Bin Bank"},{"$f":"Data!AQ5","v":4},null,{"$f":"Data!AS6","v":3},{"$f":"Data!AT6","v":"10 - 20"},null,null,{"$f":"Data!AW6","v":"Earthmoving"},false]
[null,"Closed",{"$f":"AND($A$10=2)","v":false},null,{"$f":"Data!E7","v":4},{"$f":"Data!F7","v":"800 - 1,000"},null,null,{"$f":"Data!I7","v":4},{"$f":"Data!J7","v":"Rural"},null,null,{"$f":"Data!M7","v":4},{"$f":"Data!N7","v":"Crest"},null,null,null,{"$f":"Data!R7","v":"EMP"},2,null,{"$f":"Data!U7","v":3},{"$f":"Data!V7","v":"Sand (SP, SW, SM, SC)"},null,null,null,{"$f":"Data!Z7","v":"Permitted wastes"},false,null,null,{"$f":"Data!AD7","v":"Construction & demolition waste"},false,false,1,1,1,null,{"$f":"Data!AK7","v":"Biosolids"},false,3,{"$f":"IF(AL7=TRUE,AM7,1)","v":1},{"$f":"Data!AO7","v":2},{"$f":"IF($AQ$6<=AO7,\"No change proposed\",Data!AP7)","v":"Small bulk bins (< 5 cubic metres)"},null,null,{"$f":"Data!AS7","v":4},{"$f":"Data!AT7","v":"20 - 40"},null,null,{"$f":"Data!AW7","v":"Waste facility operations"},false]
[null,"TS on closed",{"$f":"AND($A$10=3,$AQ$25=1)","v":false},null,{"$f":"Data!E8","v":5},{"$f":"Data!F8","v":"> 1,000"},null,null,{"$f":"Data!I8","v":5},{"$f":"Data!J8","v":"Recreation"},null,null,{"$f":"Data!M8","v":5},{"$f":"Data!N8","v":"Flat / Floodplain"},null,null,1,{"$f":"Data!R8","v":"Yes"},null,null,{"$f":"Data!U8","v":4},{"$f":"Data!V8","v":"Gravel (GP, GW, GM ,GC)"},null,null,null,{"$f":"Data!Z8","v":"Fees/charges"},false,{"$f":"IF(AE8=TRUE,1,0)","v":0},{"$f":"IF(AF8=TRUE,1,0)","v":0},{"$f":"Data!AD8","v":"Garden & vegetation waste"},false,false,1,1,1,null,{"$f":"Data!AK8","v":"Contaminated soil"},false,1,null,{"$f":"Data!AO8","v":3},{"$f":"IF($AQ$6<=AO8,\"No change proposed\",Data!AP8)","v":"Large bulk bins (> 5 cubic metres)"},null,null,{"$f":"Data!AS8","v":5},{"$f":"Data!AT8","v":"> 40"},null,null,{"$f":"Data!AW8","v":"Pesticides"},false]
[null,null,{"$f":"OR(C5=TRUE,C6=TRUE, C7=TRUE, C8=TRUE)","v":false},null,null,null,null,null,{"$f":"Data!I9","v":6},{"$f":"Data!J9","v":"Residential"},null,null,null,null,null,null,2,"No",null,null,{"$f":"Data!U9","v":5},{"$f":"Data!V9","v":"Unknown"},null,null,null,{"$f":"Data!Z9","v":"Fires prohibited"},false,null,null,{"$f":"Data!AD9","v":"Virgin excavated natural material"},false,false,1,1,1,null,null,{"$f":"COUNTIF(AL4:AL8,\"=true\")","v":0},{"$f":"IF(AL9<>0,AN9,1)","v":1},{"$f":"ROUND(SUM(AM4:AM8)/5,0)","v":1},4,{"$f":"IF($AQ$6<=AO9,\"No change proposed\",Data!AP9)","v":"No change proposed"},null,null,null,null,null,null,{"$f":"Data!AW9","v":"Fire fighting"},false]
[{"$f":"Data!A12","v":1},"Facility type",null,null,null,{"$f":"Data!F10","v":"No. rain days > 10mm"},{"$f":"Data!G10","v":1},null,{"$f":"Data!I10","v":7},{"$f":"Data!J10","v":"Environment protection"},null,null,null,null,null,null,null,null,null,null,null,null,null,null,null,{"$f":"Data!Z10","v":"Trespassing prohibited"},false,null,null,{"$f":"Data!AD10","v":"Scrap metal"},false,false,1,1,1,null,{"$f":"Data!AK10","v":"Landfilling"},5,null,null,null,{"$f":"Data!AP10","v":"Construction"},3,null,null,{"$f":"Data!AT10","v":"When Closed"},5,null,{"$f":"Data!AW10","v":"Haz substances"},false]
[".",{"$f":"IF(A10>2,\"Transfer Station\",IF(A10=2,\"Closed Landfill\",\"Active Landfill\"))","v":"Active Landfill"},null,null,{"$f":"Data!E11","v":1},{"$f":"Data!F11","v":"< 10"},null,null,null,null,null,null,null,null,null,null,null,null,null,null,null,{"$f":"Data!V11","v":"Erosion"},{"$f":"Data!W11","v":1},null,null,{"$f":"Data!Z11","v":"Contact"},false,null,null,{"$f":"Data!AD11","v":"Others"},false,false,1,1,1,{"$f":"Data!AJ11","v":1},{"$f":"IF($AL$11<=AJ11,\"No change proposed\",Data!AK11)","v":"Engineered cell"},{"$f":"Data!AL10","v":5},null,null,{"$f":"Data!AO11","v":1},{"$f":"IF($AQ$11<=AO11,\"No change proposed\",Data!AP11)","v":"Raised drop-off area"},{"$f":"IF(Data!$A$12=1,4,Data!AQ10)","v":4},null,{"$f":"Data!AS11","v":1},{"$f":"Data!AT11","v":"<5"},null,null,{"$f":"Data!AW11","v":"Environmental monitoring"},false]
[1,"Mitigation type",null,null,{"$f":"Data!E12","v":2},{"$f":"Data!F12","v":"10 - 20"},null,null,null,{"$f":"Data!J12","v":"Buffer distances"},null,null,null,null,null,null,{"$f":"IF(S12=2,5,IF(ROUND(S12+Q41,0)>5,5,ROUND(S12+Q41,0)))","v":5},{"$f":"Data!R12","v":"Groundwater monitoring"},2,null,{"$f":"Data!U12","v":1},{"$f":"Data!V12","v":"Negligible to Slight (<50)"},null,null,null,{"$f":"Data!Z12","v":"Drop-off Locations"},false,{"$f":"IF(SUM(AB4+AB6+AB8+AB26>0),5,1)","v":1},{"$f":"IF(SUM(AC4+AC6+AC8+AC26>0),2,1)","v":1},null,{"$f":"IF(AC12>0,5,1)","v":5},{"$f":"IF(COUNTIF(AF4:AF11,TRUE)>0,TRUE,FALSE)","v":false},null,null,null,{"$f":"Data!AJ12","v":2},{"$f":"IF($AL$11<=AJ12,\"No change proposed\",Data!AK12)","v":"Deep trench (>2m deep)"},null,null,null,{"$f":"Data!AO12","v":2},{"$f":"IF($AQ$11<=AO12,\"No change proposed\",Data!AP12)","v":"Concrete hardstand"},null,null,{"$f":"Data!AS12","v":2},{"$f":"Data!AT12","v":"5 - 10"},null,null,{"$f":"Data!AW12","v":"Environmental management"},false]
[null,{"$f":"IF(A10>1,IF(A10=2,\"Mitigation of existing landfill\",\"Mitigation of existing transfer station\"),IF(A12>2,\"Close landfill & establish transfer station\",IF(A12=2,\"Close landfill\",\"Mitigation of existing landfill\")))","v":"Mitigation of existing landfill"},null,null,{"$f":"Data!E13","v":3},{"$f":"Data!F13","v":"20 - 30"},null,null,{"$f":"Data!I13","v":1},{"$f":"Data!J13","v":"> 5"},null,null,null,null,null,null,{"$f":"S13/5","v":0},{"$f":"Data!R13","v":"No. Locations"},null,null,{"$f":"Data!U13","v":2},{"$f":"Data!V13","v":"Moderate (50 - 200)"},null,null,null,{"$f":"Data!Z13","v":"Offences and penalties"},false,null,null,{"$f":"Data!AD13","v":"Tyres"},false,false,1,1,{"$f":"IF(AF13=FALSE,1,IF(AG13*AH13/5<1,1,ROUND(AG13*AH13/5,0)))","v":1},{"$f":"Data!AJ13","v":3},{"$f":"IF($AL$11<=AJ13,\"No change proposed\",Data!AK13)","v":"Shallow trench (<2m deep)"},null,null,null,{"$f":"Data!AO13","v":3},{"$f":"IF($AQ$11<=AO13,\"No change proposed\",Data!AP13)","v":"No specific construction"},null,null,{"$f":"Data!AS13","v":3},{"$f":"Data!AT13","v":"10 - 25"},null,null,{"$f":"Data!AW13","v":"Other"},false]
[null,null,null,null,{"$f":"Data!E14","v":4},{"$f":"Data!F14","v":"30 - 40"},null,null,{"$f":"Data!I14","v":2},{"$f":"Data!J14","v":"1 - 5"},null,null,null,null,null,null,1,{"$f":"IF($S$14<=Q14,\"No change proposed\",R161)","v":"More than 4"},{"$f":"IF(Data!$S$12=1,Data!S13, 6)","v":6},null,{"$f":"Data!U14","v":3},{"$f":"Data!V14","v":"High (200 - 1,000)"},null,null,null,{"$f":"Data!Z14","v":"Conditions of receipt"},false,null,null,null,{"$f":"IF(AE13=TRUE,5,1)","v":1},null,null,null,{"$f":"ROUND(MAX(AI15:AI17),0)","v":1},{"$f":"Data!AJ14","v":4},{"$f":"IF($AL$11<=AJ14,\"No change proposed\",Data!AK14)","v":"Excavated pit / valley"},null,null,null,null,null,null,null,{"$f":"Data!AS14","v":4},{"$f":"Data!AT14","v":"25 - 50"},null,null,null,{"$f":"ROUND(COUNTIF(AX4:AX13, \"=true\")/2,0)","v":0}]
[null,{"$f":"Data!B15","v":"Amount received"},{"$f":"IF(A10=1,IF(A12=2,1,Data!C15),Data!C15)","v":1},null,{"$f":"Data!E15","v":5},{"$f":"Data!F15","v":">40"},null,null,{"$f":"Data!I15","v":3},{"$f":"Data!J15","v":"0.5 - 1"},null,null,null,null,null,null,2,{"$f":"IF($S$14<=Q15,\"No change proposed\",R162)","v":"4"},null,null,{"$f":"Data!U15","v":4},{"$f":"Data!V15","v":"Very High to Extreme (1,000 - >3,000)"},null,null,null,{"$f":"Data!Z15","v":"General"},false,null,null,{"$f":"Data!AD15","v":"Chemical containers"},null,false,1,1,1,{"$f":"Data!AJ15","v":5},{"$f":"IF($AL$11<=AJ15,\"No change proposed\",Data!AK15)","v":"No change proposed"},null,null,null,null,{"$f":"Data!AP15","v":"Covered"},2,null,{"$f":"Data!AS15","v":5},{"$f":"Data!AT15","v":"> 50"},null,null,{"$f":"Data!AW15","v":"Authorised officers"},{"$f":"IF(AX18=0,3,IF(AX18=1,2,1))","v":3}]
[{"$f":"Data!A16","v":1},{"$f":"DR!C8","v":"0 - 100"},null,null,null,null,null,null,{"$f":"Data!I16","v":4},{"$f":"Data!J16","v":"0.25 - 0.5"},null,null,null,null,null,null,3,{"$f":"IF($S$14<=Q16,\"No change proposed\",R163)","v":"3"},null,null,{"$f":"Data!U16","v":5},{"$f":"Data!V16","v":"Unknown"},null,null,null,null,{"$f":"ROUND(COUNTIF(AA6:AA15, \"=true\")/2,0)","v":0},null,null,{"$f":"Data!AD16","v":"Batteries"},null,false,1,1,1,null,null,null,null,null,null,null,null,null,null,null,null,null,{"$f":"Data!AW16","v":"On-site"},2]
[{"$f":"Data!A17","v":2},{"$f":"DR!C9","v":"100 - 500"},null,null,null,{"$f":"Data!F17","v":"Evaporation"},{"$f":"Data!G17","v":1},null,{"$f":"Data!I17","v":5},{"$f":"Data!J17","v":"< 0.25"},null,null,null,null,null,null,4,{"$f":"IF($S$14<=Q17,\"No change proposed\",R164)","v":"2"},null,null,null,null,null,null,null,{"$f":"Data!Z17","v":"Communication"},{"$f":"IF(AA23=0,5,6-AA23)","v":5},null,null,{"$f":"Data!AD17","v":"Hazardous waste"},null,false,1,1,1,null,{"$f":"Data!AK17","v":"Active fill areas"},5,null,null,null,{"$f":"Data!AP17","v":"Lids"},2,null,null,{"$f":"Data!AT17","v":"Amount received"},5,null,{"$f":"Data!AW17","v":"For operator"},2]
[{"$f":"Data!A18","v":3},{"$f":"DR!C10","v":"500 - 1,000"},null,null,{"$f":"Data!E18","v":1},{"$f":"Data!F18","v":">2,000"},null,null,null,null,null,null,null,null,null,null,5,{"$f":"IF($S$14<=Q18,\"No change proposed\",R165)","v":"1"},null,null,null,{"$f":"Data!V18","v":"Drinking water catchment"},{"$f":"Data!W18","v":1},null,null,{"$f":"Data!Z18","v":"Direct"},false,null,null,null,null,{"$f":"IF(COUNTIF(AF15:AF17,TRUE)>0,TRUE,FALSE)","v":false},null,null,null,{"$f":"Data!AJ18","v":1},{"$f":"IF($AL$18<=AJ18,\"No change proposed\",Data!AK18)","v":1},{"$f":"Data!AL17","v":5},null,null,null,null,null,null,{"$f":"Data!AS18","v":1},{"$f":"Data!AT18","v":"0 - 100"},null,null,null,{"$f":"COUNTIF(AX16:AX17,\"=1\")","v":0}]
[{"$f":"Data!A19","v":4},{"$f":"DR!C11","v":"1,000 - 2,500"},null,null,{"$f":"Data!E19","v":2},{"$f":"Data!F19","v":"1,800 - 2,000"},null,null,null,{"$f":"Data!J19","v":"NE"},null,null,null,null,null,null,{"$f":"S19/3","v":0},{"$f":"Data!R14","v":"Distribution"},null,null,{"$f":"Data!U19","v":1},{"$f":"Data!V19","v":"No"},null,null,null,{"$f":"Data!Z19","v":"Operator print info"},false,null,null,{"$f":"Data!AD19","v":"Wastes - liquid"},null,null,null,null,{"$f":"ROUND(MAX(AI20:AI26),0)","v":1},{"$f":"Data!AJ19","v":2},{"$f":"IF($AL$18<=AJ19,\"No change proposed\",Data!AK19)","v":2},null,null,null,null,{"$f":"Data!AP19","v":"Processing / sorting"},2,null,{"$f":"Data!AS19","v":2},{"$f":"Data!AT19","v":"100 - 500"},null,null,{"$f":"Data!AW19","v":"Regulator enforcement activities"},{"$f":"IF(AX25=0,5,6-AX25)","v":5}]
[{"$f":"Data!A20","v":5},{"$f":"DR!C12","v":"2,500 - 5,000"},null,null,{"$f":"Data!E20","v":3},{"$f":"Data!F20","v":"1,600 - 1,800"},null,null,null,{"$f":"Data!J20","v":"Landuse"},{"$f":"Data!K20","v":1},null,null,null,null,null,1,{"$f":"IF($S$20<=Q20,\"No change proposed\",R175)","v":"Up gradient and down gradient of premises"},{"$f":"IF(Data!$S$12=1,Data!S14, 4)","v":4},null,{"$f":"Data!U20","v":2},{"$f":"Data!V20","v":"Unknown"},null,null,null,{"$f":"Data!Z20","v":"Internet"},false,null,null,{"$f":"Data!AD20","v":"Waste mineral oil"},null,false,1,1,1,{"$f":"Data!AJ20","v":3},{"$f":"IF($AL$18<=AJ20,\"No change proposed\",Data!AK20)","v":3},null,null,null,null,null,null,null,{"$f":"Data!AS20","v":3},{"$f":"Data!AT20","v":"500 - 1,000"},null,null,{"$f":"Data!AW20","v":"Verbal warning"},false]
[null,null,null,null,{"$f":"Data!E21","v":4},{"$f":"Data!F21","v":"1,400 - 1,600"},null,null,null,{"$f":"Data!J21","v":"Residence"},{"$f":"Data!K21","v":1},null,null,null,null,null,2,{"$f":"IF($S$20<=Q21,\"No change proposed\",R176)","v":"Down gradient of premises only"},null,null,{"$f":"Data!U21","v":3},{"$f":"Data!V21","v":"Yes"},null,null,null,{"$f":"Data!Z21","v":"Media"},false,null,null,{"$f":"Data!AD21","v":"Waste cooking oil"},null,false,1,1,1,{"$f":"Data!AJ21","v":4},{"$f":"IF($AL$18<=AJ21,\"No change proposed\",Data!AK21)","v":4},null,null,null,null,{"$f":"Data!AP21","v":"Disposal"},2,null,{"$f":"Data!AS21","v":4},{"$f":"Data!AT21","v":"1,000 - 2,500"},null,null,{"$f":"Data!AW21","v":"Warning letters"},false]
[null,{"$f":"Data!B22","v":"Area"},{"$f":"Data!C22","v":5},null,{"$f":"Data!E22","v":5},{"$f":"Data!F22","v":"< 1,400"},null,null,null,{"$f":"Data!J22","v":"Residential Area"},{"$f":"Data!K22","v":1},null,null,null,null,null,3,{"$f":"IF($S$20<=Q22,\"No change proposed\",R177)","v":"Up gradient of premises only"},null,null,null,null,null,null,null,{"$f":"Data!Z22","v":"Other"},false,null,null,{"$f":"Data!AD22","v":"Paint"},null,false,1,1,1,{"$f":"Data!AJ22","v":5},{"$f":"IF($AL$18<=AJ22,\"No change proposed\",Data!AK22)","v":"No change proposed"},null,null,null,{"$f":"Data!AO22","v":1},{"$f":"IF($AQ$22<=AO22,\"No change proposed\",Data!AP22)","v":"Licensed waste facility"},{"$f":"IF(Data!$A$12=1,3,Data!AQ21)","v":3},null,{"$f":"Data!AS22","v":5},{"$f":"Data!AT22","v":"2,500 - 5,000"},null,null,{"$f":"Data!AW22","v":"Notices / orders"},false]
[{"$f":"Data!A23","v":1},{"$f":"Data!B23","v":"<1,000"},null,null,null,null,null,null,null,null,{"$f":"Data!K23","v":0.88235294117647067},null,null,null,null,null,{"$f":"S23/5","v":0},{"$f":"Data!R15","v":"Frequency"},null,null,null,{"$f":"Data!V23","v":0},{"$f":"Data!W23","v":0},null,null,null,{"$f":"ROUND(COUNTIF(AA18:AA22, \"=true\"),0)","v":0},null,null,{"$f":"Data!AD23","v":"Grease trap waste"},false,false,1,1,1,null,null,null,null,null,{"$f":"Data!AO23","v":2},{"$f":"IF($AQ$22<=AO23,\"No change proposed\",Data!AP23)","v":"Unlicensed waste facility"},null,null,null,null,null,null,{"$f":"Data!AW23","v":"Penalty infringement notice"},false]
[{"$f":"Data!A24","v":2},{"$f":"Data!B24","v":"1,000 - 2,500"},null,null,null,{"$f":"Data!F24","v":"Prevailing Wind Direction"},{"$f":"Data!G24","v":1},null,null,{"$f":"Data!J24","v":"SE"},null,null,null,null,null,null,1,{"$f":"IF($S$24<=Q24,\"No change proposed\",R168)","v":"Monthly"},{"$f":"IF(Data!$S$12=1,Data!S15, 6)","v":6},null,{"$f":"Data!U24","v":0},{"$f":"Data!V24","v":0},null,null,null,{"$f":"Data!Z24","v":"Themes"},{"$f":"IF(AA31=0,5,6-AA31)","v":5},null,null,{"$f":"Data!AD24","v":"Oily water waste"},false,false,1,1,1,null,{"$f":"Data!AK24","v":"Compaction"},3,null,null,null,null,null,null,null,{"$f":"Data!AT24","v":"Disposal method"},5,null,{"$f":"Data!AW24","v":"Prosecution"},false]
[{"$f":"Data!A25","v":3},{"$f":"Data!B25","v":"2,500 - 5,000"},null,null,null,{"$f":"Data!F25","v":"N"},null,null,null,{"$f":"Data!J25","v":"Landuse"},{"$f":"Data!K25","v":1},null,null,null,null,null,2,{"$f":"IF($S$24<=Q25,\"No change proposed\",R169)","v":"Quarterly"},null,null,{"$f":"Data!U25","v":0},{"$f":"Data!V25","v":0},null,null,null,{"$f":"Data!Z25","v":"General"},false,null,null,{"$f":"Data!AD25","v":"Septic waste"},false,false,1,1,1,{"$f":"Data!AJ25","v":1},{"$f":"IF($AL$25<=AJ25,\"No change proposed\",Data!AK25)","v":"Landfill compactor"},{"$f":"Data!AL24","v":3},null,null,null,{"$f":"Data!AP25","v":"Closed landfill"},{"$f":"Data!AQ25","v":2},null,{"$f":"Data!AS25","v":1},{"$f":"Data!AT25","v":"Engineered cell"},null,null,null,{"$f":"ROUND(COUNTIF(AX20:AX24, \"=true\"),0)","v":0}]
[{"$f":"Data!A26","v":4},{"$f":"Data!B26","v":"5,000 - 10,000"},null,null,null,{"$f":"Data!F26","v":"NNE"},null,null,null,{"$f":"Data!J26","v":"Residence"},{"$f":"Data!K26","v":1},null,null,null,null,null,3,{"$f":"IF($S$24<=Q26,\"No change proposed\",R170)","v":"Six-monthly"},null,null,{"$f":"Data!U26","v":0},{"$f":"Data!V26","v":0},null,null,null,{"$f":"Data!Z26","v":"Reduce, reuse, recycle"},false,null,null,{"$f":"Data!AD26","v":"Others"},false,false,1,1,1,{"$f":"Data!AJ26","v":2},{"$f":"IF($AL$25<=AJ26,\"No change proposed\",Data!AK26)","v":"Tracked plant (e.g. bulldozer)"},null,null,null,null,null,null,null,{"$f":"Data!AS26","v":2},{"$f":"Data!AT26","v":"Deep trench (>2m deep)"}]
[{"$f":"Data!A27","v":5},{"$f":"Data!B27","v":"> 10,000"},null,null,null,{"$f":"Data!F27","v":"NE"},null,null,null,{"$f":"Data!J27","v":"Residential Area"},{"$f":"Data!K27","v":1},null,null,null,null,null,4,{"$f":"IF($S$24<=Q27,\"No change proposed\",R171)","v":"Annually"},null,null,{"$f":"Data!U27","v":0},{"$f":"Data!V27","v":0},null,null,null,{"$f":"Data!Z27","v":"Asbestos"},false,null,null,null,{"$f":"IF(COUNTIF(AE23:AE26,\"=true\")>0,5,1)","v":1},{"$f":"COUNTIF(AF20:AF26,\"=true\")","v":0},{"$f":"COUNTIF(AF15:AF26,\"=true\")","v":0},null,null,{"$f":"Data!AJ27","v":3},{"$f":"IF($AL$25<=AJ27,\"No change proposed\",Data!AK27)","v":"No change proposed"},null,null,null,null,"Method",null,null,{"$f":"Data!AS27","v":3},{"$f":"Data!AT27","v":"Shallow trench (<2m deep)"}]
[null,null,null,null,null,{"$f":"Data!F28","v":"ENE"},null,null,null,null,{"$f":"Data!K28","v":1.1029411764705883},null,null,null,null,null,5,{"$f":"IF($S$24<=Q28,\"No change proposed\",R172)","v":"Greater than annually / infrequently"},null,null,{"$f":"Data!U28","v":0},{"$f":"Data!V28","v":0},null,null,null,{"$f":"Data!Z28","v":"Hazardous / chem wastes"},false,null,null,{"$f":"Data!AD28","v":"Open to public"},6,null,null,null,null,null,null,null,null,null,1,"Mobile Garbage Bin Bank",null,null,{"$f":"Data!AS28","v":4},{"$f":"Data!AT28","v":"Excavated pit"}]
[null,{"$f":"Data!B29","v":"Age"},{"$f":"Data!C29","v":5},null,null,{"$f":"Data!F29","v":"E"},null,null,null,{"$f":"Data!J29","v":"SW"},null,null,null,null,null,null,{"$f":"S29/10","v":1},{"$f":"Data!R16","v":"Parameters"},{"$f":"COUNTIF(S30:S39,\"=false\")","v":10},null,null,null,null,null,null,{"$f":"Data!Z29","v":"Illegal dumping"},false,null,{"$f":"Data!AC29","v":1},{"$f":"IF($AE$29<=AC29,\"No change proposed\",Data!AD29)","v":"Not open to the public"},{"$f":"Data!AE28","v":6},null,null,null,null,null,{"$f":"Data!AK29","v":"Covering method"},5,null,null,2,"Small bulk bins (< 5 cubic metres)",null,null,{"$f":"Data!AS29","v":5},{"$f":"Data!AT29","v":"Above ground fill / disposal"}]
[{"$f":"Data!A30","v":1},{"$f":"Data!B30","v":"< 5"},null,null,null,{"$f":"Data!F30","v":"ESE"},null,null,null,{"$f":"Data!J30","v":"Landuse"},{"$f":"Data!K30","v":1},null,null,null,null,null,null,{"$f":"Data!R17","v":"Level"},false,null,null,{"$f":"Data!V30","v":"Slope"},{"$f":"Data!W30","v":1},null,null,{"$f":"Data!Z30","v":"Other"},false,null,{"$f":"Data!AC30","v":2},{"$f":"IF($AE$29<=AC30,\"No change proposed\",Data!AD30)","v":"Restricted hours, restricted days"},null,null,null,null,null,{"$f":"Data!AJ30","v":1},{"$f":"IF($AL$30<=AJ30,\"No change proposed\",Data!AK30)","v":"Geosynthetic material"},{"$f":"Data!AL29","v":5},null,null,3,"Large bulk bins (> 5 cubic metres)"]
[{"$f":"Data!A31","v":2},{"$f":"Data!B31","v":"5 - 10"},null,null,null,{"$f":"Data!F31","v":"SE"},null,null,null,{"$f":"Data!J31","v":"Residence"},{"$f":"Data!K31","v":1},null,null,null,null,null,null,{"$f":"Data!R18","v":"pH"},false,null,{"$f":"Data!U31","v":1},{"$f":"Data!V31","v":"0 - 2"},null,null,null,null,{"$f":"ROUND(COUNTIF(AA25:AA30, \"=true\")/6*5,0)","v":0},null,{"$f":"Data!AC31","v":3},{"$f":"IF($AE$29<=AC31,\"No change proposed\",Data!AD31)","v":"Restricted hours, 7 days per week"},null,null,null,null,null,{"$f":"Data!AJ31","v":2},{"$f":"IF($AL$30<=AJ31,\"No change proposed\",Data!AK31)","v":"Alternative material"},null,null,null,4,"Bunker / other method",null,null,null,{"$f":"Data!AT31","v":"How Capped"},5]
[{"$f":"Data!A32","v":3},{"$f":"Data!B32","v":"10 - 20"},null,null,null,{"$f":"Data!F32","v":"SSE"},null,null,null,{"$f":"Data!J32","v":"Residential Area"},{"$f":"Data!K32","v":1},null,null,null,null,null,null,{"$f":"Data!R19","v":"EC"},false,null,{"$f":"Data!U32","v":2},{"$f":"Data!V32","v":"2 - 5"},null,null,null,null,null,null,{"$f":"Data!AC32","v":4},{"$f":"IF($AE$29<=AC32,\"No change proposed\",Data!AD32)","v":"Daylight hours only, restricted days"},null,null,null,null,null,{"$f":"Data!AJ32","v":3},{"$f":"IF($AL$30<=AJ32,\"No change proposed\",Data!AK32)","v":"Imported clay material"},null,null,null,null,null,null,null,{"$f":"Data!AS32","v":1},{"$f":"IF($AU$32<=AS32,\"No change proposed\",Data!AT32)","v":"Membrane / geosynthetic material"},{"$f":"IF(Data!$A$12=1,6,Data!AU31)","v":6}]
[{"$f":"Data!A33","v":4},{"$f":"Data!B33","v":"20 - 40"},null,null,null,{"$f":"Data!F33","v":"S"},null,null,null,null,{"$f":"Data!K33","v":1.1029411764705883},null,null,null,null,null,null,{"$f":"Data!R20","v":"Ammonia"},false,null,{"$f":"Data!U33","v":3},{"$f":"Data!V33","v":"5 - 10"},null,null,null,null,null,null,{"$f":"Data!AC33","v":5},{"$f":"IF($AE$29<=AC33,\"No change proposed\",Data!AD33)","v":"Daylight hours only, 7 days per week"},null,null,null,null,null,{"$f":"Data!AJ33","v":4},{"$f":"IF($AL$30<=AJ33,\"No change proposed\",Data!AK33)","v":"Imported material"},null,null,null,null,"Construction",null,null,{"$f":"Data!AS33","v":2},{"$f":"IF($AU$32<=AS33,\"No change proposed\",Data!AT33)","v":"Imported clay material"}]
[{"$f":"Data!A34","v":5},{"$f":"Data!B34","v":"> 40"},null,null,null,{"$f":"Data!F34","v":"SSW"},null,null,null,{"$f":"Data!J34","v":"NW"},null,null,null,null,null,null,null,{"$f":"Data!R21","v":"Nitrate"},false,null,{"$f":"Data!U34","v":4},{"$f":"Data!V34","v":"10 - 25"},null,null,null,null,null,null,{"$f":"Data!AC34","v":6},{"$f":"IF($AE$29<=AC34,\"No change proposed\",Data!AD34)","v":"No change proposed"},null,null,null,null,null,{"$f":"Data!AJ34","v":5},{"$f":"IF($AL$30<=AJ34,\"No change proposed\",Data!AK34)","v":"No change proposed"},null,null,null,1,"Raised drop-off area",null,null,{"$f":"Data!AS34","v":3},{"$f":"IF($AU$32<=AS34,\"No change proposed\",Data!AT34)","v":"Imported material"}]
[null,null,null,null,null,{"$f":"Data!F35","v":"SW"},null,null,null,{"$f":"Data!J35","v":"Landuse"},{"$f":"Data!K35","v":1},null,null,null,null,null,null,{"$f":"Data!R22","v":"TOC"},false,null,{"$f":"Data!U35","v":5},{"$f":"Data!V35","v":"> 25"},null,null,null,null,null,null,null,null,null,null,null,null,null,null,null,null,null,null,2,"Concrete hardstand",null,null,{"$f":"Data!AS35","v":4},{"$f":"IF($AU$32<=AS35,\"No change proposed\",Data!AT35)","v":"On-site material"}]
[null,null,null,null,null,{"$f":"Data!F36","v":"WSW"},null,null,null,{"$f":"Data!J36","v":"Residence"},{"$f":"Data!K36","v":1},null,null,null,null,null,null,{"$f":"Data!R23","v":"Alkalinity"},false,null,null,null,null,null,null,null,null,null,null,{"$f":"Data!AD36","v":"Perimeter"},5,null,null,null,null,null,{"$f":"Data!AK36","v":"Frequency of covering"},5,null,null,3,"No specific construction",null,null,{"$f":"Data!AS36","v":5},{"$f":"IF($AU$32<=AS36,\"No change proposed\",Data!AT36)","v":"No capping"}]
[null,null,null,null,null,{"$f":"Data!F37","v":"W"},null,null,null,{"$f":"Data!J37","v":"Residential Area"},{"$f":"Data!K37","v":1},null,null,null,null,null,null,{"$f":"Data!R24","v":"Iron"},false,null,null,{"$f":"Data!V37","v":"Erosion"},{"$f":"IF(W44=0,1,(ROUND(W44*5,0)))","v":1},null,null,null,null,null,{"$f":"Data!AC37","v":1},{"$f":"IF($AE$37<=AC37,\"No change proposed\",Data!AD37)","v":"8ft security fence"},{"$f":"Data!AE36","v":5},null,null,null,null,{"$f":"Data!AJ37","v":1},{"$f":"IF($AL$37<=AJ37,\"No change proposed\",Data!AK37)","v":"Very frequently (eg. daily)"},{"$f":"Data!AL36","v":5}]
[null,null,null,null,null,{"$f":"Data!F38","v":"WNW"},null,null,null,null,{"$f":"Data!K38","v":0.88235294117647067},null,null,null,null,null,null,{"$f":"Data!R25","v":"Pesticides"},false,null,null,{"$f":"Data!V38","v":"Wind"},{"$f":"Data!W38","v":false},null,null,null,null,null,{"$f":"Data!AC38","v":2},{"$f":"IF($AE$37<=AC38,\"No change proposed\",Data!AD38)","v":"6ft chainlink / colourbond fence"},null,null,null,null,null,{"$f":"Data!AJ38","v":2},{"$f":"IF($AL$37<=AJ38,\"No change proposed\",Data!AK38)","v":"Frequently (eg. weekly)"},null,null,null,null,"Disposal",null,null,null,{"$f":"Data!AT38","v":"Slope"},5]
[null,null,null,null,null,{"$f":"Data!F39","v":"NW"},null,null,null,null,null,null,null,null,null,null,null,"Others",false,null,null,{"$f":"Data!V39","v":"Sheet"},{"$f":"Data!W39","v":false},null,null,null,null,null,{"$f":"Data!AC39","v":3},{"$f":"IF($AE$37<=AC39,\"No change proposed\",Data!AD39)","v":"Stock fence"},null,null,null,null,null,{"$f":"Data!AJ39","v":3},{"$f":"IF($AL$37<=AJ39,\"No change proposed\",Data!AK39)","v":"Often (eg. monthly)"},null,null,null,1,"Licensed waste facility",null,null,{"$f":"Data!AS39","v":1},{"$f":"IF($AU$39<=AS39,\"No change proposed\",Data!AT39)","v":"0% - 2%"},{"$f":"IF(Data!$A$12=1,6,Data!AU38)","v":6}]
[null,{"$f":"Data!B40","v":"Proximity"},null,null,null,{"$f":"Data!F40","v":"NNW"},null,null,null,null,null,null,null,null,null,null,{"$f":"S40/3","v":0},{"$f":"Data!R27","v":"Concerns"},{"$f":"Data!S27","v":0},null,null,{"$f":"Data!V40","v":"Rill"},{"$f":"Data!W40","v":false},null,null,null,null,null,{"$f":"Data!AC40","v":4},{"$f":"IF($AE$37<=AC40,\"No change proposed\",Data!AD40)","v":"Partial perimeter fence"},null,null,null,null,null,{"$f":"Data!AJ40","v":4},{"$f":"IF($AL$37<=AJ40,\"No change proposed\",Data!AK40)","v":"Infrequently (eg. quarterly)"},null,null,null,2,"Unlicensed waste facility",null,null,{"$f":"Data!AS40","v":2},{"$f":"IF($AU$39<=AS40,\"No change proposed\",Data!AT40)","v":"2% - 5%"}]
[{"$f":"Data!A41","v":1},{"$f":"Data!B41","v":">100"},null,null,null,null,null,null,null,null,null,null,null,null,null,null,{"$f":"SUM(Q40,Q29,Q23,Q19,Q13)-1","v":0},null,null,null,null,{"$f":"Data!V41","v":"Gully"},{"$f":"Data!W41","v":false},null,null,null,null,null,{"$f":"Data!AC41","v":5},{"$f":"IF($AE$37<=AC41,\"No change proposed\",Data!AD41)","v":"No change proposed"},null,null,null,null,null,{"$f":"Data!AJ41","v":5},{"$f":"IF($AL$37<=AJ41,\"No change proposed\",Data!AK41)","v":"No change proposed"},null,null,null,null,null,null,null,{"$f":"Data!AS41","v":3},{"$f":"IF($AU$39<=AS41,\"No change proposed\",Data!AT41)","v":"5% - 10%"}]
[{"$f":"Data!A42","v":2},{"$f":"Data!B42","v":"50 - 100"},null,null,null,{"$f":"Data!F42","v":"Calm"},{"$f":"Data!G42","v":1},null,null,null,null,null,null,null,null,null,{"$f":"IF(S42=2,5,IF(ROUND(S42+Q70,0)>5,5,ROUND(S42+Q70,0)))","v":5},{"$f":"Data!R29","v":"Surface water monitoring"},2,null,null,{"$f":"Data!V42","v":"Tunnel"},{"$f":"Data!W42","v":false},null,null,null,null,null,null,null,null,null,null,null,null,null,null,null,null,null,null,null,null,null,{"$f":"Data!AS42","v":4},{"$f":"IF($AU$39<=AS42,\"No change proposed\",Data!AT42)","v":"10% - 25%"}]
[{"$f":"Data!A43","v":3},{"$f":"Data!B43","v":"25 - 50"},null,null,{"$f":"Data!E43","v":1},{"$f":"Data!F43","v":"> 20"},null,null,null,null,null,null,null,null,null,null,{"$f":"S43/5","v":0},{"$f":"Data!R30","v":"No. Locations"},null,null,null,{"$f":"Data!V43","v":"Mass movement"},{"$f":"Data!W43","v":false},null,null,null,null,null,null,{"$f":"Data!AD43","v":"Access security"},5,null,null,null,null,null,{"$f":"Data!AK43","v":"Filling Plan"},2,null,null,null,null,null,null,{"$f":"Data!AS43","v":5},{"$f":"IF($AU$39<=AS43,\"No change proposed\",Data!AT43)","v":"> 25%"}]
[{"$f":"Data!A44","v":4},{"$f":"Data!B44","v":"<25"},null,null,{"$f":"Data!E44","v":2},{"$f":"Data!F44","v":"15  - 20"},null,null,null,null,null,null,null,null,null,null,1,{"$f":"IF($S$44<=Q44,\"No change proposed\",R161)","v":"More than 4"},{"$f":"IF(Data!$S$29=1,Data!S30,6)","v":6},null,null,null,{"$f":"COUNTIF(W38:W43,\"=true\")/6","v":0},null,null,null,null,null,{"$f":"Data!AC44","v":1},{"$f":"IF($AE$44<=AC44,\"No change proposed\",Data!AD44)","v":"8ft security gate"},{"$f":"Data!AE43","v":5}]
[{"$f":"Data!A45","v":5},{"$f":"Data!B45","v":"Within area"},null,null,{"$f":"Data!E45","v":3},{"$f":"Data!F45","v":"10 - 15"},null,null,null,null,null,null,null,null,null,null,2,{"$f":"IF($S$44<=Q45,\"No change proposed\",R162)","v":"4"},null,null,null,{"$f":"Data!V45","v":"Soil electrical conductivity"},{"$f":"Data!W45","v":1},null,null,null,null,null,{"$f":"Data!AC45","v":2},{"$f":"IF($AE$44<=AC45,\"No change proposed\",Data!AD45)","v":"6ft chainlink / colourbond gate"},null,null,null,null,null,null,{"$f":"Data!AK45","v":"Preparation"},5,null,null,null,null,null,null,null,{"$f":"Data!AT45","v":"Landuse"},7]
[null,null,null,null,{"$f":"Data!E46","v":4},{"$f":"Data!F46","v":"5 - 10"},null,null,null,null,null,null,null,null,null,null,3,{"$f":"IF($S$44<=Q46,\"No change proposed\",R163)","v":"3"},null,null,{"$f":"Data!U46","v":1},{"$f":"Data!V46","v":"<4"},null,null,null,null,null,null,{"$f":"Data!AC46","v":3},{"$f":"IF($AE$44<=AC46,\"No change proposed\",Data!AD46)","v":"Stock gate"},null,null,null,null,null,{"$f":"Data!AJ46","v":1},{"$f":"IF($AL$46<=AJ46,\"No change proposed\",Data!AK46)","v":"Geosynthetically lined"},{"$f":"Data!AL45","v":5},null,null,null,null,null,null,{"$f":"Data!AS46","v":1},{"$f":"IF($AU$46<=AS46,\"No change proposed\",Data!AT46)","v":"Industrial"},{"$f":"IF(Data!$A$12=1,8,Data!AU45)","v":8}]
[null,{"$f":"Data!B47","v":"MLA"},{"$f":"Data!C47","v":1},null,{"$f":"Data!E47","v":5},{"$f":"Data!F47","v":"< 5"},null,null,null,null,null,null,null,null,null,null,4,{"$f":"IF($S$44<=Q47,\"No change proposed\",R164)","v":"2"},null,null,{"$f":"Data!U47","v":2},{"$f":"Data!V47","v":"4 - 8"},null,null,null,null,null,null,{"$f":"Data!AC47","v":4},{"$f":"IF($AE$44<=AC47,\"No change proposed\",Data!AD47)","v":"Retractable bollards"},null,null,null,null,null,{"$f":"Data!AJ47","v":2},{"$f":"IF($AL$46<=AJ47,\"No change proposed\",Data!AK47)","v":"Clay lined"},null,null,null,null,null,null,null,{"$f":"Data!AS47","v":2},{"$f":"IF($AU$46<=AS47,\"No change proposed\",Data!AT47)","v":"Special purpose"}]
[null,{"$f":"Data!B48","v":0},{"$f":"Data!C48","v":0},null,null,null,null,null,null,null,null,null,null,null,null,null,5,{"$f":"IF($S$44<=Q48,\"No change proposed\",R165)","v":"1"},null,null,{"$f":"Data!U48","v":3},{"$f":"Data!V48","v":"8 - 16"},null,null,null,null,null,null,{"$f":"Data!AC48","v":5},{"$f":"IF($AE$44<=AC48,\"No change proposed\",Data!AD48)","v":"No change proposed"},null,null,null,null,null,{"$f":"Data!AJ48","v":3},{"$f":"IF($AL$46<=AJ48,\"No change proposed\",Data!AK48)","v":"Ripped and compacted"},null,null,null,null,null,null,null,{"$f":"Data!AS48","v":3},{"$f":"IF($AU$46<=AS48,\"No change proposed\",Data!AT48)","v":"Business"}]
[null,{"$f":"Data!B49","v":">5,000"},{"$f":"Data!C49","v":4},null,null,{"$f":"Data!F49","v":"Mean wind speed"},{"$f":"Data!G49","v":1},null,null,null,null,null,null,null,null,null,{"$f":"S49/3","v":0},{"$f":"Data!R31","v":"Distribution"},null,null,{"$f":"Data!U49","v":4},{"$f":"Data!V49","v":">16"},null,null,null,null,null,null,null,null,null,null,null,null,null,{"$f":"Data!AJ49","v":4},{"$f":"IF($AL$46<=AJ49,\"No change proposed\",Data!AK49)","v":"Compacted"},null,null,null,null,null,null,null,{"$f":"Data!AS49","v":4},{"$f":"IF($AU$46<=AS49,\"No change proposed\",Data!AT49)","v":"Rural"}]
[null,null,null,null,{"$f":"Data!E50","v":1},{"$f":"Data!F50","v":"< 6"},null,null,null,null,null,null,null,null,null,null,1,{"$f":"IF($S$50<=Q50,\"No change proposed\",R175)","v":"Up gradient and down gradient of premises"},{"$f":"IF(Data!$S$29=1,Data!S31,4)","v":4},null,null,null,null,null,null,null,null,null,null,{"$f":"Data!AD50","v":"Additional security"},{"$f":"IF(AE55=0,5,6-AE55)","v":5},null,null,null,null,{"$f":"Data!AJ50","v":5},{"$f":"IF($AL$46<=AJ50,\"No change proposed\",Data!AK50)","v":"No change proposed"},null,null,null,null,null,null,null,{"$f":"Data!AS50","v":5},{"$f":"IF($AU$46<=AS50,\"No change proposed\",Data!AT50)","v":"Recreation"}]
[null,{"$f":"Data!B51","v":"Access to premises"},{"$f":"Data!C51","v":1},null,{"$f":"Data!E51","v":2},{"$f":"Data!F51","v":"6 - 12"},null,null,null,null,null,null,null,null,null,null,2,{"$f":"IF($S$50<=Q51,\"No change proposed\",R176)","v":"Down gradient of premises only"},null,null,null,{"$f":"Data!V51","v":"Acid Sulfate Soils"},{"$f":"Data!W51","v":1},null,null,null,null,null,null,{"$f":"Data!AD51","v":"Security patrols"},false,null,null,null,null,null,null,null,null,null,null,null,null,null,{"$f":"Data!AS51","v":6},{"$f":"IF($AU$46<=AS51,\"No change proposed\",Data!AT51)","v":"Residential"}]
[{"$f":"Data!A52","v":1},{"$f":"Data!B52","v":"Other minor road"},null,null,{"$f":"Data!E52","v":3},{"$f":"Data!F52","v":"12 - 20"},null,null,null,null,null,null,null,null,null,null,3,{"$f":"IF($S$50<=Q52,\"No change proposed\",R177)","v":"Up gradient of premises only"},null,null,{"$f":"Data!U52","v":1},{"$f":"Data!V52","v":"No known occurence"},null,null,null,null,null,null,null,{"$f":"Data!AD52","v":"Video Surveillance"},false,null,null,null,null,null,{"$f":"Data!AK52","v":"Closed"},5,null,null,null,null,null,null,{"$f":"Data!AS52","v":7},{"$f":"IF($AU$46<=AS52,\"No change proposed\",Data!AT52)","v":"Environment protection"}]
[{"$f":"Data!A53","v":2},{"$f":"Data!B53","v":"Local road"},null,null,{"$f":"Data!E53","v":4},{"$f":"Data!F53","v":"20 - 29"},null,null,null,null,null,null,null,null,null,null,{"$f":"S53/5","v":0},{"$f":"Data!R32","v":"Frequency"},null,null,{"$f":"Data!U53","v":2},{"$f":"Data!V53","v":"Low probability > 1m from surface"},null,null,null,null,null,null,null,{"$f":"Data!AD53","v":"Covert Surveillance"},false,null,null,null,null,{"$f":"Data!AJ53","v":1},{"$f":"IF($AL$53<=AJ53,\"No change proposed\",Data!AK53)","v":"Geosynthetic material"},{"$f":"Data!AL52","v":5}]
[{"$f":"Data!A54","v":3},{"$f":"Data!B54","v":"Regional road"},null,null,{"$f":"Data!E54","v":5},{"$f":"Data!F54","v":"> 29"},null,null,null,null,null,null,null,null,null,null,1,{"$f":"IF($S$54<=Q54,\"No change proposed\",R168)","v":"Monthly"},{"$f":"IF(Data!$S$29=1,Data!S32,6)","v":6},null,{"$f":"Data!U54","v":3},{"$f":"Data!V54","v":"Low probability < 1m from surface"},null,null,null,null,null,null,null,{"$f":"Data!AD54","v":"\"Dummy\" Surveillance"},false,null,null,null,null,{"$f":"Data!AJ54","v":2},{"$f":"IF($AL$53<=AJ54,\"No change proposed\",Data!AK54)","v":"Alternative material"},null,null,null,null,null,null,null,null,{"$f":"Data!AT54","v":"Structures"},2]
[{"$f":"Data!A55","v":4},{"$f":"Data!B55","v":"State road"},null,null,null,null,null,null,null,null,null,null,null,null,null,null,2,{"$f":"IF($S$54<=Q55,\"No change proposed\",R169)","v":"Quarterly"},null,null,{"$f":"Data!U55","v":4},{"$f":"Data!V55","v":"High probability > 1m from surface"},null,null,null,null,null,null,null,null,{"$f":"ROUND(COUNTIF(AE51:AE54, \"=true\")/4*5,0)","v":0},null,null,null,null,{"$f":"Data!AJ55","v":3},{"$f":"IF($AL$53<=AJ55,\"No change proposed\",Data!AK55)","v":"Imported clay material"}]
[{"$f":"Data!A56","v":5},{"$f":"Data!B56","v":"Freeway / motorway"},null,null,null,{"$f":"Data!F56","v":"Wind"},{"$f":"Data!G56","v":1},null,null,null,null,null,null,null,null,null,3,{"$f":"IF($S$54<=Q56,\"No change proposed\",R170)","v":"Six-monthly"},null,null,{"$f":"Data!U56","v":5},{"$f":"Data!V56","v":"High probability < 1m from surface"},null,null,null,null,null,null,null,{"$f":"Data!AD56","v":"Access control"},5,null,null,null,null,{"$f":"Data!AJ56","v":4},{"$f":"IF($AL$53<=AJ56,\"No change proposed\",Data!AK56)","v":"Imported material"},null,null,null,null,null,null,null,null,{"$f":"Data!AT56","v":"Organic Layer"},2]
[null,null,null,null,null,null,null,null,null,null,null,null,null,null,null,null,4,{"$f":"IF($S$54<=Q57,\"No change proposed\",R171)","v":"Annually"},null,null,null,null,null,null,null,null,null,null,{"$f":"Data!AC57","v":1},{"$f":"IF($AE$57<=AC57,\"No change proposed\",Data!AD57)","v":"Access only permitted under operator supervision"},{"$f":"Data!AE56","v":5},null,null,null,null,{"$f":"Data!AJ57","v":5},{"$f":"IF($AL$53<=AJ57,\"No change proposed\",Data!AK57)","v":"No change proposed"}]
[null,null,null,null,null,null,null,null,null,null,null,null,null,null,null,null,5,{"$f":"IF($S$54<=Q58,\"No change proposed\",R172)","v":"Greater than annually / infrequently"},null,null,null,{"$f":"Data!V58","v":"Distance to watercourse"},{"$f":"Data!W58","v":2},null,null,null,null,null,{"$f":"Data!AC58","v":2},{"$f":"IF($AE$57<=AC58,\"No change proposed\",Data!AD58)","v":"Swipe / data card access"},null,null,null,null,null,null,null,null,null,null,null,null,null,null,null,{"$f":"Data!AT58","v":"Revegetation"},5]
[null,{"$f":"OR(A10=3,C6=TRUE,C8=TRUE)","v":false},null,null,null,null,null,null,null,null,null,null,null,null,null,null,{"$f":"S59/9","v":1},{"$f":"Data!R33","v":"Parameters"},{"$f":"COUNTIF(S60:S68,\"=false\")","v":9},null,{"$f":"Data!U59","v":1},{"$f":"Data!V59","v":"> 1,000"},null,null,null,null,null,null,{"$f":"Data!AC59","v":3},{"$f":"IF($AE$57<=AC59,\"No change proposed\",Data!AD59)","v":"Community accessed key system (sign-in / sign-out)"},null,null,null,null,null,null,{"$f":"Data!AK59","v":"Leachate capture"},2,null,null,null,null,null,null,{"$f":"Data!AS59","v":1},{"$f":"IF($AU$59<=AS59,\"No change proposed\",Data!AT59)","v":"Sown pasture grasses, shrubs and trees"},{"$f":"IF(Data!$A$12=1,6,Data!AU58)","v":6}]
[null,null,null,null,null,null,null,null,null,null,null,null,null,null,null,null,null,{"$f":"Data!R34","v":"pH"},false,null,{"$f":"Data!U60","v":2},{"$f":"Data!V60","v":"500 - 1,000"},null,null,null,null,null,null,{"$f":"Data!AC60","v":4},{"$f":"IF($AE$57<=AC60,\"No change proposed\",Data!AD60)","v":"Resident issued key system"},null,null,null,null,null,null,null,null,null,null,null,null,null,null,{"$f":"Data!AS60","v":2},{"$f":"IF($AU$59<=AS60,\"No change proposed\",Data!AT60)","v":"Sown pasture grasses and shrubs"}]
[null,null,null,null,null,null,null,null,null,null,null,null,null,null,null,null,null,{"$f":"Data!R35","v":"EC"},false,null,{"$f":"Data!U61","v":3},{"$f":"Data!V61","v":"250 - 500"},null,null,null,null,null,null,{"$f":"Data!AC61","v":5},{"$f":"IF($AE$57<=AC61,\"No change proposed\",Data!AD61)","v":"No change proposed"},null,null,null,null,null,{"$f":"IF(AL59=2,5,AL61)","v":5},{"$f":"Data!AK61","v":"Leachate Management"},3,null,null,null,null,null,null,{"$f":"Data!AS61","v":3},{"$f":"IF($AU$59<=AS61,\"No change proposed\",Data!AT61)","v":"Sown pasture grasses"}]
[null,null,null,null,null,null,null,null,null,null,null,null,null,null,null,null,null,{"$f":"Data!R36","v":"Ammonia"},false,null,{"$f":"Data!U62","v":4},{"$f":"Data!V62","v":"100 - 250"},null,null,null,null,null,null,null,null,null,null,null,null,null,{"$f":"Data!AJ62","v":1},{"$f":"IF($AL$62<=AJ62,\"No change proposed\",Data!AK62)","v":"Discharge to sewer"},{"$f":"IF(Data!AL59=2,6,Data!AL61)","v":6},null,null,null,null,null,null,{"$f":"Data!AS62","v":4},{"$f":"IF($AU$59<=AS62,\"No change proposed\",Data!AT62)","v":"Natural revegetation"}]
[null,null,null,null,null,null,null,null,null,null,null,null,null,null,null,null,null,{"$f":"Data!R37","v":"Nitrate"},false,null,{"$f":"Data!U63","v":5},{"$f":"Data!V63","v":"< 100"},null,null,null,null,null,null,null,{"$f":"Data!AD63","v":"Site supervision"},5,null,null,null,null,{"$f":"Data!AJ63","v":2},{"$f":"IF($AL$62<=AJ63,\"No change proposed\",Data!AK63)","v":"Full containment and reuse/evaporation"},null,null,null,null,null,null,null,{"$f":"Data!AS63","v":5},{"$f":"IF($AU$59<=AS63,\"No change proposed\",Data!AT63)","v":"No revegetation"}]
[null,null,null,null,null,null,null,null,null,null,null,null,null,null,null,null,null,{"$f":"Data!R38","v":"TOC"},false,null,null,null,null,null,null,null,null,null,{"$f":"Data!AC64","v":1},{"$f":"IF($AE$64<=AC64,\"No change proposed\",Data!AD64)","v":"During all hours open to the public, with fees charged"},{"$f":"Data!AE63","v":5},null,null,null,null,{"$f":"Data!AJ64","v":3},{"$f":"IF($AL$62<=AJ64,\"No change proposed\",Data!AK64)","v":"First flush containment"}]
[null,null,null,null,null,null,null,null,null,null,null,null,null,null,null,null,null,{"$f":"Data!R39","v":"Alkalinity"},false,null,null,{"$f":"Data!V65","v":"Groundwater vulnerability"},{"$f":"Data!W65","v":2},null,null,null,null,null,{"$f":"Data!AC65","v":2},{"$f":"IF($AE$64<=AC65,\"No change proposed\",Data!AD65)","v":"During all hours open to the public"},null,null,null,null,null,{"$f":"Data!AJ65","v":4},{"$f":"IF($AL$62<=AJ65,\"No change proposed\",Data!AK65)","v":"Discharge after sedimentation"},null,null,null,null,null,null,null,2,{"$f":"Data!AT65","v":"Monitoring"},{"$f":"IF(AS65=2,5,AU73)","v":5}]
[null,null,null,null,null,null,null,null,null,null,null,null,null,null,null,null,null,{"$f":"Data!R40","v":"Iron"},false,null,{"$f":"Data!U66","v":1},"Low",null,null,null,null,null,null,{"$f":"Data!AC66","v":3},{"$f":"IF($AE$64<=AC66,\"No change proposed\",Data!AD66)","v":"During specific times, not all hours open to the public"},null,null,null,null,null,{"$f":"Data!AJ66","v":5},{"$f":"IF($AL$62<=AJ66,\"No change proposed\",Data!AK66)","v":"Nil / direct discharge"},null,null,null,null,null,null,null,null,{"$f":"Data!AT66","v":"Frequency"},5]
[null,null,null,null,null,null,null,null,null,null,null,null,null,null,null,null,null,{"$f":"Data!R41","v":"Pesticides"},false,null,{"$f":"Data!U67","v":2},"Low moderate",null,null,null,null,null,null,{"$f":"Data!AC67","v":4},{"$f":"IF($AE$64<=AC67,\"No change proposed\",Data!AD67)","v":"Infrequently and/or irregularly"},null,null,null,null,null,null,null,null,null,null,null,null,null,null,{"$f":"Data!AS67","v":1},{"$f":"IF($AU$67<=AS67,\"No change proposed\",Data!AT67)","v":"Very frequently (eg. daily)"},{"$f":"IF(Data!AS65=2,6,Data!AU66)","v":6}]
[null,null,null,null,null,null,null,null,null,null,null,null,null,null,null,null,null,"Others",false,null,{"$f":"Data!U68","v":3},"Unknown / not stated",null,null,null,null,null,null,{"$f":"Data!AC68","v":5},{"$f":"IF($AE$64<=AC68,\"No change proposed\",Data!AD68)","v":"No change proposed"},null,null,null,null,null,null,"Size of active areas",2,null,null,null,null,null,null,{"$f":"Data!AS68","v":2},{"$f":"IF($AU$67<=AS68,\"No change proposed\",Data!AT68)","v":"Frequently (eg. weekly)"}]
[null,null,null,null,null,null,null,null,null,null,null,null,null,null,null,null,{"$f":"S69/3","v":0},{"$f":"Data!R43","v":"Concerns"},{"$f":"Data!S43","v":0},null,{"$f":"Data!U69","v":0},"Moderate",null,null,null,null,null,null,null,null,null,null,null,null,null,1,{"$f":"IF($AL$69<=AJ69,\"No change proposed\",Data!AK69)","v":"<100"},{"$f":"Data!AL68","v":2},null,null,null,null,null,null,{"$f":"Data!AS69","v":3},{"$f":"IF($AU$67<=AS69,\"No change proposed\",Data!AT69)","v":"Often (eg. monthly)"}]
[null,null,null,null,null,null,null,null,null,null,null,null,null,null,null,null,{"$f":"SUM(Q69,Q59,Q53,Q49,Q43)-1","v":0},null,null,null,{"$f":"Data!U70","v":0},"Moderately high",null,null,null,null,null,null,null,{"$f":"Data!AD70","v":"Operators at premises"},5,null,null,null,null,2,{"$f":"IF($AL$69<=AJ70,\"No change proposed\",Data!AK70)","v":"No change proposed"},null,null,null,null,null,null,null,{"$f":"Data!AS70","v":4},{"$f":"IF($AU$67<=AS70,\"No change proposed\",Data!AT70)","v":"Infrequently (eg. quarterly)"}]
[null,null,null,null,null,null,null,null,null,null,null,null,null,null,null,null,{"$f":"IF(S71=2,5,IF(ROUND(S71+Q89,0)>5,5,ROUND(S71+Q89,0)))","v":5},{"$f":"Data!R45","v":"Leachate"},2,null,{"$f":"Data!U71","v":0},"High",null,null,null,null,null,null,1,{"$f":"IF($AE$71<=AC71,\"No change proposed\",AD225)","v":"Very frequently (eg. daily)"},{"$f":"Data!AE70","v":5},null,null,null,null,3,{"$f":"IF($AL$69<=AJ71,\"No change proposed\",Data!AK71)","v":"No change proposed"},null,null,null,null,null,null,null,{"$f":"Data!AS71","v":5},{"$f":"IF($AU$67<=AS71,\"No change proposed\",Data!AT71)","v":"Very infrequently to never (eg. annually or more)"}]
[null,null,null,null,null,null,null,null,null,null,null,null,null,null,null,null,{"$f":"S72/5","v":0},{"$f":"Data!R46","v":"Frequency"},null,null,null,null,null,null,null,null,null,null,2,{"$f":"IF($AE$71<=AC72,\"No change proposed\",AD226)","v":"Frequently (eg. weekly)"},null,null,null,null,null,4,{"$f":"IF($AL$69<=AJ72,\"No change proposed\",Data!AK72)","v":"No change proposed"},null,null,null,null,null,null,null,null,{"$f":"Data!AT72","v":"Procedures"},2]
[null,null,null,null,null,null,null,null,null,null,null,null,null,null,null,null,1,{"$f":"IF($S$73<=Q73,\"No change proposed\",R168)","v":"Monthly"},{"$f":"IF(Data!$S$45=1,Data!S46,6)","v":6},null,null,{"$f":"Data!V73","v":"Depth to rock"},{"$f":"Data!W73","v":3},null,null,null,null,null,3,{"$f":"IF($AE$71<=AC73,\"No change proposed\",AD227)","v":"Often (eg. monthly)"},null,null,null,null,null,5,{"$f":"IF($AL$69<=AJ73,\"No change proposed\",Data!AK73)","v":"No change proposed"},null,null,null,null,null,null,null,null,null,{"$f":"ROUND(SUM(AU72,AU66)/7*5,0)","v":5}]
[null,null,null,null,null,null,null,null,null,null,null,null,null,null,null,null,2,{"$f":"IF($S$73<=Q74,\"No change proposed\",R169)","v":"Quarterly"},null,null,{"$f":"Data!U74","v":1},"> 50",null,null,null,null,null,null,4,{"$f":"IF($AE$71<=AC74,\"No change proposed\",AD228)","v":"Infrequently (eg. quarterly)"},null,null,null,null,null,6,{"$f":"IF($AL$69<=AJ74,\"No change proposed\",Data!AK74)","v":"No change proposed"},null,null,null,null,null,null,null,null,{"$f":"Data!AT74","v":"Treat runoff"},5]
[null,{"$f":"Data!B75","v":""},null,null,null,null,null,null,null,null,null,null,null,null,null,null,3,{"$f":"IF($S$73<=Q75,\"No change proposed\",R170)","v":"Six-monthly"},null,null,{"$f":"Data!U75","v":2},"25 - 50",null,null,null,null,null,null,5,{"$f":"IF($AE$71<=AC75,\"No change proposed\",AD229)","v":"No change proposed"},null,null,null,null,null,null,null,null,null,null,null,null,null,null,{"$f":"Data!AS75","v":1},{"$f":"IF($AU$75<=AS75,\"No change proposed\",Data!AT75)","v":"Discharge to sewer"},{"$f":"IF(Data!$A$12=1,6,Data!AU74)","v":6}]
[null,{"$f":"Data!B76","v":""},null,null,null,null,null,null,null,null,null,null,null,null,null,null,4,{"$f":"IF($S$73<=Q76,\"No change proposed\",R171)","v":"Annually"},null,null,{"$f":"Data!U76","v":3},"Unknown",null,null,null,null,null,null,null,null,null,null,null,null,null,null,"Landfill gas management",2,null,null,null,null,null,null,{"$f":"Data!AS76","v":2},{"$f":"IF($AU$75<=AS76,\"No change proposed\",Data!AT76)","v":"Full containment and reuse/evaporation"}]
[null,{"$f":"Data!B77","v":""},null,null,null,null,null,null,null,null,null,null,null,null,null,null,5,{"$f":"IF($S$73<=Q77,\"No change proposed\",R172)","v":"Greater than annually / infrequently"},null,null,{"$f":"Data!U77","v":4},"10 - 25",null,null,null,null,null,null,null,{"$f":"Data!AD72","v":"Complaints"},{"$f":"Data!AE72","v":1},null,null,null,null,1,{"$f":"IF($AL$77<=AJ77,\"No change proposed\",Data!AK77)","v":"No management"},{"$f":"Data!AL76","v":2},null,null,null,null,null,null,{"$f":"Data!AS77","v":3},{"$f":"IF($AU$75<=AS77,\"No change proposed\",Data!AT77)","v":"First flush containment"}]
[null,{"$f":"Data!B78","v":""},null,null,null,null,null,null,null,null,null,null,null,null,null,null,{"$f":"S78/9","v":1},{"$f":"Data!R47","v":"Parameters"},{"$f":"COUNTIF(S79:S87,\"=false\")","v":9},null,{"$f":"Data!U78","v":5},"5 - 10",null,null,null,null,null,null,null,null,null,null,null,null,null,2,{"$f":"IF($AL$77<=AJ78,\"No change proposed\",Data!AK78)","v":"No change proposed"},null,null,null,null,null,null,null,{"$f":"Data!AS78","v":4},{"$f":"IF($AU$75<=AS78,\"No change proposed\",Data!AT78)","v":"Discharge after sedimentation"}]
[null,{"$f":"Data!B79","v":""},null,null,null,null,null,null,null,null,null,null,null,null,null,null,null,{"$f":"Data!R48","v":"pH"},false,null,{"$f":"Data!U79","v":6},"< 5",null,null,null,null,null,null,null,{"$f":"Data!AD74","v":"Uncontrolled fires"},{"$f":"Data!AE74","v":1},null,null,null,null,3,{"$f":"IF($AL$77<=AJ79,\"No change proposed\",Data!AK79)","v":"No change proposed"},null,null,null,null,null,null,null,{"$f":"Data!AS79","v":5},{"$f":"IF($AU$75<=AS79,\"No change proposed\",Data!AT79)","v":"Nil / direct discharge"}]
[null,{"$f":"Data!B80","v":""},null,null,null,null,null,null,null,null,null,null,null,null,null,null,null,{"$f":"Data!R49","v":"EC"},false,null,null,null,null,null,null,null,null,null,null,null,null,null,null,null,null,4,{"$f":"IF($AL$77<=AJ80,\"No change proposed\",Data!AK80)","v":"No change proposed"}]
[null,null,null,null,null,null,null,null,null,null,null,null,null,null,null,null,null,{"$f":"Data!R50","v":"Ammonia"},false,null,null,{"$f":"Data!V81","v":"Depth to GW"},{"$f":"Data!W81","v":3},null,null,null,null,null,null,{"$f":"Data!AD76","v":"Unlawful waste disposal (on premises)"},{"$f":"Data!AE76","v":1},null,null,null,null,5,{"$f":"IF($AL$77<=AJ81,\"No change proposed\",Data!AK81)","v":"No change proposed"},null,null,null,null,null,null,null,null,"Leachate Management",5]
[null,null,null,null,null,null,null,null,null,null,null,null,null,null,null,null,null,{"$f":"Data!R51","v":"Nitrate"},false,null,{"$f":"Data!U82","v":1},"> 50",null,null,null,null,null,null,null,null,null,null,null,null,null,null,null,null,null,null,null,null,null,null,1,{"$f":"IF($AU$82<=AS82,\"No change proposed\",Data!AT82)","v":"Collection and discharge to sewer"},{"$f":"IF(Data!$A$12=1,6,Data!AU81)","v":6}]
[null,null,null,null,null,null,null,null,null,null,null,null,null,null,null,null,null,{"$f":"Data!R52","v":"TOC"},false,null,{"$f":"Data!U83","v":2},"25 - 50",null,null,null,null,null,null,null,{"$f":"Data!AD78","v":"Unlawful waste disposal (off premises)"},{"$f":"Data!AE78","v":1},null,null,null,null,null,null,null,null,null,null,null,null,null,2,{"$f":"IF($AU$82<=AS83,\"No change proposed\",Data!AT83)","v":"Collection and reuse/evaporation"}]
[null,null,null,null,null,null,null,null,null,null,null,null,null,null,null,null,null,{"$f":"Data!R53","v":"Alkalinity"},false,null,{"$f":"Data!U84","v":3},"Unknown",null,null,null,null,null,null,null,null,null,null,null,null,null,null,null,null,null,null,null,null,null,null,3,{"$f":"IF($AU$82<=AS84,\"No change proposed\",Data!AT84)","v":"Collection and storage"}]
[null,null,null,null,null,null,null,null,null,null,null,null,null,null,null,null,null,{"$f":"Data!R54","v":"Iron"},false,null,{"$f":"Data!U85","v":4},"10 - 25",null,null,null,null,null,null,null,{"$f":"Data!AD80","v":"Stormwater diversion"},{"$f":"IF(AE89=0,5,6-AE89)","v":5},null,null,null,null,null,null,null,null,null,null,null,null,null,4,{"$f":"IF($AU$82<=AS85,\"No change proposed\",Data!AT85)","v":"Collection and discharge after retention"}]
[null,null,null,null,null,null,null,null,null,null,null,null,null,null,null,null,null,{"$f":"Data!R55","v":"Pesticides"},false,null,{"$f":"Data!U86","v":5},"5 - 10",null,null,null,null,null,null,null,{"$f":"Data!AD81","v":"Perimeter"},false,null,null,null,null,null,null,null,null,null,null,null,null,null,5,{"$f":"IF($AU$82<=AS86,\"No change proposed\",Data!AT86)","v":"No collection of leachate"}]
[null,null,null,null,null,null,null,null,null,null,null,null,null,null,null,null,null,{"$f":"Data!R56","v":"Others"},false,null,{"$f":"Data!U87","v":6},"< 5",null,null,null,null,null,null,null,{"$f":"Data!AD82","v":"Disturbed"},false]
[null,null,null,null,null,null,null,null,null,null,null,null,null,null,null,null,{"$f":"S88/3","v":0},{"$f":"Data!R57","v":"Concerns"},{"$f":"Data!S57","v":0},null,null,null,null,null,null,null,null,null,null,{"$f":"Data!AD83","v":"Waste"},false,null,null,null,null,null,null,null,null,null,null,null,null,null,1,"Membrane / geosynthetic material"]
[null,null,null,null,null,null,null,null,null,null,null,null,null,null,null,null,{"$f":"(SUM(Q88,Q78,Q72)/3*5)-1","v":0.66666666666666652},null,null,null,null,{"$f":"Data!V89","v":"Local GW use"},{"$f":"IF(W96=0,1,(ROUND(W96*5,0)))","v":1},null,null,null,null,null,null,null,{"$f":"ROUND(COUNTIF(AE86:AE88, \"=true\")/3*5,0)","v":0},null,null,null,null,null,null,null,null,null,null,null,null,null,2,"Imported clay material"]
[null,null,null,null,null,null,null,null,null,null,null,null,null,null,null,null,{"$f":"IF(S90=2,5,IF(ROUND(S90+Q113,0)>5,5,ROUND(S90+Q113,0)))","v":5},{"$f":"Data!R59","v":"Dust"},2,null,null,{"$f":"Data!V90","v":"Domestic"},{"$f":"Data!W90","v":false},null,null,null,null,null,null,{"$f":"Data!AD85","v":"Stormwater - undisturbed"},5,null,null,null,null,null,null,null,null,null,null,null,null,null,3,"Imported material"]
[null,null,null,null,null,null,null,null,null,null,null,null,null,null,null,null,{"$f":"S91/5","v":0},{"$f":"Data!R60","v":"No. Locations"},null,null,null,{"$f":"Data!V91","v":"Stock / irrigation"},{"$f":"Data!W91","v":false},null,null,null,null,null,1,{"$f":"IF($AE$91<=AC91,\"No change proposed\",AD112)","v":"Discharge to sewer"},{"$f":"Data!AE85","v":5},null,null,null,null,null,null,null,null,null,null,null,null,null,4,"On-site material"]
[null,null,null,null,null,null,null,null,null,null,null,null,null,null,null,null,1,{"$f":"IF($S$92<=Q92,\"No change proposed\",R161)","v":"More than 4"},{"$f":"IF(Data!$S$59=1,Data!S60,6)","v":6},null,null,{"$f":"Data!V92","v":"Industrial"},{"$f":"Data!W92","v":false},null,null,null,null,null,2,{"$f":"IF($AE$91<=AC92,\"No change proposed\",AD113)","v":"Full containment and reuse/evaporation"},null,null,null,null,null,null,null,null,null,null,null,null,null,null,5,"No capping"]
[null,null,null,null,null,null,null,null,null,null,null,null,null,null,null,null,2,{"$f":"IF($S$92<=Q93,\"No change proposed\",R162)","v":"4"},null,null,null,{"$f":"Data!V93","v":"Monitoring"},{"$f":"Data!W93","v":false},null,null,null,null,null,3,{"$f":"IF($AE$91<=AC93,\"No change proposed\",AD114)","v":"First flush containment"}]
[null,null,null,null,null,null,null,null,null,null,null,null,null,null,null,null,3,{"$f":"IF($S$92<=Q94,\"No change proposed\",R163)","v":"3"},null,null,null,{"$f":"Data!V94","v":"Other"},{"$f":"Data!W94","v":false},null,null,null,null,null,4,{"$f":"IF($AE$91<=AC94,\"No change proposed\",AD115)","v":"Discharge after sedimentation"},null,null,null,null,null,null,null,null,null,null,null,null,null,null,1,"0% - 2%"]
[null,null,null,null,null,null,null,null,null,null,null,null,null,null,null,null,4,{"$f":"IF($S$92<=Q95,\"No change proposed\",R164)","v":"2"},null,null,null,{"$f":"Data!V95","v":"Not specified"},{"$f":"Data!W95","v":false},null,null,null,null,null,5,{"$f":"IF($AE$91<=AC95,\"No change proposed\",AD116)","v":"No change proposed"},null,null,null,null,null,null,null,null,null,null,null,null,null,null,2,"2% - 5%"]
[null,null,null,null,null,null,null,null,null,null,null,null,null,null,null,null,5,{"$f":"IF($S$92<=Q96,\"No change proposed\",R165)","v":"1"},null,null,null,null,{"$f":"COUNTIF(W90:W95,\"=true\")/6","v":0},null,null,null,null,null,null,null,null,null,null,null,null,null,null,null,null,null,null,null,null,null,3,"5% - 10%"]
[null,null,null,null,null,null,null,null,null,null,null,null,null,null,null,null,{"$f":"S97/3","v":0},{"$f":"Data!R61","v":"Distribution"},null,null,null,"ACH",2,2,{"$f":"IF(X97=\"\",W97,ROUND(SUM(W97:X97)/2,0))","v":2},null,null,null,null,{"$f":"Data!AD87","v":"Stormwater - disturbed"},5,null,null,null,null,null,null,null,null,null,null,null,null,null,4,"10% - 25%"]
[null,null,null,null,null,null,null,null,null,null,null,null,null,null,null,null,1,{"$f":"IF($S$98<=Q98,\"No change proposed\",R180)","v":"Up wind and down wind of premises"},{"$f":"IF(Data!$S$59=1,Data!S61,4)","v":4},null,null,"Vulnerable or endangered species",2,null,null,null,null,null,1,{"$f":"IF($AE$98<=AC98,\"No change proposed\",AD112)","v":"Discharge to sewer"},{"$f":"Data!AE87","v":5},null,null,null,null,null,null,null,null,null,null,null,null,null,5,"> 25%"]
[null,null,null,null,null,null,null,null,null,null,null,null,null,null,null,null,2,{"$f":"IF($S$98<=Q99,\"No change proposed\",R181)","v":"Down wind of premises only"},null,null,null,null,null,null,null,null,null,null,2,{"$f":"IF($AE$98<=AC99,\"No change proposed\",AD113)","v":"Full containment and reuse/evaporation"}]
[null,null,null,null,null,null,null,null,null,null,null,null,null,null,null,null,3,{"$f":"IF($S$98<=Q100,\"No change proposed\",R182)","v":"Up wind of premises only"},null,null,null,null,null,null,null,null,null,null,3,{"$f":"IF($AE$98<=AC100,\"No change proposed\",AD114)","v":"First flush containment"},null,null,null,null,null,null,null,null,null,null,null,null,null,null,1,"Industrial"]
[null,null,null,null,null,null,null,null,null,null,null,null,null,null,null,null,{"$f":"S101/5","v":0},{"$f":"Data!R62","v":"Frequency"},null,null,null,null,2,2,{"$f":"IF(X101=\"\",W101,ROUND(SUM(W101:X101)/2,0))","v":2},null,null,null,4,{"$f":"IF($AE$98<=AC101,\"No change proposed\",AD115)","v":"Discharge after sedimentation"},null,null,null,null,null,null,null,null,null,null,null,null,null,null,2,"Special purpose"]
[null,null,null,null,null,null,null,null,null,null,null,null,null,null,null,null,1,{"$f":"IF($S$102<=Q102,\"No change proposed\",R168)","v":"Monthly"},{"$f":"IF(Data!$S$59=1,Data!S62,6)","v":6},null,1,"Yes",null,null,null,null,null,null,5,{"$f":"IF($AE$98<=AC102,\"No change proposed\",AD116)","v":"No change proposed"},null,null,null,null,null,null,null,null,null,null,null,null,null,null,3,"Business"]
[null,null,null,null,null,null,null,null,null,null,null,null,null,null,null,null,2,{"$f":"IF($S$102<=Q103,\"No change proposed\",R169)","v":"Quarterly"},null,null,2,"No",null,null,null,null,null,null,null,null,null,null,null,null,null,null,null,null,null,null,null,null,null,null,4,"Rural"]
[null,null,null,null,null,null,null,null,null,null,null,null,null,null,null,null,3,{"$f":"IF($S$102<=Q104,\"No change proposed\",R170)","v":"Six-monthly"},null,null,null,null,null,null,null,null,null,null,null,{"$f":"Data!AD89","v":"Stormwater - waste"},5,null,null,null,null,null,null,null,null,null,null,null,null,null,5,"Recreation"]
[null,null,null,null,null,null,null,null,null,null,null,null,null,null,null,null,4,{"$f":"IF($S$102<=Q105,\"No change proposed\",R171)","v":"Annually"},null,null,null,{"$f":"Data!V105","v":"National Park / Reserve"},{"$f":"Data!W105","v":1},null,null,null,null,null,1,{"$f":"IF($AE$105<=AC105,\"No change proposed\",AD112)","v":"Discharge to sewer"},{"$f":"Data!AE89","v":5},null,null,null,null,null,null,null,null,null,null,null,null,null,6,"Residential"]
[null,null,null,null,null,null,null,null,null,null,null,null,null,null,null,null,5,{"$f":"IF($S$102<=Q106,\"No change proposed\",R172)","v":"Greater than annually / infrequently"},null,null,null,{"$f":"Data!V106","v":"Protection / conservation zoned"},{"$f":"Data!W106","v":1},null,null,null,null,null,2,{"$f":"IF($AE$105<=AC106,\"No change proposed\",AD113)","v":"Full containment and reuse/evaporation"},null,null,null,null,null,null,null,null,null,null,null,null,null,null,7,"Environment protection"]
[null,null,null,null,null,null,null,null,null,null,null,null,null,null,null,null,{"$f":"S107/4","v":0},{"$f":"Data!R63","v":"Method"},null,null,null,{"$f":"Data!V107","v":0},{"$f":"Data!W107","v":0},null,null,null,null,null,3,{"$f":"IF($AE$105<=AC107,\"No change proposed\",AD114)","v":"First flush containment"}]
[null,null,null,null,null,null,null,null,null,null,null,null,null,null,null,null,1,{"$f":"IF($S$108<=Q108,\"No change proposed\",Data!R64)","v":"High volume air sampling"},{"$f":"IF(Data!$S$59=1,Data!S63,5)","v":5},null,null,{"$f":"Data!V108","v":0},{"$f":"Data!W108","v":0},null,null,null,null,null,4,{"$f":"IF($AE$105<=AC108,\"No change proposed\",AD115)","v":"Discharge after sedimentation"},null,null,null,null,null,null,null,null,null,null,null,null,null,null,1,"Sown pasture grasses, shrubs and trees"]
[null,null,null,null,null,null,null,null,null,null,null,null,null,null,null,null,2,{"$f":"IF($S$108<=Q109,\"No change proposed\",Data!R65)","v":"Low volume air sampling"},null,null,null,{"$f":"Data!V109","v":0},{"$f":"Data!W109","v":0},null,null,null,null,null,5,{"$f":"IF($AE$105<=AC109,\"No change proposed\",AD116)","v":"No change proposed"},null,null,null,null,null,null,null,null,null,null,null,null,null,null,2,"Sown pasture grasses and shrubs"]
[null,null,null,null,null,null,null,null,null,null,null,null,null,null,null,null,3,{"$f":"IF($S$108<=Q110,\"No change proposed\",Data!R66)","v":"Gravimetric"},null,null,null,{"$f":"Data!V110","v":0},{"$f":"Data!W110","v":0},null,null,null,null,null,null,null,null,null,null,null,null,null,null,null,null,null,null,null,null,null,3,"Sown pasture grasses"]
[null,null,null,null,null,null,null,null,null,null,null,null,null,null,null,null,4,{"$f":"IF($S$108<=Q111,\"No change proposed\",Data!R67)","v":"Visual observations"},null,null,null,{"$f":"Data!V111","v":0},{"$f":"Data!W111","v":0},null,null,null,null,null,null,{"$f":"Data!AD91","v":"Methods"},null,null,null,null,null,null,null,null,null,null,null,null,null,null,4,"Natural revegetation"]
[null,null,null,null,null,null,null,null,null,null,null,null,null,null,null,null,{"$f":"S112/3","v":0},{"$f":"Data!R68","v":"Concerns"},{"$f":"Data!S68","v":0},null,{"$f":"Data!U112","v":1},{"$f":"Data!V112","v":"> 5"},null,null,null,null,null,null,{"$f":"Data!AC92","v":1},{"$f":"Data!AD92","v":"Discharge to sewer"},null,null,null,null,null,null,null,null,null,null,null,null,null,null,5,"No revegetation"]
[null,null,null,null,null,null,null,null,null,null,null,null,null,null,null,null,{"$f":"SUM(Q112,Q107,Q101,Q97,Q91)-1","v":-1},null,null,null,{"$f":"Data!U113","v":2},{"$f":"Data!V113","v":"1 - 5"},null,null,null,null,null,null,{"$f":"Data!AC93","v":2},{"$f":"Data!AD93","v":"Full containment and reuse/evaporation"}]
[null,null,null,null,null,null,null,null,null,null,null,null,null,null,null,null,{"$f":"IF(S114=2,5,IF(ROUND(S114+Q142,0)>5,5,ROUND(S114+Q142,0)))","v":5},{"$f":"Data!R70","v":"Noise"},2,null,{"$f":"Data!U114","v":3},{"$f":"Data!V114","v":"0.5 - 1"},null,null,null,null,null,null,{"$f":"Data!AC94","v":3},{"$f":"Data!AD94","v":"First flush containment"},null,null,null,null,null,null,null,null,null,null,null,null,null,null,1,"Discharge to sewer"]
[null,null,null,null,null,null,null,null,null,null,null,null,null,null,null,null,{"$f":"S115/5","v":0},{"$f":"Data!R71","v":"No. Locations"},null,null,{"$f":"Data!U115","v":4},{"$f":"Data!V115","v":"0.25 - 0.5"},null,null,null,null,null,null,{"$f":"Data!AC95","v":4},{"$f":"Data!AD95","v":"Discharge after sedimentation"},null,null,null,null,null,null,null,null,null,null,null,null,null,null,2,"Full containment and reuse/evaporation"]
[null,null,null,null,null,null,null,null,null,null,null,null,null,null,null,null,1,{"$f":"IF($S$116<=Q116,\"No change proposed\",R161)","v":"More than 4"},{"$f":"IF(Data!$S$70=1,Data!S71,6)","v":6},null,{"$f":"Data!U116","v":5},{"$f":"Data!V116","v":"< 0.25"},null,null,null,null,null,null,{"$f":"Data!AC96","v":5},{"$f":"Data!AD96","v":"Nil / direct discharge"},null,null,null,null,null,null,null,null,null,null,null,null,null,null,3,"First flush containment"]
[null,null,null,null,null,null,null,null,null,null,null,null,null,null,null,null,2,{"$f":"IF($S$116<=Q117,\"No change proposed\",R162)","v":"4"},null,null,{"$f":"Data!U117","v":6},{"$f":"Data!V117","v":"Unknown"},null,null,null,null,null,null,null,null,null,null,null,null,null,null,null,null,null,null,null,null,null,null,4,"Discharge after sedimentation"]
[null,null,null,null,null,null,null,null,null,null,null,null,null,null,null,null,3,{"$f":"IF($S$116<=Q118,\"No change proposed\",R163)","v":"3"},null,null,null,null,null,null,null,null,null,null,null,{"$f":"Data!AD98","v":"Trafficable surface"},5,null,null,null,null,null,null,null,null,null,null,null,null,null,5,"Nil / direct discharge"]
[null,null,null,null,null,null,null,null,null,null,null,null,null,null,null,null,4,{"$f":"IF($S$116<=Q119,\"No change proposed\",R164)","v":"2"},null,null,null,{"$f":"Data!V119","v":"Visibility"},{"$f":"IF(W125=0,1,W125)","v":1},null,null,null,null,null,{"$f":"Data!AC99","v":1},{"$f":"IF($AE$119<=AC119,\"No change proposed\",Data!AD99)","v":"All surfaces (100%)"},{"$f":"Data!AE98","v":5}]
[null,null,null,null,null,null,null,null,null,null,null,null,null,null,null,null,5,{"$f":"IF($S$116<=Q120,\"No change proposed\",R165)","v":"1"},null,null,null,{"$f":"Data!V120","v":"Residences"},{"$f":"Data!W120","v":false},null,null,null,null,null,{"$f":"Data!AC100","v":2},{"$f":"IF($AE$119<=AC120,\"No change proposed\",Data!AD100)","v":"Most surfaces (up to 75%)"},null,null,null,null,null,null,null,null,null,null,null,null,null,null,1,"Very frequently (eg. daily)"]
[null,null,null,null,null,null,null,null,null,null,null,null,null,null,null,null,{"$f":"S121/3","v":0},{"$f":"Data!R72","v":"Location type"},null,null,null,{"$f":"Data!V121","v":"Urban area"},{"$f":"Data!W121","v":false},null,null,null,null,null,{"$f":"Data!AC101","v":3},{"$f":"IF($AE$119<=AC121,\"No change proposed\",Data!AD101)","v":"Some surfaces (up to 50%)"},null,null,null,null,null,null,null,null,null,null,null,null,null,null,2,"Frequently (eg. weekly)"]
[null,null,null,null,null,null,null,null,null,null,null,null,null,null,null,null,1,{"$f":"IF($S$122<=Q122,\"No change proposed\",Data!R73)","v":"Nearest / most affected residence"},{"$f":"IF(Data!$S$70=1,Data!S72,4)","v":4},null,null,{"$f":"Data!V122","v":"Highway"},{"$f":"Data!W122","v":false},null,null,null,null,null,{"$f":"Data!AC102","v":4},{"$f":"IF($AE$119<=AC122,\"No change proposed\",Data!AD102)","v":"Few surfaces (up to 25%)"},null,null,null,null,null,null,null,null,null,null,null,null,null,null,3,"Often (eg. monthly)"]
[null,null,null,null,null,null,null,null,null,null,null,null,null,null,null,null,2,{"$f":"IF($S$122<=Q123,\"No change proposed\",Data!R74)","v":"Boundary of premises"},null,null,null,{"$f":"Data!V123","v":"Main road"},{"$f":"Data!W123","v":false},null,null,null,null,null,{"$f":"Data!AC103","v":5},{"$f":"IF($AE$119<=AC123,\"No change proposed\",Data!AD103)","v":"No change proposed"},null,null,null,null,null,null,null,null,null,null,null,null,null,null,4,"Infrequently (eg. quarterly)"]
[null,null,null,null,null,null,null,null,null,null,null,null,null,null,null,null,3,{"$f":"IF($S$122<=Q124,\"No change proposed\",Data!R75)","v":"Arbitrary location"},null,null,null,{"$f":"Data!V124","v":"Lookout"},{"$f":"Data!W124","v":false},null,null,null,null,null,null,null,null,null,null,null,null,null,null,null,null,null,null,null,null,null,5,"Very infrequently to never (eg. annually or more)"]
[null,null,null,null,null,null,null,null,null,null,null,null,null,null,null,null,{"$f":"S125/5","v":0},{"$f":"Data!R76","v":"Frequency"},null,null,null,null,{"$f":"COUNTIF(W120:W124,\"=true\")","v":0},null,null,null,null,null,null,{"$f":"Data!AD105","v":"Liquid / hazardous storage"},1]
[null,null,null,null,null,null,null,null,null,null,null,null,null,null,null,null,1,{"$f":"IF($S$126<=Q126,\"No change proposed\",R168)","v":"Monthly"},{"$f":"IF(Data!$S$70=1,Data!S76,6)","v":6},null,null,null,null,null,null,null,null,null,{"$f":"Data!AC106","v":1},{"$f":"IF($AE$126<=AC126,\"No change proposed\",Data!AD106)","v":"No change proposed"},{"$f":"Data!AE105","v":1},null,null,null,null,null,null,null,null,null,null,null,null,null,1,"Collection and discharge to sewer"]
[null,null,null,null,null,null,null,null,null,null,null,null,null,null,null,null,2,{"$f":"IF($S$126<=Q127,\"No change proposed\",R169)","v":"Quarterly"},null,null,null,"Bush fire prone area",{"$f":"Data!W127","v":1},null,null,null,null,null,{"$f":"Data!AC107","v":2},{"$f":"IF($AE$126<=AC127,\"No change proposed\",Data!AD107)","v":"No change proposed"},null,null,null,null,null,null,null,null,null,null,null,null,null,null,2,"Collection and reuse/evaporation"]
[null,null,null,null,null,null,null,null,null,null,null,null,null,null,null,null,3,{"$f":"IF($S$126<=Q128,\"No change proposed\",R170)","v":"Six-monthly"},null,null,1,"Not bush fire prone land",null,null,null,null,null,null,{"$f":"Data!AC108","v":3},{"$f":"IF($AE$126<=AC128,\"No change proposed\",Data!AD108)","v":"No change proposed"},null,null,null,null,null,null,null,null,null,null,null,null,null,null,3,"Collection and storage"]
[null,null,null,null,null,null,null,null,null,null,null,null,null,null,null,null,4,{"$f":"IF($S$126<=Q129,\"No change proposed\",R171)","v":"Annually"},null,null,2,"Bush fire prone vegetation buffer",null,null,null,null,null,null,{"$f":"Data!AC109","v":4},{"$f":"IF($AE$126<=AC129,\"No change proposed\",Data!AD109)","v":"No change proposed"},null,null,null,null,null,null,null,null,null,null,null,null,null,null,4,"Collection and discharge after retention"]
[null,null,null,null,null,null,null,null,null,null,null,null,null,null,null,null,5,{"$f":"IF($S$126<=Q130,\"No change proposed\",R172)","v":"Greater than annually / infrequently"},null,null,3,"Bush fire prone vegetation Category 2",null,null,null,null,null,null,{"$f":"Data!AC110","v":5},{"$f":"IF($AE$126<=AC130,\"No change proposed\",Data!AD110)","v":"No change proposed"},null,null,null,null,null,null,null,null,null,null,null,null,null,null,5,"No leachate collected"]
[null,null,null,null,null,null,null,null,null,null,null,null,null,null,null,null,{"$f":"S131/4","v":0},{"$f":"Data!R77","v":"Type of monitoring"},null,null,4,"Bush fire prone vegetation Category 1"]
[null,null,null,null,null,null,null,null,null,null,null,null,null,null,null,null,1,{"$f":"IF($S$132<=Q132,\"No change proposed\",Data!R78)","v":"Sound level meter - Attended and unattended"},{"$f":"IF(Data!$S$70=1,Data!S77,5)","v":5},null,5,"Unknown",null,null,null,null,null,null,null,{"$f":"Data!AD112","v":"Under cover"},1,null,null,null,null,null,null,null,null,null,null,null,null,null,1,"Collection and discharge to sewer"]
[null,null,null,null,null,null,null,null,null,null,null,null,null,null,null,null,2,{"$f":"IF($S$132<=Q133,\"No change proposed\",Data!R79)","v":"Sound level meter - Attended only"},null,null,null,null,null,null,null,null,null,null,null,null,null,null,null,null,null,null,null,null,null,null,null,null,null,null,2,"Collection and reuse/evaporation"]
[null,null,null,null,null,null,null,null,null,null,null,null,null,null,null,null,3,{"$f":"IF($S$132<=Q134,\"No change proposed\",Data!R80)","v":"Sound level meter - Unattended only"},null,null,null,null,null,null,null,null,null,null,null,{"$f":"Data!AD114","v":"Dust control"},{"$f":"IF(AE139=0,5,6-AE139)","v":5},null,null,null,null,null,null,null,null,null,null,null,null,null,3,"Collection and storage"]
[null,null,null,null,null,null,null,null,null,null,null,null,null,null,null,null,4,{"$f":"IF($S$132<=Q135,\"No change proposed\",Data!R81)","v":"Complaints information"},null,null,null,null,null,null,null,null,null,null,null,{"$f":"Data!AD115","v":"Minimise disturbance"},1,null,null,null,null,null,null,null,null,null,null,null,null,null,4,"Collection and discharge after retention"]
[null,null,null,null,null,null,null,null,null,null,null,null,null,null,null,null,{"$f":"S136/5","v":0},{"$f":"Data!R82","v":"Level"},{"$f":"Data!S82","v":0},null,null,null,null,null,null,null,null,null,null,{"$f":"Data!AD116","v":"Windbreaks"},false,null,null,null,null,null,null,null,null,null,null,null,null,null,5,"No collection of leachate"]
[null,null,null,null,null,null,null,null,null,null,null,null,null,null,null,null,1,"Less than background level",null,null,null,null,null,null,null,null,null,null,null,{"$f":"Data!AD117","v":"Suppression sprays"},false]
[null,null,null,null,null,null,null,null,null,null,null,null,null,null,null,null,2,"At / equivalent to background level",null,null,null,null,null,null,null,null,null,null,null,{"$f":"Data!AD118","v":"Other"},false,null,null,null,null,null,null,null,null,null,null,null,null,null,null,"Landfill gas management",5]
[null,null,null,null,null,null,null,null,null,null,null,null,null,null,null,null,3,"1 - 5 dB(A) above background level",null,null,null,null,null,null,null,null,null,null,null,null,{"$f":"ROUND(COUNTIF(AE135:AE138, \"=true\")/4*5,0)","v":0},null,null,null,null,null,null,null,null,null,null,null,null,null,1,{"$f":"IF($AU$139<=AS139,\"No change proposed\",Data!AT89)","v":"Extraction and combustion"},{"$f":"Data!AU88","v":5}]
[null,null,null,null,null,null,null,null,null,null,null,null,null,null,null,null,4,">5 dB(A) above background level",null,null,null,null,null,null,null,null,null,null,null,{"$f":"Data!AD120","v":"Litter control"},{"$f":"IF(AE145=0,5,6-AE145)","v":5},null,null,null,null,null,null,null,null,null,null,null,null,null,2,{"$f":"IF($AU$139<=AS140,\"No change proposed\",Data!AT90)","v":"Bio oxidation"}]
[null,null,null,null,null,null,null,null,null,null,null,null,null,null,null,null,5,{"$f":"Data!R87","v":"Unknown"},null,null,null,null,null,null,null,null,null,null,null,{"$f":"Data!AD121","v":"Purpose built litter fences"},false,null,null,null,null,null,null,null,null,null,null,null,null,null,3,{"$f":"IF($AU$139<=AS141,\"No change proposed\",Data!AT91)","v":"Extraction and venting"}]
[null,null,null,null,null,null,null,null,null,null,null,null,null,null,null,null,{"$f":"SUM(Q136,Q131,Q125,Q121,Q115)-1","v":-1},null,null,null,null,null,null,null,null,null,null,null,null,{"$f":"Data!AD122","v":"Litter cages"},false,null,null,null,null,null,null,null,null,null,null,null,null,null,4,{"$f":"IF($AU$139<=AS142,\"No change proposed\",Data!AT92)","v":"Passive venting"}]
[null,null,null,null,null,null,null,null,null,null,null,null,null,null,null,null,{"$f":"IF(S143=2,5,IF(ROUND(S143+Q158,0)>5,5,ROUND(S143+Q158,0)))","v":5},{"$f":"Data!R89","v":"Landfill Gas"},2,null,null,null,null,null,null,null,null,null,null,{"$f":"Data!AD123","v":"Regular clean-up"},false,null,null,null,null,null,null,null,null,null,null,null,null,null,5,{"$f":"IF($AU$139<=AS143,\"No change proposed\",Data!AT93)","v":"No change proposed"}]
[null,null,null,null,null,null,null,null,null,null,null,null,null,null,null,null,{"$f":"S144/3","v":1},{"$f":"Data!R90","v":"Type of monitoring"},{"$f":"COUNTIF(S145:S147,\"=false\")","v":3},null,null,null,null,null,null,null,null,null,null,{"$f":"Data!AD124","v":"Other"},false]
[null,null,null,null,null,null,null,null,null,null,null,null,null,null,null,null,null,{"$f":"Data!R91","v":"Surface"},false,null,null,null,null,null,null,null,null,null,null,null,{"$f":"ROUND(COUNTIF(AE141:AE144, \"=true\")/4*5,0)","v":0},null,null,null,null,null,null,null,null,null,null,null,null,null,null,"LCMP",2]
[null,null,null,null,null,null,null,null,null,null,null,null,null,null,null,null,null,{"$f":"Data!R92","v":"Subsurface"},false,null,null,null,null,null,null,null,null,null,null,{"$f":"Data!AD126","v":"Operational days"},3,null,null,null,null,null,null,null,null,null,null,null,null,null,1,"Yes",{"$f":"Data!AU95","v":2}]
[null,null,null,null,null,null,null,null,null,null,null,null,null,null,null,null,null,{"$f":"Data!R93","v":"Buildings"},false,null,null,null,null,null,null,null,null,null,{"$f":"Data!AC127","v":1},{"$f":"IF($AE$147<=AC147,\"No change proposed\",Data!AD127)","v":"Weekdays only"},{"$f":"Data!AE126","v":3},null,null,null,null,null,null,null,null,null,null,null,null,null,2,"Unknown"]
[null,null,null,null,null,null,null,null,null,null,null,null,null,null,null,null,{"$f":"S148/5","v":0.2},{"$f":"Data!R94","v":"Frequency"},1,null,null,null,null,null,null,null,null,null,{"$f":"Data!AC128","v":2},{"$f":"IF($AE$147<=AC148,\"No change proposed\",Data!AD128)","v":"Weekdays and weekends"},null,null,null,null,null,null,null,null,null,null,null,null,null,null,3,"No"]
[null,null,null,null,null,null,null,null,null,null,null,null,null,null,null,null,1,{"$f":"IF($S$149<=Q149,\"No change proposed\",R168)","v":"Monthly"},{"$f":"IF(Data!S89=1,Data!S94,6)","v":6},null,null,null,null,null,null,null,null,null,{"$f":"Data!AC129","v":3},{"$f":"IF($AE$147<=AC149,\"No change proposed\",Data!AD129)","v":"No change proposed"}]
[null,null,null,null,null,null,null,null,null,null,null,null,null,null,null,null,2,{"$f":"IF($S$149<=Q150,\"No change proposed\",R169)","v":"Quarterly"}]
[null,null,null,null,null,null,null,null,null,null,null,null,null,null,null,null,3,{"$f":"IF($S$149<=Q151,\"No change proposed\",R170)","v":"Six-monthly"},null,null,null,null,null,null,null,null,null,null,null,{"$f":"Data!AD131","v":"Operating hours"},3]
[null,null,null,null,null,null,null,null,null,null,null,null,null,null,null,null,4,{"$f":"IF($S$149<=Q152,\"No change proposed\",R171)","v":"Annually"},null,null,null,null,null,null,null,null,null,null,1,{"$f":"IF($AE$152<=AC152,\"No change proposed\",Data!AD132)","v":"Day only (7am to 6pm)"},{"$f":"Data!AE131","v":3}]
[null,null,null,null,null,null,null,null,null,null,null,null,null,null,null,null,5,{"$f":"IF($S$149<=Q153,\"No change proposed\",R172)","v":"Greater than annually / infrequently"},null,null,null,null,null,null,null,null,null,null,2,{"$f":"IF($AE$152<=AC153,\"No change proposed\",Data!AD133)","v":"Day and evening (7am to 10pm)"}]
[null,null,null,null,null,null,null,null,null,null,null,null,null,null,null,null,{"$f":"S154/3","v":0.33333333333333331},{"$f":"Data!R95","v":"Levels"},{"$f":"Data!S95","v":1},null,null,null,null,null,null,null,null,null,3,{"$f":"IF($AE$152<=AC154,\"No change proposed\",Data!AD134)","v":"No change proposed"}]
[null,null,null,null,null,null,null,null,null,null,null,null,null,null,null,null,null,{"$f":"Data!R96","v":"0%"}]
[null,null,null,null,null,null,null,null,null,null,null,null,null,null,null,null,null,{"$f":"Data!R97","v":"0% - 1.25%"},null,null,null,null,null,null,null,null,null,null,null,{"$f":"Data!AD136","v":"Plant and Equipment"},{"$f":"IF(AE167=0,5,6-AE167)","v":5}]
[null,null,null,null,null,null,null,null,null,null,null,null,null,null,null,null,null,{"$f":"Data!R98","v":"> 1.25%"},null,null,null,null,null,null,null,null,null,null,null,{"$f":"Data!AD137","v":"Bulldozer"},false]
[null,null,null,null,null,null,null,null,null,null,null,null,null,null,null,null,{"$f":"(SUM(Q154,Q148,Q144)/3*5)-1","v":1.5555555555555554},null,null,null,null,null,null,null,null,null,null,null,null,{"$f":"Data!AD138","v":"Excavator"},false]
[null,null,null,null,null,null,null,null,null,null,null,null,null,null,null,null,null,null,null,null,null,null,null,null,null,null,null,null,null,{"$f":"Data!AD139","v":"Front end loader"},false]
[null,null,null,null,null,null,null,null,null,null,null,null,null,null,null,null,null,{"$f":"Data!R100","v":"No. Locations"},null,null,null,null,null,null,null,null,null,null,null,{"$f":"Data!AD140","v":"Landfill compactor"},false]
[null,null,null,null,null,null,null,null,null,null,null,null,null,null,null,null,1,{"$f":"Data!R101","v":"More than 4"},null,null,null,null,null,null,null,null,null,null,null,{"$f":"Data!AD141","v":"Small plant"},false]
[null,null,null,null,null,null,null,null,null,null,null,null,null,null,null,null,2,{"$f":"Data!R102","v":"4"},null,null,null,null,null,null,null,null,null,null,null,{"$f":"Data!AD142","v":"Tipper truck"},false]
[null,null,null,null,null,null,null,null,null,null,null,null,null,null,null,null,3,{"$f":"Data!R103","v":"3"},null,null,null,null,null,null,null,null,null,null,null,{"$f":"Data!AD143","v":"Backhoe"},false]
[null,null,null,null,null,null,null,null,null,null,null,null,null,null,null,null,4,{"$f":"Data!R104","v":"2"},null,null,null,null,null,null,null,null,null,null,null,{"$f":"Data!AD144","v":"Garbage truck"},false]
[null,null,null,null,null,null,null,null,null,null,null,null,null,null,null,null,5,{"$f":"Data!R105","v":"1"},null,null,null,null,null,null,null,null,null,null,null,{"$f":"Data!AD145","v":"MRF"},false]
[null,null,null,null,null,null,null,null,null,null,null,null,null,null,null,null,null,null,null,null,null,null,null,null,null,null,null,null,null,{"$f":"Data!AD146","v":"Vehicle wash"},false]
[null,null,null,null,null,null,null,null,null,null,null,null,null,null,null,null,null,{"$f":"Data!R107","v":"Frequency"},null,null,null,null,null,null,null,null,null,null,null,null,{"$f":"ROUND(COUNTIF(AE157:AE166, \"=true\")/10*5,0)","v":0}]
[null,null,null,null,null,null,null,null,null,null,null,null,null,null,null,null,1,{"$f":"Data!R108","v":"Monthly"},null,null,null,null,null,null,null,null,null,null,null,{"$f":"Data!AD148","v":"Collection services"},{"$f":"IF(AE173=0,5,6-AE173)","v":5}]
[null,null,null,null,null,null,null,null,null,null,null,null,null,null,null,null,2,{"$f":"Data!R109","v":"Quarterly"},null,null,null,null,null,null,null,null,null,null,null,{"$f":"Data!AD149","v":"Mixed waste"},false]
[null,null,null,null,null,null,null,null,null,null,null,null,null,null,null,null,3,{"$f":"Data!R110","v":"Six-monthly"},null,null,null,null,null,null,null,null,null,null,null,{"$f":"Data!AD150","v":"FOGO"},false,{"$f":"IF(AE170=FALSE,5,1)","v":5}]
[null,null,null,null,null,null,null,null,null,null,null,null,null,null,null,null,4,{"$f":"Data!R111","v":"Annually"},null,null,null,null,null,null,null,null,null,null,null,{"$f":"Data!AD151","v":"Recyclables"},false]
[null,null,null,null,null,null,null,null,null,null,null,null,null,null,null,null,5,{"$f":"Data!R112","v":"Greater than annually / infrequently"},null,null,null,null,null,null,null,null,null,null,null,{"$f":"Data!AD152","v":"Bulky"},false]
[null,null,null,null,null,null,null,null,null,null,null,null,null,null,null,null,null,null,null,null,null,null,null,null,null,null,null,null,null,null,{"$f":"ROUND(COUNTIF(AE169:AE172, \"=true\")/4*5,0)","v":0}]
[null,null,null,null,null,null,null,null,null,null,null,null,null,null,null,null,null,{"$f":"Data!R114","v":"Location of water monitoring"},null,null,null,null,null,null,null,null,null,null,null,{"$f":"Data!AD154","v":"CRC"},2]
[null,null,null,null,null,null,null,null,null,null,null,null,null,null,null,null,1,{"$f":"Data!R115","v":"Up gradient and down gradient of premises"}]
[null,null,null,null,null,null,null,null,null,null,null,null,null,null,null,null,2,{"$f":"Data!R116","v":"Down gradient of premises only"},null,null,null,null,null,null,null,null,null,null,null,{"$f":"Data!AD156","v":"Pest Management"},{"$f":"IF(AE183=0,5,6-AE183)","v":5}]
[null,null,null,null,null,null,null,null,null,null,null,null,null,null,null,null,3,{"$f":"Data!R117","v":"Up gradient of premises only"},null,null,null,null,null,null,null,null,null,null,null,{"$f":"Data!AD157","v":"Mice/rats"},false]
[null,null,null,null,null,null,null,null,null,null,null,null,null,null,null,null,null,null,null,null,null,null,null,null,null,null,null,null,null,{"$f":"Data!AD158","v":"Cats/dogs"},false]
[null,null,null,null,null,null,null,null,null,null,null,null,null,null,null,null,null,{"$f":"Data!R119","v":"Location of dust monitoring"},null,null,null,null,null,null,null,null,null,null,null,{"$f":"Data!AD159","v":"Noxious weeds"},false]
[null,null,null,null,null,null,null,null,null,null,null,null,null,null,null,null,1,{"$f":"Data!R120","v":"Up wind and down wind of premises"},null,null,null,null,null,null,null,null,null,null,null,{"$f":"Data!AD160","v":"Pigs/goats"},false]
[null,null,null,null,null,null,null,null,null,null,null,null,null,null,null,null,2,{"$f":"Data!R121","v":"Down wind of premises only"},null,null,null,null,null,null,null,null,null,null,null,{"$f":"Data!AD161","v":"Birds"},false]
[null,null,null,null,null,null,null,null,null,null,null,null,null,null,null,null,3,{"$f":"Data!R122","v":"Up wind of premises only"},null,null,null,null,null,null,null,null,null,null,null,{"$f":"Data!AD162","v":"Flies/insects"},false]
[null,null,null,null,null,null,null,null,null,null,null,null,null,null,null,null,null,null,null,null,null,null,null,null,null,null,null,null,null,null,{"$f":"ROUND(COUNTIF(AE177:AE182, \"=true\")/6*5,0)","v":0}]
[null,null,null,null,null,null,null,null,null,null,null,null,null,null,null,null,null,{"$f":"Data!R124","v":"Concerns"},null,null,null,null,null,null,null,null,null,null,null,{"$f":"Data!AD164","v":"Controlled burning"},5]
[null,null,null,null,null,null,null,null,null,null,null,null,null,null,null,null,1,{"$f":"Data!R125","v":"No"},null,null,null,null,null,null,null,null,null,null,1,{"$f":"IF($AE$185<=AC185,\"No change proposed\",AD218)","v":"Very infrequently to never (eg. annually or more)"},{"$f":"Data!AE164","v":5}]
[null,null,null,null,null,null,null,null,null,null,null,null,null,null,null,null,2,{"$f":"Data!R126","v":"Unknown"},null,null,null,null,null,null,null,null,null,null,2,{"$f":"IF($AE$185<=AC186,\"No change proposed\",AD219)","v":"Infrequently (eg. quarterly)"}]
[null,null,null,null,null,null,null,null,null,null,null,null,null,null,null,null,3,{"$f":"Data!R127","v":"Yes"},null,null,null,null,null,null,null,null,null,null,3,{"$f":"IF($AE$185<=AC187,\"No change proposed\",AD220)","v":"Often (eg. monthly)"}]
[null,null,null,null,null,null,null,null,null,null,null,null,null,null,null,null,null,null,null,null,null,null,null,null,null,null,null,null,4,{"$f":"IF($AE$185<=AC188,\"No change proposed\",AD221)","v":"Frequently (eg. weekly)"}]
[null,null,null,null,null,null,null,null,null,null,null,null,null,null,null,null,null,null,null,null,null,null,null,null,null,null,null,null,5,{"$f":"IF($AE$185<=AC189,\"No change proposed\",AD222)","v":"No change proposed"}]
[]
[null,null,null,null,null,null,null,null,null,null,null,null,null,null,null,null,null,null,null,null,null,null,null,null,null,null,null,null,null,{"$f":"Data!AD166","v":"Main Fire Capacity"},5]
[null,null,null,null,null,null,null,null,null,null,null,null,null,null,null,null,null,null,null,null,null,null,null,null,null,null,null,null,{"$f":"Data!AC167","v":1},{"$f":"IF($AE$192<=AC192,\"No change proposed\",Data!AD167)","v":"Fire main / dedicated fire water storage"},{"$f":"Data!AE166","v":5}]
[null,null,null,null,null,null,null,null,null,null,null,null,null,null,null,null,null,null,null,null,null,null,null,null,null,null,null,null,{"$f":"Data!AC168","v":2},{"$f":"IF($AE$192<=AC193,\"No change proposed\",Data!AD168)","v":"On-site dam(s)"}]
[null,null,null,null,null,null,null,null,null,null,null,null,null,null,null,null,null,null,null,null,null,null,null,null,null,null,null,null,{"$f":"Data!AC169","v":3},{"$f":"IF($AE$192<=AC194,\"No change proposed\",Data!AD169)","v":"Earthmoving equipment"}]
[null,null,null,null,null,null,null,null,null,null,null,null,null,null,null,null,null,null,null,null,null,null,null,null,null,null,null,null,{"$f":"Data!AC170","v":4},{"$f":"IF($AE$192<=AC195,\"No change proposed\",Data!AD170)","v":"Fire extinguishers"}]
[null,null,null,null,null,null,null,null,null,null,null,null,null,null,null,null,null,null,null,null,null,null,null,null,null,null,null,null,{"$f":"Data!AC171","v":5},{"$f":"IF($AE$192<=AC196,\"No change proposed\",Data!AD171)","v":"No change proposed"}]
[]
[null,null,null,null,null,null,null,null,null,null,null,null,null,null,null,null,null,null,null,null,null,null,null,null,null,null,null,null,null,{"$f":"Data!AD173","v":"Other fire management"},{"$f":"IF(AE204=0,5,6-AE204)","v":5}]
[null,null,null,null,null,null,null,null,null,null,null,null,null,null,null,null,null,null,null,null,null,null,null,null,null,null,null,null,null,{"$f":"Data!AD174","v":"RFS / NSWFB response plan"},false]
[null,null,null,null,null,null,null,null,null,null,null,null,null,null,null,null,null,null,null,null,null,null,null,null,null,null,null,null,null,{"$f":"Data!AD175","v":"Fire breaks"},false]
[null,null,null,null,null,null,null,null,null,null,null,null,null,null,null,null,null,null,null,null,null,null,null,null,null,null,null,null,null,{"$f":"Data!AD176","v":"Soil stockpiles"},false]
[null,null,null,null,null,null,null,null,null,null,null,null,null,null,null,null,null,null,null,null,null,null,null,null,null,null,null,null,null,{"$f":"Data!AD177","v":"Maintenance schedule"},false]
[null,null,null,null,null,null,null,null,null,null,null,null,null,null,null,null,null,null,null,null,null,null,null,null,null,null,null,null,null,{"$f":"Data!AD178","v":"Other"},false]
[null,null,null,null,null,null,null,null,null,null,null,null,null,null,null,null,null,null,null,null,null,null,null,null,null,null,null,null,null,null,{"$f":"ROUND(COUNTIF(AE199:AE203, \"=true\"),0)","v":0}]
[null,null,null,null,null,null,null,null,null,null,null,null,null,null,null,null,null,null,null,null,null,null,null,null,null,null,null,null,null,{"$f":"Data!AD180","v":"Procedures"},{"$f":"IF(AE214=0,5,6-AE214)","v":5}]
[null,null,null,null,null,null,null,null,null,null,null,null,null,null,null,null,null,null,null,null,null,null,null,null,null,null,null,null,null,{"$f":"Data!AD181","v":"General operation & management"},false]
[null,null,null,null,null,null,null,null,null,null,null,null,null,null,null,null,null,null,null,null,null,null,null,null,null,null,null,null,null,{"$f":"Data!AD182","v":"Waste screening"},false]
[null,null,null,null,null,null,null,null,null,null,null,null,null,null,null,null,null,null,null,null,null,null,null,null,null,null,null,null,null,{"$f":"Data!AD183","v":"Management of unlawfully disposed waste"},false]
[null,null,null,null,null,null,null,null,null,null,null,null,null,null,null,null,null,null,null,null,null,null,null,null,null,null,null,null,null,{"$f":"Data!AD184","v":"Fire response"},false]
[null,null,null,null,null,null,null,null,null,null,null,null,null,null,null,null,null,null,null,null,null,null,null,null,null,null,null,null,null,{"$f":"Data!AD185","v":"Environmental monitoring"},false]
[null,null,null,null,null,null,null,null,null,null,null,null,null,null,null,null,null,null,null,null,null,null,null,null,null,null,null,null,null,{"$f":"Data!AD186","v":"Pollution incident response"},false]
[null,null,null,null,null,null,null,null,null,null,null,null,null,null,null,null,null,null,null,null,null,null,null,null,null,null,null,null,null,{"$f":"Data!AD187","v":"Complaint response"},false]
[null,null,null,null,null,null,null,null,null,null,null,null,null,null,null,null,null,null,null,null,null,null,null,null,null,null,null,null,null,{"$f":"Data!AD188","v":"Other "},false]
[null,null,null,null,null,null,null,null,null,null,null,null,null,null,null,null,null,null,null,null,null,null,null,null,null,null,null,null,null,null,{"$f":"ROUND(COUNTIF(AE206:AE213, \"=true\")/8*5,0)","v":0}]
[null,null,null,null,null,null,null,null,null,null,null,null,null,null,null,null,null,null,null,null,null,null,null,null,null,null,null,null,null,{"$f":"Data!AD190","v":"Emergency services attendance"},{"$f":"Data!AE190","v":1}]
[]
[null,null,null,null,null,null,null,null,null,null,null,null,null,null,null,null,null,null,null,null,null,null,null,null,null,null,null,null,null,{"$f":"Data!AD192","v":"Frequency"}]
[null,null,null,null,null,null,null,null,null,null,null,null,null,null,null,null,null,null,null,null,null,null,null,null,null,null,null,null,{"$f":"Data!AC193","v":1},{"$f":"Data!AD193","v":"Very infrequently to never (eg. annually or more)"}]
[null,null,null,null,null,null,null,null,null,null,null,null,null,null,null,null,null,null,null,null,null,null,null,null,null,null,null,null,{"$f":"Data!AC194","v":2},{"$f":"Data!AD194","v":"Infrequently (eg. quarterly)"}]
[null,null,null,null,null,null,null,null,null,null,null,null,null,null,null,null,null,null,null,null,null,null,null,null,null,null,null,null,{"$f":"Data!AC195","v":3},{"$f":"Data!AD195","v":"Often (eg. monthly)"}]
[null,null,null,null,null,null,null,null,null,null,null,null,null,null,null,null,null,null,null,null,null,null,null,null,null,null,null,null,{"$f":"Data!AC196","v":4},{"$f":"Data!AD196","v":"Frequently (eg. weekly)"}]
[null,null,null,null,null,null,null,null,null,null,null,null,null,null,null,null,null,null,null,null,null,null,null,null,null,null,null,null,{"$f":"Data!AC197","v":5},{"$f":"Data!AD197","v":"Very frequently (eg. daily)"}]
[]
[null,null,null,null,null,null,null,null,null,null,null,null,null,null,null,null,null,null,null,null,null,null,null,null,null,null,null,null,null,{"$f":"Data!AD199","v":"Operator at premises"}]
[null,null,null,null,null,null,null,null,null,null,null,null,null,null,null,null,null,null,null,null,null,null,null,null,null,null,null,null,{"$f":"Data!AC200","v":1},{"$f":"Data!AD200","v":"Very frequently (eg. daily)"}]
[null,null,null,null,null,null,null,null,null,null,null,null,null,null,null,null,null,null,null,null,null,null,null,null,null,null,null,null,{"$f":"Data!AC201","v":2},{"$f":"Data!AD201","v":"Frequently (eg. weekly)"}]
[null,null,null,null,null,null,null,null,null,null,null,null,null,null,null,null,null,null,null,null,null,null,null,null,null,null,null,null,{"$f":"Data!AC202","v":3},{"$f":"Data!AD202","v":"Often (eg. monthly)"}]
[null,null,null,null,null,null,null,null,null,null,null,null,null,null,null,null,null,null,null,null,null,null,null,null,null,null,null,null,{"$f":"Data!AC203","v":4},{"$f":"Data!AD203","v":"Infrequently (eg. quarterly)"}]
[null,null,null,null,null,null,null,null,null,null,null,null,null,null,null,null,null,null,null,null,null,null,null,null,null,null,null,null,{"$f":"Data!AC204","v":5},{"$f":"Data!AD204","v":"Very infrequently to never (eg. annually or more)"}]
[]
[]
[]
[]
[]
[]
[]
[]
[]
[]
[]
[]
[]
[]
[]
[]
[]
[]
[]
[]
[]
[]
[]
[]
[]
[]
[]
[]
[]
[]
[]
[]
[]
[]
[]
[]
[]
[]
[]
[]
[]
[]
[]
[]
[]
[]
[]
[]
[]
[]
[]
[]
[]
[]
[]
[]
[]
[]
[]
[]
[]
[]
[]
[]
[]
[]
[]
[]
[]
[]
[]
[]
[]
[]
[]
[]
[]
[]
[]
[]
[]
[]
[]
[]
[]
[]
[]
[]
[]
[]
[]
[]
[]
[]
[]
[]
[]
[]
[]
[]
[]
[]
[]
[]
[]
[]
[]
[]
[]
[]
[]
[]
[]
[]
[]
[]
[]
[]
[]
[]
[]
[]
[]
[]
[]
[]
[]
[]
[]
[]
[]
[]
[]
[]
[]
[]
[]
[]
[]
[]
[]
[]
[]
[]
[]
[]
[]
[]
[]
[]
[]
[]
[]
[]
[]
[]
[]
[]
[]
[]
[]
[]
[]
[]
[]
[]
[]
[]
[]
[]
[]
[]
[]
[]
[]
[]
[]
[]
[]
[]
[]
[]
[]
[]
[]
[]
[]
[]
[]
[]
[]
[]
[]
[]
[]
[]
[]
[]
[]
[]
[]
[]
[]
[]
[]
[]
[]
[]
[]
[]
[]
[]
[]
[]
[]
[]
[]
[]
[]
[]
[]
[]
[]
[]
[]
[]
[]
[]
[]
[]
[]
[]
[]
[]
[]
[]
[]
[]
[]
[]
[]
[]
[]
[]
[]
[]
[]
[]
[]
[]
[]
[]
[]
[]
[]
[]
[]
[]
[]
[]
[]
[]
[]
[]
[]
[]
[]
[]
[]
[]
[]
[]
[]
[]
[]
[]
[]
[]
[]
[]
[]
[]
[]
[]
[]
[]
[]
[]
[]
[]
[]
[]
[]
[]
[]
[]
[]
[]
[]
[]
[]
[]
[]
[]
[]
[]
[]
[]
[]
[]
[]
[]
[]
[]
[]
[]
[]
[]
[]
[]
[]
[]
[]
[]
[]
[]
[]
[]
[]
[]
[]
[]
[]
[]
[]
[]
[]
[]
[]
[]
[]
[]
[]
[]
[]
[]
[]
[]
[]
[]
[]
[]
[]
[]
[]
[]
[]
[]
[]
[]
[]
[]
[]
[]
[]
[]
[]
[]
[]
[]
[]
[]
[]
[]
[]
[]
[]
[]
[]
[]
[]
[]
[]
[]
[]
[]
[]
[]
[]
[]
[]
[]
[]
[]
[]
[]
[]
[]
[]
[]
[]
[]
[]
[]
[]
[]
[]
[]
[]
[]
[]
[]
[]
[]
[]
[]
[]
[]
[]
[]
[]
[]
[]
[]
[]
[]
[]
[]
[]
[]
[]
[]
[]
[]
[]
[]
[]
[]
[]
[]
[]
[]
[]
[]
[]
[]
[]
[]
[]
[]
[]
[]
[]
[]
[]
[]
[]
[]
[]
[]
[]
[]
[]
[]
[]
[]
[]
[]
[]
[]
[]
[]
[]
[]
[]
[]
[]
[]
[]
[]
[]
[]
[]
[]
[]
[]
[]
[]
[]
[]
[]
[]
[]
[null,null,null,null,null,null,null,null,null,null,null,null,null,null,null,null,null,null,null,null,null,null,null,null,null,null,null,null,null,null,null,null,null,null,null,null,null,null,null,null,null,null,null,null,null,null,1]

{"sheet":"Summary (1)","index":67,"n_rows":24,"n_cols":8,"rows_kept":24,"cut":false,"hidden":true,"merged":[]}
[null,"current","proposed"]
["Groundwater",{"$f":"IF(Data!$A$12=3,IF(Data!$AQ$25=1,'Groundwater A'!D140,'Groundwater A'!D139),IF(Data!$A$12=2,'Groundwater A'!D141,'Groundwater A'!D138))","v":40.751372367436936},{"$f":"IF(Data!$A$12=3,IF(Data!$AQ$25=1,'Groundwater A'!F140,'Groundwater A'!F139),IF(Data!$A$12=2,'Groundwater A'!F141,IF('Mitigation Data'!A12=2,'Groundwater A'!F143,(IF('Mitigation Data'!A12=3,'Groundwater A'!F142,'Groundwater A'!F138)))))","v":40.751372367436936}]
["Surface water",{"$f":"IF(Data!$A$12=3,IF(Data!$AQ$25=1,'Surface Water A'!D138,'Surface Water A'!D137),IF(Data!$A$12=2,'Surface Water A'!D139,'Surface Water A'!D136))","v":23.934030016369697},{"$f":"IF(Data!$A$12=3,IF(Data!$AQ$25=1,'Surface Water A'!F138,'Surface Water A'!F137),IF(Data!$A$12=2,'Surface Water A'!F139,IF('Mitigation Data'!A12=2,'Surface Water A'!F141,(IF('Mitigation Data'!A12=3,'Surface Water A'!F140,'Surface Water A'!F136)))))","v":23.934030016369697}]
["Air",{"$f":"IF(Data!$A$12=3,IF(Data!$AQ$25=1,'Air A'!D127,'Air A'!D126),IF(Data!$A$12=2,'Air A'!D128,'Air A'!D125))","v":14.843059069767781},{"$f":"IF(Data!$A$12=3,IF(Data!$AQ$25=1,'Air A'!F127,'Air A'!F126),IF(Data!$A$12=2,'Air A'!F128,IF('Mitigation Data'!A12=2,'Air A'!F130,(IF('Mitigation Data'!A12=3,'Air A'!F129,'Air A'!F125)))))","v":14.843059069767781}]
["Noise",{"$f":"IF(Data!$A$12=3,IF(Data!$AQ$25=1,'Noise A'!D88,'Noise A'!D87),IF(Data!$A$12=2,'Noise A'!D89,'Noise A'!D86))","v":7.5220227657070415},{"$f":"IF(Data!$A$12=3,IF(Data!$AQ$25=1,'Noise A'!F88,'Noise A'!F87),IF(Data!$A$12=2,'Noise A'!F89,IF('Mitigation Data'!A12=2,'Noise A'!F91,(IF('Mitigation Data'!A12=3,'Noise A'!F90,'Noise A'!F86)))))","v":7.5220227657070415}]
["Fire",{"$f":"IF(Data!$A$12=3,IF(Data!$AQ$25=1,'Fire A'!D114,'Fire A'!D113),IF(Data!$A$12=2,'Fire A'!D115,'Fire A'!D112))","v":15.050655171219299},{"$f":"IF(Data!$A$12=3,IF(Data!$AQ$25=1,'Fire A'!F114,'Fire A'!F113),IF(Data!$A$12=2,'Fire A'!F115,IF('Mitigation Data'!A12=2,'Fire A'!F117,(IF('Mitigation Data'!A12=3,'Fire A'!F116,'Fire A'!F112)))))","v":15.050655171219299}]
["Amenity",{"$f":"IF(Data!$A$12=3,IF(Data!$AQ$25=1,'Amenity A'!D140,'Amenity A'!D139),IF(Data!$A$12=2,'Amenity A'!D141,'Amenity A'!D138))","v":12.964458834675039},{"$f":"IF(Data!$A$12=3,IF(Data!$AQ$25=1,'Amenity A'!F140,'Amenity A'!F139),IF(Data!$A$12=2,'Amenity A'!F141,IF('Mitigation Data'!A12=2,'Amenity A'!F143,(IF('Mitigation Data'!A12=3,'Amenity A'!F142,'Amenity A'!F138)))))","v":12.964458834675039}]
["Conservation & Heritage",{"$f":"IF(Data!$A$12=3,IF(Data!$AQ$25=1,'CandH A'!D138,'CandH A'!D137),IF(Data!$A$12=2,'CandH A'!D139,'CandH A'!D136))","v":34.608173904714647},{"$f":"IF(Data!$A$12=3,IF(Data!$AQ$25=1,'CandH A'!F138,'CandH A'!F137),IF(Data!$A$12=2,'CandH A'!F139,IF('Mitigation Data'!A12=2,'CandH A'!F141,(IF('Mitigation Data'!A12=3,'CandH A'!F140,'CandH A'!F136)))))","v":34.608173904714647}]
["Greenhouse gas",{"$f":"IF(Data!$A$12=3,IF(Data!$AQ$25=1,'Greenhouse A'!D68,'Greenhouse A'!D67),IF(Data!$A$12=2,'Greenhouse A'!D69,'Greenhouse A'!D66))","v":8.8251325986600087},{"$f":"IF(Data!$A$12=3,IF(Data!$AQ$25=1,'Greenhouse A'!F68,'Greenhouse A'!F67),IF(Data!$A$12=2,'Greenhouse A'!F69,IF('Mitigation Data'!A12=2,'Greenhouse A'!F71,(IF('Mitigation Data'!A12=3,'Greenhouse A'!F70,'Greenhouse A'!F66)))))","v":8.8251325986600087}]
[]
["RISK PROFILE"]
[null,{"$f":"Data!B13","v":"Active landfill"},{"$f":"'Mitigation Data'!B13","v":"Mitigation of existing landfill"}]
["Risk Grouping",{"$f":"IF(Data!AQ25=1,\"on closed landfill\",\"\")","v":""}]
[null,"Risk score (current)","Risk score (with proposed mitigation)","Very High","High","Medium ","Low","Very Low"]
[null,null,null,20,20,20,20,20]
["Groundwater",{"$f":"B2","v":40.751372367436936},{"$f":"C2","v":40.751372367436936},20,20,20,20,20]
["Surface water",{"$f":"B3","v":23.934030016369697},23.934030016369697,20,20,20,20,20]
["Air",14.843059069767781,14.843059069767781,20,20,20,20,20]
["Noise",7.5220227657070415,7.5220227657070415,20,20,20,20,20]
["Fire",15.050655171219299,15.050655171219299,20,20,20,20,20]
["Amenity",12.964458834675039,12.964458834675039,20,20,20,20,20]
["Conservation & Heritage",34.608173904714647,{"$f":"IF(C8>B8,B8,C8)","v":34.608173904714647},20,20,20,20,20]
["Greenhouse gas",8.8251325986600087,{"$f":"IF(C9>B9,B9,C9)","v":8.8251325986600087},20,20,20,20,20]
[null,null,null,20,20,20,20,20]

{"sheet":"Risk Profile","index":68,"n_rows":12,"n_cols":5,"rows_kept":12,"cut":false,"hidden":false,"merged":[[1,1,1,20]]}
[]
[null,"E-RAMP Risk Profile"]
[]
[null,"Facility Operator:",null,null,{"$f":"Data!B4","v":0}]
[]
[null,"Facility Name:",null,null,{"$f":"Data!B7","v":0}]
[]
[null,"Location:",null,null,{"$f":"Data!B10","v":0}]
[]
[null,"Facility Type:",null,null,{"$f":"IF('Summary (1)'!$B$13=\"\",'Summary (1)'!$B$12,'Summary (1)'!$B$12&\", \"&'Summary (1)'!$B$13)","v":"Active landfill"}]
[]
[null,"Mitigation Method:",null,null,{"$f":"IF('Mitigation Data'!A3=0,\"Not Applicable\",'Mitigation Data'!B13)","v":"Mitigation of existing landfill"}]

{"sheet":"Risk Profile Report","index":69,"n_rows":505,"n_cols":17,"rows_kept":505,"cut":false,"hidden":false,"merged":[[340,0,340,14],[342,0,342,14],[259,6,259,9],[259,12,259,14],[371,12,371,14],[371,6,371,9],[369,0,369,14],[344,6,344,9],[344,12,344,14],[404,6,404,9],[404,12,404,14],[402,0,402,14],[455,0,455,14],[457,0,457,14],[240,0,240,14],[242,12,242,14],[238,0,238,14],[257,0,257,14],[242,6,242,9],[1,0,1,14],[123,0,123,14],[158,0,158,14],[160,6,160,9],[133,6,133,9],[50,0,50,14],[131,0,131,14],[133,12,133,14],[160,12,160,14],[82,0,82,14],[121,0,121,14],[105,0,105,14],[88,0,88,14]]}
[]
["E-RAMP Risk Profile Report"]
[]
["Facility Operator:",null,null,{"$f":"'Risk Profile'!E4","v":0}]
[]
["Facility Name:",null,null,{"$f":"'Risk Profile'!E6","v":0}]
[]
["Location:",null,null,{"$f":"'Risk Profile'!E8","v":0}]
[]
["Facility Type:",null,null,{"$f":"'Risk Profile'!E10","v":"Active landfill"}]
[]
["Mitigation Method:",null,null,{"$f":"'Risk Profile'!E12","v":"Mitigation of existing landfill"}]
[]
[]
[]
[]
[]
[]
[]
[]
[]
[]
[]
[]
[]
[]
[]
[]
[]
[]
[]
[]
[]
[]
[]
[]
[]
[]
[]
[]
[]
[]
[]
[]
[]
[]
[]
[]
[]
[]
["Facility & Surrounding Environment"]
[]
["Amount of waste received",null,null,{"$f":"IF(Data!A12=2,\"0\",LOOKUP(Data!C15,Data!A16:A20,Data!B16:B20))","v":"0 - 100"},"tonnes per annum",null,null,null,"Distance from MLA",null,null,null,{"$f":"LOOKUP(Data!C47,Data!A41:A45,Data!B41:B45)","v":">100"},{"$f":"IF(M53= \"Within area\",\"\",\"kilometres\")","v":"kilometres"}]
["Age of facility",null,null,{"$f":"LOOKUP(Data!C29,Data!A30:A34,Data!B30:B34)","v":"> 40"},"years",null,null,null,"Distance from RLA",null,null,null,{"$f":"LOOKUP(Data!C50,Data!A41:A45,Data!B41:B45)","v":">100"},{"$f":"IF(M54= \"Within area\",\"\",\"kilometres\")","v":"kilometres"}]
["Area of facility",null,null,{"$f":"LOOKUP(Data!C22,Data!A23:A27,Data!B23:B27)","v":"> 10,000"},"square metres",null,null,null,"Distance > 5,000 people",null,null,null,{"$f":"LOOKUP(Data!C49,Data!A41:A45,Data!B41:B45)","v":"<25"},{"$f":"IF(M55= \"Within area\",\"\",\"kilometres\")","v":"kilometres"}]
["Facility accessed from",null,null,{"$f":"LOOKUP(Data!C51,Data!A52:A56,Data!B52:B56)","v":"Other minor road"}]
[null,null,null,null,null,null,null,null,"Modelled EC (dS/m)",null,null,null,{"$f":"LOOKUP(Data!W45,Data!U46:U49,Data!V46:V49)","v":"<4"}]
["The facility is located on a",null,null,{"$f":"LOOKUP(Data!O3,Data!M4:M8,Data!N4:N8)","v":"Flat / Floodplain"},null,null,null,null,"Acid sulfate soil probability",null,null,null,{"$f":"LOOKUP(Data!W51,Data!U52:U56,Data!V52:V56)","v":"No known occurence"}]
["Slope",null,null,{"$f":"LOOKUP(Data!W30,Data!U31:U35,Data!V31:V35)","v":"0 - 2"},"%",null,null,null,"Modelled soil erosion (t/Ha/year)",null,null,null,{"$f":"LOOKUP(Data!W11,Data!U12:U16,Data!V12:V16)","v":"Negligible to Slight (<50)"}]
["Distance to watercourse",null,null,{"$f":"LOOKUP(Data!W58,Data!U59:U63,Data!V59:V63)","v":"500 - 1,000"},"metres",null,null,null,"Located in drinking water catchment",null,null,null,{"$f":"LOOKUP(Data!W18,Data!U19:U21,Data!V19:V21)","v":"No"}]
["Surface soil type",null,null,{"$f":"LOOKUP(Data!W3,Data!U5:U9,Data!V5:V9)","v":"Silt (ML, OL, MH, OH)"}]
["Sub-surface soil type",null,null,{"$f":"LOOKUP(Data!W4,Data!U5:U9,Data!V5:V9)","v":"Clay (CL, OL, CH, OH)"},null,null,null,null,"Depth to bedrock",null,null,null,{"$f":"LOOKUP(Data!W73,Data!U74:U79,Data!V74:V79)","v":"Unknown"}]
[null,null,null,null,null,null,null,null,"Depth to groundwater",null,null,null,{"$f":"LOOKUP(Data!W81,Data!U82:U87,Data!V82:V87)","v":"Unknown"},null,null,null,{"$f":"IF(M62= \"Unknown\",\"\",\"metres\")","v":""}]
["Erosion types identified at facility:",null,null,null,null,null,null,null,"Groundwater vunerability",null,null,null,{"$f":"LOOKUP(Data!W65,Data!U66:U71,Data!V66:V71)","v":"Unknown"},null,null,null,{"$f":"IF(M63= \"Unknown\",\"\",\"metres\")","v":""}]
["Wind",null,null,{"$f":"IF(Data!W38=TRUE,\"Yes\",\"No\")","v":"No"}]
["Sheet",null,null,{"$f":"IF(Data!W39=TRUE,\"Yes\",\"No\")","v":"No"},null,null,null,null,"Registered bores within 1 km of facility:"]
["Rill",null,null,{"$f":"IF(Data!W40=TRUE,\"Yes\",\"No\")","v":"No"},null,null,null,null,"Domestic",null,null,null,{"$f":"IF(Data!W90=TRUE,\"Yes\",\"No\")","v":"No"}]
["Gully",null,null,{"$f":"IF(Data!W41=TRUE,\"Yes\",\"No\")","v":"No"},null,null,null,null,"Stock/Irrigation",null,null,null,{"$f":"IF(Data!W91=TRUE,\"Yes\",\"No\")","v":"No"}]
["Tunnel",null,null,{"$f":"IF(Data!W42=TRUE,\"Yes\",\"No\")","v":"No"},null,null,null,null,"Industrial",null,null,null,{"$f":"IF(Data!W92=TRUE,\"Yes\",\"No\")","v":"No"}]
["Mass movement",null,null,{"$f":"IF(Data!W43=TRUE,\"Yes\",\"No\")","v":"No"},null,null,null,null,"Monitoring",null,null,null,{"$f":"IF(Data!W93=TRUE,\"Yes\",\"No\")","v":"No"}]
[null,null,null,null,null,null,null,null,"Other",null,null,null,{"$f":"IF(Data!W94=TRUE,\"Yes\",\"No\")","v":"No"}]
["Facility visable from:",null,null,null,null,null,null,null,"Unspecified",null,null,null,{"$f":"IF(Data!W95=TRUE,\"Yes\",\"No\")","v":"No"}]
["Individual residence",null,null,{"$f":"IF(Data!W120=TRUE,\"Yes\",\"No\")","v":"No"}]
["Urban area",null,null,{"$f":"IF(Data!W121=TRUE,\"Yes\",\"No\")","v":"No"},null,null,null,null,"Distance to:"]
["Highway",null,null,{"$f":"IF(Data!W122=TRUE,\"Yes\",\"No\")","v":"No"},null,null,null,null,"Park / Reserve",null,null,null,{"$f":"LOOKUP(Data!W105,Data!$U$112:$U$117,Data!$V$112:$V$117)","v":"> 5"},{"$f":"IF(M75= \"Unknown\",\"\",\"kilometres\")","v":"kilometres"}]
["Other main raod",null,null,{"$f":"IF(Data!W123=TRUE,\"Yes\",\"No\")","v":"No"},null,null,null,null,"Protection / conservation zoned",null,null,null,{"$f":"LOOKUP(Data!W106,Data!$U$112:$U$117,Data!$V$112:$V$117)","v":"> 5"},{"$f":"IF(M76= \"Unknown\",\"\",\"kilometres\")","v":"kilometres"}]
["Lookout",null,null,{"$f":"IF(Data!W124=TRUE,\"Yes\",\"No\")","v":"No"}]
[null,null,null,null,null,null,null,null,"Bushfire prone land",null,null,null,{"$f":"LOOKUP(Data!W127,Data!U128:U132,Data!V128:V132)","v":"Not bush fire prone land"}]
[]
["Aboriginal Cultural Geritage within 1 km",null,null,null,{"$f":"LOOKUP(Data!W97,Data!$U$101:$U$103,Data!$V$101:$V$103)","v":"Unknown"},null,null,null,"Vulnerable / endangered species within 1km",null,null,null,null,{"$f":"LOOKUP(Data!W98,Data!$U$101:$U$103,Data!$V$101:$V$103)","v":"Unknown"}]
[]
[]
["Meteorology Information"]
[]
["Average annual rainfall",null,null,null,{"$f":"LOOKUP(Data!G3,Data!E4:E8,Data!F4:F8)","v":"< 400"},null,null,null,null,null,"3pm main wind direction",null,null,{"$f":"LOOKUP(Data!G24,Data!G25:G40,Data!F25:F40)","v":"N"}]
["No. rain days per year",null,null,null,{"$f":"LOOKUP(Data!G10,Data!E11:E15,Data!F11:F15)","v":"< 10"},null,null,null,null,null,"3pm average wind speed",null,null,{"$f":"LOOKUP(Data!G49,Data!E50:E54,Data!F50:F54)","v":"< 6"},"km/h"]
["Average annual evaporation",null,null,null,{"$f":"LOOKUP(Data!G17,Data!E18:E22,Data!F18:F22)","v":">2,000"},null,null,null,null,null,"Calm observations",null,null,{"$f":"LOOKUP(Data!G42,Data!E43:E47,Data!F43:F47)","v":"> 20"},"%"]
[]
["Bushfire Danger Period"]
["October",null,null,null,null,null,null,null,null,null,"January"]
["3pm main wind direction",null,null,null,{"$f":"LOOKUP(Data!G59,Data!G25:G40,Data!F25:F40)","v":"N"},null,null,null,null,null,"3pm main wind direction",null,null,{"$f":"LOOKUP(Data!G86,Data!G25:G40,Data!F25:F40)","v":"N"}]
["3pm average wind speed",null,null,null,{"$f":"LOOKUP(Data!G64,Data!E50:E54,Data!F50:F54)","v":"< 6"},"km/h",null,null,null,null,"3pm average wind speed",null,null,{"$f":"LOOKUP(Data!G91,Data!E50:E54,Data!F50:F54)","v":"< 6"},"km/h"]
["Calm observations",null,null,null,{"$f":"LOOKUP(Data!G65,Data!E43:E47,Data!F43:F47)","v":"> 20"},"%",null,null,null,null,"Calm observations",null,null,{"$f":"LOOKUP(Data!G92,Data!E43:E47,Data!F43:F47)","v":"> 20"},"%"]
[]
["November",null,null,null,null,null,null,null,null,null,"February"]
["3pm main wind direction",null,null,null,{"$f":"LOOKUP(Data!G68,Data!G25:G40,Data!F25:F40)","v":"N"},null,null,null,null,null,"3pm main wind direction",null,null,{"$f":"LOOKUP(Data!G95,Data!G25:G40,Data!F25:F40)","v":"N"}]
["3pm average wind speed",null,null,null,{"$f":"LOOKUP(Data!G73,Data!E50:E54,Data!F50:F54)","v":"< 6"},"km/h",null,null,null,null,"3pm average wind speed",null,null,{"$f":"LOOKUP(Data!G100,Data!E50:E54,Data!F50:F54)","v":"< 6"},"km/h"]
["Calm observations",null,null,null,{"$f":"LOOKUP(Data!G74,Data!E43:E47,Data!F43:F47)","v":"> 20"},"%",null,null,null,null,"Calm observations",null,null,{"$f":"LOOKUP(Data!G101,Data!E43:E47,Data!F43:F47)","v":"> 20"},"%"]
[]
["December",null,null,null,null,null,null,null,null,null,"March"]
["3pm main wind direction",null,null,null,{"$f":"LOOKUP(Data!G77,Data!G25:G40,Data!F25:F40)","v":"N"},null,null,null,null,null,"3pm main wind direction",null,null,{"$f":"LOOKUP(Data!G104,Data!G25:G40,Data!F25:F40)","v":"N"}]
["3pm average wind speed",null,null,null,{"$f":"LOOKUP(Data!G82,Data!E50:E54,Data!F50:F54)","v":"< 6"},"km/h",null,null,null,null,"3pm average wind speed",null,null,{"$f":"LOOKUP(Data!G109,Data!E50:E54,Data!F50:F54)","v":"< 6"},"km/h"]
["Calm observations",null,null,null,{"$f":"LOOKUP(Data!G83,Data!E43:E47,Data!F43:F47)","v":"> 20"},"%",null,null,null,null,"Calm observations",null,null,{"$f":"LOOKUP(Data!G110,Data!E43:E47,Data!F43:F47)","v":"> 20"},"%"]
[]
[]
["Surrounding Landuse & Vegetation"]
[]
["NE Sector:",null,null,null,null,null,null,null,null,null,"SE Sector:"]
["Predominant land use",null,null,null,{"$f":"LOOKUP(Data!K20,Data!$I$4:$I$10,Data!$J$4:$J$10)","v":"Industrial"},null,null,null,null,null,"Predominant land use",null,null,{"$f":"LOOKUP(Data!K25,Data!$I$4:$I$10,Data!$J$4:$J$10)","v":"Industrial"}]
["Distance to single residence",null,null,null,{"$f":"LOOKUP(Data!K21,Data!$I$13:$I$17,Data!$J$13:$J$17)","v":"> 5"},"kilometres",null,null,null,null,"Distance to single residence",null,null,{"$f":"LOOKUP(Data!K26,Data!$I$13:$I$17,Data!$J$13:$J$17)","v":"> 5"},"kilometres"]
["Distance to residential area",null,null,null,{"$f":"LOOKUP(Data!K22,Data!$I$13:$I$17,Data!$J$13:$J$17)","v":"> 5"},"kilometres",null,null,null,null,"Distance to residential area",null,null,{"$f":"LOOKUP(Data!K27,Data!$I$13:$I$17,Data!$J$13:$J$17)","v":"> 5"},"kilometres"]
["Vegetation type adjoining",null,null,null,{"$f":"LOOKUP(Data!K97,Data!I82:I94,Data!J82:J94)","v":"Saline wetland"},null,null,null,null,null,"Vegetation Type Adjoining",null,null,{"$f":"LOOKUP(Data!K98,Data!I82:I94,Data!J82:J94)","v":"Saline wetland"}]
[]
[]
["SW Sector:",null,null,null,null,null,null,null,null,null,"NW Sector:"]
["Predominant land use",null,null,null,{"$f":"LOOKUP(Data!K30,Data!$I$4:$I$10,Data!$J$4:$J$10)","v":"Industrial"},null,null,null,null,null,"Predominant land use",null,null,{"$f":"LOOKUP(Data!K35,Data!$I$4:$I$10,Data!$J$4:$J$10)","v":"Industrial"}]
["Distance to single residence",null,null,null,{"$f":"LOOKUP(Data!K31,Data!$I$13:$I$17,Data!$J$13:$J$17)","v":"> 5"},"kilometres",null,null,null,null,"Distance to single residence",null,null,{"$f":"LOOKUP(Data!K36,Data!$I$13:$I$17,Data!$J$13:$J$17)","v":"> 5"},"kilometres"]
["Distance to residential area",null,null,null,{"$f":"LOOKUP(Data!K32,Data!$I$13:$I$17,Data!$J$13:$J$17)","v":"> 5"},"kilometres",null,null,null,null,"Distance to residential area",null,null,{"$f":"LOOKUP(Data!K37,Data!$I$13:$I$17,Data!$J$13:$J$17)","v":"> 5"},"kilometres"]
["Vegetation type adjoining",null,null,null,{"$f":"LOOKUP(Data!K99,Data!I82:I94,Data!J82:J94)","v":"Saline wetland"},null,null,null,null,null,"Vegetation type adjoining",null,null,{"$f":"LOOKUP(Data!K100,Data!I82:I94,Data!J82:J94)","v":"Saline wetland"}]
[]
[]
["E-RAMP Risk Profile Report (cont)"]
[]
["Current Operational Issues"]
[]
["Frequency of compliants",null,null,null,null,null,{"$f":"IF(Data!A12=2,\"Not applicable\",LOOKUP(Data!$AE$72,Data!$AC$193:$AC$197,Data!$AD$193:$AD$197))","v":"Very infrequently to never (eg. annually or more)"}]
["Frequency of uncontrolled fires",null,null,null,null,null,{"$f":"IF(Data!A12=2,\"Not applicable\",LOOKUP(Data!$AE$74,Data!$AC$193:$AC$197,Data!$AD$193:$AD$197))","v":"Very infrequently to never (eg. annually or more)"}]
["Frequency of unlawful waste disposal (at facility)",null,null,null,null,null,{"$f":"IF(Data!A12=2,\"Not applicable\",LOOKUP(Data!$AE$76,Data!$AC$193:$AC$197,Data!$AD$193:$AD$197))","v":"Very infrequently to never (eg. annually or more)"}]
["Frequency of unlawful waste disposal (land near facility)",null,null,null,null,null,{"$f":"IF(Data!A12=2,\"Not applicable\",LOOKUP(Data!$AE$78,Data!$AC$193:$AC$197,Data!$AD$193:$AD$197))","v":"Very infrequently to never (eg. annually or more)"}]
["Emergency service attendance in the last 12 months",null,null,null,null,null,{"$f":"IF(Data!A12=2,\"Not applicable\", IF(Data!$AE$190=1,\"No\",\"Yes\"))","v":"No"}]
[]
["Wastes Received at the Facility"]
[]
[null,null,null,null,null,null,"Existing",null,null,null,null,null,"Proposed"]
[]
["Solid Waste",null,null,null,null,null,{"$f":"IF(Data!$A$12=2,\"Not applicable\", \"Disposal\")","v":"Disposal"},{"$f":"IF(Data!$A$12=2,\"\",\"Qty Stored (t)\")","v":"Qty Stored (t)"},{"$f":"IF(Data!$A$12=2,\"\",\"Time Stored\")","v":"Time Stored"},null,null,null,{"$f":"IF('Mitigation Data'!B59=TRUE,\"\",IF('Mitigation Data'!C4=TRUE,\"Not applicable\",\"Disposal\"))","v":"Disposal"},{"$f":"IF('Mitigation Data'!C4=TRUE,\"\",\"Qty Stored (t)\")","v":"Qty Stored (t)"},{"$f":"IF('Mitigation Data'!C4=TRUE,\"\",\"Time Stored\")","v":"Time Stored"}]
["Municipal waste",null,null,null,null,null,{"$f":"IF(Data!$A$12=2,\"\",IF(Data!A12=3,\"N/A\",IF(Data!$AE$4=TRUE,\"Yes\",\"No\")))","v":"No"},{"$f":"IF(Data!$A$12=2,\"\",IF(Data!$AF$4=FALSE,\"N/A\",LOOKUP(Data!$AG$4,DR!$B$16:$B$20,DR!$C$16:$C$20)))","v":"N/A"},{"$f":"IF(Data!$A$12=2,\"\",IF(Data!$AF$4=FALSE,\"N/A\",LOOKUP(Data!$AH$4,DR!$E$16:$E$20,DR!$F$16:$F$20)))","v":"N/A"},null,null,null,{"$f":"IF('Mitigation Data'!B59=TRUE,\"\",IF('Mitigation Data'!C4=TRUE,\"\",IF('Mitigation Data'!$AE$4=TRUE,\"Yes\",\"No\")))","v":"No"},{"$f":"IF('Mitigation Data'!C4=TRUE,\"\",IF('Mitigation Data'!$AF$4=FALSE,\"N/A\",LOOKUP('Mitigation Data'!$AG$4,DRm!$B$16:$B$20,DRm!$C$16:$C$20)))","v":"N/A"},{"$f":"IF('Mitigation Data'!C4=TRUE,\"\",IF('Mitigation Data'!$AF$4=FALSE,\"N/A\",LOOKUP('Mitigation Data'!$AH$4,DRm!$E$16:$E$20,DRm!$F$16:$F$20)))","v":"N/A"}]
["Recyclables",null,null,null,null,null,{"$f":"IF(Data!$A$12=2,\"\",IF(Data!A12=3,\"N/A\",IF(Data!$AE$5=TRUE,\"Yes\",\"No\")))","v":"No"},{"$f":"IF(Data!$A$12=2,\"\",IF(Data!$AF$5=FALSE,\"N/A\",LOOKUP(Data!$AG$5,DR!$B$16:$B$20,DR!$C$16:$C$20)))","v":"N/A"},{"$f":"IF(Data!$A$12=2,\"\",IF(Data!$AF$5=FALSE,\"N/A\",LOOKUP(Data!$AH$5,DR!$E$16:$E$20,DR!$F$16:$F$20)))","v":"N/A"},null,null,null,{"$f":"IF('Mitigation Data'!B59=TRUE,\"\",IF('Mitigation Data'!C4=TRUE,\"\",IF('Mitigation Data'!$AE$5=TRUE,\"Yes\",\"No\")))","v":"No"},{"$f":"IF('Mitigation Data'!C4=TRUE,\"\",IF('Mitigation Data'!$AF$5=FALSE,\"N/A\",LOOKUP('Mitigation Data'!$AG$5,DRm!$B$16:$B$20,DRm!$C$16:$C$20)))","v":"N/A"},{"$f":"IF('Mitigation Data'!C4=TRUE,\"\",IF('Mitigation Data'!$AF$5=FALSE,\"N/A\",LOOKUP('Mitigation Data'!$AH$5,DRm!$E$16:$E$20,DRm!$F$16:$F$20)))","v":"N/A"}]
["Commercial & industrial waste",null,null,null,null,null,{"$f":"IF(Data!$A$12=2,\"\",IF(Data!A12=3,\"N/A\",IF(Data!$AE$6=TRUE,\"Yes\",\"No\")))","v":"No"},{"$f":"IF(Data!$A$12=2,\"\",IF(Data!$AF$6=FALSE,\"N/A\",LOOKUP(Data!$AG$6,DR!$B$16:$B$20,DR!$C$16:$C$20)))","v":"N/A"},{"$f":"IF(Data!$A$12=2,\"\",IF(Data!$AF$6=FALSE,\"N/A\",LOOKUP(Data!$AH$6,DR!$E$16:$E$20,DR!$F$16:$F$20)))","v":"N/A"},null,null,null,{"$f":"IF('Mitigation Data'!B59=TRUE,\"\",IF('Mitigation Data'!C4=TRUE,\"\",IF('Mitigation Data'!$AE$6=TRUE,\"Yes\",\"No\")))","v":"No"},{"$f":"IF('Mitigation Data'!C4=TRUE,\"\",IF('Mitigation Data'!$AF$6=FALSE,\"N/A\",LOOKUP('Mitigation Data'!$AG$6,DRm!$B$16:$B$20,DRm!$C$16:$C$20)))","v":"N/A"},{"$f":"IF('Mitigation Data'!C4=TRUE,\"\",IF('Mitigation Data'!$AF$6=FALSE,\"N/A\",LOOKUP('Mitigation Data'!$AH$6,DRm!$E$16:$E$20,DRm!$F$16:$F$20)))","v":"N/A"}]
["Construction & demolition waste",null,null,null,null,null,{"$f":"IF(Data!$A$12=2,\"\",IF(Data!A12=3,\"N/A\",IF(Data!$AE$7=TRUE,\"Yes\",\"No\")))","v":"No"},{"$f":"IF(Data!$A$12=2,\"\",IF(Data!$AF$7=FALSE,\"N/A\",LOOKUP(Data!$AG$7,DR!$B$16:$B$20,DR!$C$16:$C$20)))","v":"N/A"},{"$f":"IF(Data!$A$12=2,\"\",IF(Data!$AF$7=FALSE,\"N/A\",LOOKUP(Data!$AH$7,DR!$E$16:$E$20,DR!$F$16:$F$20)))","v":"N/A"},null,null,null,{"$f":"IF('Mitigation Data'!B59=TRUE,\"\",IF('Mitigation Data'!C4=TRUE,\"\",IF('Mitigation Data'!$AE$7=TRUE,\"Yes\",\"No\")))","v":"No"},{"$f":"IF('Mitigation Data'!C4=TRUE,\"\",IF('Mitigation Data'!$AF$7=FALSE,\"N/A\",LOOKUP('Mitigation Data'!$AG$7,DRm!$B$16:$B$20,DRm!$C$16:$C$20)))","v":"N/A"},{"$f":"IF('Mitigation Data'!C4=TRUE,\"\",IF('Mitigation Data'!$AF$7=FALSE,\"N/A\",LOOKUP('Mitigation Data'!$AH$7,DRm!$E$16:$E$20,DRm!$F$16:$F$20)))","v":"N/A"}]
["Garden & vegetation waste",null,null,null,null,null,{"$f":"IF(Data!$A$12=2,\"\",IF(Data!A12=3,\"N/A\",IF(Data!$AE$8=TRUE,\"Yes\",\"No\")))","v":"No"},{"$f":"IF(Data!$A$12=2,\"\",IF(Data!$AF$8=FALSE,\"N/A\",LOOKUP(Data!$AG$8,DR!$B$16:$B$20,DR!$C$16:$C$20)))","v":"N/A"},{"$f":"IF(Data!$A$12=2,\"\",IF(Data!$AF$8=FALSE,\"N/A\",LOOKUP(Data!$AH$8,DR!$E$16:$E$20,DR!$F$16:$F$20)))","v":"N/A"},null,null,null,{"$f":"IF('Mitigation Data'!B59=TRUE,\"\",IF('Mitigation Data'!C4=TRUE,\"\",IF('Mitigation Data'!$AE$8=TRUE,\"Yes\",\"No\")))","v":"No"},{"$f":"IF('Mitigation Data'!C4=TRUE,\"\",IF('Mitigation Data'!$AF$8=FALSE,\"N/A\",LOOKUP('Mitigation Data'!$AG$8,DRm!$B$16:$B$20,DRm!$C$16:$C$20)))","v":"N/A"},{"$f":"IF('Mitigation Data'!C4=TRUE,\"\",IF('Mitigation Data'!$AF$8=FALSE,\"N/A\",LOOKUP('Mitigation Data'!$AH$8,DRm!$E$16:$E$20,DRm!$F$16:$F$20)))","v":"N/A"}]
["Virgin excavated natural material",null,null,null,null,null,{"$f":"IF(Data!$A$12=2,\"\",IF(Data!A12=3,\"N/A\",IF(Data!$AE$9=TRUE,\"Yes\",\"No\")))","v":"No"},{"$f":"IF(Data!$A$12=2,\"\",IF(Data!$AF$9=FALSE,\"N/A\",LOOKUP(Data!$AG$9,DR!$B$16:$B$20,DR!$C$16:$C$20)))","v":"N/A"},{"$f":"IF(Data!$A$12=2,\"\",IF(Data!$AF$9=FALSE,\"N/A\",LOOKUP(Data!$AH$9,DR!$E$16:$E$20,DR!$F$16:$F$20)))","v":"N/A"},null,null,null,{"$f":"IF('Mitigation Data'!B59=TRUE,\"\",IF('Mitigation Data'!C4=TRUE,\"\",IF('Mitigation Data'!$AE$9=TRUE,\"Yes\",\"No\")))","v":"No"},{"$f":"IF('Mitigation Data'!C4=TRUE,\"\",IF('Mitigation Data'!$AF$9=FALSE,\"N/A\",LOOKUP('Mitigation Data'!$AG$9,DRm!$B$16:$B$20,DRm!$C$16:$C$20)))","v":"N/A"},{"$f":"IF('Mitigation Data'!C4=TRUE,\"\",IF('Mitigation Data'!$AF$9=FALSE,\"N/A\",LOOKUP('Mitigation Data'!$AH$9,DRm!$E$16:$E$20,DRm!$F$16:$F$20)))","v":"N/A"}]
["Scrap metal",null,null,null,null,null,{"$f":"IF(Data!$A$12=2,\"\",IF(Data!A12=3,\"N/A\",IF(Data!$AE$10=TRUE,\"Yes\",\"No\")))","v":"No"},{"$f":"IF(Data!$A$12=2,\"\",IF(Data!$AF$10=FALSE,\"N/A\",LOOKUP(Data!$AG$10,DR!$B$16:$B$20,DR!$C$16:$C$20)))","v":"N/A"},{"$f":"IF(Data!$A$12=2,\"\",IF(Data!$AF$10=FALSE,\"N/A\",LOOKUP(Data!$AH$10,DR!$E$16:$E$20,DR!$F$16:$F$20)))","v":"N/A"},null,null,null,{"$f":"IF('Mitigation Data'!B59=TRUE,\"\",IF('Mitigation Data'!C4=TRUE,\"\",IF('Mitigation Data'!$AE$10=TRUE,\"Yes\",\"No\")))","v":"No"},{"$f":"IF('Mitigation Data'!C4=TRUE,\"\",IF('Mitigation Data'!$AF$10=FALSE,\"N/A\",LOOKUP('Mitigation Data'!$AG$10,DRm!$B$16:$B$20,DRm!$C$16:$C$20)))","v":"N/A"},{"$f":"IF('Mitigation Data'!C4=TRUE,\"\",IF('Mitigation Data'!$AF$10=FALSE,\"N/A\",LOOKUP('Mitigation Data'!$AH$10,DRm!$E$16:$E$20,DRm!$F$16:$F$20)))","v":"N/A"}]
["Tyres",null,null,null,null,null,{"$f":"IF(Data!$A$12=2,\"\",IF(Data!A12=3,\"N/A\",IF(Data!$AE$13=TRUE,\"Yes\",\"No\")))","v":"No"},{"$f":"IF(Data!$A$12=2,\"\",IF(Data!$AF$13=FALSE,\"N/A\",LOOKUP(Data!$AG$13,DR!$B$40:$B$44,DR!$C$40:$C$44)))","v":"N/A"},{"$f":"IF(Data!$A$12=2,\"\",IF(Data!$AF$13=FALSE,\"N/A\",LOOKUP(Data!$AH$13,DR!$E$40:$E$44,DR!$F$40:$F$44)))","v":"N/A"},null,null,null,{"$f":"IF('Mitigation Data'!B59=TRUE,\"\",IF('Mitigation Data'!C4=TRUE,\"\",IF('Mitigation Data'!$AE$13=TRUE,\"Yes\",\"No\")))","v":"No"},{"$f":"IF('Mitigation Data'!C4=TRUE,\"\",IF('Mitigation Data'!$AF$13=FALSE,\"N/A\",LOOKUP('Mitigation Data'!$AG$13,DRm!$B$40:$B$44,DRm!$C$40:$C$44)))","v":"N/A"},{"$f":"IF('Mitigation Data'!C4=TRUE,\"\",IF('Mitigation Data'!$AF$13=FALSE,\"N/A\",LOOKUP('Mitigation Data'!$AH$13,DRm!$E$40:$E$44,DRm!$F$40:$F$44)))","v":"N/A"}]
["Chemical containers",null,null,null,null,null,{"$f":"IF(Data!$A$12=2,\"\",\"N/A\")","v":"N/A"},{"$f":"IF(Data!$A$12=2,\"\",IF(Data!$AF$15=FALSE,\"N/A\",LOOKUP(Data!$AG$15,DR!$B$40:$B$44,DR!$C$40:$C$44)))","v":"N/A"},{"$f":"IF(Data!$A$12=2,\"\",IF(Data!$AF$15=FALSE,\"N/A\",LOOKUP(Data!$AH$15,DR!$E$40:$E$44,DR!$F$40:$F$44)))","v":"N/A"},null,null,null,{"$f":"IF('Mitigation Data'!B59=TRUE,\"\",IF('Mitigation Data'!$C$4=TRUE,\"\",\"N/A\"))","v":"N/A"},{"$f":"IF('Mitigation Data'!C4=TRUE,\"\",IF('Mitigation Data'!$AF$15=FALSE,\"N/A\",LOOKUP('Mitigation Data'!$AG$15,DRm!$B$40:$B$44,DRm!$C$40:$C$44)))","v":"N/A"},{"$f":"IF('Mitigation Data'!C4=TRUE,\"\",IF('Mitigation Data'!$AF$15=FALSE,\"N/A\",LOOKUP('Mitigation Data'!$AH$15,DRm!$E$40:$E$44,DRm!$F$40:$F$44)))","v":"N/A"}]
["Batteries",null,null,null,null,null,{"$f":"IF(Data!$A$12=2,\"\",\"N/A\")","v":"N/A"},{"$f":"IF(Data!$A$12=2,\"\",IF(Data!$AF$16=FALSE,\"N/A\",LOOKUP(Data!$AG$16,DR!$B$40:$B$44,DR!$C$40:$C$44)))","v":"N/A"},{"$f":"IF(Data!$A$12=2,\"\",IF(Data!$AF$16=FALSE,\"N/A\",LOOKUP(Data!$AH$16,DR!$E$40:$E$44,DR!$F$40:$F$44)))","v":"N/A"},null,null,null,{"$f":"IF('Mitigation Data'!B59=TRUE,\"\",IF('Mitigation Data'!$C$4=TRUE,\"\",\"N/A\"))","v":"N/A"},{"$f":"IF('Mitigation Data'!C4=TRUE,\"\",IF('Mitigation Data'!$AF$16=FALSE,\"N/A\",LOOKUP('Mitigation Data'!$AG$16,DRm!$B$40:$B$44,DRm!$C$40:$C$44)))","v":"N/A"},{"$f":"IF('Mitigation Data'!C4=TRUE,\"\",IF('Mitigation Data'!$AF$16=FALSE,\"N/A\",LOOKUP('Mitigation Data'!$AH$15,DRm!$B$40:$B$44,DRm!$C$40:$C$44)))","v":"N/A"}]
["Hazardous waste",null,null,null,null,null,{"$f":"IF(Data!$A$12=2,\"\",\"N/A\")","v":"N/A"},{"$f":"IF(Data!$A$12=2,\"\",IF(Data!$AF$17=FALSE,\"N/A\",LOOKUP(Data!$AG$17,DR!$B$40:$B$44,DR!$C$40:$C$44)))","v":"N/A"},{"$f":"IF(Data!$A$12=2,\"\",IF(Data!$AF$17=FALSE,\"N/A\",LOOKUP(Data!$AH$17,DR!$E$40:$E$44,DR!$F$40:$F$44)))","v":"N/A"},null,null,null,{"$f":"IF('Mitigation Data'!B59=TRUE,\"\",IF('Mitigation Data'!$C$4=TRUE,\"\",\"N/A\"))","v":"N/A"},{"$f":"IF('Mitigation Data'!C4=TRUE,\"\",IF('Mitigation Data'!$AF$17=FALSE,\"N/A\",LOOKUP('Mitigation Data'!$AG$17,DRm!$B$40:$B$44,DRm!$C$40:$C$44)))","v":"N/A"},{"$f":"IF('Mitigation Data'!C4=TRUE,\"\",IF('Mitigation Data'!$AF$17=FALSE,\"N/A\",LOOKUP('Mitigation Data'!$AH$17,DRm!$B$40:$B$44,DRm!$C$40:$C$44)))","v":"N/A"}]
["Others",null,null,null,null,null,{"$f":"IF(Data!$A$12=2,\"\",IF(Data!A12=3,\"N/A\",IF(Data!$AE$11=TRUE,\"Yes\",\"No\")))","v":"No"},{"$f":"IF(Data!$A$12=2,\"\",IF(Data!$AF$11=FALSE,\"N/A\",LOOKUP(Data!$AG$11,DR!$B$40:$B$44,DR!$C$40:$C$44)))","v":"N/A"},{"$f":"IF(Data!$A$12=2,\"\",IF(Data!$AF$11=FALSE,\"N/A\",LOOKUP(Data!$AH$11,DR!$E$40:$E$44,DR!$F$40:$F$44)))","v":"N/A"},null,null,null,{"$f":"IF('Mitigation Data'!B59=TRUE,\"\",IF('Mitigation Data'!C4=TRUE,\"\",IF('Mitigation Data'!$AE$11=TRUE,\"Yes\",\"No\")))","v":"No"},{"$f":"IF('Mitigation Data'!C4=TRUE,\"\",IF('Mitigation Data'!$AF$11=FALSE,\"N/A\",LOOKUP('Mitigation Data'!$AG$11,DRm!$B$40:$B$44,DRm!$C$40:$C$44)))","v":"N/A"},{"$f":"IF('Mitigation Data'!C4=TRUE,\"\",IF('Mitigation Data'!$AF$11=FALSE,\"N/A\",LOOKUP('Mitigation Data'!$AH$11,DRm!$B$40:$B$44,DRm!$C$40:$C$44)))","v":"N/A"}]
[]
["Liquid Wastes",null,null,null,null,null,{"$f":"IF(Data!$A$12=2,\"Not applicable\", \"Disposal\")","v":"Disposal"},{"$f":"IF(Data!$A$12=2,\"\",\"Qty Stored (t)\")","v":"Qty Stored (t)"},{"$f":"IF(Data!$A$12=2,\"\",\"Time Stored\")","v":"Time Stored"},null,null,null,{"$f":"IF('Mitigation Data'!B59=TRUE,\"\",IF('Mitigation Data'!C18=TRUE,\"Not applicable\",\"Disposal\"))","v":"Disposal"},{"$f":"IF(Data!$A$12=2,\"\",\"Qty Stored (t)\")","v":"Qty Stored (t)"},{"$f":"IF(Data!$A$12=2,\"\",\"Time Stored\")","v":"Time Stored"}]
["Waste mineral oil",null,null,null,null,null,{"$f":"IF(Data!$A$12=2,\"\",IF(Data!$AE$20=TRUE,\"Yes\",\"No\"))","v":"No"},{"$f":"IF(Data!$A$12=2,\"\",IF(Data!$AF$20=FALSE,\"N/A\",LOOKUP(Data!$AG$20,DR!$B$64:$B$68,DR!$C$64:$C$68)))","v":"N/A"},{"$f":"IF(Data!$A$12=2,\"\",IF(Data!$AF$20=FALSE,\"N/A\",LOOKUP(Data!$AH$20,DR!$E$64:$E$68,DR!$F$64:$F$68)))","v":"N/A"},null,null,null,{"$f":"IF('Mitigation Data'!B59=TRUE,\"\",IF('Mitigation Data'!$C$4=TRUE,\"\",\"No\"))","v":"No"},{"$f":"IF('Mitigation Data'!C4=TRUE,\"\",IF('Mitigation Data'!AF20=FALSE,\"N/A\",LOOKUP('Mitigation Data'!AG20,DRm!$B$16:$B$20,DRm!$C$16:$C$20)))","v":"N/A"},{"$f":"IF('Mitigation Data'!C4=TRUE,\"\",IF('Mitigation Data'!AF20=FALSE,\"N/A\",LOOKUP('Mitigation Data'!AH20,DRm!$E$16:$E$20,DRm!$F$16:$F$20)))","v":"N/A"}]
["Waste cooking oil",null,null,null,null,null,{"$f":"IF(Data!$A$12=2,\"\",IF(Data!$AE$21=TRUE,\"Yes\",\"No\"))","v":"No"},{"$f":"IF(Data!$A$12=2,\"\",IF(Data!$AF$21=FALSE,\"N/A\",LOOKUP(Data!$AG$21,DR!$B$64:$B$68,DR!$C$64:$C$68)))","v":"N/A"},{"$f":"IF(Data!$A$12=2,\"\",IF(Data!$AF$21=FALSE,\"N/A\",LOOKUP(Data!$AH$21,DR!$E$64:$E$68,DR!$F$64:$F$68)))","v":"N/A"},null,null,null,{"$f":"IF('Mitigation Data'!B59=TRUE,\"\",IF('Mitigation Data'!$C$4=TRUE,\"\",\"No\"))","v":"No"},{"$f":"IF('Mitigation Data'!C4=TRUE,\"\",IF('Mitigation Data'!AF21=FALSE,\"N/A\",LOOKUP('Mitigation Data'!AG21,DRm!$B$16:$B$20,DRm!$C$16:$C$20)))","v":"N/A"},{"$f":"IF('Mitigation Data'!C4=TRUE,\"\",IF('Mitigation Data'!AF21=FALSE,\"N/A\",LOOKUP('Mitigation Data'!AH21,DRm!$E$16:$E$20,DRm!$F$16:$F$20)))","v":"N/A"}]
["Paint",null,null,null,null,null,{"$f":"IF(Data!$A$12=2,\"\",IF(Data!$AE$22=TRUE,\"Yes\",\"No\"))","v":"No"},{"$f":"IF(Data!$A$12=2,\"\",IF(Data!$AF$22=FALSE,\"N/A\",LOOKUP(Data!$AG$22,DR!$B$64:$B$68,DR!$C$64:$C$68)))","v":"N/A"},{"$f":"IF(Data!$A$12=2,\"\",IF(Data!$AF$22=FALSE,\"N/A\",LOOKUP(Data!$AH$22,DR!$E$64:$E$68,DR!$F$64:$F$68)))","v":"N/A"},null,null,null,{"$f":"IF('Mitigation Data'!B59=TRUE,\"\",IF('Mitigation Data'!$C$4=TRUE,\"\",\"No\"))","v":"No"},{"$f":"IF('Mitigation Data'!C4=TRUE,\"\",IF('Mitigation Data'!AF22=FALSE,\"N/A\",LOOKUP('Mitigation Data'!AG22,DRm!$B$16:$B$20,DRm!$C$16:$C$20)))","v":"N/A"},{"$f":"IF('Mitigation Data'!C4=TRUE,\"\",IF('Mitigation Data'!AF22=FALSE,\"N/A\",LOOKUP('Mitigation Data'!AH22,DRm!$E$16:$E$20,DRm!$F$16:$F$20)))","v":"N/A"}]
["Grease trap waste",null,null,null,null,null,{"$f":"IF(Data!$A$12=2,\"\",IF(Data!$AE$23=TRUE,\"Yes\",\"No\"))","v":"No"},{"$f":"IF(Data!$A$12=2,\"\",IF(Data!$AF$23=FALSE,\"N/A\",LOOKUP(Data!$AG$23,DR!$B$64:$B$68,DR!$C$64:$C$68)))","v":"N/A"},{"$f":"IF(Data!$A$12=2,\"\",IF(Data!$AF$23=FALSE,\"N/A\",LOOKUP(Data!$AH$23,DR!$E$64:$E$68,DR!$F$64:$F$68)))","v":"N/A"},null,null,null,{"$f":"IF('Mitigation Data'!B59=TRUE,\"\",IF('Mitigation Data'!C4=TRUE,\"\",IF('Mitigation Data'!AE23=TRUE,\"Yes\",\"No\")))","v":"No"},{"$f":"IF('Mitigation Data'!C4=TRUE,\"\",IF('Mitigation Data'!AF23=FALSE,\"N/A\",LOOKUP('Mitigation Data'!AG23,DRm!$B$16:$B$20,DRm!$C$16:$C$20)))","v":"N/A"},{"$f":"IF('Mitigation Data'!C4=TRUE,\"\",IF('Mitigation Data'!AF23=FALSE,\"N/A\",LOOKUP('Mitigation Data'!AH23,DRm!$E$16:$E$20,DRm!$F$16:$F$20)))","v":"N/A"}]
["Oily water waste",null,null,null,null,null,{"$f":"IF(Data!$A$12=2,\"\",IF(Data!$AE$24=TRUE,\"Yes\",\"No\"))","v":"No"},{"$f":"IF(Data!$A$12=2,\"\",IF(Data!$AF$24=FALSE,\"N/A\",LOOKUP(Data!$AG$24,DR!$B$64:$B$68,DR!$C$64:$C$68)))","v":"N/A"},{"$f":"IF(Data!$A$12=2,\"\",IF(Data!$AF$24=FALSE,\"N/A\",LOOKUP(Data!$AH$24,DR!$E$64:$E$68,DR!$F$64:$F$68)))","v":"N/A"},null,null,null,{"$f":"IF('Mitigation Data'!B59=TRUE,\"\",IF('Mitigation Data'!$C$4=TRUE,\"\",\"No\"))","v":"No"},{"$f":"IF('Mitigation Data'!C4=TRUE,\"\",IF('Mitigation Data'!AF24=FALSE,\"N/A\",LOOKUP('Mitigation Data'!AG24,DRm!$B$16:$B$20,DRm!$C$16:$C$20)))","v":"N/A"},{"$f":"IF('Mitigation Data'!C4=TRUE,\"\",IF('Mitigation Data'!AF24=FALSE,\"N/A\",LOOKUP('Mitigation Data'!AH24,DRm!$E$16:$E$20,DRm!$F$16:$F$20)))","v":"N/A"}]
["Septic waste",null,null,null,null,null,{"$f":"IF(Data!$A$12=2,\"\",IF(Data!$AE$25=TRUE,\"Yes\",\"No\"))","v":"No"},{"$f":"IF(Data!$A$12=2,\"\",IF(Data!$AF$25=FALSE,\"N/A\",LOOKUP(Data!$AG$25,DR!$B$64:$B$68,DR!$C$64:$C$68)))","v":"N/A"},{"$f":"IF(Data!$A$12=2,\"\",IF(Data!$AF$25=FALSE,\"N/A\",LOOKUP(Data!$AH$25,DR!$E$64:$E$68,DR!$F$64:$F$68)))","v":"N/A"},null,null,null,{"$f":"IF('Mitigation Data'!B59=TRUE,\"\",IF('Mitigation Data'!$C$4=TRUE,\"\",\"No\"))","v":"No"},{"$f":"IF('Mitigation Data'!C4=TRUE,\"\",IF('Mitigation Data'!AF25=FALSE,\"N/A\",LOOKUP('Mitigation Data'!AG25,DRm!$B$16:$B$20,DRm!$C$16:$C$20)))","v":"N/A"},{"$f":"IF('Mitigation Data'!C4=TRUE,\"\",IF('Mitigation Data'!AF25=FALSE,\"N/A\",LOOKUP('Mitigation Data'!AH25,DRm!$E$16:$E$20,DRm!$F$16:$F$20)))","v":"N/A"}]
["Others",null,null,null,null,null,{"$f":"IF(Data!$A$12=2,\"\",IF(Data!$AE$26=TRUE,\"Yes\",\"No\"))","v":"No"},{"$f":"IF(Data!$A$12=2,\"\",IF(Data!$AF$26=FALSE,\"N/A\",LOOKUP(Data!$AG$26,DR!$B$64:$B$68,DR!$C$64:$C$68)))","v":"N/A"},{"$f":"IF(Data!$A$12=2,\"\",IF(Data!$AF$26=FALSE,\"N/A\",LOOKUP(Data!$AH$26,DR!$E$64:$E$68,DR!$F$64:$F$68)))","v":"N/A"},null,null,null,{"$f":"IF('Mitigation Data'!B59=TRUE,\"\",IF('Mitigation Data'!$C$4=TRUE,\"\",\"No\"))","v":"No"},{"$f":"IF('Mitigation Data'!C4=TRUE,\"\",IF('Mitigation Data'!AF26=FALSE,\"N/A\",LOOKUP('Mitigation Data'!AG26,DRm!$B$16:$B$20,DRm!$C$16:$C$20)))","v":"N/A"},{"$f":"IF('Mitigation Data'!C4=TRUE,\"\",IF('Mitigation Data'!AF26=FALSE,\"N/A\",LOOKUP('Mitigation Data'!AH26,DRm!$E$16:$E$20,DRm!$F$16:$F$20)))","v":"N/A"}]
[]
["Operations and Management"]
[]
[null,null,null,null,null,null,"Existing"]
[]
["Facility open to the public",null,null,null,null,null,{"$f":"IF(Data!A12=2,\"Not applicable\",LOOKUP(Data!$AE$28,Data!$AC$29:$AC$34,Data!$AD$29:$AD$34))","v":"24 hours, 7 days per week"},null,null,null,null,null,{"$f":"IF('Mitigation Data'!C4=TRUE,\"Not applicable\",LOOKUP('Mitigation Data'!$AE$28,'Mitigation Data'!AC29:AC34,'Mitigation Data'!AD29:AD34))","v":"No change proposed"}]
["Facility perimeter fence",null,null,null,null,null,{"$f":"IF(Data!A12=2,\"Not applicable\",LOOKUP(Data!$AE$36,Data!$AC$37:$AC$41,Data!$AD$37:$AD$41))","v":"No perimeter fence"},null,null,null,null,null,{"$f":"IF('Mitigation Data'!C4=TRUE,\"Not applicable\",LOOKUP('Mitigation Data'!$AE$36,'Mitigation Data'!AC37:AC41,'Mitigation Data'!AD37:AD41))","v":"No change proposed"}]
["Method of securing access to the facility",null,null,null,null,null,{"$f":"IF(Data!A12=2,\"Not applicable\",LOOKUP(Data!$AE$43,Data!$AC$44:$AC$48,Data!$AD$44:$AD$48))","v":"Access not secured"},null,null,null,null,null,{"$f":"IF('Mitigation Data'!C4=TRUE,\"Not applicable\",LOOKUP('Mitigation Data'!$AE$43,'Mitigation Data'!AC44:AC48,'Mitigation Data'!AD44:AD48))","v":"No change proposed"}]
["Method of controlling access to the facility",null,null,null,null,null,{"$f":"IF(Data!A12=2,\"Not applicable\",LOOKUP(Data!$AE$56,Data!$AC$57:$AC$61,Data!$AD$57:$AD$61))","v":"No control on access in place"},null,null,null,null,null,{"$f":"IF('Mitigation Data'!C4=TRUE,\"Not applicable\",LOOKUP('Mitigation Data'!$AE$56,'Mitigation Data'!AC57:AC61,'Mitigation Data'!AD57:AD61))","v":"No change proposed"}]
["Supervision of the facility",null,null,null,null,null,{"$f":"IF(Data!A12=2,\"Not applicable\",LOOKUP(Data!$AE$63,Data!$AC$64:$AC$68,Data!$AD$64:$AD$68))","v":"No supervision undertaken"},null,null,null,null,null,{"$f":"IF('Mitigation Data'!C4=TRUE,\"Not applicable\",LOOKUP('Mitigation Data'!$AE$63,'Mitigation Data'!$AC$64:$AC$68,'Mitigation Data'!$AD$64:$AD$68))","v":"No change proposed"}]
["Operators in attendance at the facility",null,null,null,null,null,{"$f":"IF(Data!A12=2,\"Not applicable\",LOOKUP(Data!$AE$70,Data!$AC$200:$AC$204,Data!$AD$200:$AD$204))","v":"Very infrequently to never (eg. annually or more)"},null,null,null,null,null,{"$f":"IF('Mitigation Data'!C4=TRUE,\"Not applicable\",LOOKUP('Mitigation Data'!$AE$70,'Mitigation Data'!$AC$71:$AC$75,'Mitigation Data'!$AD$71:$AD$75))","v":"No change proposed"}]
[]
["Additional security measures:",null,null,null,null,null,{"$f":"IF(Data!$A$12=2,\"Not applicable\",\"\")","v":""},null,null,null,null,null,{"$f":"IF('Mitigation Data'!$C$4=TRUE,\"Not applicable\",\"\")","v":""}]
["Security patrols",null,null,null,null,null,{"$f":"IF(Data!A12=2,\"\",IF(Data!$AE$51=TRUE,\"Yes\",\"No\"))","v":"No"},null,null,null,null,null,{"$f":"IF('Mitigation Data'!C4=TRUE,\"\",IF('Mitigation Data'!$AE$51=TRUE,\"Yes\",\"No\"))","v":"No"}]
["Video surveillance",null,null,null,null,null,{"$f":"IF(Data!A12=2,\"\",IF(Data!$AE$52=TRUE,\"Yes\",\"No\"))","v":"No"},null,null,null,null,null,{"$f":"IF('Mitigation Data'!C4=TRUE,\"\",IF('Mitigation Data'!$AE$52=TRUE,\"Yes\",\"No\"))","v":"No"}]
["Covert surveillance",null,null,null,null,null,{"$f":"IF(Data!A12=2,\"\",IF(Data!$AE$53=TRUE,\"Yes\",\"No\"))","v":"No"},null,null,null,null,null,{"$f":"IF('Mitigation Data'!$C$4=TRUE,\"\",IF('Mitigation Data'!AE53=TRUE,\"Yes\",\"No\"))","v":"No"}]
["\"Dummy\" surveillance",null,null,null,null,null,{"$f":"IF(Data!A12=2,\"\",IF(Data!$AE$54=TRUE,\"Yes\",\"No\"))","v":"No"},null,null,null,null,null,{"$f":"IF('Mitigation Data'!$C$4=TRUE,\"\",IF('Mitigation Data'!AE54=TRUE,\"Yes\",\"No\"))","v":"No"}]
[" "]
["Days operational activities conducted",null,null,null,null,null,{"$f":"IF(Data!A12=2,\"Not applicable\",LOOKUP(Data!$AE$126,Data!$AC$127:$AC$129,Data!$AD$127:$AD$129))","v":"Weekends only"},null,null,null,null,null,{"$f":"IF('Mitigation Data'!$C$4=TRUE,\"Not applicable\",LOOKUP('Mitigation Data'!AE146,'Mitigation Data'!AC147:AC149,'Mitigation Data'!AD147:AD149))","v":"No change proposed"}]
["Hours operational activities conducted",null,null,null,null,null,{"$f":"IF(Data!A12=2,\"Not applicable\",LOOKUP(Data!$AE$131,Data!$AC$132:$AC$134,Data!$AD$132:$AD$134))","v":"24 hours"},null,null,null,null,null,{"$f":"IF('Mitigation Data'!$C$4=TRUE,\"Not applicable\",LOOKUP('Mitigation Data'!$AE$151,'Mitigation Data'!AC152:AC154,'Mitigation Data'!AD152:AD154))","v":"No change proposed"}]
[]
["Plant and equipment used at the facility:",null,null,null,null,null,{"$f":"IF(Data!$A$12=2,\"Not applicable\",\"\")","v":""},null,null,null,null,null,{"$f":"IF('Mitigation Data'!$C$4=TRUE,\"Not applicable\",\"\")","v":""}]
["Bulldozer",null,null,null,null,null,{"$f":"IF(Data!A12=2,\"\",IF(Data!$AE$137=TRUE,\"Yes\",\"No\"))","v":"No"},null,null,null,null,null,{"$f":"IF('Mitigation Data'!$C$4=TRUE,\"\",IF('Mitigation Data'!AE157=TRUE,\"Yes\",\"No\"))","v":"No"}]
["Excavator",null,null,null,null,null,{"$f":"IF(Data!A12=2,\"\",IF(Data!$AE$138=TRUE,\"Yes\",\"No\"))","v":"No"},null,null,null,null,null,{"$f":"IF('Mitigation Data'!$C$4=TRUE,\"\",IF('Mitigation Data'!AE158=TRUE,\"Yes\",\"No\"))","v":"No"}]
["Front end loader",null,null,null,null,null,{"$f":"IF(Data!A12=2,\"\",IF(Data!$AE$139=TRUE,\"Yes\",\"No\"))","v":"No"},null,null,null,null,null,{"$f":"IF('Mitigation Data'!$C$4=TRUE,\"\",IF('Mitigation Data'!AE159=TRUE,\"Yes\",\"No\"))","v":"No"}]
["Landfill compactor",null,null,null,null,null,{"$f":"IF(Data!A12=2,\"\",IF(Data!$AE$140=TRUE,\"Yes\",\"No\"))","v":"No"},null,null,null,null,null,{"$f":"IF('Mitigation Data'!$C$4=TRUE,\"\",IF('Mitigation Data'!AE160=TRUE,\"Yes\",\"No\"))","v":"No"}]
["Small plant (mowers, etc)",null,null,null,null,null,{"$f":"IF(Data!A12=2,\"\",IF(Data!$AE$141=TRUE,\"Yes\",\"No\"))","v":"No"},null,null,null,null,null,{"$f":"IF('Mitigation Data'!$C$4=TRUE,\"\",IF('Mitigation Data'!AE161=TRUE,\"Yes\",\"No\"))","v":"No"}]
["Tipper truck",null,null,null,null,null,{"$f":"IF(Data!A12=2,\"\",IF(Data!$AE$142=TRUE,\"Yes\",\"No\"))","v":"No"},null,null,null,null,null,{"$f":"IF('Mitigation Data'!$C$4=TRUE,\"\",IF('Mitigation Data'!AE162=TRUE,\"Yes\",\"No\"))","v":"No"}]
["Backhoe",null,null,null,null,null,{"$f":"IF(Data!A12=2,\"\",IF(Data!$AE$143=TRUE,\"Yes\",\"No\"))","v":"No"},null,null,null,null,null,{"$f":"IF('Mitigation Data'!$C$4=TRUE,\"\",IF('Mitigation Data'!AE163=TRUE,\"Yes\",\"No\"))","v":"No"}]
["Garbage truck",null,null,null,null,null,{"$f":"IF(Data!A12=2,\"\",IF(Data!$AE$144=TRUE,\"Yes\",\"No\"))","v":"No"},null,null,null,null,null,{"$f":"IF('Mitigation Data'!$C$4=TRUE,\"\",IF('Mitigation Data'!AE164=TRUE,\"Yes\",\"No\"))","v":"No"}]
["Materials Recovery Facility (MRF)",null,null,null,null,null,{"$f":"IF(Data!A12=2,\"\",IF(Data!$AE$145=TRUE,\"Yes\",\"No\"))","v":"No"},null,null,null,null,null,{"$f":"IF('Mitigation Data'!$C$4=TRUE,\"\",IF('Mitigation Data'!AE165=TRUE,\"Yes\",\"No\"))","v":"No"}]
["Vehicle wash",null,null,null,null,null,{"$f":"IF(Data!A12=2,\"\",IF(Data!$AE$146=TRUE,\"Yes\",\"No\"))","v":"No"},null,null,null,null,null,{"$f":"IF('Mitigation Data'!$C$4=TRUE,\"\",IF('Mitigation Data'!AE166=TRUE,\"Yes\",\"No\"))","v":"No"}]
[]
["Frequency of planned and controlled burning",null,null,null,null,null,{"$f":"IF(Data!A12=2,\"Not applicable\",LOOKUP(Data!$AE$164,Data!$AC$193:$AC$197,Data!$AD$193:$AD$197))","v":"Very frequently (eg. daily)"},null,null,null,null,null,{"$f":"IF('Mitigation Data'!$C$4=TRUE,\"Not applicable\",LOOKUP('Mitigation Data'!AE184,'Mitigation Data'!AC185:AC189,'Mitigation Data'!AD185:AD189))","v":"No change proposed"}]
["Fire fighting capacity",null,null,null,null,null,{"$f":"IF(Data!A12=2,\"Not applicable\",LOOKUP(Data!$AE$166,Data!$AC$167:$AC$171,Data!$AD$167:$AD$171))","v":"None"},null,null,null,null,null,{"$f":"IF('Mitigation Data'!$C$4=TRUE,\"Not applicable\",LOOKUP('Mitigation Data'!AE191,'Mitigation Data'!AC192:AC196,'Mitigation Data'!AD192:AD196))","v":"No change proposed"}]
[]
["Fire management controls:",null,null,null,null,null,{"$f":"IF(Data!$A$12=2,\"Not applicable\",\"\")","v":""},null,null,null,null,null,{"$f":"IF('Mitigation Data'!$C$4=TRUE,\"Not applicable\",\"\")","v":""}]
["Formal fire response plan",null,null,null,null,null,{"$f":"IF(Data!A12=2,\"\",IF(Data!$AE$174=TRUE,\"Yes\",\"No\"))","v":"No"},null,null,null,null,null,{"$f":"IF('Mitigation Data'!$C$4=TRUE,\"\",IF('Mitigation Data'!AE199=TRUE,\"Yes\",\"No\"))","v":"No"}]
["Perimeter fire breaks",null,null,null,null,null,{"$f":"IF(Data!A12=2,\"\",IF(Data!$AE$175=TRUE,\"Yes\",\"No\"))","v":"No"},null,null,null,null,null,{"$f":"IF('Mitigation Data'!$C$4=TRUE,\"\",IF('Mitigation Data'!AE200=TRUE,\"Yes\",\"No\"))","v":"No"}]
["Soil stockpiles",null,null,null,null,null,{"$f":"IF(Data!A12=2,\"\",IF(Data!$AE$176=TRUE,\"Yes\",\"No\"))","v":"No"},null,null,null,null,null,{"$f":"IF('Mitigation Data'!$C$4=TRUE,\"\",IF('Mitigation Data'!AE201=TRUE,\"Yes\",\"No\"))","v":"No"}]
["Maintenance schedule",null,null,null,null,null,{"$f":"IF(Data!A12=2,\"\",IF(Data!$AE$177=TRUE,\"Yes\",\"No\"))","v":"No"},null,null,null,null,null,{"$f":"IF('Mitigation Data'!$C$4=TRUE,\"\",IF('Mitigation Data'!AE202=TRUE,\"Yes\",\"No\"))","v":"No"}]
["Other",null,null,null,null,null,{"$f":"IF(Data!A12=2,\"\",IF(Data!$AE$178=TRUE,\"Yes\",\"No\"))","v":"No"},null,null,null,null,null,{"$f":"IF('Mitigation Data'!$C$4=TRUE,\"\",IF('Mitigation Data'!AE203=TRUE,\"Yes\",\"No\"))","v":"No"}]
[]
["Documented and implemented procedures:",null,null,null,null,null,{"$f":"IF(Data!$A$12=2,\"Not applicable\",\"\")","v":""},null,null,null,null,null,{"$f":"IF('Mitigation Data'!$C$4=TRUE,\"Not applicable\",\"\")","v":""}]
["General operation and management",null,null,null,null,null,{"$f":"IF(Data!A12=2,\"\",IF(Data!$AE$181=TRUE,\"Yes\",\"No\"))","v":"No"},null,null,null,null,null,{"$f":"IF('Mitigation Data'!C4=TRUE,\"\",IF('Mitigation Data'!$AE$206=TRUE,\"Yes\",\"No\"))","v":"No"}]
["Waste screening",null,null,null,null,null,{"$f":"IF(Data!A12=2,\"\",IF(Data!$AE$182=TRUE,\"Yes\",\"No\"))","v":"No"},null,null,null,null,null,{"$f":"IF('Mitigation Data'!C4=TRUE,\"\",IF('Mitigation Data'!$AE$207=TRUE,\"Yes\",\"No\"))","v":"No"}]
["Management of unlawfully disposed waste",null,null,null,null,null,{"$f":"IF(Data!A12=2,\"\",IF(Data!$AE$183=TRUE,\"Yes\",\"No\"))","v":"No"},null,null,null,null,null,{"$f":"IF('Mitigation Data'!C4=TRUE,\"\",IF('Mitigation Data'!$AE$208=TRUE,\"Yes\",\"No\"))","v":"No"}]
["Fire response",null,null,null,null,null,{"$f":"IF(Data!A12=2,\"\",IF(Data!$AE$184=TRUE,\"Yes\",\"No\"))","v":"No"},null,null,null,null,null,{"$f":"IF('Mitigation Data'!C4=TRUE,\"\",IF('Mitigation Data'!$AE$209=TRUE,\"Yes\",\"No\"))","v":"No"}]
["Environmental monitoring",null,null,null,null,null,{"$f":"IF(Data!A12=2,\"\",IF(Data!$AE$185=TRUE,\"Yes\",\"No\"))","v":"No"},null,null,null,null,null,{"$f":"IF('Mitigation Data'!C4=TRUE,\"\",IF('Mitigation Data'!$AE$210=TRUE,\"Yes\",\"No\"))","v":"No"}]
["Pollution incident response",null,null,null,null,null,{"$f":"IF(Data!A12=2,\"\",IF(Data!$AE$186=TRUE,\"Yes\",\"No\"))","v":"No"},null,null,null,null,null,{"$f":"IF('Mitigation Data'!C4=TRUE,\"\",IF('Mitigation Data'!$AE$211=TRUE,\"Yes\",\"No\"))","v":"No"}]
["Compliant response",null,null,null,null,null,{"$f":"IF(Data!A12=2,\"\",IF(Data!$AE$187=TRUE,\"Yes\",\"No\"))","v":"No"},null,null,null,null,null,{"$f":"IF('Mitigation Data'!C4=TRUE,\"\",IF('Mitigation Data'!$AE$212=TRUE,\"Yes\",\"No\"))","v":"No"}]
["Other incident / emergency response",null,null,null,null,null,{"$f":"IF(Data!A12=2,\"\",IF(Data!$AE$188=TRUE,\"Yes\",\"No\"))","v":"No"},null,null,null,null,null,{"$f":"IF('Mitigation Data'!C4=TRUE,\"\",IF('Mitigation Data'!$AE$213=TRUE,\"Yes\",\"No\"))","v":"No"}]
[]
["Dust control measures:",null,null,null,null,null,{"$f":"IF(Data!$A$12=2,\"Not applicable\",\"\")","v":""},null,null,null,null,null,{"$f":"IF('Mitigation Data'!$C$4=TRUE,\"Not applicable\",\"\")","v":""}]
["Minimisation of disturbed areas",null,null,null,null,null,{"$f":"IF(Data!A12=2,\"\",IF(Data!$AE$115=TRUE,\"Yes\",\"No\"))","v":"No"},null,null,null,null,null,{"$f":"IF('Mitigation Data'!C4=TRUE,\"\",IF('Mitigation Data'!$AE$135=TRUE,\"Yes\",\"No\"))","v":"No"}]
["Use of windbreaks",null,null,null,null,null,{"$f":"IF(Data!A12=2,\"\",IF(Data!$AE$116=TRUE,\"Yes\",\"No\"))","v":"No"},null,null,null,null,null,{"$f":"IF('Mitigation Data'!C4=TRUE,\"\",IF('Mitigation Data'!$AE$136=TRUE,\"Yes\",\"No\"))","v":"No"}]
["Dust supression sprays",null,null,null,null,null,{"$f":"IF(Data!A12=2,\"\",IF(Data!$AE$117=TRUE,\"Yes\",\"No\"))","v":"No"},null,null,null,null,null,{"$f":"IF('Mitigation Data'!C4=TRUE,\"\",IF('Mitigation Data'!$AE$137=TRUE,\"Yes\",\"No\"))","v":"No"}]
["Other",null,null,null,null,null,{"$f":"IF(Data!A12=2,\"\",IF(Data!$AE$118=TRUE,\"Yes\",\"No\"))","v":"No"},null,null,null,null,null,{"$f":"IF('Mitigation Data'!C4=TRUE,\"\",IF('Mitigation Data'!$AE$138=TRUE,\"Yes\",\"No\"))","v":"No"}]
[]
["Litter control measures:",null,null,null,null,null,{"$f":"IF(Data!$A$12=2,\"Not applicable\",\"\")","v":""},null,null,null,null,null,{"$f":"IF('Mitigation Data'!$C$4=TRUE,\"Not applicable\",\"\")","v":""}]
["Purpose built litter fences",null,null,null,null,null,{"$f":"IF(Data!A12=2,\"\",IF(Data!$AE$121=TRUE,\"Yes\",\"No\"))","v":"No"},null,null,null,null,null,{"$f":"IF('Mitigation Data'!C4=TRUE,\"\",IF('Mitigation Data'!$AE$141=TRUE,\"Yes\",\"No\"))","v":"No"}]
["Litter cages",null,null,null,null,null,{"$f":"IF(Data!A12=2,\"\",IF(Data!$AE$122=TRUE,\"Yes\",\"No\"))","v":"No"},null,null,null,null,null,{"$f":"IF('Mitigation Data'!C4=TRUE,\"\",IF('Mitigation Data'!$AE$142=TRUE,\"Yes\",\"No\"))","v":"No"}]
["Regularly scheduled clean-up",null,null,null,null,null,{"$f":"IF(Data!A12=2,\"\",IF(Data!$AE$123=TRUE,\"Yes\",\"No\"))","v":"No"},null,null,null,null,null,{"$f":"IF('Mitigation Data'!C4=TRUE,\"\",IF('Mitigation Data'!$AE$143=TRUE,\"Yes\",\"No\"))","v":"No"}]
["Other",null,null,null,null,null,{"$f":"IF(Data!A12=2,\"\",IF(Data!$AE$124=TRUE,\"Yes\",\"No\"))","v":"No"},null,null,null,null,null,{"$f":"IF('Mitigation Data'!C4=TRUE,\"\",IF('Mitigation Data'!$AE$144=TRUE,\"Yes\",\"No\"))","v":"No"}]
[]
["Pest management programs:",null,null,null,null,null,{"$f":"IF(Data!$A$12=2,\"Not applicable\",\"\")","v":""},null,null,null,null,null,{"$f":"IF('Mitigation Data'!$C$4=TRUE,\"Not applicable\",\"\")","v":""}]
["Mice / rats",null,null,null,null,null,{"$f":"IF(Data!A12=2,\"\",IF(Data!$AE$157=TRUE,\"Yes\",\"No\"))","v":"No"},null,null,null,null,null,{"$f":"IF('Mitigation Data'!C4=TRUE,\"\",IF('Mitigation Data'!$AE$177=TRUE,\"Yes\",\"No\"))","v":"No"}]
["Cats / dogs",null,null,null,null,null,{"$f":"IF(Data!A12=2,\"\",IF(Data!$AE$158=TRUE,\"Yes\",\"No\"))","v":"No"},null,null,null,null,null,{"$f":"IF('Mitigation Data'!C4=TRUE,\"\",IF('Mitigation Data'!$AE$178=TRUE,\"Yes\",\"No\"))","v":"No"}]
["Noxious weeds",null,null,null,null,null,{"$f":"IF(Data!A12=2,\"\",IF(Data!$AE$159=TRUE,\"Yes\",\"No\"))","v":"No"},null,null,null,null,null,{"$f":"IF('Mitigation Data'!C4=TRUE,\"\",IF('Mitigation Data'!$AE$179=TRUE,\"Yes\",\"No\"))","v":"No"}]
["Pigs / goats",null,null,null,null,null,{"$f":"IF(Data!A12=2,\"\",IF(Data!$AE$160=TRUE,\"Yes\",\"No\"))","v":"No"},null,null,null,null,null,{"$f":"IF('Mitigation Data'!C4=TRUE,\"\",IF('Mitigation Data'!$AE$180=TRUE,\"Yes\",\"No\"))","v":"No"}]
["Birds",null,null,null,null,null,{"$f":"IF(Data!A12=2,\"\",IF(Data!$AE$161=TRUE,\"Yes\",\"No\"))","v":"No"},null,null,null,null,null,{"$f":"IF('Mitigation Data'!C4=TRUE,\"\",IF('Mitigation Data'!$AE$181=TRUE,\"Yes\",\"No\"))","v":"No"}]
["Flies / insects",null,null,null,null,null,{"$f":"IF(Data!A12=2,\"\",IF(Data!$AE$162=TRUE,\"Yes\",\"No\"))","v":"No"},null,null,null,null,null,{"$f":"IF('Mitigation Data'!C4=TRUE,\"\",IF('Mitigation Data'!$AE$182=TRUE,\"Yes\",\"No\"))","v":"No"}]
[]
["Method of liquid / hazardous waste storage",null,null,null,null,null,{"$f":"IF(Data!A12=2,\"Not applicable\",LOOKUP(Data!$AE$105,Data!$AC$106:$AC$110,Data!$AD$106:$AD$110))","v":"In concrete bunded area(s)"},null,null,null,null,null,{"$f":"IF('Mitigation Data'!C4=TRUE,\"Not applicable\",LOOKUP('Mitigation Data'!$AE$125,'Mitigation Data'!$AC$126:$AC$130,'Mitigation Data'!$AD$126:$AD$130))","v":"No change proposed"}]
["Cover of liquid / hazardous waste storage area",null,null,null,null,null,{"$f":"IF(Data!A12=2,\"Not applicable\",IF(Data!$AE$112=1,\"Yes\",\"No\"))","v":"Yes"},null,null,null,null,null,{"$f":"IF('Mitigation Data'!C4=TRUE,\"Not applicable\",IF('Mitigation Data'!$AE$132=1,\"Yes\",\"No\"))","v":"Yes"}]
[]
["Stormwater diversion:",null,null,null,null,null,{"$f":"IF(Data!$A$12=2,\"Not applicable\",\"\")","v":""},null,null,null,null,null,{"$f":"IF('Mitigation Data'!$C$4=TRUE,\"Not applicable\",\"\")","v":""}]
["Around perimeter of facility",null,null,null,null,null,{"$f":"IF(Data!A12=2,\"\",IF(Data!$AE$81=TRUE,\"Yes\",\"No\"))","v":"No"},null,null,null,null,null,{"$f":"IF('Mitigation Data'!C4=TRUE,\"\",IF('Mitigation Data'!$AE$86=TRUE,\"Yes\",\"No\"))","v":"No"}]
["Around disturbed areas",null,null,null,null,null,{"$f":"IF(Data!A12=2,\"\",IF(Data!$AE$82=TRUE,\"Yes\",\"No\"))","v":"No"},null,null,null,null,null,{"$f":"IF('Mitigation Data'!C4=TRUE,\"\",IF('Mitigation Data'!$AE$87=TRUE,\"Yes\",\"No\"))","v":"No"}]
["Areas where waste is stored / disposed",null,null,null,null,null,{"$f":"IF(Data!A12=2,\"\",IF(Data!$AE$83=TRUE,\"Yes\",\"No\"))","v":"No"},null,null,null,null,null,{"$f":"IF('Mitigation Data'!C4=TRUE,\"\",IF('Mitigation Data'!$AE$88=TRUE,\"Yes\",\"No\"))","v":"No"}]
[]
["E-RAMP Risk Profile Report (cont)"]
[]
["Operations and Management (cont)"]
[]
[null,null,null,null,null,null,"Existing",null,null,null,null,null,"Proposed"]
[]
["Management of runoff from undisturbed areas",null,null,null,null,null,{"$f":"IF(Data!A12=2,\"Not applicable\",LOOKUP(Data!$AE$85,Data!$AC$92:$AC$96,Data!$AD$92:$AD$96))","v":"Nil / direct discharge"},null,null,null,null,null,{"$f":"IF('Mitigation Data'!C4=TRUE,\"Not applicable\",LOOKUP('Mitigation Data'!$AE$90,'Mitigation Data'!$AC$91:$AC$95,'Mitigation Data'!$AD$91:$AD$95))","v":"No change proposed"}]
["Management of runoff from disturbed areas",null,null,null,null,null,{"$f":"IF(Data!A12=2,\"Not applicable\",LOOKUP(Data!$AE$87,Data!$AC$92:$AC$96,Data!$AD$92:$AD$96))","v":"Nil / direct discharge"},null,null,null,null,null,{"$f":"IF('Mitigation Data'!C4=TRUE,\"Not applicable\",LOOKUP('Mitigation Data'!$AE$97,'Mitigation Data'!$AC$98:$AC$102,'Mitigation Data'!$AD$98:$AD$102))","v":"No change proposed"}]
["Management of runoff from waste areas",null,null,null,null,null,{"$f":"IF(Data!A12=2,\"Not applicable\",LOOKUP(Data!$AE$89,Data!$AC$92:$AC$96,Data!$AD$92:$AD$96))","v":"Nil / direct discharge"},null,null,null,null,null,{"$f":"IF('Mitigation Data'!C4=TRUE,\"Not applicable\",LOOKUP('Mitigation Data'!$AE$104,'Mitigation Data'!$AC$105:$AC$109,'Mitigation Data'!$AD$105:$AD$109))","v":"No change proposed"}]
["% of sealed trafficable areas",null,null,null,null,null,{"$f":"IF(Data!A12=2,\"Not applicable\",LOOKUP(Data!$AE$98,Data!$AC$99:$AC$103,Data!$AD$99:$AD$103))","v":"No surfaces (0%)"},null,null,null,null,null,{"$f":"IF('Mitigation Data'!C4=TRUE,\"Not applicable\",LOOKUP('Mitigation Data'!$AE$118,'Mitigation Data'!$AC$119:$AC$123,'Mitigation Data'!$AD$119:$AD$123))","v":"No change proposed"}]
[]
["Collection services offered",null,null,null,null,null,{"$f":"IF(Data!$A$12=2,\"Not applicable\",\"\")","v":""},null,null,null,null,null,{"$f":"IF('Mitigation Data'!$C$4=TRUE,\"Not applicable\",\"\")","v":""}]
["Mixed waste",null,null,null,null,null,{"$f":"IF(Data!A12=2,\"\",IF(Data!$AE$149=TRUE,\"Yes\",\"No\"))","v":"No"},null,null,null,null,null,{"$f":"IF('Mitigation Data'!C4=TRUE,\"\",IF('Mitigation Data'!$AE$169=TRUE,\"Yes\",\"No\"))","v":"No"}]
["Recyclables",null,null,null,null,null,{"$f":"IF(Data!A12=2,\"\",IF(Data!$AE$150=TRUE,\"Yes\",\"No\"))","v":"No"},null,null,null,null,null,{"$f":"IF('Mitigation Data'!C4=TRUE,\"\",IF('Mitigation Data'!$AE$170=TRUE,\"Yes\",\"No\"))","v":"No"}]
["Garden / Food organics",null,null,null,null,null,{"$f":"IF(Data!A12=2,\"\",IF(Data!$AE$151=TRUE,\"Yes\",\"No\"))","v":"No"},null,null,null,null,null,{"$f":"IF('Mitigation Data'!C4=TRUE,\"\",IF('Mitigation Data'!$AE$171=TRUE,\"Yes\",\"No\"))","v":"No"}]
["Bulky items",null,null,null,null,null,{"$f":"IF(Data!A12=2,\"\",IF(Data!$AE$152=TRUE,\"Yes\",\"No\"))","v":"No"},null,null,null,null,null,{"$f":"IF('Mitigation Data'!C4=TRUE,\"\",IF('Mitigation Data'!$AE$172=TRUE,\"Yes\",\"No\"))","v":"No"}]
[]
["Community Recycling Centre within 50km",null,null,null,null,null,{"$f":"IF(Data!A12=2,\"Not applicable\",IF(Data!$AE$154=2,\"No\",\"Yes\"))","v":"No"},null,null,null,null,null,{"$f":"IF('Mitigation Data'!C4=TRUE,\"Not applicable\",IF('Mitigation Data'!$AE$174=2,\"No\",\"Yes\"))","v":"No"}]
[]
["Environmental Information & Monitoring"]
[]
[null,null,null,null,null,null,"Existing",null,null,null,null,null,"Proposed"]
[]
["Environmental Information"]
["Detailed site selection process undertaken",null,null,null,null,null,{"$f":"LOOKUP(Data!$S$3,Data!$Q$8:$Q$10,Data!$R$8:$R$10)","v":"Unknown"},null,null,null,null,null,"N/A"]
["Environmental assessment undertaken",null,null,null,null,null,{"$f":"LOOKUP(Data!$S$4,Data!$Q$8:$Q$10,Data!$R$8:$R$10)","v":"Unknown"},null,null,null,null,null,"N/A"]
["Environmental audit undertaken",null,null,null,null,null,{"$f":"LOOKUP(Data!$S$5,Data!$Q$8:$Q$10,Data!$R$8:$R$10)","v":"Unknown"},null,null,null,null,null,{"$f":"LOOKUP('Mitigation Data'!$S$5,'Mitigation Data'!$Q$8:$Q$9,'Mitigation Data'!$R$8:$R$9)","v":"No"}]
["Environmental investigation undertaken",null,null,null,null,null,{"$f":"LOOKUP(Data!$S$6,Data!$Q$8:$Q$10,Data!$R$8:$R$10)","v":"Unknown"},null,null,null,null,null,{"$f":"LOOKUP('Mitigation Data'!$S$6,'Mitigation Data'!$Q$8:$Q$9,'Mitigation Data'!$R$8:$R$9)","v":"No"}]
["Environment Management Plan prepared",null,null,null,null,null,{"$f":"LOOKUP(Data!$S$7,Data!$Q$8:$Q$10,Data!$R$8:$R$10)","v":"Unknown"},null,null,null,null,null,{"$f":"LOOKUP('Mitigation Data'!$S$7,'Mitigation Data'!$Q$8:$Q$9,'Mitigation Data'!$R$8:$R$9)","v":"No"}]
["Archaeological investigation for ACH",null,null,null,null,null,"N/A",null,null,null,null,null,{"$f":"LOOKUP('Mitigation Data'!$W$97,'Mitigation Data'!$Q$8:$Q$9,'Mitigation Data'!$R$8:$R$9)","v":"No"}]
["Flora & Fauna investigation for TS & EEC",null,null,null,null,null,"N/A",null,null,null,null,null,{"$f":"LOOKUP('Mitigation Data'!$W$98,'Mitigation Data'!$Q$8:$Q$9,'Mitigation Data'!$R$8:$R$9)","v":"No"}]
[]
["Groundwater Monitoring"]
["No. locations",null,null,null,null,null,{"$f":"'Monitoring 1'!F6","v":"No monitoring undertaken"},null,null,null,null,null,{"$f":"'Monitoring 1'!J6","v":"No change proposed"}]
["Locations",null,null,null,null,null,{"$f":"'Monitoring 1'!F7","v":""},null,null,null,null,null,{"$f":"'Monitoring 1'!J7","v":""}]
["Frequency",null,null,null,null,null,{"$f":"'Monitoring 1'!F8","v":""},null,null,null,null,null,{"$f":"'Monitoring 1'!J8","v":""}]
["Parameters:"]
["Level (mBGL)",null,null,null,null,null,{"$f":"'Monitoring 1'!F11","v":""},null,null,null,null,null,{"$f":"'Monitoring 1'!J11","v":""}]
["pH",null,null,null,null,null,{"$f":"'Monitoring 1'!F12","v":""},null,null,null,null,null,{"$f":"'Monitoring 1'!J12","v":""}]
["Electrical Conductivity",null,null,null,null,null,{"$f":"'Monitoring 1'!F13","v":""},null,null,null,null,null,{"$f":"'Monitoring 1'!J13","v":""}]
["Ammonia",null,null,null,null,null,{"$f":"'Monitoring 1'!F14","v":""},null,null,null,null,null,{"$f":"'Monitoring 1'!J14","v":""}]
["Nitrate",null,null,null,null,null,{"$f":"'Monitoring 1'!F15","v":""},null,null,null,null,null,{"$f":"'Monitoring 1'!J15","v":""}]
["Total Organic Carbon",null,null,null,null,null,{"$f":"'Monitoring 1'!F16","v":""},null,null,null,null,null,{"$f":"'Monitoring 1'!J16","v":""}]
["Alkalinity",null,null,null,null,null,{"$f":"'Monitoring 1'!F17","v":""},null,null,null,null,null,{"$f":"'Monitoring 1'!J17","v":""}]
["Iron",null,null,null,null,null,{"$f":"'Monitoring 1'!F18","v":""},null,null,null,null,null,{"$f":"'Monitoring 1'!J18","v":""}]
["Pesticides",null,null,null,null,null,{"$f":"'Monitoring 1'!F19","v":""},null,null,null,null,null,{"$f":"'Monitoring 1'!J19","v":""}]
["Others",null,null,null,null,null,{"$f":"'Monitoring 1'!F20","v":""},null,null,null,null,null,{"$f":"'Monitoring 1'!J20","v":""}]
["Deviation of results from background levels",null,null,null,null,null,{"$f":"'Monitoring 1'!F22","v":""},null,null,null,null,null,"N/A"]
[]
["Surface Water Monitoring"]
["No. locations",null,null,null,null,null,{"$f":"'Monitoring 3'!F6","v":"No monitoring undertaken"},null,null,null,null,null,{"$f":"'Monitoring 3'!J6","v":"No change proposed"}]
["Locations",null,null,null,null,null,{"$f":"'Monitoring 3'!F7","v":""},null,null,null,null,null,{"$f":"'Monitoring 3'!J7","v":""}]
["Frequency",null,null,null,null,null,{"$f":"'Monitoring 3'!F8","v":""},null,null,null,null,null,{"$f":"'Monitoring 3'!J8","v":""}]
["Parameters:"]
["pH",null,null,null,null,null,{"$f":"'Monitoring 3'!F11","v":""},null,null,null,null,null,{"$f":"'Monitoring 3'!J11","v":""}]
["Electrical Conductivity",null,null,null,null,null,{"$f":"'Monitoring 3'!F12","v":""},null,null,null,null,null,{"$f":"'Monitoring 3'!J12","v":""}]
["Ammonia",null,null,null,null,null,{"$f":"'Monitoring 3'!F13","v":""},null,null,null,null,null,{"$f":"'Monitoring 3'!J13","v":""}]
["Nitrate",null,null,null,null,null,{"$f":"'Monitoring 3'!F14","v":""},null,null,null,null,null,{"$f":"'Monitoring 3'!J14","v":""}]
["Total Organic Carbon",null,null,null,null,null,{"$f":"'Monitoring 3'!F15","v":""},null,null,null,null,null,{"$f":"'Monitoring 3'!J15","v":""}]
["Alkalinity",null,null,null,null,null,{"$f":"'Monitoring 3'!F16","v":""},null,null,null,null,null,{"$f":"'Monitoring 3'!J16","v":""}]
["Iron",null,null,null,null,null,{"$f":"'Monitoring 3'!F17","v":""},null,null,null,null,null,{"$f":"'Monitoring 3'!J17","v":""}]
["Pesticides",null,null,null,null,null,{"$f":"'Monitoring 3'!F18","v":""},null,null,null,null,null,{"$f":"'Monitoring 3'!J18","v":""}]
["Others",null,null,null,null,null,{"$f":"'Monitoring 3'!F19","v":""},null,null,null,null,null,{"$f":"'Monitoring 3'!J19","v":""}]
["Deviation of results from background levels",null,null,null,null,null,{"$f":"'Monitoring 3'!F21","v":""},null,null,null,null,null,"N/A"]
[]
["Leachate Monitoring"]
["Frequency",null,null,null,null,null,{"$f":"'Monitoring 2'!F6","v":"No monitoring undertaken"},null,null,null,null,null,{"$f":"'Monitoring 2'!J6","v":"No change proposed"}]
["Parameters:"]
["pH",null,null,null,null,null,{"$f":"'Monitoring 2'!F9","v":""},null,null,null,null,null,{"$f":"'Monitoring 2'!J9","v":""}]
["Electrical Conductivity",null,null,null,null,null,{"$f":"'Monitoring 2'!F10","v":""},null,null,null,null,null,{"$f":"'Monitoring 2'!J10","v":""}]
["Ammonia",null,null,null,null,null,{"$f":"'Monitoring 2'!F11","v":""},null,null,null,null,null,{"$f":"'Monitoring 2'!J11","v":""}]
["Nitrate",null,null,null,null,null,{"$f":"'Monitoring 2'!F12","v":""},null,null,null,null,null,{"$f":"'Monitoring 2'!J12","v":""}]
["Total Organic Carbon",null,null,null,null,null,{"$f":"'Monitoring 2'!F13","v":""},null,null,null,null,null,{"$f":"'Monitoring 2'!J13","v":""}]
["Alkalinity",null,null,null,null,null,{"$f":"'Monitoring 2'!F14","v":""},null,null,null,null,null,{"$f":"'Monitoring 2'!J14","v":""}]
["Iron",null,null,null,null,null,{"$f":"'Monitoring 2'!F15","v":""},null,null,null,null,null,{"$f":"'Monitoring 2'!J15","v":""}]
["Pesticides",null,null,null,null,null,{"$f":"'Monitoring 2'!F16","v":""},null,null,null,null,null,{"$f":"'Monitoring 2'!J16","v":""}]
["Others",null,null,null,null,null,{"$f":"'Monitoring 2'!F17","v":""},null,null,null,null,null,{"$f":"'Monitoring 2'!J17","v":""}]
["Deviation of results from historic levels",null,null,null,null,null,{"$f":"'Monitoring 2'!F19","v":""},null,null,null,null,null,"N/A"]
[]
["Dust Monitoring"]
["No. locations",null,null,null,null,null,{"$f":"'Monitoring 2'!F24","v":"No monitoring undertaken"},null,null,null,null,null,{"$f":"'Monitoring 2'!J24","v":"No change proposed"}]
["Locations",null,null,null,null,null,{"$f":"'Monitoring 2'!F25","v":""},null,null,null,null,null,{"$f":"'Monitoring 2'!J25","v":""}]
["Frequency",null,null,null,null,null,{"$f":"'Monitoring 2'!F26","v":""},null,null,null,null,null,{"$f":"'Monitoring 2'!J26","v":""}]
["Method",null,null,null,null,null,{"$f":"'Monitoring 2'!F27","v":""},null,null,null,null,null,{"$f":"'Monitoring 2'!J27","v":""}]
["Deviation of results from background levels",null,null,null,null,null,{"$f":"'Monitoring 2'!F29","v":""},null,null,null,null,null,"N/A"]
[]
["Noise Monitoring"]
["No. locations",null,null,null,null,null,{"$f":"'Monitoring 1'!F27","v":"No monitoring undertaken"},null,null,null,null,null,{"$f":"'Monitoring 1'!J27","v":"No change proposed"}]
["Locations",null,null,null,null,null,{"$f":"'Monitoring 1'!F28","v":""},null,null,null,null,null,{"$f":"'Monitoring 1'!J28","v":""}]
["Frequency",null,null,null,null,null,{"$f":"'Monitoring 1'!F29","v":""},null,null,null,null,null,{"$f":"'Monitoring 1'!J29","v":""}]
["Method",null,null,null,null,null,{"$f":"'Monitoring 1'!F30","v":""},null,null,null,null,null,{"$f":"'Monitoring 1'!J30","v":""}]
["Comparison of results to background levels",null,null,null,null,null,{"$f":"'Monitoring 1'!F32","v":""},null,null,null,null,null,"N/A"]
[]
["Landfill Gas Monitoring"]
["Frequency",null,null,null,null,null,{"$f":"'Monitoring 3'!G29","v":"No monitoring undertaken"},null,null,null,null,null,{"$f":"'Monitoring 3'!J29","v":"No change proposed"}]
["Type:"]
["Buildings",null,null,null,null,null,{"$f":"'Monitoring 3'!G28","v":""},null,null,null,null,null,{"$f":"'Monitoring 3'!J28","v":""}]
["Subsurface",null,null,null,null,null,{"$f":"'Monitoring 3'!H28","v":""},null,null,null,null,null,{"$f":"'Monitoring 3'!K28","v":""}]
["Surface",null,null,null,null,null,{"$f":"'Monitoring 3'!I28","v":""},null,null,null,null,null,{"$f":"'Monitoring 3'!L28","v":""}]
["Typical levels measured",null,null,null,null,null,{"$f":"'Monitoring 3'!G31","v":""},null,null,null,null,null,"N/A"]
[]
[]
["E-RAMP Risk Profile Report (cont)"]
[]
["Staff Training and Regulation"]
[]
[null,null,null,null,null,null,"Existing",null,null,null,null,null,"Proposed"]
[]
["Training of on-site operators:",null,null,null,null,null,{"$f":"IF(Data!$A$12=2,\"Not applicable\",\"\")","v":""},null,null,null,null,null,{"$f":"IF('Mitigation Data'!$C$4=TRUE,\"Not applicable\",\"\")","v":""}]
["On-the-job",null,null,null,null,null,{"$f":"IF(Data!A12=2,\"\",IF(Data!$AX$4=TRUE,\"Yes\",\"No\"))","v":"No"},null,null,null,null,null,{"$f":"IF('Mitigation Data'!C4=TRUE,\"\",IF('Mitigation Data'!$AX$4=TRUE,\"Yes\",\"No\"))","v":"No"}]
["Site-specific operating procedures",null,null,null,null,null,{"$f":"IF(Data!A12=2,\"\",IF(Data!$AX$5=TRUE,\"Yes\",\"No\"))","v":"No"},null,null,null,null,null,{"$f":"IF('Mitigation Data'!C4=TRUE,\"\",IF('Mitigation Data'!$AX$5=TRUE,\"Yes\",\"No\"))","v":"No"}]
["Earthmoving",null,null,null,null,null,{"$f":"IF(Data!A12=2,\"\",IF(Data!$AX$6=TRUE,\"Yes\",\"No\"))","v":"No"},null,null,null,null,null,{"$f":"IF('Mitigation Data'!C4=TRUE,\"\",IF('Mitigation Data'!$AX$6=TRUE,\"Yes\",\"No\"))","v":"No"}]
["Waste facility operations",null,null,null,null,null,{"$f":"IF(Data!A12=2,\"\",IF(Data!$AX$7=TRUE,\"Yes\",\"No\"))","v":"No"},null,null,null,null,null,{"$f":"IF('Mitigation Data'!C4=TRUE,\"\",IF('Mitigation Data'!$AX$7=TRUE,\"Yes\",\"No\"))","v":"No"}]
["Pesticides",null,null,null,null,null,{"$f":"IF(Data!A12=2,\"\",IF(Data!$AX$8=TRUE,\"Yes\",\"No\"))","v":"No"},null,null,null,null,null,{"$f":"IF('Mitigation Data'!C4=TRUE,\"\",IF('Mitigation Data'!$AX$8=TRUE,\"Yes\",\"No\"))","v":"No"}]
["Fire fighting",null,null,null,null,null,{"$f":"IF(Data!A12=2,\"\",IF(Data!$AX$9=TRUE,\"Yes\",\"No\"))","v":"No"},null,null,null,null,null,{"$f":"IF('Mitigation Data'!C4=TRUE,\"\",IF('Mitigation Data'!$AX$9=TRUE,\"Yes\",\"No\"))","v":"No"}]
["Management of hazardous substances",null,null,null,null,null,{"$f":"IF(Data!A12=2,\"\",IF(Data!$AX$10=TRUE,\"Yes\",\"No\"))","v":"No"},null,null,null,null,null,{"$f":"IF('Mitigation Data'!C4=TRUE,\"\",IF('Mitigation Data'!$AX$10=TRUE,\"Yes\",\"No\"))","v":"No"}]
["Environmental monitoring",null,null,null,null,null,{"$f":"IF(Data!A12=2,\"\",IF(Data!$AX$11=TRUE,\"Yes\",\"No\"))","v":"No"},null,null,null,null,null,{"$f":"IF('Mitigation Data'!C4=TRUE,\"\",IF('Mitigation Data'!$AX$11=TRUE,\"Yes\",\"No\"))","v":"No"}]
["Environmental management",null,null,null,null,null,{"$f":"IF(Data!A12=2,\"\",IF(Data!$AX$12=TRUE,\"Yes\",\"No\"))","v":"No"},null,null,null,null,null,{"$f":"IF('Mitigation Data'!C4=TRUE,\"\",IF('Mitigation Data'!$AX$12=TRUE,\"Yes\",\"No\"))","v":"No"}]
["Other",null,null,null,null,null,{"$f":"IF(Data!A12=2,\"\",IF(Data!$AX$13=TRUE,\"Yes\",\"No\"))","v":"No"},null,null,null,null,null,{"$f":"IF('Mitigation Data'!C4=TRUE,\"\",IF('Mitigation Data'!$AX$13=TRUE,\"Yes\",\"No\"))","v":"No"}]
[]
["\"Authorised officers\":",null,null,null,null,null,{"$f":"IF(Data!$A$12=2,\"Not applicable\",\"\")","v":""},null,null,null,null,null,{"$f":"IF('Mitigation Data'!$C$4=TRUE,\"Not applicable\",\"\")","v":""}]
["Working at the facility",null,null,null,null,null,{"$f":"IF(Data!A12=2,\"\",IF(Data!$AX$16=1,\"Yes\",\"No\"))","v":"No"},null,null,null,null,null,{"$f":"IF('Mitigation Data'!C4=TRUE,\"\",IF('Mitigation Data'!$AX$16=1,\"Yes\",\"No\"))","v":"No"}]
["Otherwise employed by operator",null,null,null,null,null,{"$f":"IF(Data!A12=2,\"\",IF(Data!$AX$17=1,\"Yes\",\"No\"))","v":"No"},null,null,null,null,null,{"$f":"IF('Mitigation Data'!C4=TRUE,\"\",IF('Mitigation Data'!$AX$17=1,\"Yes\",\"No\"))","v":"No"}]
[]
["Regulatory enforcement activities in past 12 months:",null,null,null,null,null,{"$f":"IF(Data!$A$12=2,\"Not applicable\",\"\")","v":""},null,null,null,null,null,{"$f":"IF('Mitigation Data'!$C$4=TRUE,\"Not applicable\",\"\")","v":""}]
["Verbal warning",null,null,null,null,null,{"$f":"IF(Data!A12=2,\"\",IF(Data!$AX$20=TRUE,\"Yes\",\"No\"))","v":"No"},null,null,null,null,null,{"$f":"IF('Mitigation Data'!C4=TRUE,\"\",IF('Mitigation Data'!$AX$20=TRUE,\"Yes\",\"No\"))","v":"No"}]
["Warning letters",null,null,null,null,null,{"$f":"IF(Data!A12=2,\"\",IF(Data!$AX$21=TRUE,\"Yes\",\"No\"))","v":"No"},null,null,null,null,null,{"$f":"IF('Mitigation Data'!C4=TRUE,\"\",IF('Mitigation Data'!$AX$21=TRUE,\"Yes\",\"No\"))","v":"No"}]
["Notices / orders",null,null,null,null,null,{"$f":"IF(Data!A12=2,\"\",IF(Data!$AX$22=TRUE,\"Yes\",\"No\"))","v":"No"},null,null,null,null,null,{"$f":"IF('Mitigation Data'!C4=TRUE,\"\",IF('Mitigation Data'!$AX$22=TRUE,\"Yes\",\"No\"))","v":"No"}]
["Penalty infringement notice",null,null,null,null,null,{"$f":"IF(Data!A12=2,\"\",IF(Data!$AX$23=TRUE,\"Yes\",\"No\"))","v":"No"},null,null,null,null,null,{"$f":"IF('Mitigation Data'!C4=TRUE,\"\",IF('Mitigation Data'!$AX$23=TRUE,\"Yes\",\"No\"))","v":"No"}]
["Prosecution",null,null,null,null,null,{"$f":"IF(Data!A12=2,\"\",IF(Data!$AX$24=TRUE,\"Yes\",\"No\"))","v":"No"},null,null,null,null,null,{"$f":"IF('Mitigation Data'!C4=TRUE,\"\",IF('Mitigation Data'!$AX$24=TRUE,\"Yes\",\"No\"))","v":"No"}]
[]
["Community Information, Education and Awareness"]
[]
[null,null,null,null,null,null,"Existing",null,null,null,null,null,"Proposed"]
[]
["Directional signage to facility",null,null,null,null,null,{"$f":"IF(Data!A12=2,\"Not applicable\",IF(Data!$AA$3=1,\"Yes\",\"No\"))","v":"Yes"},null,null,null,null,null,{"$f":"IF('Mitigation Data'!C4=TRUE,\"Not applicable\",IF('Mitigation Data'!$AA$3=1,\"Yes\",\"No\"))","v":"Yes"}]
[]
["Signs at facility:",null,null,null,null,null,{"$f":"IF(Data!$A$12=2,\"Not applicable\",\"\")","v":""},null,null,null,null,null,{"$f":"IF('Mitigation Data'!$C$4=TRUE,\"Not applicable\",\"\")","v":""}]
["Days / hours open to the public",null,null,null,null,null,{"$f":"IF(Data!A12=2,\"\",IF(Data!$AA$6=TRUE,\"Yes\",\"No\"))","v":"No"},null,null,null,null,null,{"$f":"IF('Mitigation Data'!C4=TRUE,\"\",IF('Mitigation Data'!$AA$6=TRUE,\"Yes\",\"No\"))","v":"No"}]
["Waste permitted / not permitted",null,null,null,null,null,{"$f":"IF(Data!A12=2,\"\",IF(Data!$AA$7=TRUE,\"Yes\",\"No\"))","v":"No"},null,null,null,null,null,{"$f":"IF('Mitigation Data'!C4=TRUE,\"\",IF('Mitigation Data'!$AA$7=TRUE,\"Yes\",\"No\"))","v":"No"}]
["Fees / charges",null,null,null,null,null,{"$f":"IF(Data!A12=2,\"\",IF(Data!$AA$8=TRUE,\"Yes\",\"No\"))","v":"No"},null,null,null,null,null,{"$f":"IF('Mitigation Data'!C4=TRUE,\"\",IF('Mitigation Data'!$AA$8=TRUE,\"Yes\",\"No\"))","v":"No"}]
["Prohibition of lighting fires",null,null,null,null,null,{"$f":"IF(Data!A12=2,\"\",IF(Data!$AA$9=TRUE,\"Yes\",\"No\"))","v":"No"},null,null,null,null,null,{"$f":"IF('Mitigation Data'!C4=TRUE,\"\",IF('Mitigation Data'!$AA$9=TRUE,\"Yes\",\"No\"))","v":"No"}]
["Trespassing prohibited",null,null,null,null,null,{"$f":"IF(Data!A12=2,\"\",IF(Data!$AA$10=TRUE,\"Yes\",\"No\"))","v":"No"},null,null,null,null,null,{"$f":"IF('Mitigation Data'!C4=TRUE,\"\",IF('Mitigation Data'!$AA$10=TRUE,\"Yes\",\"No\"))","v":"No"}]
["Facility operator contact telephone",null,null,null,null,null,{"$f":"IF(Data!A12=2,\"\",IF(Data!$AA$11=TRUE,\"Yes\",\"No\"))","v":"No"},null,null,null,null,null,{"$f":"IF('Mitigation Data'!C4=TRUE,\"\",IF('Mitigation Data'!$AA$11=TRUE,\"Yes\",\"No\"))","v":"No"}]
["Waste drop-off locations",null,null,null,null,null,{"$f":"IF(Data!A12=2,\"\",IF(Data!$AA$12=TRUE,\"Yes\",\"No\"))","v":"No"},null,null,null,null,null,{"$f":"IF('Mitigation Data'!C4=TRUE,\"\",IF('Mitigation Data'!$AA$12=TRUE,\"Yes\",\"No\"))","v":"No"}]
["Offences and penalties for non-compliance",null,null,null,null,null,{"$f":"IF(Data!A12=2,\"\",IF(Data!$AA$13=TRUE,\"Yes\",\"No\"))","v":"No"},null,null,null,null,null,{"$f":"IF('Mitigation Data'!C4=TRUE,\"\",IF('Mitigation Data'!$AA$13=TRUE,\"Yes\",\"No\"))","v":"No"}]
["Conditions of waste receipt",null,null,null,null,null,{"$f":"IF(Data!A12=2,\"\",IF(Data!$AA$14=TRUE,\"Yes\",\"No\"))","v":"No"},null,null,null,null,null,{"$f":"IF('Mitigation Data'!C4=TRUE,\"\",IF('Mitigation Data'!$AA$14=TRUE,\"Yes\",\"No\"))","v":"No"}]
["General environmental information",null,null,null,null,null,{"$f":"IF(Data!A12=2,\"\",IF(Data!$AA$15=TRUE,\"Yes\",\"No\"))","v":"No"},null,null,null,null,null,{"$f":"IF('Mitigation Data'!C4=TRUE,\"\",IF('Mitigation Data'!$AA$15=TRUE,\"Yes\",\"No\"))","v":"No"}]
[]
["Communication with facility users:",null,null,null,null,null,{"$f":"IF(Data!$A$12=2,\"Not applicable\",\"\")","v":""},null,null,null,null,null,{"$f":"IF('Mitigation Data'!$C$4=TRUE,\"Not applicable\",\"\")","v":""}]
["Directly by staff",null,null,null,null,null,{"$f":"IF(Data!A12=2,\"\",IF(Data!$AA$18=TRUE,\"Yes\",\"No\"))","v":"No"},null,null,null,null,null,{"$f":"IF('Mitigation Data'!C4=TRUE,\"\",IF('Mitigation Data'!$AA$18=TRUE,\"Yes\",\"No\"))","v":"No"}]
["Operator produced printed information",null,null,null,null,null,{"$f":"IF(Data!A12=2,\"\",IF(Data!$AA$19=TRUE,\"Yes\",\"No\"))","v":"No"},null,null,null,null,null,{"$f":"IF('Mitigation Data'!C4=TRUE,\"\",IF('Mitigation Data'!$AA$19=TRUE,\"Yes\",\"No\"))","v":"No"}]
["Internet",null,null,null,null,null,{"$f":"IF(Data!A12=2,\"\",IF(Data!$AA$20=TRUE,\"Yes\",\"No\"))","v":"No"},null,null,null,null,null,{"$f":"IF('Mitigation Data'!C4=TRUE,\"\",IF('Mitigation Data'!$AA$20=TRUE,\"Yes\",\"No\"))","v":"No"}]
["Media campaigns",null,null,null,null,null,{"$f":"IF(Data!A12=2,\"\",IF(Data!$AA$21=TRUE,\"Yes\",\"No\"))","v":"No"},null,null,null,null,null,{"$f":"IF('Mitigation Data'!C4=TRUE,\"\",IF('Mitigation Data'!$AA$21=TRUE,\"Yes\",\"No\"))","v":"No"}]
["Other methods",null,null,null,null,null,{"$f":"IF(Data!A12=2,\"\",IF(Data!$AA$22=TRUE,\"Yes\",\"No\"))","v":"No"},null,null,null,null,null,{"$f":"IF('Mitigation Data'!C4=TRUE,\"\",IF('Mitigation Data'!$AA$22=TRUE,\"Yes\",\"No\"))","v":"No"}]
[]
["Educational themes communicated:",null,null,null,null,null,{"$f":"IF(Data!$A$12=2,\"Not applicable\",\"\")","v":""},null,null,null,null,null,{"$f":"IF('Mitigation Data'!$C$4=TRUE,\"Not applicable\",\"\")","v":""}]
["General waste service information",null,null,null,null,null,{"$f":"IF(Data!A12=2,\"\",IF(Data!$AA$25=TRUE,\"Yes\",\"No\"))","v":"No"},null,null,null,null,null,{"$f":"IF('Mitigation Data'!C4=TRUE,\"\",IF('Mitigation Data'!$AA$25=TRUE,\"Yes\",\"No\"))","v":"No"}]
["Waste reduction / reuse / recycling",null,null,null,null,null,{"$f":"IF(Data!A12=2,\"\",IF(Data!$AA$26=TRUE,\"Yes\",\"No\"))","v":"No"},null,null,null,null,null,{"$f":"IF('Mitigation Data'!C4=TRUE,\"\",IF('Mitigation Data'!$AA$26=TRUE,\"Yes\",\"No\"))","v":"No"}]
["Management of asbestos",null,null,null,null,null,{"$f":"IF(Data!A12=2,\"\",IF(Data!$AA$27=TRUE,\"Yes\",\"No\"))","v":"No"},null,null,null,null,null,{"$f":"IF('Mitigation Data'!C4=TRUE,\"\",IF('Mitigation Data'!$AA$27=TRUE,\"Yes\",\"No\"))","v":"No"}]
["Management of hazardous / chemical waste",null,null,null,null,null,{"$f":"IF(Data!A12=2,\"\",IF(Data!$AA$28=TRUE,\"Yes\",\"No\"))","v":"No"},null,null,null,null,null,{"$f":"IF('Mitigation Data'!C4=TRUE,\"\",IF('Mitigation Data'!$AA$28=TRUE,\"Yes\",\"No\"))","v":"No"}]
["Illegal dumping",null,null,null,null,null,{"$f":"IF(Data!A12=2,\"\",IF(Data!$AA$29=TRUE,\"Yes\",\"No\"))","v":"No"},null,null,null,null,null,{"$f":"IF('Mitigation Data'!C4=TRUE,\"\",IF('Mitigation Data'!$AA$29=TRUE,\"Yes\",\"No\"))","v":"No"}]
["Other themes",null,null,null,null,null,{"$f":"IF(Data!A12=2,\"\",IF(Data!$AA$30=TRUE,\"Yes\",\"No\"))","v":"No"},null,null,null,null,null,{"$f":"IF('Mitigation Data'!C4=TRUE,\"\",IF('Mitigation Data'!$AA$30=TRUE,\"Yes\",\"No\"))","v":"No"}]
[]
["Facility Specific Information"]
[]
[null,null,null,null,null,null,"Existing",null,null,null,null,null,"Proposed"]
[]
["Landfill Specific",null,null,null,null,{"$f":"IF(Data!A12<>1,\"Not Applicable\", \"\")","v":""},null,null,null,null,null,null,{"$f":"IF(AND('Mitigation Data'!A10=1,'Mitigation Data'!A12=1),\"\",\"Not Applicable\")","v":""}]
["Wastes received:",null,null,null,null,{"$f":"IF(Data!A12<>1,\"\", \"Disposed\")","v":"Disposed"},null,{"$f":"IF(Data!A12<>1,\"\",\"Qty disposed (t/year)\")","v":"Qty disposed (t/year)"},null,null,null,null,{"$f":"IF(AND('Mitigation Data'!$A$10=1,'Mitigation Data'!$A$12=1),\"Disposed\",\"\")","v":"Disposed"},null,{"$f":"IF(AND('Mitigation Data'!$A$10=1,'Mitigation Data'!$A$12=1),\"Qty disposed (t/year)\",\"\")","v":"Qty disposed (t/year)"}]
["Asbestos",null,null,null,null,{"$f":"IF(Data!A12<>1,\"\",IF(Data!$AL$4=TRUE,\"Yes\",\"No\"))","v":"No"},null,{"$f":"IF(Data!A12<>1,\"\",IF($F$409=\"No\",\"N/A\",LOOKUP(Data!$AM$4,DR!$B$88:$B$92,DR!$C$88:$C$92)))","v":"N/A"},null,null,null,null,{"$f":"IF(AND('Mitigation Data'!$A$10=1,'Mitigation Data'!$A$12=1),IF('Mitigation Data'!$AL$4=TRUE,\"Yes\",\"No\"),\"\")","v":"No"},null,{"$f":"IF(AND('Mitigation Data'!A10=1,'Mitigation Data'!A12=1),IF($M$410=\"No\",\"N/A\",LOOKUP('Mitigation Data'!$AM$4,DRm!$B$88:$B$92,DRm!$C$88:$C$92)),\"\")","v":"N/A"}]
["Clinical / pharmaceutical waste",null,null,null,null,{"$f":"IF(Data!A12<>1,\"\",IF(Data!$AL$5=TRUE,\"Yes\",\"No\"))","v":"No"},null,{"$f":"IF(Data!A12<>1,\"\",IF($F$410=\"No\",\"N/A\",LOOKUP(Data!$AM$4,DR!$B$88:$B$92,DR!$C$88:$C$92)))","v":"N/A"},null,null,null,null,{"$f":"IF(AND('Mitigation Data'!$A$10=1,'Mitigation Data'!$A$12=1),IF('Mitigation Data'!$AL$5=TRUE,\"Yes\",\"No\"),\"\")","v":"No"},null,{"$f":"IF(AND('Mitigation Data'!A10=1,'Mitigation Data'!A12=1),IF($M$411=\"No\",\"N/A\",LOOKUP('Mitigation Data'!$AM$4,DRm!$B$88:$B$92,DRm!$C$88:$C$92)),\"\")","v":"N/A"}]
["Animal carcasses / parts",null,null,null,null,{"$f":"IF(Data!A12<>1,\"\",IF(Data!$AL$6=TRUE,\"Yes\",\"No\"))","v":"No"},null,{"$f":"IF(Data!A12<>1,\"\",IF($F$411=\"No\",\"N/A\",LOOKUP(Data!$AM$4,DR!$B$88:$B$92,DR!$C$88:$C$92)))","v":"N/A"},null,null,null,null,{"$f":"IF(AND('Mitigation Data'!$A$10=1,'Mitigation Data'!$A$12=1),IF('Mitigation Data'!$AL$6=TRUE,\"Yes\",\"No\"),\"\")","v":"No"},null,{"$f":"IF(AND('Mitigation Data'!A10=1,'Mitigation Data'!A12=1),IF($M$409=\"No\",\"N/A\",LOOKUP('Mitigation Data'!$AM$4,DRm!$B$88:$B$92,DRm!$C$88:$C$92)),\"\")","v":"N/A"}]
["Biosolids",null,null,null,null,{"$f":"IF(Data!A12<>1,\"\",IF(Data!$AL$7=TRUE,\"Yes\",\"No\"))","v":"No"},null,{"$f":"IF(Data!A12<>1,\"\",IF($F$412=\"No\",\"N/A\",LOOKUP(Data!$AM$4,DR!$B$88:$B$92,DR!$C$88:$C$92)))","v":"N/A"},null,null,null,null,{"$f":"IF(AND('Mitigation Data'!$A$10=1,'Mitigation Data'!$A$12=1),IF('Mitigation Data'!$AL$7=TRUE,\"Yes\",\"No\"),\"\")","v":"No"},null,{"$f":"IF(AND('Mitigation Data'!A10=1,'Mitigation Data'!A12=1),IF($M$412=\"No\",\"N/A\",LOOKUP('Mitigation Data'!$AM$4,DRm!$B$88:$B$92,DRm!$C$88:$C$92)),\"\")","v":"N/A"}]
["Contaminated soil",null,null,null,null,{"$f":"IF(Data!A12<>1,\"\",IF(Data!$AL$8=TRUE,\"Yes\",\"No\"))","v":"No"},null,{"$f":"IF(Data!A12<>1,\"\",IF($F$413=\"No\",\"N/A\",LOOKUP(Data!$AM$4,DR!$B$88:$B$92,DR!$C$88:$C$92)))","v":"N/A"},null,null,null,null,{"$f":"IF(AND('Mitigation Data'!$A$10=1,'Mitigation Data'!$A$12=1),IF('Mitigation Data'!$AL$8=TRUE,\"Yes\",\"No\"),\"\")","v":"No"},null,{"$f":"IF(AND('Mitigation Data'!A10=1,'Mitigation Data'!A12=1),IF($M$413=\"No\",\"N/A\",LOOKUP('Mitigation Data'!$AM$4,DRm!$B$88:$B$92,DRm!$C$88:$C$92)),\"\")","v":"N/A"}]
[]
["Landfilling method",null,null,null,null,{"$f":"IF(Data!A12<>1,\"\",LOOKUP(Data!$AL$10,Data!$AJ$11:$AJ$15,Data!$AK$11:$AK$15))","v":"Above ground fill / disposal"},null,null,null,null,null,null,{"$f":"IF(AND('Mitigation Data'!$A$10=1,'Mitigation Data'!$A$12=1),LOOKUP('Mitigation Data'!$AL$10,'Mitigation Data'!$AJ$11:$AJ$15,'Mitigation Data'!$AK$11:$AK$15),\"\")","v":"No change proposed"}]
["No. active landfill areas",null,null,null,null,{"$f":"IF(Data!A12<>1,\"\",LOOKUP(Data!$AL$17,Data!$AJ$18:$AJ$22,Data!$AK$18:$AK$22))","v":"More than 4"},null,null,null,null,null,null,{"$f":"IF(AND('Mitigation Data'!$A$10=1,'Mitigation Data'!$A$12=1),LOOKUP('Mitigation Data'!$AL$17,'Mitigation Data'!$AJ$18:$AJ$22,'Mitigation Data'!$AK$18:$AK$22),\"\")","v":"No change proposed"}]
["Size of active areas (m2)",null,null,null,null,{"$f":"IF(Data!A12<>1,\"\",LOOKUP(Data!$AL$68,Data!AJ69:AJ74,Data!AK69:AK74))","v":"100 - 250"},null,null,null,null,null,null,{"$f":"IF(AND('Mitigation Data'!$A$10=1,'Mitigation Data'!$A$12=1),LOOKUP('Mitigation Data'!AL68,'Mitigation Data'!AJ69:AJ74,'Mitigation Data'!AK69:AK74),\"\")","v":"No change proposed"}]
["Waste compaction method",null,null,null,null,{"$f":"IF(Data!A12<>1,\"\",LOOKUP(Data!$AL$24,Data!$AJ$25:$AJ$27,Data!$AK$25:$AK$27))","v":"None"},null,null,null,null,null,null,{"$f":"IF(AND('Mitigation Data'!$A$10=1,'Mitigation Data'!$A$12=1),LOOKUP('Mitigation Data'!$AL$24,'Mitigation Data'!$AJ$25:$AJ$27,'Mitigation Data'!$AK$25:$AK$27),\"\")","v":"No change proposed"}]
["Waste covering method",null,null,null,null,{"$f":"IF(Data!A12<>1,\"\",LOOKUP(Data!$AL$29,Data!$AJ$30:$AJ$34,Data!$AK$30:$AK$34))","v":"On-site material"},null,null,null,null,null,null,{"$f":"IF(AND('Mitigation Data'!$A$10=1,'Mitigation Data'!$A$12=1),LOOKUP('Mitigation Data'!$AL$29,'Mitigation Data'!$AJ$30:$AJ$34,'Mitigation Data'!$AK$30:$AK$34),\"\")","v":"No change proposed"}]
["Frequency of waste covering",null,null,null,null,{"$f":"IF(Data!A12<>1,\"\",LOOKUP(Data!$AL$36,Data!$AJ$37:$AJ$41,Data!$AK$37:$AK$41))","v":"Very infrequently to never (eg. annually or more)"},null,null,null,null,null,null,{"$f":"IF(AND('Mitigation Data'!$A$10=1,'Mitigation Data'!$A$12=1),LOOKUP('Mitigation Data'!$AL$36,'Mitigation Data'!$AJ$37:$AJ$41,'Mitigation Data'!$AK$37:$AK$41),\"\")","v":"No change proposed"}]
["Landfill base preparation method",null,null,null,null,{"$f":"IF(Data!A12<>1,\"\",LOOKUP(Data!$AL$45,Data!$AJ$46:$AJ$50,Data!$AK$46:$AK$50))","v":"No preparation"},null,null,null,null,null,null,{"$f":"IF(AND('Mitigation Data'!$A$10=1,'Mitigation Data'!$A$12=1),LOOKUP('Mitigation Data'!$AL$45,'Mitigation Data'!$AJ$46:$AJ$50,'Mitigation Data'!$AK$46:$AK$50),\"\")","v":"No change proposed"}]
["Landfill completion method",null,null,null,null,{"$f":"IF(Data!A12<>1,\"\",LOOKUP(Data!$AL$52,Data!$AJ$53:$AJ$57,Data!$AK$53:$AK$57))","v":"On-site material"},null,null,null,null,null,null,{"$f":"IF(AND('Mitigation Data'!$A$10=1,'Mitigation Data'!$A$12=1),LOOKUP('Mitigation Data'!$AL$52,'Mitigation Data'!$AJ$53:$AJ$57,'Mitigation Data'!$AK$53:$AK$57),\"\")","v":"No change proposed"}]
["Capture of leachate",null,null,null,null,{"$f":"IF(Data!A12<>1,\"\",IF(Data!$AL$59=1,\"Yes\",\"No\"))","v":"No"},null,null,null,null,null,null,{"$f":"IF(AND('Mitigation Data'!$A$10=1,'Mitigation Data'!$A$12=1),IF('Mitigation Data'!$AL$59=1,\"Yes\",\"No\"),\"\")","v":"No"}]
["Management of leachate",null,null,null,null,{"$f":"IF(Data!A12<>1,\"\",IF($F$423=\"No\",\"N/A\",LOOKUP(Data!$AL$61,Data!$AJ$62:$AJ$66,Data!$AK$62:$AK$66)))","v":"N/A"},null,null,null,null,null,null,{"$f":"IF(AND('Mitigation Data'!$A$10=1,'Mitigation Data'!$A$12=1),IF($M$423=\"No\",\"N/A\",LOOKUP('Mitigation Data'!$AL$61,'Mitigation Data'!$AJ$62:$AJ$66,'Mitigation Data'!$AK$62:$AK$66)),\"\")","v":"N/A"}]
["Management of landfill gas",null,null,null,null,{"$f":"IF(Data!A12<>1,\"\",LOOKUP(Data!AL76,Data!AJ77:AJ81,Data!AK77:AK81))","v":"Passive venting"},null,null,null,null,null,null,{"$f":"IF(AND('Mitigation Data'!$A$10=1,'Mitigation Data'!$A$12=1),LOOKUP('Mitigation Data'!AL76,'Mitigation Data'!AJ77:AJ81,'Mitigation Data'!AK77:AK81),\"\")","v":"No change proposed"}]
["Filling plan",null,null,null,null,{"$f":"IF(Data!A12<>1,\"\",IF(Data!$AL$43=1,\"Yes\",\"No\"))","v":"No"},null,null,null,null,null,null,{"$f":"IF(AND('Mitigation Data'!$A$10=1,'Mitigation Data'!$A$12=1),IF('Mitigation Data'!AK448=1,\"Yes\",\"No\"),\"\")","v":"No"}]
[]
["Transfer Station Specific",null,null,null,null,{"$f":"IF(Data!$A$12<>3,\"Not Applicable\", \"\")","v":"Not Applicable"},null,null,null,null,null,null,{"$f":"IF(OR('Mitigation Data'!$A$10=3,(AND('Mitigation Data'!$A$10=1,'Mitigation Data'!$A$12=3))),\"\",\"Not Applicable\")","v":"Not Applicable"}]
["Permanent transfer station",null,null,null,null,{"$f":"IF(Data!$A$12<>3,\"\",IF(Data!$AQ$3=1,\"Yes\",\"No\"))","v":""},null,null,null,null,null,null,{"$f":"IF(OR('Mitigation Data'!$A$10=3,(AND('Mitigation Data'!$A$10=1,'Mitigation Data'!$A$12=3))),IF('Mitigation Data'!$AQ$3=1,\"Yes\",\"No\"),\"\")","v":""}]
["Waste transfer method",null,null,null,null,{"$f":"IF(Data!$A$12<>3,\"\",LOOKUP(Data!$AQ$5,Data!$AO$6:$AO$8,Data!$AP$7:$AP$9))","v":""},null,null,null,null,null,null,{"$f":"IF(OR('Mitigation Data'!$A$10=3,(AND('Mitigation Data'!$A$10=1,'Mitigation Data'!$A$12=3))),LOOKUP('Mitigation Data'!$AQ$5,'Mitigation Data'!$AO$6:$AO$9,'Mitigation Data'!$AP$6:$AP$9),\"\")","v":""}]
["Construction method",null,null,null,null,{"$f":"IF(Data!$A$12<>3,\"\",LOOKUP(Data!$AQ$10,Data!$AO$11:$AO$13,Data!$AP$11:$AP$13))","v":""},null,null,null,null,null,null,{"$f":"IF(OR('Mitigation Data'!$A$10=3,(AND('Mitigation Data'!$A$10=1,'Mitigation Data'!$A$12=3))),LOOKUP('Mitigation Data'!$AQ$10,'Mitigation Data'!$AO$11:$AO$13,'Mitigation Data'!$AP$11:$AP$13),\"\")","v":""}]
["Transfer station covered",null,null,null,null,{"$f":"IF(Data!$A$12<>3,\"\",IF(Data!$AQ$15=1,\"Yes\",\"No\"))","v":""},null,null,null,null,null,null,{"$f":"IF(OR('Mitigation Data'!$A$10=3,(AND('Mitigation Data'!$A$10=1,'Mitigation Data'!$A$12=3))),IF('Mitigation Data'!$AQ$15=1,\"Yes\",\"No\"),\"\")","v":""}]
["Lids on bins / bunkers",null,null,null,null,{"$f":"IF(Data!$A$12<>3,\"\",IF(Data!$AQ$17=1,\"Yes\",\"No\"))","v":""},null,null,null,null,null,null,{"$f":"IF(OR('Mitigation Data'!$A$10=3,(AND('Mitigation Data'!$A$10=1,'Mitigation Data'!$A$12=3))),IF('Mitigation Data'!$AQ$17=1,\"Yes\",\"No\"),\"\")","v":""}]
["On-site processing / sorting",null,null,null,null,{"$f":"IF(Data!$A$12<>3,\"\",IF(Data!$AQ$19=1,\"Yes\",\"No\"))","v":""},null,null,null,null,null,null,{"$f":"IF(OR('Mitigation Data'!$A$10=3,(AND('Mitigation Data'!$A$10=1,'Mitigation Data'!$A$12=3))),IF('Mitigation Data'!$AQ$19=1,\"Yes\",\"No\"),\"\")","v":""}]
["Disposal destination",null,null,null,null,{"$f":"IF(Data!$A$12<>3,\"\",LOOKUP(Data!$AQ$21,Data!$AO$22:$AO$23,Data!$AP$22:$AP$23))","v":""},null,null,null,null,null,null,{"$f":"IF(OR('Mitigation Data'!$A$10=3,(AND('Mitigation Data'!$A$10=1,'Mitigation Data'!$A$12=3))),LOOKUP('Mitigation Data'!$AQ$21,'Mitigation Data'!$AO$22:$AO$23,'Mitigation Data'!$AP$22:$AP$23),\"\")","v":""}]
[]
["Closed Landfill Specific",null,null,null,null,{"$f":"IF(OR('Mitigation Data'!$A$10=2,(AND('Mitigation Data'!$A$10=3,'Mitigation Data'!$AQ$25=1))),\"\",\"Not Applicable\")","v":"Not Applicable"},null,null,null,null,null,null,{"$f":"IF('Mitigation Data'!C9=TRUE,\"\", \"Not Applicable\")","v":"Not Applicable"}]
["No. years in operation",null,null,null,null,{"$f":"IF(OR('Mitigation Data'!$A$10=2,(AND('Mitigation Data'!$A$10=3,'Mitigation Data'!$AQ$25=1))),LOOKUP(Data!$AU$3,Data!$AS$4:$AS$8,Data!$AT$4:$AT$8),\"\")","v":""},null,null,null,null,null,null,{"$f":"IF('Mitigation Data'!C9=TRUE, LOOKUP('Mitigation Data'!$AU$3,'Mitigation Data'!$AS$4:$AS$8,'Mitigation Data'!$AT$4:$AT$8),\"\")","v":""}]
["No. years ago closed",null,null,null,null,{"$f":"IF(OR('Mitigation Data'!$A$10=2,(AND('Mitigation Data'!$A$10=3,'Mitigation Data'!$AQ$25=1))),LOOKUP(Data!$AU$10,Data!$AS$11:$AS$15,Data!$AT$11:$AT$15),\"\")","v":""},null,null,null,null,null,null,{"$f":"IF('Mitigation Data'!C9=TRUE, IF('Mitigation Data'!C6=TRUE, \"<5\",LOOKUP('Mitigation Data'!$AU$10,'Mitigation Data'!$AS$11:$AS$15,'Mitigation Data'!$AT$11:$AT$15)),\"\")","v":""}]
["Amount  of waste received in last year",null,null,null,null,{"$f":"IF(OR('Mitigation Data'!$A$10=2,(AND('Mitigation Data'!$A$10=3,'Mitigation Data'!$AQ$25=1))),LOOKUP(Data!$AU$17,Data!$AS$18:$AS$22,Data!$AT$18:$AT$22),\"\")","v":""},null,null,null,null,null,null,{"$f":"IF('Mitigation Data'!C9=TRUE,LOOKUP('Mitigation Data'!$AU$17,'Mitigation Data'!$AS$18:$AS$22,'Mitigation Data'!$AT$18:$AT$22),\"\")","v":""}]
["Landfilling method",null,null,null,null,{"$f":"IF(OR('Mitigation Data'!$A$10=2,(AND('Mitigation Data'!$A$10=3,'Mitigation Data'!$AQ$25=1))),LOOKUP(Data!$AU$24,Data!$AS$25:$AS$29,Data!$AT$25:$AT$29),\"\")","v":""},null,null,null,null,null,null,{"$f":"IF('Mitigation Data'!C9=TRUE, LOOKUP('Mitigation Data'!$AU$24,'Mitigation Data'!$AS$25:$AS$29,'Mitigation Data'!$AT$25:$AT$29),\"\")","v":""}]
["Landfill completion method",null,null,null,null,{"$f":"IF(OR('Mitigation Data'!$A$10=2,(AND('Mitigation Data'!$A$10=3,'Mitigation Data'!$AQ$25=1))),LOOKUP(Data!$AU$31,Data!$AS$32:$AS$36,Data!$AT$32:$AT$36),\"\")","v":""},null,null,null,null,null,null,{"$f":"IF('Mitigation Data'!C9=TRUE, LOOKUP('Mitigation Data'!$AU$31,'Mitigation Data'!$AS$32:$AS$36,'Mitigation Data'!$AT$32:$AT$36),\"\")","v":""}]
["Organic layer over final surface",null,null,null,null,{"$f":"IF(OR('Mitigation Data'!$A$10=2,(AND('Mitigation Data'!$A$10=3,'Mitigation Data'!$AQ$25=1))),IF(Data!$AU$56=1,\"Yes\",\"No\"),\"\")","v":""},null,null,null,null,null,null,{"$f":"IF('Mitigation Data'!C9=TRUE, IF('Mitigation Data'!$AU$56=1,\"Yes\",\"No\"),\"\")","v":""}]
["Final surface revegetation",null,null,null,null,{"$f":"IF(OR('Mitigation Data'!$A$10=2,(AND('Mitigation Data'!$A$10=3,'Mitigation Data'!$AQ$25=1))),LOOKUP(Data!$AU$58,Data!$AS$59:$AS$63,Data!$AT$59:$AT$63),\"\")","v":""},null,null,null,null,null,null,{"$f":"IF('Mitigation Data'!C9=TRUE, LOOKUP('Mitigation Data'!$AU$58,'Mitigation Data'!$AS$59:$AS$63,'Mitigation Data'!$AT$59:$AT$63),\"\")","v":""}]
["Final surface slope",null,null,null,null,{"$f":"IF(OR('Mitigation Data'!$A$10=2,(AND('Mitigation Data'!$A$10=3,'Mitigation Data'!$AQ$25=1))),LOOKUP(Data!$AU$38,Data!$AS$39:$AS$43,Data!$AT$39:$AT$43),\"\")","v":""},null,null,null,null,null,null,{"$f":"IF('Mitigation Data'!C9=TRUE,LOOKUP('Mitigation Data'!$AU$38,'Mitigation Data'!$AS$39:$AS$43,'Mitigation Data'!$AT$39:$AT$43),\"\")","v":""}]
["Treatement of runoff",null,null,null,null,{"$f":"IF(OR('Mitigation Data'!$A$10=2,(AND('Mitigation Data'!$A$10=3,'Mitigation Data'!$AQ$25=1))),LOOKUP(Data!$AU$74,Data!$AS$75:$AS$79,Data!$AT$75:$AT$79),\"\")","v":""},null,null,null,null,null,null,{"$f":"IF('Mitigation Data'!C9=TRUE,LOOKUP('Mitigation Data'!$AU$74,'Mitigation Data'!$AS$75:$AS$79,'Mitigation Data'!$AT$75:$AT$79),\"\")","v":""}]
["Management of leachate",null,null,null,null,{"$f":"IF(OR('Mitigation Data'!$A$10=2,(AND('Mitigation Data'!$A$10=3,'Mitigation Data'!$AQ$25=1))),LOOKUP(Data!$AU$81,Data!$AS$82:$AS$86,Data!$AT$82:$AT$86),\"\")","v":""},null,null,null,null,null,null,{"$f":"IF('Mitigation Data'!C9=TRUE,LOOKUP('Mitigation Data'!$AU$81,'Mitigation Data'!$AS$82:$AS$86,'Mitigation Data'!$AT$82:$AT$86),\"\")","v":""}]
["Structures built on landfilled areas",null,null,null,null,{"$f":"IF(OR('Mitigation Data'!$A$10=2,(AND('Mitigation Data'!$A$10=3,'Mitigation Data'!$AQ$25=1))),IF(Data!$AU$54=1,\"Yes\",\"No\"),\"\")","v":""},null,null,null,null,null,null,{"$f":"IF('Mitigation Data'!C9=TRUE,IF('Mitigation Data'!$AU$54=1,\"Yes\",\"No\"),\"\")","v":""}]
["Closure plan",null,null,null,null,{"$f":"IF(OR('Mitigation Data'!$A$10=2,(AND('Mitigation Data'!$A$10=3,'Mitigation Data'!$AQ$25=1))),LOOKUP(Data!$AU$95,Data!$AS$96:$AS$98,Data!$AT$96:$AT$98),\"\")","v":""},null,null,null,null,null,null,{"$f":"IF('Mitigation Data'!C9=TRUE, LOOKUP('Mitigation Data'!AU145,'Mitigation Data'!AS146:AS148,'Mitigation Data'!AT146:AT148),\"\")","v":""}]
["Post landfill closure use",null,null,null,null,{"$f":"IF(OR('Mitigation Data'!$A$10=2,(AND('Mitigation Data'!$A$10=3,'Mitigation Data'!$AQ$25=1))),LOOKUP(Data!$AU$45,Data!$AS$46:$AS$52,Data!$AT$46:$AT$52),\"\")","v":""},null,null,null,null,null,null,{"$f":"IF('Mitigation Data'!C9=TRUE, LOOKUP('Mitigation Data'!$AU$45,'Mitigation Data'!$AS$46:$AS$52,'Mitigation Data'!$AT$46:$AT$52),\"\")","v":""}]
["Post closure monitoring of cap",null,null,null,null,{"$f":"IF(OR('Mitigation Data'!$A$10=2,(AND('Mitigation Data'!$A$10=3,'Mitigation Data'!$AQ$25=1))),IF(Data!$AS$65=1,\"Yes\",\"No\"),\"\")","v":""},null,null,null,null,null,null,{"$f":"IF('Mitigation Data'!C9=TRUE, IF('Mitigation Data'!$AS$65=1,\"Yes\",\"No\"),\"\")","v":""}]
["Frequency of cap monitoring",null,null,null,null,{"$f":"IF(OR('Mitigation Data'!$A$10=2,(AND('Mitigation Data'!$A$10=3,'Mitigation Data'!$AQ$25=1))),IF($F$451=\"No\",\"N/A\",LOOKUP(Data!$AU$66,Data!$AS$67:$AS$71,Data!$AT$67:$AT$71)),\"\")","v":""},null,null,null,null,null,null,{"$f":"IF('Mitigation Data'!C9=TRUE, IF($M$451=\"No\",\"N/A\",LOOKUP('Mitigation Data'!$AU$66,'Mitigation Data'!$AS$67:$AS$71,'Mitigation Data'!$AT$67:$AT$71)),\"\")","v":""}]
["Procedures to repair instabilities / failures",null,null,null,null,{"$f":"IF(OR('Mitigation Data'!$A$10=2,(AND('Mitigation Data'!$A$10=3,'Mitigation Data'!$AQ$25=1))),IF($F$451=\"No\",\"N/A\",IF(Data!$AL$43=1,\"Yes\",\"No\")),\"\")","v":""},null,null,null,null,null,null,{"$f":"IF('Mitigation Data'!C9=TRUE, IF($M$451=\"No\",\"N/A\",IF('Mitigation Data'!$AU$72=1,\"Yes\",\"No\")),\"\")","v":""}]
["Management of landfill gas",null,null,null,null,{"$f":"IF(OR('Mitigation Data'!$A$10=2,(AND('Mitigation Data'!$A$10=3,'Mitigation Data'!$AQ$25=1))),LOOKUP(Data!$AU$88,Data!$AS$89:$AS$93,Data!$AT$89:$AT$93),\"\")","v":""},null,null,null,null,null,null,{"$f":"IF('Mitigation Data'!C9=TRUE, LOOKUP('Mitigation Data'!AU138,'Mitigation Data'!AS139:AS143,'Mitigation Data'!AT139:AT143),\"\")","v":""}]
[]
["E-RAMP Risk Profile Report (cont)"]
[]
["General Information"]
[]
[]
[]
[]
[]
[]
[]
[]
[]
[]
[]
[]
[]
[]
[]
[]
[]
[]
[]
[]
[]
[]
[]
[]
[]
[]
[]
[]
[]
[]
[]
[]
[]
[]
[]
[]
[]
[]
[]
[]
[]
[]
[]
[]
[]
[]
["NOTES:"]